Workbook

Sheet Stoplight (hidden)
A1: ERCOT Project Portfolio Stoplight Report - April 2019
A3: Impact Metric Tolerances | F3: 2019 Project Funding | I3: =20400000 -> 20400000 | J3: 2019 Portfolio Spending Estimate
A4: Unfavorable variances are represented as negative numbers within the report. - Green = No more than 4.9% unfavorable variance - Yellow = Unfavorable variance between 4.9% and 9.9% - Red = Unfavorable variance more than 9.9% | F4: ="Projects In Flight/On Hold (Count = " & COUNTA(D11:D16)+COUNTA(D18:D29)+COUNTA(D31:D55)+COUNTA(D57:D74)+COUNTA(D76:D95)+COUNTA(E97:E103) & ")" -> Projects In Flight/On Hold (Count = 76) | J4: =SUM(O10:O103) -> 
F5: ="Projects Not Yet Started (Count = " & COUNTA(E155:E174) & ")" -> Projects Not Yet Started (Count = 18) | J5: =SUM(O155:O174) -> 
F6: ="Projects Completed (Count = " & COUNTA(B105:B132)+COUNTA(B134:B143) & ")" -> Projects Completed (Count = 34) | J6: =SUM(O105:O132) -> 
F7: Spending Reductions Required to Maintain Capital Budget | J7: =IF(I3-SUM(J4:J6)<0,I3-SUM(J4:J6),0) -> 
F8: TOTAL | J8: =SUM(J4:J7) -> 
A10: Project Number | B10: ="Projects in Initiation Phase (Count = " & COUNTA(B11:B16) & ")" -> Projects in Initiation Phase (Count = 4) | C10: VP | D10: PM | E10: Phase | O10: 2019 Forecast Spend | P10: Baseline Budget | Q10: Approved Budget | R10: Total Forecast Spend
A12: =IF(INDEX('-- PPL --'!D$10:D$846,(MATCH($B12,'-- PPL --'!#REF!,0)))=0, IF(INDEX('-- PPL --'!F$10:F$846,(MATCH($B12,'-- PPL --'!#REF!,0)))=0, "TBD", INDEX('-- PPL --'!F$10:F$846,(MATCH($B12,'-- PPL --'!#REF!,0)))), IF(INDEX('-- PPL --'!D$10:D$846,(MATCH($B12,'-- PPL --'!#REF!,0)))="ECAP", INDEX('-- PPL --'!F$10:F$846,(MATCH($B12,'-- PPL --'!#REF!,0))), INDEX('-- PPL --'!D$10:D$846,(MATCH($B12,'-- PPL --'!#REF!,0))))) ->  | B12: Office 365 Phase 1 | C12: =INDEX('-- PPL --'!#REF!,(MATCH($B12,'-- PPL --'!#REF!,0))) ->  | D12: =INDEX('-- PPL --'!#REF!,(MATCH($B12,'-- PPL --'!#REF!,0))) ->  | E12: =INDEX('-- PPL --'!I$10:I$845,(MATCH($B12,'-- PPL --'!#REF!,0))) ->  | O12: =INDEX('-- PPL --'!AG$10:AG$845,(MATCH($B12,'-- PPL --'!#REF!,0))) ->  | P12: =INDEX('-- PPL --'!#REF!,(MATCH($B12,'-- PPL --'!#REF!,0))) ->  | Q12: =INDEX('-- PPL --'!#REF!,(MATCH($B12,'-- PPL --'!#REF!,0))) ->  | R12: =INDEX('-- PPL --'!#REF!,(MATCH($B12,'-- PPL --'!#REF!,0))) -> 
A13: =IF(INDEX('-- PPL --'!D$10:D$846,(MATCH($B13,'-- PPL --'!#REF!,0)))=0, IF(INDEX('-- PPL --'!F$10:F$846,(MATCH($B13,'-- PPL --'!#REF!,0)))=0, "TBD", INDEX('-- PPL --'!F$10:F$846,(MATCH($B13,'-- PPL --'!#REF!,0)))), IF(INDEX('-- PPL --'!D$10:D$846,(MATCH($B13,'-- PPL --'!#REF!,0)))="ECAP", INDEX('-- PPL --'!F$10:F$846,(MATCH($B13,'-- PPL --'!#REF!,0))), INDEX('-- PPL --'!D$10:D$846,(MATCH($B13,'-- PPL --'!#REF!,0))))) ->  | B13: 2019 NMMS Defects | C13: =INDEX('-- PPL --'!#REF!,(MATCH($B13,'-- PPL --'!#REF!,0))) ->  | D13: =INDEX('-- PPL --'!#REF!,(MATCH($B13,'-- PPL --'!#REF!,0))) ->  | E13: =INDEX('-- PPL --'!I$10:I$845,(MATCH($B13,'-- PPL --'!#REF!,0))) ->  | O13: =INDEX('-- PPL --'!AG$10:AG$845,(MATCH($B13,'-- PPL --'!#REF!,0))) ->  | P13: =INDEX('-- PPL --'!#REF!,(MATCH($B13,'-- PPL --'!#REF!,0))) ->  | Q13: =INDEX('-- PPL --'!#REF!,(MATCH($B13,'-- PPL --'!#REF!,0))) ->  | R13: =INDEX('-- PPL --'!#REF!,(MATCH($B13,'-- PPL --'!#REF!,0))) -> 
A14: =IF(INDEX('-- PPL --'!D$10:D$846,(MATCH($B14,'-- PPL --'!#REF!,0)))=0, IF(INDEX('-- PPL --'!F$10:F$846,(MATCH($B14,'-- PPL --'!#REF!,0)))=0, "TBD", INDEX('-- PPL --'!F$10:F$846,(MATCH($B14,'-- PPL --'!#REF!,0)))), IF(INDEX('-- PPL --'!D$10:D$846,(MATCH($B14,'-- PPL --'!#REF!,0)))="ECAP", INDEX('-- PPL --'!F$10:F$846,(MATCH($B14,'-- PPL --'!#REF!,0))), INDEX('-- PPL --'!D$10:D$846,(MATCH($B14,'-- PPL --'!#REF!,0))))) ->  | B14: Creation of ERCOT Contingency Reserve Service and Revisions to Responsive Reserve | C14: =INDEX('-- PPL --'!#REF!,(MATCH($B14,'-- PPL --'!#REF!,0))) ->  | D14: =INDEX('-- PPL --'!#REF!,(MATCH($B14,'-- PPL --'!#REF!,0))) ->  | E14: =INDEX('-- PPL --'!I$10:I$845,(MATCH($B14,'-- PPL --'!#REF!,0))) ->  | O14: =INDEX('-- PPL --'!AG$10:AG$845,(MATCH($B14,'-- PPL --'!#REF!,0))) ->  | P14: =INDEX('-- PPL --'!#REF!,(MATCH($B14,'-- PPL --'!#REF!,0))) ->  | Q14: =INDEX('-- PPL --'!#REF!,(MATCH($B14,'-- PPL --'!#REF!,0))) ->  | R14: =INDEX('-- PPL --'!#REF!,(MATCH($B14,'-- PPL --'!#REF!,0))) -> 
A15: =IF(INDEX('-- PPL --'!D$10:D$846,(MATCH($B15,'-- PPL --'!#REF!,0)))=0, IF(INDEX('-- PPL --'!F$10:F$846,(MATCH($B15,'-- PPL --'!#REF!,0)))=0, "TBD", INDEX('-- PPL --'!F$10:F$846,(MATCH($B15,'-- PPL --'!#REF!,0)))), IF(INDEX('-- PPL --'!D$10:D$846,(MATCH($B15,'-- PPL --'!#REF!,0)))="ECAP", INDEX('-- PPL --'!F$10:F$846,(MATCH($B15,'-- PPL --'!#REF!,0))), INDEX('-- PPL --'!D$10:D$846,(MATCH($B15,'-- PPL --'!#REF!,0))))) ->  | B15: Monthly Posting of Default Uplift Exposure Information | C15: =INDEX('-- PPL --'!#REF!,(MATCH($B15,'-- PPL --'!#REF!,0))) ->  | D15: =INDEX('-- PPL --'!#REF!,(MATCH($B15,'-- PPL --'!#REF!,0))) ->  | E15: =INDEX('-- PPL --'!I$10:I$845,(MATCH($B15,'-- PPL --'!#REF!,0))) ->  | O15: =INDEX('-- PPL --'!AG$10:AG$845,(MATCH($B15,'-- PPL --'!#REF!,0))) ->  | P15: =INDEX('-- PPL --'!#REF!,(MATCH($B15,'-- PPL --'!#REF!,0))) ->  | Q15: =INDEX('-- PPL --'!#REF!,(MATCH($B15,'-- PPL --'!#REF!,0))) ->  | R15: =INDEX('-- PPL --'!#REF!,(MATCH($B15,'-- PPL --'!#REF!,0))) -> 
A17: Project Number | B17: ="Projects in Planning Phase (Count = " & COUNTA(B18:B29) & ")" -> Projects in Planning Phase (Count = 10) | C17: VP | D17: PM | E17: Phase | F17: Phase Start | G17: Baseline Phase Finish | H17: Approved Phase Finish | I17: Scheduled Go-Live Date | J17: Scheduled Phase Finish | K17: Forecast Variance | M17: Schedule Health | O17: 2019 Forecast Spend | P17: Baseline Budget | Q17: Approved Budget | R17: Total Forecast Spend | S17: Forecast Variance | U17: Budget Health
A19: =IF(INDEX('-- PPL --'!D$10:D$846,(MATCH($B19,'-- PPL --'!#REF!,0)))=0, IF(INDEX('-- PPL --'!F$10:F$846,(MATCH($B19,'-- PPL --'!#REF!,0)))=0, "TBD", INDEX('-- PPL --'!F$10:F$846,(MATCH($B19,'-- PPL --'!#REF!,0)))), IF(INDEX('-- PPL --'!D$10:D$846,(MATCH($B19,'-- PPL --'!#REF!,0)))="ECAP", INDEX('-- PPL --'!F$10:F$846,(MATCH($B19,'-- PPL --'!#REF!,0))), INDEX('-- PPL --'!D$10:D$846,(MATCH($B19,'-- PPL --'!#REF!,0))))) ->  | B19: Privileged Account Management (PAM) Phase 2 | C19: =INDEX('-- PPL --'!#REF!,(MATCH($B19,'-- PPL --'!#REF!,0))) ->  | D19: =INDEX('-- PPL --'!#REF!,(MATCH($B19,'-- PPL --'!#REF!,0))) ->  | E19: =INDEX('-- PPL --'!I$10:I$845,(MATCH($B19,'-- PPL --'!#REF!,0))) ->  | F19: 2018-08-08 | G19: 2018-12-19 | H19: 2019-08-20 | I19: TBD | J19: 2019-08-20 | L19: =IF(J19>1/1/2000,TRUNC(1-(J19-F19)/(G19-F19),2),"") -> -1.83 | N19: =IF(J19>1/1/2000,TRUNC((((H19-F19)-(J19-F19))/(H19-F19)),2),"") -> 0 | O19: =INDEX('-- PPL --'!AG$10:AG$845,(MATCH($B19,'-- PPL --'!#REF!,0))) ->  | P19: =INDEX('-- PPL --'!#REF!,(MATCH($B19,'-- PPL --'!#REF!,0))) ->  | Q19: =INDEX('-- PPL --'!#REF!,(MATCH($B19,'-- PPL --'!#REF!,0))) ->  | R19: =INDEX('-- PPL --'!#REF!,(MATCH($B19,'-- PPL --'!#REF!,0))) ->  | V19: =IF(Q19>0,TRUNC((Q19-R19)/Q19,2),TRUNC((P19-R19)/P19,2)) -> 
A20: =IF(INDEX('-- PPL --'!D$10:D$846,(MATCH($B20,'-- PPL --'!#REF!,0)))=0, IF(INDEX('-- PPL --'!F$10:F$846,(MATCH($B20,'-- PPL --'!#REF!,0)))=0, "TBD", INDEX('-- PPL --'!F$10:F$846,(MATCH($B20,'-- PPL --'!#REF!,0)))), IF(INDEX('-- PPL --'!D$10:D$846,(MATCH($B20,'-- PPL --'!#REF!,0)))="ECAP", INDEX('-- PPL --'!F$10:F$846,(MATCH($B20,'-- PPL --'!#REF!,0))), INDEX('-- PPL --'!D$10:D$846,(MATCH($B20,'-- PPL --'!#REF!,0))))) ->  | B20: ECAP - ECMS Implementation Phase 2 | C20: =INDEX('-- PPL --'!#REF!,(MATCH($B20,'-- PPL --'!#REF!,0))) ->  | D20: =INDEX('-- PPL --'!#REF!,(MATCH($B20,'-- PPL --'!#REF!,0))) ->  | E20: =INDEX('-- PPL --'!I$10:I$845,(MATCH($B20,'-- PPL --'!#REF!,0))) ->  | F20: 2019-04-16 | G20: 2019-09-10 | H20: 2019-09-10 | I20: TBD | J20: 2019-09-10 | L20: 0 | N20: =IF(J20>1/1/2000,TRUNC((((H20-F20)-(J20-F20))/(H20-F20)),2),"") -> 0 | O20: =INDEX('-- PPL --'!AG$10:AG$845,(MATCH($B20,'-- PPL --'!#REF!,0))) ->  | P20: =INDEX('-- PPL --'!#REF!,(MATCH($B20,'-- PPL --'!#REF!,0))) ->  | Q20: =INDEX('-- PPL --'!#REF!,(MATCH($B20,'-- PPL --'!#REF!,0))) ->  | R20: =INDEX('-- PPL --'!#REF!,(MATCH($B20,'-- PPL --'!#REF!,0))) ->  | V20: =IF(Q20>0,TRUNC((Q20-R20)/Q20,2),TRUNC((P20-R20)/P20,2)) -> 
A21: =IF(INDEX('-- PPL --'!D$10:D$846,(MATCH($B21,'-- PPL --'!#REF!,0)))=0, IF(INDEX('-- PPL --'!F$10:F$846,(MATCH($B21,'-- PPL --'!#REF!,0)))=0, "TBD", INDEX('-- PPL --'!F$10:F$846,(MATCH($B21,'-- PPL --'!#REF!,0)))), IF(INDEX('-- PPL --'!D$10:D$846,(MATCH($B21,'-- PPL --'!#REF!,0)))="ECAP", INDEX('-- PPL --'!F$10:F$846,(MATCH($B21,'-- PPL --'!#REF!,0))), INDEX('-- PPL --'!D$10:D$846,(MATCH($B21,'-- PPL --'!#REF!,0))))) ->  | B21: Macomber Map Replacement for Control Room/OTS Integration for GridGeo | C21: =INDEX('-- PPL --'!#REF!,(MATCH($B21,'-- PPL --'!#REF!,0))) ->  | D21: =INDEX('-- PPL --'!#REF!,(MATCH($B21,'-- PPL --'!#REF!,0))) ->  | E21: =INDEX('-- PPL --'!I$10:I$845,(MATCH($B21,'-- PPL --'!#REF!,0))) ->  | F21: 2019-05-29 | G21: 2019-10-01 | H21: 2019-10-01 | I21: TBD | J21: 2019-10-01 | L21: 0 | N21: =IF(J21>1/1/2000,TRUNC((((H21-F21)-(J21-F21))/(H21-F21)),2),"") -> 0 | O21: =INDEX('-- PPL --'!AG$10:AG$845,(MATCH($B21,'-- PPL --'!#REF!,0))) ->  | P21: =INDEX('-- PPL --'!#REF!,(MATCH($B21,'-- PPL --'!#REF!,0))) ->  | Q21: =INDEX('-- PPL --'!#REF!,(MATCH($B21,'-- PPL --'!#REF!,0))) ->  | R21: =INDEX('-- PPL --'!#REF!,(MATCH($B21,'-- PPL --'!#REF!,0))) ->  | V21: =IF(Q21>0,TRUNC((Q21-R21)/Q21,2),TRUNC((P21-R21)/P21,2)) -> 
A22: =IF(INDEX('-- PPL --'!D$10:D$846,(MATCH($B22,'-- PPL --'!#REF!,0)))=0, IF(INDEX('-- PPL --'!F$10:F$846,(MATCH($B22,'-- PPL --'!#REF!,0)))=0, "TBD", INDEX('-- PPL --'!F$10:F$846,(MATCH($B22,'-- PPL --'!#REF!,0)))), IF(INDEX('-- PPL --'!D$10:D$846,(MATCH($B22,'-- PPL --'!#REF!,0)))="ECAP", INDEX('-- PPL --'!F$10:F$846,(MATCH($B22,'-- PPL --'!#REF!,0))), INDEX('-- PPL --'!D$10:D$846,(MATCH($B22,'-- PPL --'!#REF!,0))))) ->  | B22: Java Platform Assessment | C22: =INDEX('-- PPL --'!#REF!,(MATCH($B22,'-- PPL --'!#REF!,0))) ->  | D22: =INDEX('-- PPL --'!#REF!,(MATCH($B22,'-- PPL --'!#REF!,0))) ->  | E22: =INDEX('-- PPL --'!I$10:I$845,(MATCH($B22,'-- PPL --'!#REF!,0))) ->  | F22: 2018-06-20 | G22: 2018-11-21 | H22: 2019-05-07 | I22: TBD | J22: 2019-05-07 | L22: -1.08 | N22: 0 | O22: =INDEX('-- PPL --'!AG$10:AG$845,(MATCH($B22,'-- PPL --'!#REF!,0))) ->  | P22: =INDEX('-- PPL --'!#REF!,(MATCH($B22,'-- PPL --'!#REF!,0))) ->  | Q22: =INDEX('-- PPL --'!#REF!,(MATCH($B22,'-- PPL --'!#REF!,0))) ->  | R22: =INDEX('-- PPL --'!#REF!,(MATCH($B22,'-- PPL --'!#REF!,0))) -> 
A23: =IF(INDEX('-- PPL --'!D$10:D$846,(MATCH($B23,'-- PPL --'!#REF!,0)))=0, IF(INDEX('-- PPL --'!F$10:F$846,(MATCH($B23,'-- PPL --'!#REF!,0)))=0, "TBD", INDEX('-- PPL --'!F$10:F$846,(MATCH($B23,'-- PPL --'!#REF!,0)))), IF(INDEX('-- PPL --'!D$10:D$846,(MATCH($B23,'-- PPL --'!#REF!,0)))="ECAP", INDEX('-- PPL --'!F$10:F$846,(MATCH($B23,'-- PPL --'!#REF!,0))), INDEX('-- PPL --'!D$10:D$846,(MATCH($B23,'-- PPL --'!#REF!,0))))) ->  | B23: Retail Portfolio Refresh (RPR) Program Control | C23: =INDEX('-- PPL --'!#REF!,(MATCH($B23,'-- PPL --'!#REF!,0))) ->  | D23: =INDEX('-- PPL --'!#REF!,(MATCH($B23,'-- PPL --'!#REF!,0))) ->  | E23: =INDEX('-- PPL --'!I$10:I$845,(MATCH($B23,'-- PPL --'!#REF!,0))) ->  | F23: 2018-09-05 | G23: 2019-03-27 | H23: 2019-09-24 | I23: TBD | J23: 2019-09-24 | L23: -0.89 | N23: 0 | O23: =INDEX('-- PPL --'!AG$10:AG$845,(MATCH($B23,'-- PPL --'!#REF!,0))) ->  | P23: =INDEX('-- PPL --'!#REF!,(MATCH($B23,'-- PPL --'!#REF!,0))) ->  | Q23: =INDEX('-- PPL --'!#REF!,(MATCH($B23,'-- PPL --'!#REF!,0))) ->  | R23: =INDEX('-- PPL --'!#REF!,(MATCH($B23,'-- PPL --'!#REF!,0))) -> 
A24: =IF(INDEX('-- PPL --'!D$10:D$846,(MATCH($B24,'-- PPL --'!#REF!,0)))=0, IF(INDEX('-- PPL --'!F$10:F$846,(MATCH($B24,'-- PPL --'!#REF!,0)))=0, "TBD", INDEX('-- PPL --'!F$10:F$846,(MATCH($B24,'-- PPL --'!#REF!,0)))), IF(INDEX('-- PPL --'!D$10:D$846,(MATCH($B24,'-- PPL --'!#REF!,0)))="ECAP", INDEX('-- PPL --'!F$10:F$846,(MATCH($B24,'-- PPL --'!#REF!,0))), INDEX('-- PPL --'!D$10:D$846,(MATCH($B24,'-- PPL --'!#REF!,0))))) ->  | B24: Forward Looking Operations Tools (FLOAT) Program Control | C24: =INDEX('-- PPL --'!#REF!,(MATCH($B24,'-- PPL --'!#REF!,0))) ->  | D24: =INDEX('-- PPL --'!#REF!,(MATCH($B24,'-- PPL --'!#REF!,0))) ->  | E24: =INDEX('-- PPL --'!I$10:I$845,(MATCH($B24,'-- PPL --'!#REF!,0))) ->  | F24: 2018-10-17 | G24: 2019-04-17 | H24: 2019-04-17 | I24: TBD | J24: 2019-04-17 | L24: 0 | N24: 0 | O24: =INDEX('-- PPL --'!AG$10:AG$845,(MATCH($B24,'-- PPL --'!#REF!,0))) ->  | P24: =INDEX('-- PPL --'!#REF!,(MATCH($B24,'-- PPL --'!#REF!,0))) ->  | Q24: =INDEX('-- PPL --'!#REF!,(MATCH($B24,'-- PPL --'!#REF!,0))) ->  | R24: =INDEX('-- PPL --'!#REF!,(MATCH($B24,'-- PPL --'!#REF!,0))) -> 
A25: =IF(INDEX('-- PPL --'!D$10:D$846,(MATCH($B25,'-- PPL --'!#REF!,0)))=0, IF(INDEX('-- PPL --'!F$10:F$846,(MATCH($B25,'-- PPL --'!#REF!,0)))=0, "TBD", INDEX('-- PPL --'!F$10:F$846,(MATCH($B25,'-- PPL --'!#REF!,0)))), IF(INDEX('-- PPL --'!D$10:D$846,(MATCH($B25,'-- PPL --'!#REF!,0)))="ECAP", INDEX('-- PPL --'!F$10:F$846,(MATCH($B25,'-- PPL --'!#REF!,0))), INDEX('-- PPL --'!D$10:D$846,(MATCH($B25,'-- PPL --'!#REF!,0))))) ->  | B25: WAN Refresh | C25: =INDEX('-- PPL --'!#REF!,(MATCH($B25,'-- PPL --'!#REF!,0))) ->  | D25: =INDEX('-- PPL --'!#REF!,(MATCH($B25,'-- PPL --'!#REF!,0))) ->  | E25: =INDEX('-- PPL --'!I$10:I$845,(MATCH($B25,'-- PPL --'!#REF!,0))) ->  | F25: 2019-04-30 | G25: 2019-09-17 | H25: 2019-09-17 | I25: TBD | J25: 2019-09-17 | L25: 0 | N25: =IF(J25>1/1/2000,TRUNC((((H25-F25)-(J25-F25))/(H25-F25)),2),"") -> 0 | O25: =INDEX('-- PPL --'!AG$10:AG$845,(MATCH($B25,'-- PPL --'!#REF!,0))) ->  | P25: =INDEX('-- PPL --'!#REF!,(MATCH($B25,'-- PPL --'!#REF!,0))) ->  | Q25: =INDEX('-- PPL --'!#REF!,(MATCH($B25,'-- PPL --'!#REF!,0))) ->  | R25: =INDEX('-- PPL --'!#REF!,(MATCH($B25,'-- PPL --'!#REF!,0))) ->  | V25: =IF(Q25>0,TRUNC((Q25-R25)/Q25,2),TRUNC((P25-R25)/P25,2)) -> 
A26: =IF(INDEX('-- PPL --'!D$10:D$846,(MATCH($B26,'-- PPL --'!#REF!,0)))=0, IF(INDEX('-- PPL --'!F$10:F$846,(MATCH($B26,'-- PPL --'!#REF!,0)))=0, "TBD", INDEX('-- PPL --'!F$10:F$846,(MATCH($B26,'-- PPL --'!#REF!,0)))), IF(INDEX('-- PPL --'!D$10:D$846,(MATCH($B26,'-- PPL --'!#REF!,0)))="ECAP", INDEX('-- PPL --'!F$10:F$846,(MATCH($B26,'-- PPL --'!#REF!,0))), INDEX('-- PPL --'!D$10:D$846,(MATCH($B26,'-- PPL --'!#REF!,0))))) ->  | B26: Tech Refresh - MMS/OS | C26: =INDEX('-- PPL --'!#REF!,(MATCH($B26,'-- PPL --'!#REF!,0))) ->  | D26: =INDEX('-- PPL --'!#REF!,(MATCH($B26,'-- PPL --'!#REF!,0))) ->  | E26: =INDEX('-- PPL --'!I$10:I$845,(MATCH($B26,'-- PPL --'!#REF!,0))) ->  | F26: 2019-04-30 | G26: 2019-07-30 | H26: 2019-07-30 | I26: TBD | J26: 2019-07-30 | L26: 0 | N26: =IF(J26>1/1/2000,TRUNC((((H26-F26)-(J26-F26))/(H26-F26)),2),"") -> 0 | O26: =INDEX('-- PPL --'!AG$10:AG$845,(MATCH($B26,'-- PPL --'!#REF!,0))) ->  | P26: =INDEX('-- PPL --'!#REF!,(MATCH($B26,'-- PPL --'!#REF!,0))) ->  | Q26: =INDEX('-- PPL --'!#REF!,(MATCH($B26,'-- PPL --'!#REF!,0))) ->  | R26: =INDEX('-- PPL --'!#REF!,(MATCH($B26,'-- PPL --'!#REF!,0))) ->  | V26: =IF(Q26>0,TRUNC((Q26-R26)/Q26,2),TRUNC((P26-R26)/P26,2)) -> 
A27: =IF(INDEX('-- PPL --'!D$10:D$846,(MATCH($B27,'-- PPL --'!#REF!,0)))=0, IF(INDEX('-- PPL --'!F$10:F$846,(MATCH($B27,'-- PPL --'!#REF!,0)))=0, "TBD", INDEX('-- PPL --'!F$10:F$846,(MATCH($B27,'-- PPL --'!#REF!,0)))), IF(INDEX('-- PPL --'!D$10:D$846,(MATCH($B27,'-- PPL --'!#REF!,0)))="ECAP", INDEX('-- PPL --'!F$10:F$846,(MATCH($B27,'-- PPL --'!#REF!,0))), INDEX('-- PPL --'!D$10:D$846,(MATCH($B27,'-- PPL --'!#REF!,0))))) ->  | B27: MIS Tech Refresh JBOSS and Linux | C27: =INDEX('-- PPL --'!#REF!,(MATCH($B27,'-- PPL --'!#REF!,0))) ->  | D27: =INDEX('-- PPL --'!#REF!,(MATCH($B27,'-- PPL --'!#REF!,0))) ->  | E27: =INDEX('-- PPL --'!I$10:I$845,(MATCH($B27,'-- PPL --'!#REF!,0))) ->  | F27: 2019-04-16 | G27: 2019-07-02 | H27: 2019-07-02 | I27: TBD | J27: 2019-07-02 | L27: 0 | N27: =IF(J27>1/1/2000,TRUNC((((H27-F27)-(J27-F27))/(H27-F27)),2),"") -> 0 | O27: =INDEX('-- PPL --'!AG$10:AG$845,(MATCH($B27,'-- PPL --'!#REF!,0))) ->  | P27: =INDEX('-- PPL --'!#REF!,(MATCH($B27,'-- PPL --'!#REF!,0))) ->  | Q27: =INDEX('-- PPL --'!#REF!,(MATCH($B27,'-- PPL --'!#REF!,0))) ->  | R27: =INDEX('-- PPL --'!#REF!,(MATCH($B27,'-- PPL --'!#REF!,0))) ->  | V27: =IF(Q27>0,TRUNC((Q27-R27)/Q27,2),TRUNC((P27-R27)/P27,2)) -> 
A28: =IF(INDEX('-- PPL --'!D$10:D$846,(MATCH($B28,'-- PPL --'!#REF!,0)))=0, IF(INDEX('-- PPL --'!F$10:F$846,(MATCH($B28,'-- PPL --'!#REF!,0)))=0, "TBD", INDEX('-- PPL --'!F$10:F$846,(MATCH($B28,'-- PPL --'!#REF!,0)))), IF(INDEX('-- PPL --'!D$10:D$846,(MATCH($B28,'-- PPL --'!#REF!,0)))="ECAP", INDEX('-- PPL --'!F$10:F$846,(MATCH($B28,'-- PPL --'!#REF!,0))), INDEX('-- PPL --'!D$10:D$846,(MATCH($B28,'-- PPL --'!#REF!,0))))) ->  | B28: Posting of the ERCOT Wide Intra-Hour Wind Power and Load Forecast on the MIS Public | C28: =INDEX('-- PPL --'!#REF!,(MATCH($B28,'-- PPL --'!#REF!,0))) ->  | D28: =INDEX('-- PPL --'!#REF!,(MATCH($B28,'-- PPL --'!#REF!,0))) ->  | E28: =INDEX('-- PPL --'!I$10:I$845,(MATCH($B28,'-- PPL --'!#REF!,0))) ->  | F28: 2019-03-12 | G28: 2019-04-16 | H28: 2019-06-04 | I28: TBD | J28: 2019-06-04 | L28: -1.4 | N28: 0 | O28: =INDEX('-- PPL --'!AG$10:AG$845,(MATCH($B28,'-- PPL --'!#REF!,0))) ->  | P28: =INDEX('-- PPL --'!#REF!,(MATCH($B28,'-- PPL --'!#REF!,0))) ->  | Q28: =INDEX('-- PPL --'!#REF!,(MATCH($B28,'-- PPL --'!#REF!,0))) ->  | R28: =INDEX('-- PPL --'!#REF!,(MATCH($B28,'-- PPL --'!#REF!,0))) -> 
A30: Project Number | B30: ="Projects in Execution Phase (Count = " & COUNTA(B31:B55) & ")" -> Projects in Execution Phase (Count = 23) | C30: VP | D30: PM | E30: Phase | F30: Phase Start | G30: Baseline Go-Live Date | H30: Approved Go-Live Date | I30: Scheduled Go-Live Date | J30: Scheduled Phase Finish | K30: Forecast Variance | M30: Schedule Health | O30: 2019 Forecast Spend | P30: Baseline Budget | Q30: Approved Budget | R30: Total Forecast Spend | S30: Forecast Variance | U30: Budget Health
A32: =IF(INDEX('-- PPL --'!D$10:D$846,(MATCH($B32,'-- PPL --'!#REF!,0)))=0, IF(INDEX('-- PPL --'!F$10:F$846,(MATCH($B32,'-- PPL --'!#REF!,0)))=0, "TBD", INDEX('-- PPL --'!F$10:F$846,(MATCH($B32,'-- PPL --'!#REF!,0)))), IF(INDEX('-- PPL --'!D$10:D$846,(MATCH($B32,'-- PPL --'!#REF!,0)))="ECAP", INDEX('-- PPL --'!F$10:F$846,(MATCH($B32,'-- PPL --'!#REF!,0))), INDEX('-- PPL --'!D$10:D$846,(MATCH($B32,'-- PPL --'!#REF!,0))))) ->  | B32: DC4 Program Control | C32: =INDEX('-- PPL --'!#REF!,(MATCH($B32,'-- PPL --'!#REF!,0))) ->  | D32: =INDEX('-- PPL --'!#REF!,(MATCH($B32,'-- PPL --'!#REF!,0))) ->  | E32: =INDEX('-- PPL --'!I$10:I$845,(MATCH($B32,'-- PPL --'!#REF!,0))) ->  | F32: 2019-06-04 | G32: 2019-12-10 | H32: 2019-12-10 | I32: 2019-12-10 | J32: 2019-12-10 | L32: =IF(J32>1/1/2000,TRUNC(1-(J32-F32)/(G32-F32),2),"") -> 0 | N32: =IF(I32>1/1/2000,TRUNC((((H32-F32)-(I32-F32))/(H32-F32)),2),"") -> 0 | O32: =INDEX('-- PPL --'!AG$10:AG$845,(MATCH($B32,'-- PPL --'!#REF!,0))) ->  | P32: =INDEX('-- PPL --'!#REF!,(MATCH($B32,'-- PPL --'!#REF!,0))) ->  | Q32: =INDEX('-- PPL --'!#REF!,(MATCH($B32,'-- PPL --'!#REF!,0))) ->  | R32: =INDEX('-- PPL --'!#REF!,(MATCH($B32,'-- PPL --'!#REF!,0))) ->  | V32: =IF(Q32>0,TRUNC((Q32-R32)/Q32,2),TRUNC((P32-R32)/P32,2)) -> 
A33: =IF(INDEX('-- PPL --'!D$10:D$846,(MATCH($B33,'-- PPL --'!#REF!,0)))=0, IF(INDEX('-- PPL --'!F$10:F$846,(MATCH($B33,'-- PPL --'!#REF!,0)))=0, "TBD", INDEX('-- PPL --'!F$10:F$846,(MATCH($B33,'-- PPL --'!#REF!,0)))), IF(INDEX('-- PPL --'!D$10:D$846,(MATCH($B33,'-- PPL --'!#REF!,0)))="ECAP", INDEX('-- PPL --'!F$10:F$846,(MATCH($B33,'-- PPL --'!#REF!,0))), INDEX('-- PPL --'!D$10:D$846,(MATCH($B33,'-- PPL --'!#REF!,0))))) ->  | B33: DC4 Telecom - Corp Voice System | C33: =INDEX('-- PPL --'!#REF!,(MATCH($B33,'-- PPL --'!#REF!,0))) ->  | D33: =INDEX('-- PPL --'!#REF!,(MATCH($B33,'-- PPL --'!#REF!,0))) ->  | E33: =INDEX('-- PPL --'!I$10:I$845,(MATCH($B33,'-- PPL --'!#REF!,0))) ->  | L33: =IF(I33>1/1/2000,TRUNC(1-(I33-F33)/(G33-F33),2),"") ->  | O33: =INDEX('-- PPL --'!AG$10:AG$845,(MATCH($B33,'-- PPL --'!#REF!,0))) ->  | P33: =INDEX('-- PPL --'!#REF!,(MATCH($B33,'-- PPL --'!#REF!,0))) ->  | Q33: =INDEX('-- PPL --'!#REF!,(MATCH($B33,'-- PPL --'!#REF!,0))) ->  | R33: =INDEX('-- PPL --'!#REF!,(MATCH($B33,'-- PPL --'!#REF!,0))) ->  | T33: =IF(P33>0,TRUNC((P33-R33)/P33,2),"") ->  | V33: =IF(Q33>0,TRUNC((Q33-R33)/Q33,2),TRUNC((P33-R33)/P33,2)) -> 
A34: =IF(INDEX('-- PPL --'!D$10:D$846,(MATCH($B34,'-- PPL --'!#REF!,0)))=0, IF(INDEX('-- PPL --'!F$10:F$846,(MATCH($B34,'-- PPL --'!#REF!,0)))=0, "TBD", INDEX('-- PPL --'!F$10:F$846,(MATCH($B34,'-- PPL --'!#REF!,0)))), IF(INDEX('-- PPL --'!D$10:D$846,(MATCH($B34,'-- PPL --'!#REF!,0)))="ECAP", INDEX('-- PPL --'!F$10:F$846,(MATCH($B34,'-- PPL --'!#REF!,0))), INDEX('-- PPL --'!D$10:D$846,(MATCH($B34,'-- PPL --'!#REF!,0))))) ->  | B34: DC4 Telecom - Corp Voice System Stage 2 | C34: =INDEX('-- PPL --'!#REF!,(MATCH($B34,'-- PPL --'!#REF!,0))) ->  | D34: =INDEX('-- PPL --'!#REF!,(MATCH($B34,'-- PPL --'!#REF!,0))) ->  | E34: =INDEX('-- PPL --'!I$10:I$845,(MATCH($B34,'-- PPL --'!#REF!,0))) ->  | F34: 2018-11-14 | G34: 2019-11-20 | H34: 2019-11-20 | I34: 2019-11-20 | J34: 2019-11-20 | L34: =IF(I34>1/1/2000,TRUNC(1-(I34-F34)/(G34-F34),2),"") -> 0 | N34: 0 | T34: =IF(P34>0,TRUNC((P34-R34)/P34,2),"") ->  | V34: See DC4 Telecom Corp Voice System
A35: =IF(INDEX('-- PPL --'!D$10:D$846,(MATCH($B35,'-- PPL --'!#REF!,0)))=0, IF(INDEX('-- PPL --'!F$10:F$846,(MATCH($B35,'-- PPL --'!#REF!,0)))=0, "TBD", INDEX('-- PPL --'!F$10:F$846,(MATCH($B35,'-- PPL --'!#REF!,0)))), IF(INDEX('-- PPL --'!D$10:D$846,(MATCH($B35,'-- PPL --'!#REF!,0)))="ECAP", INDEX('-- PPL --'!F$10:F$846,(MATCH($B35,'-- PPL --'!#REF!,0))), INDEX('-- PPL --'!D$10:D$846,(MATCH($B35,'-- PPL --'!#REF!,0))))) ->  | B35: DC4 MV90 Communication Hardware Refresh | C35: =INDEX('-- PPL --'!#REF!,(MATCH($B35,'-- PPL --'!#REF!,0))) ->  | D35: =INDEX('-- PPL --'!#REF!,(MATCH($B35,'-- PPL --'!#REF!,0))) ->  | E35: =INDEX('-- PPL --'!I$10:I$845,(MATCH($B35,'-- PPL --'!#REF!,0))) ->  | F35: 2018-07-18 | G35: 2019-05-22 | H35: 2019-08-23 | I35: 2019-08-23 | J35: 2019-09-10 | L35: =IF(I35>1/1/2000,TRUNC(1-(I35-F35)/(G35-F35),2),"") -> -0.3 | N35: 0 | O35: =INDEX('-- PPL --'!AG$10:AG$845,(MATCH($B35,'-- PPL --'!#REF!,0))) ->  | P35: =INDEX('-- PPL --'!#REF!,(MATCH($B35,'-- PPL --'!#REF!,0))) ->  | Q35: =INDEX('-- PPL --'!#REF!,(MATCH($B35,'-- PPL --'!#REF!,0))) ->  | R35: =INDEX('-- PPL --'!#REF!,(MATCH($B35,'-- PPL --'!#REF!,0))) ->  | T35: =IF(P35>0,TRUNC((P35-R35)/P35,2),"") ->  | V35: =IF(Q35>0,TRUNC((Q35-R35)/Q35,2),TRUNC((P35-R35)/P35,2)) -> 
A36: =IF(INDEX('-- PPL --'!D$10:D$846,(MATCH($B36,'-- PPL --'!#REF!,0)))=0, IF(INDEX('-- PPL --'!F$10:F$846,(MATCH($B36,'-- PPL --'!#REF!,0)))=0, "TBD", INDEX('-- PPL --'!F$10:F$846,(MATCH($B36,'-- PPL --'!#REF!,0)))), IF(INDEX('-- PPL --'!D$10:D$846,(MATCH($B36,'-- PPL --'!#REF!,0)))="ECAP", INDEX('-- PPL --'!F$10:F$846,(MATCH($B36,'-- PPL --'!#REF!,0))), INDEX('-- PPL --'!D$10:D$846,(MATCH($B36,'-- PPL --'!#REF!,0))))) ->  | B36: DC4 Vendor HW Refresh | C36: =INDEX('-- PPL --'!#REF!,(MATCH($B36,'-- PPL --'!#REF!,0))) ->  | D36: =INDEX('-- PPL --'!#REF!,(MATCH($B36,'-- PPL --'!#REF!,0))) ->  | E36: =INDEX('-- PPL --'!I$10:I$845,(MATCH($B36,'-- PPL --'!#REF!,0))) ->  | F36: 2019-05-28 | G36: 2019-08-30 | H36: 2019-08-30 | I36: 2019-08-30 | J36: 2019-09-10 | L36: =IF(J36>1/1/2000,TRUNC(1-(J36-F36)/(G36-F36),2),"") -> -0.11 | N36: 0 | O36: =INDEX('-- PPL --'!AG$10:AG$845,(MATCH($B36,'-- PPL --'!#REF!,0))) ->  | P36: =INDEX('-- PPL --'!#REF!,(MATCH($B36,'-- PPL --'!#REF!,0))) ->  | Q36: =INDEX('-- PPL --'!#REF!,(MATCH($B36,'-- PPL --'!#REF!,0))) ->  | R36: =INDEX('-- PPL --'!#REF!,(MATCH($B36,'-- PPL --'!#REF!,0))) ->  | V36: =IF(Q36>0,TRUNC((Q36-R36)/Q36,2),TRUNC((P36-R36)/P36,2)) -> 
A37: =IF(INDEX('-- PPL --'!D$10:D$846,(MATCH($B37,'-- PPL --'!#REF!,0)))=0, IF(INDEX('-- PPL --'!F$10:F$846,(MATCH($B37,'-- PPL --'!#REF!,0)))=0, "TBD", INDEX('-- PPL --'!F$10:F$846,(MATCH($B37,'-- PPL --'!#REF!,0)))), IF(INDEX('-- PPL --'!D$10:D$846,(MATCH($B37,'-- PPL --'!#REF!,0)))="ECAP", INDEX('-- PPL --'!F$10:F$846,(MATCH($B37,'-- PPL --'!#REF!,0))), INDEX('-- PPL --'!D$10:D$846,(MATCH($B37,'-- PPL --'!#REF!,0))))) ->  | B37: Enterprise Content Alignment Program | C37: =INDEX('-- PPL --'!#REF!,(MATCH($B37,'-- PPL --'!#REF!,0))) ->  | D37: =INDEX('-- PPL --'!#REF!,(MATCH($B37,'-- PPL --'!#REF!,0))) ->  | E37: =INDEX('-- PPL --'!I$10:I$845,(MATCH($B37,'-- PPL --'!#REF!,0))) ->  | F37: 2015-08-26 | G37: 2017-11-15 | H37: 2019-03-27 | I37: 2019-04-30 | J37: 2019-04-30 | L37: =IF(I37>1/1/2000,TRUNC(1-(I37-F37)/(G37-F37),2),"") -> -0.65 | N37: -0.02 | O37: =INDEX('-- PPL --'!AG$10:AG$845,(MATCH($B37,'-- PPL --'!#REF!,0))) ->  | P37: =INDEX('-- PPL --'!#REF!,(MATCH($B37,'-- PPL --'!#REF!,0))) ->  | Q37: =INDEX('-- PPL --'!#REF!,(MATCH($B37,'-- PPL --'!#REF!,0))) ->  | R37: =INDEX('-- PPL --'!#REF!,(MATCH($B37,'-- PPL --'!#REF!,0))) ->  | T37: =IF(P37>0,TRUNC((P37-R37)/P37,2),"") ->  | V37: =IF(Q37>0,TRUNC((Q37-R37)/Q37,2),TRUNC((P37-R37)/P37,2)) -> 
A38: =IF(INDEX('-- PPL --'!D$10:D$846,(MATCH($B38,'-- PPL --'!#REF!,0)))=0, IF(INDEX('-- PPL --'!F$10:F$846,(MATCH($B38,'-- PPL --'!#REF!,0)))=0, "TBD", INDEX('-- PPL --'!F$10:F$846,(MATCH($B38,'-- PPL --'!#REF!,0)))), IF(INDEX('-- PPL --'!D$10:D$846,(MATCH($B38,'-- PPL --'!#REF!,0)))="Various", INDEX('-- PPL --'!F$10:F$846,(MATCH($B38,'-- PPL --'!#REF!,0))), INDEX('-- PPL --'!D$10:D$846,(MATCH($B38,'-- PPL --'!#REF!,0))))) ->  | B38: ERCOT Flight Certification Website | C38: =INDEX('-- PPL --'!#REF!,(MATCH($B38,'-- PPL --'!#REF!,0))) ->  | D38: =INDEX('-- PPL --'!#REF!,(MATCH($B38,'-- PPL --'!#REF!,0))) ->  | E38: =INDEX('-- PPL --'!I$10:I$845,(MATCH($B38,'-- PPL --'!#REF!,0))) ->  | F38: 2017-11-15 | G38: 2019-02-28 | H38: 2019-06-04 | I38: 2019-06-04 | J38: 2019-07-31 | L38: =IF(J38>1/1/2000,TRUNC(1-(J38-F38)/(G38-F38),2),"") -> -0.32 | N38: 0 | O38: =INDEX('-- PPL --'!AG$10:AG$845,(MATCH($B38,'-- PPL --'!#REF!,0))) ->  | P38: =INDEX('-- PPL --'!#REF!,(MATCH($B38,'-- PPL --'!#REF!,0))) ->  | Q38: =INDEX('-- PPL --'!#REF!,(MATCH($B38,'-- PPL --'!#REF!,0))) ->  | R38: =INDEX('-- PPL --'!#REF!,(MATCH($B38,'-- PPL --'!#REF!,0))) ->  | T38: =IF(P38>0,TRUNC((P38-R38)/P38,2),"") ->  | V38: =IF(Q38>0,TRUNC((Q38-R38)/Q38,2),TRUNC((P38-R38)/P38,2)) -> 
A39: =IF(INDEX('-- PPL --'!D$10:D$846,(MATCH($B39,'-- PPL --'!#REF!,0)))=0, IF(INDEX('-- PPL --'!F$10:F$846,(MATCH($B39,'-- PPL --'!#REF!,0)))=0, "TBD", INDEX('-- PPL --'!F$10:F$846,(MATCH($B39,'-- PPL --'!#REF!,0)))), IF(INDEX('-- PPL --'!D$10:D$846,(MATCH($B39,'-- PPL --'!#REF!,0)))="ECAP", INDEX('-- PPL --'!F$10:F$846,(MATCH($B39,'-- PPL --'!#REF!,0))), INDEX('-- PPL --'!D$10:D$846,(MATCH($B39,'-- PPL --'!#REF!,0))))) ->  | B39: Study Network (STNET) Integration | C39: =INDEX('-- PPL --'!#REF!,(MATCH($B39,'-- PPL --'!#REF!,0))) ->  | D39: =INDEX('-- PPL --'!#REF!,(MATCH($B39,'-- PPL --'!#REF!,0))) ->  | E39: =INDEX('-- PPL --'!I$10:I$845,(MATCH($B39,'-- PPL --'!#REF!,0))) ->  | F39: 2018-11-28 | G39: 2019-08-28 | H39: 2019-08-28 | I39: 2019-08-28 | J39: 2019-09-25 | L39: -0.1 | N39: =IF(I39>1/1/2000,TRUNC((((H39-F39)-(I39-F39))/(H39-F39)),2),"") -> 0 | O39: =INDEX('-- PPL --'!AG$10:AG$845,(MATCH($B39,'-- PPL --'!#REF!,0))) ->  | P39: =INDEX('-- PPL --'!#REF!,(MATCH($B39,'-- PPL --'!#REF!,0))) ->  | Q39: =INDEX('-- PPL --'!#REF!,(MATCH($B39,'-- PPL --'!#REF!,0))) ->  | R39: =INDEX('-- PPL --'!#REF!,(MATCH($B39,'-- PPL --'!#REF!,0))) ->  | V39: =IF(Q39>0,TRUNC((Q39-R39)/Q39,2),TRUNC((P39-R39)/P39,2)) -> 
A40: =IF(INDEX('-- PPL --'!D$10:D$846,(MATCH($B40,'-- PPL --'!#REF!,0)))=0, IF(INDEX('-- PPL --'!F$10:F$846,(MATCH($B40,'-- PPL --'!#REF!,0)))=0, "TBD", INDEX('-- PPL --'!F$10:F$846,(MATCH($B40,'-- PPL --'!#REF!,0)))), IF(INDEX('-- PPL --'!D$10:D$846,(MATCH($B40,'-- PPL --'!#REF!,0)))="ECAP", INDEX('-- PPL --'!F$10:F$846,(MATCH($B40,'-- PPL --'!#REF!,0))), INDEX('-- PPL --'!D$10:D$846,(MATCH($B40,'-- PPL --'!#REF!,0))))) ->  | B40: Enterprise Database Upgrade | C40: =INDEX('-- PPL --'!#REF!,(MATCH($B40,'-- PPL --'!#REF!,0))) ->  | D40: =INDEX('-- PPL --'!#REF!,(MATCH($B40,'-- PPL --'!#REF!,0))) ->  | E40: =INDEX('-- PPL --'!I$10:I$845,(MATCH($B40,'-- PPL --'!#REF!,0))) ->  | F40: 2018-08-08 | G40: 2020-01-29 | H40: 2020-05-26 | I40: 2020-05-26 | J40: 2020-05-26 | L40: -0.21 | N40: 0 | O40: =INDEX('-- PPL --'!AG$10:AG$845,(MATCH($B40,'-- PPL --'!#REF!,0))) ->  | P40: =INDEX('-- PPL --'!#REF!,(MATCH($B40,'-- PPL --'!#REF!,0))) ->  | Q40: =INDEX('-- PPL --'!#REF!,(MATCH($B40,'-- PPL --'!#REF!,0))) ->  | R40: =INDEX('-- PPL --'!#REF!,(MATCH($B40,'-- PPL --'!#REF!,0))) -> 
A41: =IF(INDEX('-- PPL --'!D$10:D$846,(MATCH($B41,'-- PPL --'!#REF!,0)))=0, IF(INDEX('-- PPL --'!F$10:F$846,(MATCH($B41,'-- PPL --'!#REF!,0)))=0, "TBD", INDEX('-- PPL --'!F$10:F$846,(MATCH($B41,'-- PPL --'!#REF!,0)))), IF(INDEX('-- PPL --'!D$10:D$846,(MATCH($B41,'-- PPL --'!#REF!,0)))="ECAP", INDEX('-- PPL --'!F$10:F$846,(MATCH($B41,'-- PPL --'!#REF!,0))), INDEX('-- PPL --'!D$10:D$846,(MATCH($B41,'-- PPL --'!#REF!,0))))) ->  | B41: Application Authentication Tech Refresh | C41: =INDEX('-- PPL --'!#REF!,(MATCH($B41,'-- PPL --'!#REF!,0))) ->  | D41: =INDEX('-- PPL --'!#REF!,(MATCH($B41,'-- PPL --'!#REF!,0))) ->  | E41: =INDEX('-- PPL --'!I$10:I$845,(MATCH($B41,'-- PPL --'!#REF!,0))) ->  | F41: 2017-09-06 | G41: 2018-03-19 | H41: 2019-05-31 | I41: 2019-05-31 | J41: 2019-07-30 | L41: -2.56 | N41: =IF(I41>1/1/2000,TRUNC((((H41-F41)-(I41-F41))/(H41-F41)),2),"") -> 0 | O41: =INDEX('-- PPL --'!AG$10:AG$845,(MATCH($B41,'-- PPL --'!#REF!,0))) ->  | P41: =INDEX('-- PPL --'!#REF!,(MATCH($B41,'-- PPL --'!#REF!,0))) ->  | Q41: =INDEX('-- PPL --'!#REF!,(MATCH($B41,'-- PPL --'!#REF!,0))) ->  | R41: =INDEX('-- PPL --'!#REF!,(MATCH($B41,'-- PPL --'!#REF!,0))) -> 
A42: =IF(INDEX('-- PPL --'!D$10:D$846,(MATCH($B42,'-- PPL --'!#REF!,0)))=0, IF(INDEX('-- PPL --'!F$10:F$846,(MATCH($B42,'-- PPL --'!#REF!,0)))=0, "TBD", INDEX('-- PPL --'!F$10:F$846,(MATCH($B42,'-- PPL --'!#REF!,0)))), IF(INDEX('-- PPL --'!D$10:D$846,(MATCH($B42,'-- PPL --'!#REF!,0)))="ECAP", INDEX('-- PPL --'!F$10:F$846,(MATCH($B42,'-- PPL --'!#REF!,0))), INDEX('-- PPL --'!D$10:D$846,(MATCH($B42,'-- PPL --'!#REF!,0))))) ->  | B42: Corporate Wireless | C42: =INDEX('-- PPL --'!#REF!,(MATCH($B42,'-- PPL --'!#REF!,0))) ->  | D42: =INDEX('-- PPL --'!#REF!,(MATCH($B42,'-- PPL --'!#REF!,0))) ->  | E42: =INDEX('-- PPL --'!I$10:I$845,(MATCH($B42,'-- PPL --'!#REF!,0))) ->  | F42: 2017-11-29 | G42: 2018-03-28 | H42: 2019-05-31 | I42: 2019-05-31 | J42: 2019-06-25 | L42: -3.81 | N42: =IF(I42>1/1/2000,TRUNC((((H42-F42)-(I42-F42))/(H42-F42)),2),"") -> 0 | O42: =INDEX('-- PPL --'!AG$10:AG$845,(MATCH($B42,'-- PPL --'!#REF!,0))) ->  | P42: =INDEX('-- PPL --'!#REF!,(MATCH($B42,'-- PPL --'!#REF!,0))) ->  | Q42: =INDEX('-- PPL --'!#REF!,(MATCH($B42,'-- PPL --'!#REF!,0))) ->  | R42: =INDEX('-- PPL --'!#REF!,(MATCH($B42,'-- PPL --'!#REF!,0))) -> 
A43: =IF(INDEX('-- PPL --'!D$10:D$846,(MATCH($B43,'-- PPL --'!#REF!,0)))=0, IF(INDEX('-- PPL --'!F$10:F$846,(MATCH($B43,'-- PPL --'!#REF!,0)))=0, "TBD", INDEX('-- PPL --'!F$10:F$846,(MATCH($B43,'-- PPL --'!#REF!,0)))), IF(INDEX('-- PPL --'!D$10:D$846,(MATCH($B43,'-- PPL --'!#REF!,0)))="ECAP", INDEX('-- PPL --'!F$10:F$846,(MATCH($B43,'-- PPL --'!#REF!,0))), INDEX('-- PPL --'!D$10:D$846,(MATCH($B43,'-- PPL --'!#REF!,0))))) ->  | B43: 2017 EPS Metering Enhancements | C43: =INDEX('-- PPL --'!#REF!,(MATCH($B43,'-- PPL --'!#REF!,0))) ->  | D43: =INDEX('-- PPL --'!#REF!,(MATCH($B43,'-- PPL --'!#REF!,0))) ->  | E43: =INDEX('-- PPL --'!I$10:I$845,(MATCH($B43,'-- PPL --'!#REF!,0))) ->  | F43: 2018-06-27 | G43: 2019-08-09 | H43: 2019-12-12 | I43: 2019-12-12 | J43: 2020-01-14 | L43: -0.38 | N43: =IF(I43>1/1/2000,TRUNC((((H43-F43)-(I43-F43))/(H43-F43)),2),"") -> 0 | O43: =INDEX('-- PPL --'!AG$10:AG$845,(MATCH($B43,'-- PPL --'!#REF!,0))) ->  | P43: =INDEX('-- PPL --'!#REF!,(MATCH($B43,'-- PPL --'!#REF!,0))) ->  | Q43: =INDEX('-- PPL --'!#REF!,(MATCH($B43,'-- PPL --'!#REF!,0))) ->  | R43: =INDEX('-- PPL --'!#REF!,(MATCH($B43,'-- PPL --'!#REF!,0))) -> 
A44: =IF(INDEX('-- PPL --'!D$10:D$846,(MATCH($B44,'-- PPL --'!#REF!,0)))=0, IF(INDEX('-- PPL --'!F$10:F$846,(MATCH($B44,'-- PPL --'!#REF!,0)))=0, "TBD", INDEX('-- PPL --'!F$10:F$846,(MATCH($B44,'-- PPL --'!#REF!,0)))), IF(INDEX('-- PPL --'!D$10:D$846,(MATCH($B44,'-- PPL --'!#REF!,0)))="ECAP", INDEX('-- PPL --'!F$10:F$846,(MATCH($B44,'-- PPL --'!#REF!,0))), INDEX('-- PPL --'!D$10:D$846,(MATCH($B44,'-- PPL --'!#REF!,0))))) ->  | B44: Security Constrained Optimal Powerflow in Study Network Analysis | C44: =INDEX('-- PPL --'!#REF!,(MATCH($B44,'-- PPL --'!#REF!,0))) ->  | D44: =INDEX('-- PPL --'!#REF!,(MATCH($B44,'-- PPL --'!#REF!,0))) ->  | E44: =INDEX('-- PPL --'!I$10:I$845,(MATCH($B44,'-- PPL --'!#REF!,0))) ->  | F44: 2017-12-06 | G44: 2018-10-25 | H44: 2019-10-17 | I44: 2019-10-17 | J44: 2019-10-29 | L44: -1.14 | N44: =IF(I44>1/1/2000,TRUNC((((H44-F44)-(I44-F44))/(H44-F44)),2),"") -> 0 | O44: =INDEX('-- PPL --'!AG$10:AG$845,(MATCH($B44,'-- PPL --'!#REF!,0))) ->  | P44: =INDEX('-- PPL --'!#REF!,(MATCH($B44,'-- PPL --'!#REF!,0))) ->  | Q44: =INDEX('-- PPL --'!#REF!,(MATCH($B44,'-- PPL --'!#REF!,0))) ->  | R44: =INDEX('-- PPL --'!#REF!,(MATCH($B44,'-- PPL --'!#REF!,0))) -> 
A45: =IF(INDEX('-- PPL --'!D$10:D$846,(MATCH($B45,'-- PPL --'!#REF!,0)))=0, IF(INDEX('-- PPL --'!F$10:F$846,(MATCH($B45,'-- PPL --'!#REF!,0)))=0, "TBD", INDEX('-- PPL --'!F$10:F$846,(MATCH($B45,'-- PPL --'!#REF!,0)))), IF(INDEX('-- PPL --'!D$10:D$846,(MATCH($B45,'-- PPL --'!#REF!,0)))="ECAP", INDEX('-- PPL --'!F$10:F$846,(MATCH($B45,'-- PPL --'!#REF!,0))), INDEX('-- PPL --'!D$10:D$846,(MATCH($B45,'-- PPL --'!#REF!,0))))) ->  | B45: Market Simulator | C45: =INDEX('-- PPL --'!#REF!,(MATCH($B45,'-- PPL --'!#REF!,0))) ->  | D45: =INDEX('-- PPL --'!#REF!,(MATCH($B45,'-- PPL --'!#REF!,0))) ->  | E45: =INDEX('-- PPL --'!I$10:I$845,(MATCH($B45,'-- PPL --'!#REF!,0))) ->  | F45: 2018-04-11 | G45: 2018-12-13 | H45: 2019-06-21 | I45: 2019-06-21 | J45: 2019-07-30 | L45: -0.93 | N45: 0 | O45: =INDEX('-- PPL --'!AG$10:AG$845,(MATCH($B45,'-- PPL --'!#REF!,0))) ->  | P45: =INDEX('-- PPL --'!#REF!,(MATCH($B45,'-- PPL --'!#REF!,0))) ->  | Q45: =INDEX('-- PPL --'!#REF!,(MATCH($B45,'-- PPL --'!#REF!,0))) ->  | R45: =INDEX('-- PPL --'!#REF!,(MATCH($B45,'-- PPL --'!#REF!,0))) -> 
A46: =IF(INDEX('-- PPL --'!D$10:D$846,(MATCH($B46,'-- PPL --'!#REF!,0)))=0, IF(INDEX('-- PPL --'!F$10:F$846,(MATCH($B46,'-- PPL --'!#REF!,0)))=0, "TBD", INDEX('-- PPL --'!F$10:F$846,(MATCH($B46,'-- PPL --'!#REF!,0)))), IF(INDEX('-- PPL --'!D$10:D$846,(MATCH($B46,'-- PPL --'!#REF!,0)))="ECAP", INDEX('-- PPL --'!F$10:F$846,(MATCH($B46,'-- PPL --'!#REF!,0))), INDEX('-- PPL --'!D$10:D$846,(MATCH($B46,'-- PPL --'!#REF!,0))))) ->  | B46: EDI Map and Translator Replacement | C46: =INDEX('-- PPL --'!#REF!,(MATCH($B46,'-- PPL --'!#REF!,0))) ->  | D46: =INDEX('-- PPL --'!#REF!,(MATCH($B46,'-- PPL --'!#REF!,0))) ->  | E46: =INDEX('-- PPL --'!I$10:I$845,(MATCH($B46,'-- PPL --'!#REF!,0))) ->  | F46: 2019-06-04 | G46: 2020-08-08 | H46: 2020-08-08 | I46: 2020-08-08 | J46: 2020-10-29 | L46: -0.19 | N46: 0 | O46: =INDEX('-- PPL --'!AG$10:AG$845,(MATCH($B46,'-- PPL --'!#REF!,0))) ->  | P46: =INDEX('-- PPL --'!#REF!,(MATCH($B46,'-- PPL --'!#REF!,0))) ->  | Q46: =INDEX('-- PPL --'!#REF!,(MATCH($B46,'-- PPL --'!#REF!,0))) ->  | R46: =INDEX('-- PPL --'!#REF!,(MATCH($B46,'-- PPL --'!#REF!,0))) ->  | V46: =IF(Q46>0,TRUNC((Q46-R46)/Q46,2),TRUNC((P46-R46)/P46,2)) -> 
A47: =IF(INDEX('-- PPL --'!D$10:D$846,(MATCH($B47,'-- PPL --'!#REF!,0)))=0, IF(INDEX('-- PPL --'!F$10:F$846,(MATCH($B47,'-- PPL --'!#REF!,0)))=0, "TBD", INDEX('-- PPL --'!F$10:F$846,(MATCH($B47,'-- PPL --'!#REF!,0)))), IF(INDEX('-- PPL --'!D$10:D$846,(MATCH($B47,'-- PPL --'!#REF!,0)))="ECAP", INDEX('-- PPL --'!F$10:F$846,(MATCH($B47,'-- PPL --'!#REF!,0))), INDEX('-- PPL --'!D$10:D$846,(MATCH($B47,'-- PPL --'!#REF!,0))))) ->  | B47: Additional Branch Limit for Relays | C47: =INDEX('-- PPL --'!#REF!,(MATCH($B47,'-- PPL --'!#REF!,0))) ->  | D47: =INDEX('-- PPL --'!#REF!,(MATCH($B47,'-- PPL --'!#REF!,0))) ->  | E47: =INDEX('-- PPL --'!I$10:I$845,(MATCH($B47,'-- PPL --'!#REF!,0))) ->  | F47: 2019-04-30 | G47: 2020-02-07 | H47: 2020-02-07 | I47: 2020-02-07 | J47: 2020-04-30 | L47: -0.29 | N47: =IF(I47>1/1/2000,TRUNC((((H47-F47)-(I47-F47))/(H47-F47)),2),"") -> 0 | O47: =INDEX('-- PPL --'!AG$10:AG$845,(MATCH($B47,'-- PPL --'!#REF!,0))) ->  | P47: =INDEX('-- PPL --'!#REF!,(MATCH($B47,'-- PPL --'!#REF!,0))) ->  | Q47: =INDEX('-- PPL --'!#REF!,(MATCH($B47,'-- PPL --'!#REF!,0))) ->  | R47: =INDEX('-- PPL --'!#REF!,(MATCH($B47,'-- PPL --'!#REF!,0))) ->  | V47: =IF(Q47>0,TRUNC((Q47-R47)/Q47,2),TRUNC((P47-R47)/P47,2)) -> 
A48: =IF(INDEX('-- PPL --'!D$10:D$846,(MATCH($B48,'-- PPL --'!#REF!,0)))=0, IF(INDEX('-- PPL --'!F$10:F$846,(MATCH($B48,'-- PPL --'!#REF!,0)))=0, "TBD", INDEX('-- PPL --'!F$10:F$846,(MATCH($B48,'-- PPL --'!#REF!,0)))), IF(INDEX('-- PPL --'!D$10:D$846,(MATCH($B48,'-- PPL --'!#REF!,0)))="ECAP", INDEX('-- PPL --'!F$10:F$846,(MATCH($B48,'-- PPL --'!#REF!,0))), INDEX('-- PPL --'!D$10:D$846,(MATCH($B48,'-- PPL --'!#REF!,0))))) ->  | B48: Governance, Risk and Compliance (GRC) Replacement Tool | C48: =INDEX('-- PPL --'!#REF!,(MATCH($B48,'-- PPL --'!#REF!,0))) ->  | D48: =INDEX('-- PPL --'!#REF!,(MATCH($B48,'-- PPL --'!#REF!,0))) ->  | E48: =INDEX('-- PPL --'!I$10:I$845,(MATCH($B48,'-- PPL --'!#REF!,0))) ->  | F48: 2019-02-06 | G48: 2019-06-04 | H48: 2019-06-04 | I48: 2019-06-04 | J48: 2019-08-27 | L48: -0.71 | N48: 0 | O48: =INDEX('-- PPL --'!AG$10:AG$845,(MATCH($B48,'-- PPL --'!#REF!,0))) ->  | P48: =INDEX('-- PPL --'!#REF!,(MATCH($B48,'-- PPL --'!#REF!,0))) ->  | Q48: =INDEX('-- PPL --'!#REF!,(MATCH($B48,'-- PPL --'!#REF!,0))) ->  | R48: =INDEX('-- PPL --'!#REF!,(MATCH($B48,'-- PPL --'!#REF!,0))) -> 
A49: =IF(INDEX('-- PPL --'!D$10:D$836,(MATCH($B49,'-- PPL --'!#REF!,0)))=0,IF(INDEX('-- PPL --'!F$10:F$836,(MATCH($B49,'-- PPL --'!#REF!,0)))=0,"TBD",INDEX('-- PPL --'!F$10:F$836,(MATCH($B49,'-- PPL --'!#REF!,0)))),INDEX('-- PPL --'!D$10:D$836,(MATCH($B49,'-- PPL --'!#REF!,0)))) ->  | B49: Option Cost for Outstanding CRRs | C49: =INDEX('-- PPL --'!#REF!,(MATCH($B49,'-- PPL --'!#REF!,0))) ->  | D49: =INDEX('-- PPL --'!#REF!,(MATCH($B49,'-- PPL --'!#REF!,0))) ->  | E49: =INDEX('-- PPL --'!I$10:I$836,(MATCH($B49,'-- PPL --'!#REF!,0))) ->  | F49: 2018-08-08 | G49: 2018-12-13 | H49: 2019-05-06 | I49: 2019-05-06 | J49: 2019-05-21 | L49: -1.25 | N49: =IF(I49>1/1/2000,TRUNC((((H49-F49)-(I49-F49))/(H49-F49)),2),"") -> 0 | O49: =INDEX('-- PPL --'!AG$10:AG$845,(MATCH($B49,'-- PPL --'!#REF!,0))) ->  | P49: =INDEX('-- PPL --'!#REF!,(MATCH($B49,'-- PPL --'!#REF!,0))) ->  | Q49: =INDEX('-- PPL --'!#REF!,(MATCH($B49,'-- PPL --'!#REF!,0))) ->  | R49: =INDEX('-- PPL --'!#REF!,(MATCH($B49,'-- PPL --'!#REF!,0))) ->  | S49: NA | T49: See 2015 CMM NPRRs | U49: NA | V49: See NPRR833
A50: =IF(INDEX('-- PPL --'!D$10:D$836,(MATCH($B50,'-- PPL --'!#REF!,0)))=0,IF(INDEX('-- PPL --'!F$10:F$836,(MATCH($B50,'-- PPL --'!#REF!,0)))=0,"TBD",INDEX('-- PPL --'!F$10:F$836,(MATCH($B50,'-- PPL --'!#REF!,0)))),INDEX('-- PPL --'!D$10:D$836,(MATCH($B50,'-- PPL --'!#REF!,0)))) ->  | B50: Data Agent-Only QSE Registration | C50: =INDEX('-- PPL --'!#REF!,(MATCH($B50,'-- PPL --'!#REF!,0))) ->  | D50: =INDEX('-- PPL --'!#REF!,(MATCH($B50,'-- PPL --'!#REF!,0))) ->  | E50: =INDEX('-- PPL --'!I$10:I$836,(MATCH($B50,'-- PPL --'!#REF!,0))) ->  | F50: 2017-03-15 | G50: 2018-05-19 | H50: 2019-06-15 | I50: 2019-06-15 | J50: 2019-09-30 | L50: -1.16 | N50: 0 | O50: =INDEX('-- PPL --'!AG$10:AG$845,(MATCH($B50,'-- PPL --'!#REF!,0))) ->  | P50: =INDEX('-- PPL --'!#REF!,(MATCH($B50,'-- PPL --'!#REF!,0))) ->  | Q50: =INDEX('-- PPL --'!#REF!,(MATCH($B50,'-- PPL --'!#REF!,0))) ->  | R50: =INDEX('-- PPL --'!#REF!,(MATCH($B50,'-- PPL --'!#REF!,0))) ->  | S50: NA | T50: See 2015 CMM NPRRs | U50: NA | V50: See 2015 CMM NPRRs
A51: =IF(INDEX('-- PPL --'!D$10:D$846,(MATCH($B51,'-- PPL --'!#REF!,0)))=0, IF(INDEX('-- PPL --'!F$10:F$846,(MATCH($B51,'-- PPL --'!#REF!,0)))=0, "TBD", INDEX('-- PPL --'!F$10:F$846,(MATCH($B51,'-- PPL --'!#REF!,0)))), IF(INDEX('-- PPL --'!D$10:D$846,(MATCH($B51,'-- PPL --'!#REF!,0)))="ECAP", INDEX('-- PPL --'!F$10:F$846,(MATCH($B51,'-- PPL --'!#REF!,0))), INDEX('-- PPL --'!D$10:D$846,(MATCH($B51,'-- PPL --'!#REF!,0))))) ->  | B51: Switchable Generation Resource Status Code | C51: =INDEX('-- PPL --'!#REF!,(MATCH($B51,'-- PPL --'!#REF!,0))) ->  | D51: =INDEX('-- PPL --'!#REF!,(MATCH($B51,'-- PPL --'!#REF!,0))) ->  | E51: =INDEX('-- PPL --'!I$10:I$845,(MATCH($B51,'-- PPL --'!#REF!,0))) ->  | F51: 2019-02-19 | G51: 2019-05-30 | H51: 2019-05-30 | I51: 2019-05-30 | J51: 2019-06-25 | L51: -0.26 | N51: =IF(I51>1/1/2000,TRUNC((((H51-F51)-(I51-F51))/(H51-F51)),2),"") -> 0 | O51: =INDEX('-- PPL --'!AG$10:AG$845,(MATCH($B51,'-- PPL --'!#REF!,0))) ->  | P51: =INDEX('-- PPL --'!#REF!,(MATCH($B51,'-- PPL --'!#REF!,0))) ->  | Q51: =INDEX('-- PPL --'!#REF!,(MATCH($B51,'-- PPL --'!#REF!,0))) ->  | R51: =INDEX('-- PPL --'!#REF!,(MATCH($B51,'-- PPL --'!#REF!,0))) ->  | V51: =IF(Q51>0,TRUNC((Q51-R51)/Q51,2),TRUNC((P51-R51)/P51,2)) -> 
A52: =IF(INDEX('-- PPL --'!D$10:D$846,(MATCH($B52,'-- PPL --'!#REF!,0)))=0, IF(INDEX('-- PPL --'!F$10:F$846,(MATCH($B52,'-- PPL --'!#REF!,0)))=0, "TBD", INDEX('-- PPL --'!F$10:F$846,(MATCH($B52,'-- PPL --'!#REF!,0)))), IF(INDEX('-- PPL --'!D$10:D$846,(MATCH($B52,'-- PPL --'!#REF!,0)))="ECAP", INDEX('-- PPL --'!F$10:F$846,(MATCH($B52,'-- PPL --'!#REF!,0))), INDEX('-- PPL --'!D$10:D$846,(MATCH($B52,'-- PPL --'!#REF!,0))))) ->  | B52: Clarify Treatment of RUC Resource that has a Day-Ahead Market Three-Part Supply Award | C52: =INDEX('-- PPL --'!#REF!,(MATCH($B52,'-- PPL --'!#REF!,0))) ->  | D52: =INDEX('-- PPL --'!#REF!,(MATCH($B52,'-- PPL --'!#REF!,0))) ->  | E52: =INDEX('-- PPL --'!I$10:I$845,(MATCH($B52,'-- PPL --'!#REF!,0))) ->  | F52: 2019-02-19 | G52: 2019-05-30 | H52: 2019-05-30 | I52: 2019-05-30 | J52: 2019-06-25 | L52: -0.26 | N52: =IF(I52>1/1/2000,TRUNC((((H52-F52)-(I52-F52))/(H52-F52)),2),"") -> 0 | O52: =INDEX('-- PPL --'!AG$10:AG$845,(MATCH($B52,'-- PPL --'!#REF!,0))) ->  | P52: 0 | Q52: =INDEX('-- PPL --'!#REF!,(MATCH($B52,'-- PPL --'!#REF!,0))) ->  | R52: =INDEX('-- PPL --'!#REF!,(MATCH($B52,'-- PPL --'!#REF!,0))) ->  | V52: See NPRR901
A53: =IF(INDEX('-- PPL --'!D$10:D$846,(MATCH($B53,'-- PPL --'!#REF!,0)))=0, IF(INDEX('-- PPL --'!F$10:F$846,(MATCH($B53,'-- PPL --'!#REF!,0)))=0, "TBD", INDEX('-- PPL --'!F$10:F$846,(MATCH($B53,'-- PPL --'!#REF!,0)))), IF(INDEX('-- PPL --'!D$10:D$846,(MATCH($B53,'-- PPL --'!#REF!,0)))="Various", INDEX('-- PPL --'!F$10:F$846,(MATCH($B53,'-- PPL --'!#REF!,0))), INDEX('-- PPL --'!D$10:D$846,(MATCH($B53,'-- PPL --'!#REF!,0))))) ->  | B53: RARF Replacement | C53: =INDEX('-- PPL --'!#REF!,(MATCH($B53,'-- PPL --'!#REF!,0))) ->  | D53: =INDEX('-- PPL --'!#REF!,(MATCH($B53,'-- PPL --'!#REF!,0))) ->  | E53: =INDEX('-- PPL --'!I$10:I$845,(MATCH($B53,'-- PPL --'!#REF!,0))) ->  | F53: 2019-03-26 | G53: 2019-11-22 | H53: 2019-11-22 | I53: 2019-11-22 | J53: 2020-10-06 | K53: 3 | N53: =IF(I53>1/1/2000,TRUNC((((H53-F53)-(I53-F53))/(H53-F53)),2),"") -> 0 | O53: =INDEX('-- PPL --'!AG$10:AG$845,(MATCH($B53,'-- PPL --'!#REF!,0))) ->  | P53: =INDEX('-- PPL --'!#REF!,(MATCH($B53,'-- PPL --'!#REF!,0))) ->  | Q53: =INDEX('-- PPL --'!#REF!,(MATCH($B53,'-- PPL --'!#REF!,0))) ->  | R53: =INDEX('-- PPL --'!#REF!,(MATCH($B53,'-- PPL --'!#REF!,0))) ->  | V53: =IF(Q53>0,TRUNC((Q53-R53)/Q53,2),TRUNC((P53-R53)/P53,2)) -> 
A54: =IF(INDEX('-- PPL --'!D$10:D$846,(MATCH($B54,'-- PPL --'!#REF!,0)))=0, IF(INDEX('-- PPL --'!F$10:F$846,(MATCH($B54,'-- PPL --'!#REF!,0)))=0, "TBD", INDEX('-- PPL --'!F$10:F$846,(MATCH($B54,'-- PPL --'!#REF!,0)))), IF(INDEX('-- PPL --'!D$10:D$846,(MATCH($B54,'-- PPL --'!#REF!,0)))="ECAP", INDEX('-- PPL --'!F$10:F$846,(MATCH($B54,'-- PPL --'!#REF!,0))), INDEX('-- PPL --'!D$10:D$846,(MATCH($B54,'-- PPL --'!#REF!,0))))) ->  | B54: Change Validation Rules to Preclude Certain Transactions at Resource Nodes within Private Use Networks | C54: =INDEX('-- PPL --'!#REF!,(MATCH($B54,'-- PPL --'!#REF!,0))) ->  | D54: =INDEX('-- PPL --'!#REF!,(MATCH($B54,'-- PPL --'!#REF!,0))) ->  | E54: =INDEX('-- PPL --'!I$10:I$845,(MATCH($B54,'-- PPL --'!#REF!,0))) ->  | F54: 2019-04-30 | G54: 2019-08-08 | H54: 2019-08-08 | I54: 2019-08-08 | J54: 2019-09-10 | L54: =IF(J54>1/1/2000,TRUNC(1-(J54-F54)/(G54-F54),2),"") -> -0.33 | N54: =IF(I54>1/1/2000,TRUNC((((H54-F54)-(I54-F54))/(H54-F54)),2),"") -> 0 | O54: =INDEX('-- PPL --'!AG$10:AG$845,(MATCH($B54,'-- PPL --'!#REF!,0))) ->  | P54: =INDEX('-- PPL --'!#REF!,(MATCH($B54,'-- PPL --'!#REF!,0))) ->  | Q54: =INDEX('-- PPL --'!#REF!,(MATCH($B54,'-- PPL --'!#REF!,0))) ->  | R54: =INDEX('-- PPL --'!#REF!,(MATCH($B54,'-- PPL --'!#REF!,0))) ->  | V54: =IF(Q54>0,TRUNC((Q54-R54)/Q54,2),TRUNC((P54-R54)/P54,2)) -> 
A56: Project Number | B56: ="Expedited Projects in Execution (Count = " & COUNTA(B57:B74) & ")" -> Expedited Projects in Execution (Count = 16) | C56: VP | D56: PM | E56: Phase
A58: =IF(INDEX('-- PPL --'!D$10:D$846,(MATCH($B58,'-- PPL --'!#REF!,0)))=0, IF(INDEX('-- PPL --'!F$10:F$846,(MATCH($B58,'-- PPL --'!#REF!,0)))=0, "TBD", INDEX('-- PPL --'!F$10:F$846,(MATCH($B58,'-- PPL --'!#REF!,0)))), IF(INDEX('-- PPL --'!D$10:D$846,(MATCH($B58,'-- PPL --'!#REF!,0)))="ECAP", INDEX('-- PPL --'!F$10:F$846,(MATCH($B58,'-- PPL --'!#REF!,0))), INDEX('-- PPL --'!D$10:D$846,(MATCH($B58,'-- PPL --'!#REF!,0))))) ->  | B58: Upgrade Enterprise Testing Software | C58: =INDEX('-- PPL --'!#REF!,(MATCH($B58,'-- PPL --'!#REF!,0))) ->  | D58: =INDEX('-- PPL --'!#REF!,(MATCH($B58,'-- PPL --'!#REF!,0))) ->  | E58: =INDEX('-- PPL --'!I$10:I$845,(MATCH($B58,'-- PPL --'!#REF!,0))) ->  | L58: =IF(I58>1/1/2000,TRUNC(1-(I58-F58)/(G58-F58),2),"") ->  | M58: 4 | N58: NA | O58: =INDEX('-- PPL --'!AG$10:AG$845,(MATCH($B58,'-- PPL --'!#REF!,0))) ->  | P58: =INDEX('-- PPL --'!#REF!,(MATCH($B58,'-- PPL --'!#REF!,0))) ->  | Q58: =INDEX('-- PPL --'!#REF!,(MATCH($B58,'-- PPL --'!#REF!,0))) ->  | R58: =INDEX('-- PPL --'!#REF!,(MATCH($B58,'-- PPL --'!#REF!,0))) ->  | T58: =IF(P58>0,TRUNC((P58-R58)/P58,2),"") ->  | V58: =IF(Q58>0,TRUNC((Q58-R58)/Q58,2),TRUNC((P58-R58)/P58,2)) -> 
A59: =IF(INDEX('-- PPL --'!D$10:D$846,(MATCH($B59,'-- PPL --'!#REF!,0)))=0, IF(INDEX('-- PPL --'!F$10:F$846,(MATCH($B59,'-- PPL --'!#REF!,0)))=0, "TBD", INDEX('-- PPL --'!F$10:F$846,(MATCH($B59,'-- PPL --'!#REF!,0)))), IF(INDEX('-- PPL --'!D$10:D$846,(MATCH($B59,'-- PPL --'!#REF!,0)))="ECAP", INDEX('-- PPL --'!F$10:F$846,(MATCH($B59,'-- PPL --'!#REF!,0))), INDEX('-- PPL --'!D$10:D$846,(MATCH($B59,'-- PPL --'!#REF!,0))))) ->  | B59: Mobile App Maintenance 2019 | C59: =INDEX('-- PPL --'!#REF!,(MATCH($B59,'-- PPL --'!#REF!,0))) ->  | D59: =INDEX('-- PPL --'!#REF!,(MATCH($B59,'-- PPL --'!#REF!,0))) ->  | E59: =INDEX('-- PPL --'!I$10:I$845,(MATCH($B59,'-- PPL --'!#REF!,0))) ->  | L59: =IF(I59>1/1/2000,TRUNC(1-(I59-F59)/(G59-F59),2),"") ->  | M59: 4 | N59: NA | O59: =INDEX('-- PPL --'!AG$10:AG$845,(MATCH($B59,'-- PPL --'!#REF!,0))) ->  | P59: =INDEX('-- PPL --'!#REF!,(MATCH($B59,'-- PPL --'!#REF!,0))) ->  | Q59: =INDEX('-- PPL --'!#REF!,(MATCH($B59,'-- PPL --'!#REF!,0))) ->  | R59: =INDEX('-- PPL --'!#REF!,(MATCH($B59,'-- PPL --'!#REF!,0))) -> 
A60: =IF(INDEX('-- PPL --'!D$10:D$846,(MATCH($B60,'-- PPL --'!#REF!,0)))=0, IF(INDEX('-- PPL --'!F$10:F$846,(MATCH($B60,'-- PPL --'!#REF!,0)))=0, "TBD", INDEX('-- PPL --'!F$10:F$846,(MATCH($B60,'-- PPL --'!#REF!,0)))), IF(INDEX('-- PPL --'!D$10:D$846,(MATCH($B60,'-- PPL --'!#REF!,0)))="ECAP", INDEX('-- PPL --'!F$10:F$846,(MATCH($B60,'-- PPL --'!#REF!,0))), INDEX('-- PPL --'!D$10:D$846,(MATCH($B60,'-- PPL --'!#REF!,0))))) ->  | B60: Mapping Registered Distributed Generation and Load Resources to Transmission Loads in the Network Operations Model | C60: =INDEX('-- PPL --'!#REF!,(MATCH($B60,'-- PPL --'!#REF!,0))) ->  | D60: =INDEX('-- PPL --'!#REF!,(MATCH($B60,'-- PPL --'!#REF!,0))) ->  | E60: =INDEX('-- PPL --'!I$10:I$845,(MATCH($B60,'-- PPL --'!#REF!,0))) ->  | L60: =IF(J60>1/1/2000,TRUNC(1-(J60-F60)/(G60-F60),2),"") ->  | M60: 4 | N60: NA | O60: =INDEX('-- PPL --'!AG$10:AG$845,(MATCH($B60,'-- PPL --'!#REF!,0))) ->  | P60: =INDEX('-- PPL --'!#REF!,(MATCH($B60,'-- PPL --'!#REF!,0))) ->  | Q60: =INDEX('-- PPL --'!#REF!,(MATCH($B60,'-- PPL --'!#REF!,0))) ->  | R60: =INDEX('-- PPL --'!#REF!,(MATCH($B60,'-- PPL --'!#REF!,0))) -> 
A61: =IF(INDEX('-- PPL --'!D$10:D$846,(MATCH($B61,'-- PPL --'!#REF!,0)))=0, IF(INDEX('-- PPL --'!F$10:F$846,(MATCH($B61,'-- PPL --'!#REF!,0)))=0, "TBD", INDEX('-- PPL --'!F$10:F$846,(MATCH($B61,'-- PPL --'!#REF!,0)))), IF(INDEX('-- PPL --'!D$10:D$846,(MATCH($B61,'-- PPL --'!#REF!,0)))="ECAP", INDEX('-- PPL --'!F$10:F$846,(MATCH($B61,'-- PPL --'!#REF!,0))), INDEX('-- PPL --'!D$10:D$846,(MATCH($B61,'-- PPL --'!#REF!,0))))) ->  | B61: Inclusion of Photo-Voltaic Generation Resources (PVGRs) in Real-Time Ancillary Service Imbalance Payment or Charge | C61: =INDEX('-- PPL --'!#REF!,(MATCH($B61,'-- PPL --'!#REF!,0))) ->  | D61: =INDEX('-- PPL --'!#REF!,(MATCH($B61,'-- PPL --'!#REF!,0))) ->  | E61: =INDEX('-- PPL --'!I$10:I$845,(MATCH($B61,'-- PPL --'!#REF!,0))) ->  | L61: =IF(J61>1/1/2000,TRUNC(1-(J61-F61)/(G61-F61),2),"") ->  | M61: 4 | N61: NA | O61: =INDEX('-- PPL --'!AG$10:AG$845,(MATCH($B61,'-- PPL --'!#REF!,0))) ->  | P61: =INDEX('-- PPL --'!#REF!,(MATCH($B61,'-- PPL --'!#REF!,0))) ->  | Q61: =INDEX('-- PPL --'!#REF!,(MATCH($B61,'-- PPL --'!#REF!,0))) ->  | R61: =INDEX('-- PPL --'!#REF!,(MATCH($B61,'-- PPL --'!#REF!,0))) -> 
A62: =IF(INDEX('-- PPL --'!D$10:D$846,(MATCH($B62,'-- PPL --'!#REF!,0)))=0, IF(INDEX('-- PPL --'!F$10:F$846,(MATCH($B62,'-- PPL --'!#REF!,0)))=0, "TBD", INDEX('-- PPL --'!F$10:F$846,(MATCH($B62,'-- PPL --'!#REF!,0)))), IF(INDEX('-- PPL --'!D$10:D$846,(MATCH($B62,'-- PPL --'!#REF!,0)))="ECAP", INDEX('-- PPL --'!F$10:F$846,(MATCH($B62,'-- PPL --'!#REF!,0))), INDEX('-- PPL --'!D$10:D$846,(MATCH($B62,'-- PPL --'!#REF!,0))))) ->  | B62: Digital Certificate and User Security Administrator Clarifications and Opt Out Procedure | C62: =INDEX('-- PPL --'!#REF!,(MATCH($B62,'-- PPL --'!#REF!,0))) ->  | D62: =INDEX('-- PPL --'!#REF!,(MATCH($B62,'-- PPL --'!#REF!,0))) ->  | E62: =INDEX('-- PPL --'!I$10:I$845,(MATCH($B62,'-- PPL --'!#REF!,0))) ->  | M62: 4 | N62: NA | O62: =INDEX('-- PPL --'!AG$10:AG$845,(MATCH($B62,'-- PPL --'!#REF!,0))) ->  | P62: =INDEX('-- PPL --'!#REF!,(MATCH($B62,'-- PPL --'!#REF!,0))) ->  | Q62: =INDEX('-- PPL --'!#REF!,(MATCH($B62,'-- PPL --'!#REF!,0))) ->  | R62: =INDEX('-- PPL --'!#REF!,(MATCH($B62,'-- PPL --'!#REF!,0))) -> 
A63: =IF(INDEX('-- PPL --'!D$10:D$846,(MATCH($B63,'-- PPL --'!#REF!,0)))=0, IF(INDEX('-- PPL --'!F$10:F$846,(MATCH($B63,'-- PPL --'!#REF!,0)))=0, "TBD", INDEX('-- PPL --'!F$10:F$846,(MATCH($B63,'-- PPL --'!#REF!,0)))), IF(INDEX('-- PPL --'!D$10:D$846,(MATCH($B63,'-- PPL --'!#REF!,0)))="ECAP", INDEX('-- PPL --'!F$10:F$846,(MATCH($B63,'-- PPL --'!#REF!,0))), INDEX('-- PPL --'!D$10:D$846,(MATCH($B63,'-- PPL --'!#REF!,0))))) ->  | B63: Change to Ramp Rate Calculation in Resource Limit Calculator | C63: =INDEX('-- PPL --'!#REF!,(MATCH($B63,'-- PPL --'!#REF!,0))) ->  | D63: =INDEX('-- PPL --'!#REF!,(MATCH($B63,'-- PPL --'!#REF!,0))) ->  | E63: =INDEX('-- PPL --'!I$10:I$845,(MATCH($B63,'-- PPL --'!#REF!,0))) ->  | L63: =IF(J63>1/1/2000,TRUNC(1-(J63-F63)/(G63-F63),2),"") ->  | M63: 4 | N63: NA | O63: =INDEX('-- PPL --'!AG$10:AG$845,(MATCH($B63,'-- PPL --'!#REF!,0))) ->  | P63: =INDEX('-- PPL --'!#REF!,(MATCH($B63,'-- PPL --'!#REF!,0))) ->  | Q63: =INDEX('-- PPL --'!#REF!,(MATCH($B63,'-- PPL --'!#REF!,0))) ->  | R63: =INDEX('-- PPL --'!#REF!,(MATCH($B63,'-- PPL --'!#REF!,0))) ->  | T63: =IF(P63>0,TRUNC((P63-R63)/P63,2),"") ->  | V63: =IF(Q63>0,TRUNC((Q63-R63)/Q63,2),TRUNC((P63-R63)/P63,2)) -> 
A64: =IF(INDEX('-- PPL --'!D$10:D$846,(MATCH($B64,'-- PPL --'!#REF!,0)))=0, IF(INDEX('-- PPL --'!F$10:F$846,(MATCH($B64,'-- PPL --'!#REF!,0)))=0, "TBD", INDEX('-- PPL --'!F$10:F$846,(MATCH($B64,'-- PPL --'!#REF!,0)))), IF(INDEX('-- PPL --'!D$10:D$846,(MATCH($B64,'-- PPL --'!#REF!,0)))="ECAP", INDEX('-- PPL --'!F$10:F$846,(MATCH($B64,'-- PPL --'!#REF!,0))), INDEX('-- PPL --'!D$10:D$846,(MATCH($B64,'-- PPL --'!#REF!,0))))) ->  | B64: AVR and PSS Testing Requirements | C64: =INDEX('-- PPL --'!#REF!,(MATCH($B64,'-- PPL --'!#REF!,0))) ->  | D64: =INDEX('-- PPL --'!#REF!,(MATCH($B64,'-- PPL --'!#REF!,0))) ->  | E64: =INDEX('-- PPL --'!I$10:I$845,(MATCH($B64,'-- PPL --'!#REF!,0))) ->  | M64: 4 | N64: NA | O64: =INDEX('-- PPL --'!AG$10:AG$845,(MATCH($B64,'-- PPL --'!#REF!,0))) ->  | P64: =INDEX('-- PPL --'!#REF!,(MATCH($B64,'-- PPL --'!#REF!,0))) ->  | Q64: =INDEX('-- PPL --'!#REF!,(MATCH($B64,'-- PPL --'!#REF!,0))) ->  | R64: =INDEX('-- PPL --'!#REF!,(MATCH($B64,'-- PPL --'!#REF!,0))) -> 
A65: PGRR054 | B65: Revisions to the ORDC Methodology to Include Photo-Voltaic Generation Resources (PVGRs) | C65: Rickerson | D65: Shimp | E65: Execution | L65: =IF(J65>1/1/2000,TRUNC(1-(J65-F65)/(G65-F65),2),"") ->  | M65: 4 | N65: NA | O65: 0 | P65: 0 | Q65: 0 | R65: 0 | U65: NA | V65: See PGRR052
A66: PGRR054 | B66: Stability Limits in the Full Interconnect Study | C66: Rickerson | D66: Shimp | E66: Execution | M66: 4 | N66: NA | O66: 0 | P66: 0 | Q66: 0 | R66: 0 | U66: NA | V66: See PGRR052
A67: =IF(INDEX('-- PPL --'!D$10:D$846,(MATCH($B67,'-- PPL --'!#REF!,0)))=0, IF(INDEX('-- PPL --'!F$10:F$846,(MATCH($B67,'-- PPL --'!#REF!,0)))=0, "TBD", INDEX('-- PPL --'!F$10:F$846,(MATCH($B67,'-- PPL --'!#REF!,0)))), IF(INDEX('-- PPL --'!D$10:D$846,(MATCH($B67,'-- PPL --'!#REF!,0)))="ECAP", INDEX('-- PPL --'!F$10:F$846,(MATCH($B67,'-- PPL --'!#REF!,0))), INDEX('-- PPL --'!D$10:D$846,(MATCH($B67,'-- PPL --'!#REF!,0))))) ->  | B67: Responsibilities for Performing Geomagnetic Disturbance (GMD) Vulnerability | C67: Rickerson | D67: =INDEX('-- PPL --'!#REF!,(MATCH($B67,'-- PPL --'!#REF!,0))) ->  | E67: =INDEX('-- PPL --'!I$10:I$845,(MATCH($B67,'-- PPL --'!#REF!,0))) ->  | M67: 4 | N67: NA | O67: =INDEX('-- PPL --'!AG$10:AG$845,(MATCH($B67,'-- PPL --'!#REF!,0))) ->  | P67: =INDEX('-- PPL --'!#REF!,(MATCH($B67,'-- PPL --'!#REF!,0))) ->  | Q67: 0 | R67: =INDEX('-- PPL --'!#REF!,(MATCH($B67,'-- PPL --'!#REF!,0))) ->  | V67: =IF(Q67>0,TRUNC((Q67-R67)/Q67,2),TRUNC((P67-R67)/P67,2)) -> 
A68: =IF(INDEX('-- PPL --'!D$10:D$846,(MATCH($B68,'-- PPL --'!#REF!,0)))=0, IF(INDEX('-- PPL --'!F$10:F$846,(MATCH($B68,'-- PPL --'!#REF!,0)))=0, "TBD", INDEX('-- PPL --'!F$10:F$846,(MATCH($B68,'-- PPL --'!#REF!,0)))), IF(INDEX('-- PPL --'!D$10:D$846,(MATCH($B68,'-- PPL --'!#REF!,0)))="ECAP", INDEX('-- PPL --'!F$10:F$846,(MATCH($B68,'-- PPL --'!#REF!,0))), INDEX('-- PPL --'!D$10:D$846,(MATCH($B68,'-- PPL --'!#REF!,0))))) ->  | B68: PGRR Related to NPRR866, Mapping Registered Distributed Generation and Load Resources to Transmission Loads in the Network Operations Model | C68: Rickerson | D68: =INDEX('-- PPL --'!#REF!,(MATCH($B68,'-- PPL --'!#REF!,0))) ->  | E68: =INDEX('-- PPL --'!I$10:I$845,(MATCH($B68,'-- PPL --'!#REF!,0))) ->  | M68: 4 | N68: NA | O68: =INDEX('-- PPL --'!AG$10:AG$845,(MATCH($B68,'-- PPL --'!#REF!,0))) ->  | P68: =INDEX('-- PPL --'!#REF!,(MATCH($B68,'-- PPL --'!#REF!,0))) ->  | Q68: 0 | R68: =INDEX('-- PPL --'!#REF!,(MATCH($B68,'-- PPL --'!#REF!,0))) ->  | V68: =IF(Q68>0,TRUNC((Q68-R68)/Q68,2),TRUNC((P68-R68)/P68,2)) -> 
A69: =IF(INDEX('-- PPL --'!D$10:D$846,(MATCH($B69,'-- PPL --'!#REF!,0)))=0, IF(INDEX('-- PPL --'!F$10:F$846,(MATCH($B69,'-- PPL --'!#REF!,0)))=0, "TBD", INDEX('-- PPL --'!F$10:F$846,(MATCH($B69,'-- PPL --'!#REF!,0)))), IF(INDEX('-- PPL --'!D$10:D$846,(MATCH($B69,'-- PPL --'!#REF!,0)))="ECAP", INDEX('-- PPL --'!F$10:F$846,(MATCH($B69,'-- PPL --'!#REF!,0))), INDEX('-- PPL --'!D$10:D$846,(MATCH($B69,'-- PPL --'!#REF!,0))))) ->  | B69: Additional Guidance for Solar Data | C69: Rickerson | D69: =INDEX('-- PPL --'!#REF!,(MATCH($B69,'-- PPL --'!#REF!,0))) ->  | E69: =INDEX('-- PPL --'!I$10:I$845,(MATCH($B69,'-- PPL --'!#REF!,0))) ->  | M69: 4 | N69: NA | O69: =INDEX('-- PPL --'!AG$10:AG$845,(MATCH($B69,'-- PPL --'!#REF!,0))) ->  | P69: =INDEX('-- PPL --'!#REF!,(MATCH($B69,'-- PPL --'!#REF!,0))) ->  | Q69: 0 | R69: =INDEX('-- PPL --'!#REF!,(MATCH($B69,'-- PPL --'!#REF!,0))) ->  | V69: See RGRR019
A70: =IF(INDEX('-- PPL --'!D$10:D$846,(MATCH($B70,'-- PPL --'!#REF!,0)))=0, IF(INDEX('-- PPL --'!F$10:F$846,(MATCH($B70,'-- PPL --'!#REF!,0)))=0, "TBD", INDEX('-- PPL --'!F$10:F$846,(MATCH($B70,'-- PPL --'!#REF!,0)))), IF(INDEX('-- PPL --'!D$10:D$846,(MATCH($B70,'-- PPL --'!#REF!,0)))="ECAP", INDEX('-- PPL --'!F$10:F$846,(MATCH($B70,'-- PPL --'!#REF!,0))), INDEX('-- PPL --'!D$10:D$846,(MATCH($B70,'-- PPL --'!#REF!,0))))) ->  | B70: Add Switchable Generation Resource Designation | C70: Rickerson | D70: =INDEX('-- PPL --'!#REF!,(MATCH($B70,'-- PPL --'!#REF!,0))) ->  | E70: =INDEX('-- PPL --'!I$10:I$845,(MATCH($B70,'-- PPL --'!#REF!,0))) ->  | M70: 4 | N70: NA | O70: =INDEX('-- PPL --'!AG$10:AG$845,(MATCH($B70,'-- PPL --'!#REF!,0))) ->  | P70: =INDEX('-- PPL --'!#REF!,(MATCH($B70,'-- PPL --'!#REF!,0))) ->  | Q70: 0 | R70: =INDEX('-- PPL --'!#REF!,(MATCH($B70,'-- PPL --'!#REF!,0))) ->  | V70: =IF(Q70>0,TRUNC((Q70-R70)/Q70,2),TRUNC((P70-R70)/P70,2)) -> 
A71: =IF(INDEX('-- PPL --'!D$10:D$846,(MATCH($B71,'-- PPL --'!#REF!,0)))=0, IF(INDEX('-- PPL --'!F$10:F$846,(MATCH($B71,'-- PPL --'!#REF!,0)))=0, "TBD", INDEX('-- PPL --'!F$10:F$846,(MATCH($B71,'-- PPL --'!#REF!,0)))), IF(INDEX('-- PPL --'!D$10:D$846,(MATCH($B71,'-- PPL --'!#REF!,0)))="ECAP", INDEX('-- PPL --'!F$10:F$846,(MATCH($B71,'-- PPL --'!#REF!,0))), INDEX('-- PPL --'!D$10:D$846,(MATCH($B71,'-- PPL --'!#REF!,0))))) ->  | B71: SSR Related Telemetry for Transmission Service Provider (TSP) Operators | C71: Rickerson | D71: =INDEX('-- PPL --'!#REF!,(MATCH($B71,'-- PPL --'!#REF!,0))) ->  | E71: =INDEX('-- PPL --'!I$10:I$845,(MATCH($B71,'-- PPL --'!#REF!,0))) ->  | M71: 4 | N71: NA | O71: =INDEX('-- PPL --'!AG$10:AG$845,(MATCH($B71,'-- PPL --'!#REF!,0))) ->  | P71: =INDEX('-- PPL --'!#REF!,(MATCH($B71,'-- PPL --'!#REF!,0))) ->  | Q71: 0 | R71: =INDEX('-- PPL --'!#REF!,(MATCH($B71,'-- PPL --'!#REF!,0))) ->  | V71: =IF(Q71>0,TRUNC((Q71-R71)/Q71,2),TRUNC((P71-R71)/P71,2)) -> 
A72: =IF(INDEX('-- PPL --'!D$10:D$846,(MATCH($B72,'-- PPL --'!#REF!,0)))=0, IF(INDEX('-- PPL --'!F$10:F$846,(MATCH($B72,'-- PPL --'!#REF!,0)))=0, "TBD", INDEX('-- PPL --'!F$10:F$846,(MATCH($B72,'-- PPL --'!#REF!,0)))), IF(INDEX('-- PPL --'!D$10:D$846,(MATCH($B72,'-- PPL --'!#REF!,0)))="ECAP", INDEX('-- PPL --'!F$10:F$846,(MATCH($B72,'-- PPL --'!#REF!,0))), INDEX('-- PPL --'!D$10:D$846,(MATCH($B72,'-- PPL --'!#REF!,0))))) ->  | B72: Provide IRR Current Operating Plan (COP) to TSPs | C72: Rickerson | D72: =INDEX('-- PPL --'!#REF!,(MATCH($B72,'-- PPL --'!#REF!,0))) ->  | E72: =INDEX('-- PPL --'!I$10:I$845,(MATCH($B72,'-- PPL --'!#REF!,0))) ->  | L72: =IF(J72>1/1/2000,TRUNC(1-(J72-F72)/(G72-F72),2),"") ->  | M72: 4 | N72: NA | O72: =INDEX('-- PPL --'!AG$10:AG$845,(MATCH($B72,'-- PPL --'!#REF!,0))) ->  | P72: =INDEX('-- PPL --'!#REF!,(MATCH($B72,'-- PPL --'!#REF!,0))) ->  | Q72: 0 | R72: =INDEX('-- PPL --'!#REF!,(MATCH($B72,'-- PPL --'!#REF!,0))) ->  | V72: =IF(Q72>0,TRUNC((Q72-R72)/Q72,2),TRUNC((P72-R72)/P72,2)) -> 
A73: =IF(INDEX('-- PPL --'!D$10:D$846,(MATCH($B73,'-- PPL --'!#REF!,0)))=0, IF(INDEX('-- PPL --'!F$10:F$846,(MATCH($B73,'-- PPL --'!#REF!,0)))=0, "TBD", INDEX('-- PPL --'!F$10:F$846,(MATCH($B73,'-- PPL --'!#REF!,0)))), IF(INDEX('-- PPL --'!D$10:D$846,(MATCH($B73,'-- PPL --'!#REF!,0)))="ECAP", INDEX('-- PPL --'!F$10:F$846,(MATCH($B73,'-- PPL --'!#REF!,0))), INDEX('-- PPL --'!D$10:D$846,(MATCH($B73,'-- PPL --'!#REF!,0))))) ->  | B73: PTP Obligation Bid ID Limit | C73: Rickerson | D73: =INDEX('-- PPL --'!#REF!,(MATCH($B73,'-- PPL --'!#REF!,0))) ->  | E73: =INDEX('-- PPL --'!I$10:I$845,(MATCH($B73,'-- PPL --'!#REF!,0))) ->  | M73: 4 | N73: NA | O73: =INDEX('-- PPL --'!AG$10:AG$845,(MATCH($B73,'-- PPL --'!#REF!,0))) ->  | P73: =INDEX('-- PPL --'!#REF!,(MATCH($B73,'-- PPL --'!#REF!,0))) ->  | Q73: 0 | R73: =INDEX('-- PPL --'!#REF!,(MATCH($B73,'-- PPL --'!#REF!,0))) ->  | V73: =IF(Q73>0,TRUNC((Q73-R73)/Q73,2),TRUNC((P73-R73)/P73,2)) -> 
N74: =IF(I74>1/1/2000,TRUNC((((H74-F74)-(I74-F74))/(H74-F74)),2),"") -> 
A75: Project Number | B75: ="Projects in Stabilization (Count = " & COUNTA(B76:B95) & ")" -> Projects in Stabilization (Count = 18) | C75: VP | D75: PM | E75: Phase | F75: Execution Phase Start | G75: Baseline Go-Live Target | H75: Approved Go-Live Target | I75: Actual Go-Live Date | J75: Scheduled Execution Phase Finish | K75: Forecast Variance | M75: Schedule Health | O75: 2019 Forecast Spend | P75: Baseline Budget | Q75: Approved Budget | R75: Total Forecast Spend | S75: Forecast Variance | U75: Budget Health
A77: =IF(INDEX('-- PPL --'!D$10:D$836,(MATCH($B77,'-- PPL --'!#REF!,0)))=0,IF(INDEX('-- PPL --'!F$10:F$836,(MATCH($B77,'-- PPL --'!#REF!,0)))=0,"TBD",INDEX('-- PPL --'!F$10:F$836,(MATCH($B77,'-- PPL --'!#REF!,0)))),INDEX('-- PPL --'!D$10:D$836,(MATCH($B77,'-- PPL --'!#REF!,0)))) ->  | B77: Remove References to Flowgate Rights | C77: =INDEX('-- PPL --'!#REF!,(MATCH($B77,'-- PPL --'!#REF!,0))) ->  | D77: =INDEX('-- PPL --'!#REF!,(MATCH($B77,'-- PPL --'!#REF!,0))) ->  | E77: =INDEX('-- PPL --'!I$10:I$836,(MATCH($B77,'-- PPL --'!#REF!,0))) ->  | F77: 2017-03-15 | G77: 2018-05-19 | H77: 2018-05-19 | I77: 2018-02-06 | J77: 2019-09-30 | L77: =IF(J77>1/1/2000,TRUNC(1-(J77-F77)/(G77-F77),2),"") -> -1.16 | N77: =IF(I77>1/1/2000,TRUNC((((H77-F77)-(I77-F77))/(H77-F77)),2),"") -> 0.23 | O77: =INDEX('-- PPL --'!AG$10:AG$845,(MATCH($B77,'-- PPL --'!#REF!,0))) ->  | P77: =INDEX('-- PPL --'!#REF!,(MATCH($B77,'-- PPL --'!#REF!,0))) ->  | Q77: =INDEX('-- PPL --'!#REF!,(MATCH($B77,'-- PPL --'!#REF!,0))) ->  | R77: =INDEX('-- PPL --'!#REF!,(MATCH($B77,'-- PPL --'!#REF!,0))) ->  | S77: NA | T77: See 2015 CMM NPRRs | U77: NA | V77: See 2015 CMM NPRRs
A78: =IF(INDEX('-- PPL --'!D$10:D$846,(MATCH($B78,'-- PPL --'!#REF!,0)))=0, IF(INDEX('-- PPL --'!F$10:F$846,(MATCH($B78,'-- PPL --'!#REF!,0)))=0, "TBD", INDEX('-- PPL --'!F$10:F$846,(MATCH($B78,'-- PPL --'!#REF!,0)))), IF(INDEX('-- PPL --'!D$10:D$846,(MATCH($B78,'-- PPL --'!#REF!,0)))="ECAP", INDEX('-- PPL --'!F$10:F$846,(MATCH($B78,'-- PPL --'!#REF!,0))), INDEX('-- PPL --'!D$10:D$846,(MATCH($B78,'-- PPL --'!#REF!,0))))) ->  | B78: 2015 CMM NPRRs | C78: =INDEX('-- PPL --'!#REF!,(MATCH($B78,'-- PPL --'!#REF!,0))) ->  | D78: =INDEX('-- PPL --'!#REF!,(MATCH($B78,'-- PPL --'!#REF!,0))) ->  | E78: =INDEX('-- PPL --'!I$10:I$845,(MATCH($B78,'-- PPL --'!#REF!,0))) ->  | L78: =IF(J78>1/1/2000,TRUNC(1-(J78-F78)/(G78-F78),2),"") ->  | N78: =IF(I78>1/1/2000,TRUNC((((H78-F78)-(I78-F78))/(H78-F78)),2),"") ->  | O78: =INDEX('-- PPL --'!AG$10:AG$845,(MATCH($B78,'-- PPL --'!#REF!,0))) ->  | P78: =INDEX('-- PPL --'!#REF!,(MATCH($B78,'-- PPL --'!#REF!,0))) ->  | Q78: =INDEX('-- PPL --'!#REF!,(MATCH($B78,'-- PPL --'!#REF!,0))) ->  | R78: =INDEX('-- PPL --'!#REF!,(MATCH($B78,'-- PPL --'!#REF!,0))) ->  | T78: =IF(P78>0,TRUNC((P78-R78)/P78,2),"") ->  | V78: =IF(Q78>0,TRUNC((Q78-R78)/Q78,2),TRUNC((P78-R78)/P78,2)) -> 
A79: =IF(INDEX('-- PPL --'!D$10:D$836,(MATCH($B79,'-- PPL --'!#REF!,0)))=0,IF(INDEX('-- PPL --'!F$10:F$836,(MATCH($B79,'-- PPL --'!#REF!,0)))=0,"TBD",INDEX('-- PPL --'!F$10:F$836,(MATCH($B79,'-- PPL --'!#REF!,0)))),INDEX('-- PPL --'!D$10:D$836,(MATCH($B79,'-- PPL --'!#REF!,0)))) ->  | B79: Exemption of ERS-Only QSEs from Collateral and Capitalization Requirements | C79: =INDEX('-- PPL --'!#REF!,(MATCH($B79,'-- PPL --'!#REF!,0))) ->  | D79: =INDEX('-- PPL --'!#REF!,(MATCH($B79,'-- PPL --'!#REF!,0))) ->  | E79: =INDEX('-- PPL --'!I$10:I$836,(MATCH($B79,'-- PPL --'!#REF!,0))) ->  | F79: 2017-03-15 | G79: 2018-05-19 | H79: 2019-06-15 | I79: 2019-06-02 | J79: 2019-09-30 | L79: -1.16 | N79: 0.01 | O79: =INDEX('-- PPL --'!AG$10:AG$845,(MATCH($B79,'-- PPL --'!#REF!,0))) ->  | P79: =INDEX('-- PPL --'!#REF!,(MATCH($B79,'-- PPL --'!#REF!,0))) ->  | Q79: =INDEX('-- PPL --'!#REF!,(MATCH($B79,'-- PPL --'!#REF!,0))) ->  | R79: =INDEX('-- PPL --'!#REF!,(MATCH($B79,'-- PPL --'!#REF!,0))) ->  | S79: NA | T79: See 2015 CMM NPRRs | V79: See 2015 CMM NPRRs
A80: =IF(INDEX('-- PPL --'!D$10:D$836,(MATCH($B80,'-- PPL --'!#REF!,0)))=0,IF(INDEX('-- PPL --'!F$10:F$836,(MATCH($B80,'-- PPL --'!#REF!,0)))=0,"TBD",INDEX('-- PPL --'!F$10:F$836,(MATCH($B80,'-- PPL --'!#REF!,0)))),INDEX('-- PPL --'!D$10:D$836,(MATCH($B80,'-- PPL --'!#REF!,0)))) ->  | B80: Collateral Requirements for Counter-Parties with No Load or Generation | C80: =INDEX('-- PPL --'!#REF!,(MATCH($B80,'-- PPL --'!#REF!,0))) ->  | D80: =INDEX('-- PPL --'!#REF!,(MATCH($B80,'-- PPL --'!#REF!,0))) ->  | E80: =INDEX('-- PPL --'!I$10:I$836,(MATCH($B80,'-- PPL --'!#REF!,0))) ->  | F80: 2017-03-15 | G80: 2018-05-19 | H80: 2019-06-15 | I80: 2019-06-02 | J80: 2019-09-30 | L80: -1.16 | N80: 0.01 | O80: =INDEX('-- PPL --'!AG$10:AG$845,(MATCH($B80,'-- PPL --'!#REF!,0))) ->  | P80: =INDEX('-- PPL --'!#REF!,(MATCH($B80,'-- PPL --'!#REF!,0))) ->  | Q80: =INDEX('-- PPL --'!#REF!,(MATCH($B80,'-- PPL --'!#REF!,0))) ->  | R80: =INDEX('-- PPL --'!#REF!,(MATCH($B80,'-- PPL --'!#REF!,0))) ->  | S80: NA | T80: See 2015 CMM NPRRs | U80: NA | V80: See 2015 CMM NPRRs
A81: =IF(INDEX('-- PPL --'!D$10:D$836,(MATCH($B81,'-- PPL --'!#REF!,0)))=0,IF(INDEX('-- PPL --'!F$10:F$836,(MATCH($B81,'-- PPL --'!#REF!,0)))=0,"TBD",INDEX('-- PPL --'!F$10:F$836,(MATCH($B81,'-- PPL --'!#REF!,0)))),INDEX('-- PPL --'!D$10:D$836,(MATCH($B81,'-- PPL --'!#REF!,0)))) ->  | B81: Remove CRR State Change Adder | C81: =INDEX('-- PPL --'!#REF!,(MATCH($B81,'-- PPL --'!#REF!,0))) ->  | D81: =INDEX('-- PPL --'!#REF!,(MATCH($B81,'-- PPL --'!#REF!,0))) ->  | E81: =INDEX('-- PPL --'!I$10:I$836,(MATCH($B81,'-- PPL --'!#REF!,0))) ->  | F81: 2017-03-15 | G81: 2018-05-19 | H81: 2019-06-15 | I81: 2019-06-02 | J81: 2019-09-30 | L81: -1.16 | N81: 0.01 | O81: =INDEX('-- PPL --'!AG$10:AG$845,(MATCH($B81,'-- PPL --'!#REF!,0))) ->  | P81: =INDEX('-- PPL --'!#REF!,(MATCH($B81,'-- PPL --'!#REF!,0))) ->  | Q81: =INDEX('-- PPL --'!#REF!,(MATCH($B81,'-- PPL --'!#REF!,0))) ->  | R81: =INDEX('-- PPL --'!#REF!,(MATCH($B81,'-- PPL --'!#REF!,0))) ->  | S81: NA | T81: See 2015 CMM NPRRs | U81: NA | V81: See 2015 CMM NPRRs
A82: =IF(INDEX('-- PPL --'!D$10:D$836,(MATCH($B82,'-- PPL --'!#REF!,0)))=0,IF(INDEX('-- PPL --'!F$10:F$836,(MATCH($B82,'-- PPL --'!#REF!,0)))=0,"TBD",INDEX('-- PPL --'!F$10:F$836,(MATCH($B82,'-- PPL --'!#REF!,0)))),INDEX('-- PPL --'!D$10:D$836,(MATCH($B82,'-- PPL --'!#REF!,0)))) ->  | B82: Revision to Available Credit Limit Calculation | C82: =INDEX('-- PPL --'!#REF!,(MATCH($B82,'-- PPL --'!#REF!,0))) ->  | D82: =INDEX('-- PPL --'!#REF!,(MATCH($B82,'-- PPL --'!#REF!,0))) ->  | E82: =INDEX('-- PPL --'!I$10:I$836,(MATCH($B82,'-- PPL --'!#REF!,0))) ->  | F82: 2017-03-15 | G82: 2018-05-19 | H82: 2018-05-19 | I82: 2018-02-06 | J82: 2019-09-30 | L82: -1.16 | N82: 0.23 | O82: =INDEX('-- PPL --'!AG$10:AG$845,(MATCH($B82,'-- PPL --'!#REF!,0))) ->  | P82: =INDEX('-- PPL --'!#REF!,(MATCH($B82,'-- PPL --'!#REF!,0))) ->  | Q82: =INDEX('-- PPL --'!#REF!,(MATCH($B82,'-- PPL --'!#REF!,0))) ->  | R82: =INDEX('-- PPL --'!#REF!,(MATCH($B82,'-- PPL --'!#REF!,0))) ->  | S82: NA | T82: See 2015 CMM NPRRs | U82: NA | V82: See 2015 CMM NPRRs
A83: =IF(INDEX('-- PPL --'!D$10:D$836,(MATCH($B83,'-- PPL --'!#REF!,0)))=0,IF(INDEX('-- PPL --'!F$10:F$836,(MATCH($B83,'-- PPL --'!#REF!,0)))=0,"TBD",INDEX('-- PPL --'!F$10:F$836,(MATCH($B83,'-- PPL --'!#REF!,0)))),INDEX('-- PPL --'!D$10:D$836,(MATCH($B83,'-- PPL --'!#REF!,0)))) ->  | B83: Clarifications to TPE and EAL Credit Exposure Calculations | C83: =INDEX('-- PPL --'!#REF!,(MATCH($B83,'-- PPL --'!#REF!,0))) ->  | D83: =INDEX('-- PPL --'!#REF!,(MATCH($B83,'-- PPL --'!#REF!,0))) ->  | E83: =INDEX('-- PPL --'!I$10:I$836,(MATCH($B83,'-- PPL --'!#REF!,0))) ->  | F83: 2017-03-15 | G83: 2018-05-19 | H83: 2019-06-15 | I83: 2019-06-02 | J83: 2019-09-30 | L83: -1.16 | N83: 0.01 | O83: =INDEX('-- PPL --'!AG$10:AG$845,(MATCH($B83,'-- PPL --'!#REF!,0))) ->  | P83: =INDEX('-- PPL --'!#REF!,(MATCH($B83,'-- PPL --'!#REF!,0))) ->  | Q83: =INDEX('-- PPL --'!#REF!,(MATCH($B83,'-- PPL --'!#REF!,0))) ->  | R83: =INDEX('-- PPL --'!#REF!,(MATCH($B83,'-- PPL --'!#REF!,0))) ->  | S83: NA | T83: See 2015 CMM NPRRs | U83: NA | V83: See 2015 CMM NPRRs
A84: =IF(INDEX('-- PPL --'!D$10:D$836,(MATCH($B84,'-- PPL --'!#REF!,0)))=0,IF(INDEX('-- PPL --'!F$10:F$836,(MATCH($B84,'-- PPL --'!#REF!,0)))=0,"TBD",INDEX('-- PPL --'!F$10:F$836,(MATCH($B84,'-- PPL --'!#REF!,0)))),INDEX('-- PPL --'!D$10:D$836,(MATCH($B84,'-- PPL --'!#REF!,0)))) ->  | B84: Revision to MCE to Have a Floor For Load Exposure | C84: =INDEX('-- PPL --'!#REF!,(MATCH($B84,'-- PPL --'!#REF!,0))) ->  | D84: =INDEX('-- PPL --'!#REF!,(MATCH($B84,'-- PPL --'!#REF!,0))) ->  | E84: =INDEX('-- PPL --'!I$10:I$836,(MATCH($B84,'-- PPL --'!#REF!,0))) ->  | F84: 2017-03-15 | G84: 2018-05-19 | H84: 2018-05-19 | I84: 2018-02-06 | J84: 2019-09-30 | L84: =IF(J84>1/1/2000,TRUNC(1-(J84-F84)/(G84-F84),2),"") -> -1.16 | N84: =IF(I84>1/1/2000,TRUNC((((H84-F84)-(I84-F84))/(H84-F84)),2),"") -> 0.23 | O84: =INDEX('-- PPL --'!AG$10:AG$845,(MATCH($B84,'-- PPL --'!#REF!,0))) ->  | P84: =INDEX('-- PPL --'!#REF!,(MATCH($B84,'-- PPL --'!#REF!,0))) ->  | Q84: =INDEX('-- PPL --'!#REF!,(MATCH($B84,'-- PPL --'!#REF!,0))) ->  | R84: =INDEX('-- PPL --'!#REF!,(MATCH($B84,'-- PPL --'!#REF!,0))) ->  | S84: NA | T84: See 2015 CMM NPRRs | U84: NA | V84: See 2015 CMM NPRRs
A85: =IF(INDEX('-- PPL --'!D$10:D$836,(MATCH($B85,'-- PPL --'!#REF!,0)))=0,IF(INDEX('-- PPL --'!F$10:F$836,(MATCH($B85,'-- PPL --'!#REF!,0)))=0,"TBD",INDEX('-- PPL --'!F$10:F$836,(MATCH($B85,'-- PPL --'!#REF!,0)))),INDEX('-- PPL --'!D$10:D$836,(MATCH($B85,'-- PPL --'!#REF!,0)))) ->  | B85: Calculation of Exposure Variables For Days With No Activity | C85: =INDEX('-- PPL --'!#REF!,(MATCH($B85,'-- PPL --'!#REF!,0))) ->  | D85: =INDEX('-- PPL --'!#REF!,(MATCH($B85,'-- PPL --'!#REF!,0))) ->  | E85: =INDEX('-- PPL --'!I$10:I$836,(MATCH($B85,'-- PPL --'!#REF!,0))) ->  | F85: 2017-03-15 | G85: 2018-05-19 | H85: 2018-05-19 | I85: 2018-02-06 | J85: 2019-09-30 | L85: -1.16 | N85: 0.23 | O85: =INDEX('-- PPL --'!AG$10:AG$845,(MATCH($B85,'-- PPL --'!#REF!,0))) ->  | P85: =INDEX('-- PPL --'!#REF!,(MATCH($B85,'-- PPL --'!#REF!,0))) ->  | Q85: =INDEX('-- PPL --'!#REF!,(MATCH($B85,'-- PPL --'!#REF!,0))) ->  | R85: =INDEX('-- PPL --'!#REF!,(MATCH($B85,'-- PPL --'!#REF!,0))) ->  | S85: NA | T85: See 2015 CMM NPRRs | U85: NA | V85: See 2015 CMM NPRRs
A86: =IF(INDEX('-- PPL --'!D$10:D$846,(MATCH($B86,'-- PPL --'!#REF!,0)))=0, IF(INDEX('-- PPL --'!F$10:F$846,(MATCH($B86,'-- PPL --'!#REF!,0)))=0, "TBD", INDEX('-- PPL --'!F$10:F$846,(MATCH($B86,'-- PPL --'!#REF!,0)))), IF(INDEX('-- PPL --'!D$10:D$846,(MATCH($B86,'-- PPL --'!#REF!,0)))="ECAP", INDEX('-- PPL --'!F$10:F$846,(MATCH($B86,'-- PPL --'!#REF!,0))), INDEX('-- PPL --'!D$10:D$846,(MATCH($B86,'-- PPL --'!#REF!,0))))) ->  | B86: Revisions to Credit Exposure Calculations to Use Electricity Futures Market Prices | C86: =INDEX('-- PPL --'!#REF!,(MATCH($B86,'-- PPL --'!#REF!,0))) ->  | D86: =INDEX('-- PPL --'!#REF!,(MATCH($B86,'-- PPL --'!#REF!,0))) ->  | E86: =INDEX('-- PPL --'!I$10:I$845,(MATCH($B86,'-- PPL --'!#REF!,0))) ->  | F86: 2017-03-15 | G86: 2018-05-19 | H86: 2018-05-19 | I86: 2018-02-06 | J86: 2019-09-30 | L86: -1.16 | N86: 0.23 | O86: =INDEX('-- PPL --'!AG$10:AG$845,(MATCH($B86,'-- PPL --'!#REF!,0))) ->  | P86: =INDEX('-- PPL --'!#REF!,(MATCH($B86,'-- PPL --'!#REF!,0))) ->  | Q86: =INDEX('-- PPL --'!#REF!,(MATCH($B86,'-- PPL --'!#REF!,0))) ->  | R86: =INDEX('-- PPL --'!#REF!,(MATCH($B86,'-- PPL --'!#REF!,0))) ->  | S86: NA | T86: See 2015 CMM NPRRs | U86: NA | V86: See 2015 CMM NPRRs
A87: =IF(INDEX('-- PPL --'!D$10:D$846,(MATCH($B87,'-- PPL --'!#REF!,0)))=0, IF(INDEX('-- PPL --'!F$10:F$846,(MATCH($B87,'-- PPL --'!#REF!,0)))=0, "TBD", INDEX('-- PPL --'!F$10:F$846,(MATCH($B87,'-- PPL --'!#REF!,0)))), IF(INDEX('-- PPL --'!D$10:D$846,(MATCH($B87,'-- PPL --'!#REF!,0)))="ECAP", INDEX('-- PPL --'!F$10:F$846,(MATCH($B87,'-- PPL --'!#REF!,0))), INDEX('-- PPL --'!D$10:D$846,(MATCH($B87,'-- PPL --'!#REF!,0))))) ->  | B87: Elimination of the CRR Deration Process | C87: =INDEX('-- PPL --'!#REF!,(MATCH($B87,'-- PPL --'!#REF!,0))) ->  | D87: =INDEX('-- PPL --'!#REF!,(MATCH($B87,'-- PPL --'!#REF!,0))) ->  | E87: =INDEX('-- PPL --'!I$10:I$845,(MATCH($B87,'-- PPL --'!#REF!,0))) ->  | F87: 2018-12-05 | G87: 2019-04-04 | H87: 2019-04-04 | I87: 2019-04-04 | J87: 2019-08-06 | L87: -1.03 | N87: 0 | O87: =INDEX('-- PPL --'!AG$10:AG$845,(MATCH($B87,'-- PPL --'!#REF!,0))) ->  | P87: =INDEX('-- PPL --'!#REF!,(MATCH($B87,'-- PPL --'!#REF!,0))) ->  | Q87: =INDEX('-- PPL --'!#REF!,(MATCH($B87,'-- PPL --'!#REF!,0))) ->  | R87: =INDEX('-- PPL --'!#REF!,(MATCH($B87,'-- PPL --'!#REF!,0))) ->  | V87: =IF(Q87>0,TRUNC((Q87-R87)/Q87,2),TRUNC((P87-R87)/P87,2)) -> 
A88: =IF(INDEX('-- PPL --'!D$10:D$846,(MATCH($B88,'-- PPL --'!#REF!,0)))=0, IF(INDEX('-- PPL --'!F$10:F$846,(MATCH($B88,'-- PPL --'!#REF!,0)))=0, "TBD", INDEX('-- PPL --'!F$10:F$846,(MATCH($B88,'-- PPL --'!#REF!,0)))), IF(INDEX('-- PPL --'!D$10:D$846,(MATCH($B88,'-- PPL --'!#REF!,0)))="ECAP", INDEX('-- PPL --'!F$10:F$846,(MATCH($B88,'-- PPL --'!#REF!,0))), INDEX('-- PPL --'!D$10:D$846,(MATCH($B88,'-- PPL --'!#REF!,0))))) ->  | B88: Modify PTP Obligation Bid Clearing Change | C88: =INDEX('-- PPL --'!#REF!,(MATCH($B88,'-- PPL --'!#REF!,0))) ->  | D88: =INDEX('-- PPL --'!#REF!,(MATCH($B88,'-- PPL --'!#REF!,0))) ->  | E88: =INDEX('-- PPL --'!I$10:I$845,(MATCH($B88,'-- PPL --'!#REF!,0))) ->  | F88: 2018-08-08 | G88: 2018-12-13 | H88: 2019-05-06 | I88: 2019-05-06 | J88: 2019-05-21 | L88: -1.25 | N88: 0 | O88: =INDEX('-- PPL --'!AG$10:AG$845,(MATCH($B88,'-- PPL --'!#REF!,0))) ->  | P88: =INDEX('-- PPL --'!#REF!,(MATCH($B88,'-- PPL --'!#REF!,0))) ->  | Q88: =INDEX('-- PPL --'!#REF!,(MATCH($B88,'-- PPL --'!#REF!,0))) ->  | R88: =INDEX('-- PPL --'!#REF!,(MATCH($B88,'-- PPL --'!#REF!,0))) ->  | V88: =IF(Q88>0,TRUNC((Q88-R88)/Q88,2),TRUNC((P88-R88)/P88,2)) -> 
A89: =IF(INDEX('-- PPL --'!D$10:D$846,(MATCH($B89,'-- PPL --'!#REF!,0)))=0, IF(INDEX('-- PPL --'!F$10:F$846,(MATCH($B89,'-- PPL --'!#REF!,0)))=0, "TBD", INDEX('-- PPL --'!F$10:F$846,(MATCH($B89,'-- PPL --'!#REF!,0)))), IF(INDEX('-- PPL --'!D$10:D$846,(MATCH($B89,'-- PPL --'!#REF!,0)))="ECAP", INDEX('-- PPL --'!F$10:F$846,(MATCH($B89,'-- PPL --'!#REF!,0))), INDEX('-- PPL --'!D$10:D$846,(MATCH($B89,'-- PPL --'!#REF!,0))))) ->  | B89: RRGRR Related to NPRR866, Mapping Registered Distributed Generation and Load Resources to Transmission Loads in the Network Operations Model | C89: =INDEX('-- PPL --'!#REF!,(MATCH($B89,'-- PPL --'!#REF!,0))) ->  | D89: =INDEX('-- PPL --'!#REF!,(MATCH($B89,'-- PPL --'!#REF!,0))) ->  | E89: =INDEX('-- PPL --'!I$10:I$845,(MATCH($B89,'-- PPL --'!#REF!,0))) ->  | F89: 2018-12-19 | G89: 2019-04-04 | H89: 2019-04-04 | I89: 2019-04-04 | J89: 2019-05-07 | L89: -0.31 | N89: 0 | O89: =INDEX('-- PPL --'!AG$10:AG$845,(MATCH($B89,'-- PPL --'!#REF!,0))) ->  | P89: =INDEX('-- PPL --'!#REF!,(MATCH($B89,'-- PPL --'!#REF!,0))) ->  | Q89: =INDEX('-- PPL --'!#REF!,(MATCH($B89,'-- PPL --'!#REF!,0))) ->  | R89: =INDEX('-- PPL --'!#REF!,(MATCH($B89,'-- PPL --'!#REF!,0))) ->  | V89: =IF(Q89>0,TRUNC((Q89-R89)/Q89,2),TRUNC((P89-R89)/P89,2)) -> 
A90: =IF(INDEX('-- PPL --'!D$10:D$846,(MATCH($B90,'-- PPL --'!#REF!,0)))=0, IF(INDEX('-- PPL --'!F$10:F$846,(MATCH($B90,'-- PPL --'!#REF!,0)))=0, "TBD", INDEX('-- PPL --'!F$10:F$846,(MATCH($B90,'-- PPL --'!#REF!,0)))), IF(INDEX('-- PPL --'!D$10:D$846,(MATCH($B90,'-- PPL --'!#REF!,0)))="Various", INDEX('-- PPL --'!F$10:F$846,(MATCH($B90,'-- PPL --'!#REF!,0))), INDEX('-- PPL --'!D$10:D$846,(MATCH($B90,'-- PPL --'!#REF!,0))))) ->  | B90: CMM Tech Refresh | C90: =INDEX('-- PPL --'!#REF!,(MATCH($B90,'-- PPL --'!#REF!,0))) ->  | D90: =INDEX('-- PPL --'!#REF!,(MATCH($B90,'-- PPL --'!#REF!,0))) ->  | E90: =INDEX('-- PPL --'!I$10:I$845,(MATCH($B90,'-- PPL --'!#REF!,0))) ->  | F90: 2017-03-15 | G90: 2018-05-19 | H90: 2019-06-15 | I90: 2019-06-02 | J90: 2019-09-30 | L90: -1.16 | N90: 0.01 | O90: =INDEX('-- PPL --'!AG$10:AG$845,(MATCH($B90,'-- PPL --'!#REF!,0))) ->  | P90: =INDEX('-- PPL --'!#REF!,(MATCH($B90,'-- PPL --'!#REF!,0))) ->  | Q90: =INDEX('-- PPL --'!#REF!,(MATCH($B90,'-- PPL --'!#REF!,0))) ->  | R90: =INDEX('-- PPL --'!#REF!,(MATCH($B90,'-- PPL --'!#REF!,0))) ->  | S90: NA | T90: See 2015 CMM NPRRs | U90: NA | V90: See 2015 CMM NPRRs
A91: =IF(INDEX('-- PPL --'!D$10:D$846,(MATCH($B91,'-- PPL --'!#REF!,0)))=0, IF(INDEX('-- PPL --'!F$10:F$846,(MATCH($B91,'-- PPL --'!#REF!,0)))=0, "TBD", INDEX('-- PPL --'!F$10:F$846,(MATCH($B91,'-- PPL --'!#REF!,0)))), IF(INDEX('-- PPL --'!D$10:D$846,(MATCH($B91,'-- PPL --'!#REF!,0)))="ECAP", INDEX('-- PPL --'!F$10:F$846,(MATCH($B91,'-- PPL --'!#REF!,0))), INDEX('-- PPL --'!D$10:D$846,(MATCH($B91,'-- PPL --'!#REF!,0))))) ->  | B91: PMU Tool Evaluation and Implementation | C91: =INDEX('-- PPL --'!#REF!,(MATCH($B91,'-- PPL --'!#REF!,0))) ->  | D91: =INDEX('-- PPL --'!#REF!,(MATCH($B91,'-- PPL --'!#REF!,0))) ->  | E91: =INDEX('-- PPL --'!I$10:I$845,(MATCH($B91,'-- PPL --'!#REF!,0))) ->  | F91: 2017-12-13 | G91: 2018-08-09 | H91: 2018-08-05 | I91: 2018-08-05 | J91: 2019-09-03 | L91: -1.63 | N91: 0 | O91: =INDEX('-- PPL --'!AG$10:AG$845,(MATCH($B91,'-- PPL --'!#REF!,0))) ->  | P91: =INDEX('-- PPL --'!#REF!,(MATCH($B91,'-- PPL --'!#REF!,0))) ->  | Q91: =INDEX('-- PPL --'!#REF!,(MATCH($B91,'-- PPL --'!#REF!,0))) ->  | R91: =INDEX('-- PPL --'!#REF!,(MATCH($B91,'-- PPL --'!#REF!,0))) ->  | T91: =IF(P91>0,TRUNC((P91-R91)/P91,2),"") -> 
A92: =IF(INDEX('-- PPL --'!D$10:D$846,(MATCH($B92,'-- PPL --'!#REF!,0)))=0, IF(INDEX('-- PPL --'!F$10:F$846,(MATCH($B92,'-- PPL --'!#REF!,0)))=0, "TBD", INDEX('-- PPL --'!F$10:F$846,(MATCH($B92,'-- PPL --'!#REF!,0)))), IF(INDEX('-- PPL --'!D$10:D$846,(MATCH($B92,'-- PPL --'!#REF!,0)))="ECAP", INDEX('-- PPL --'!F$10:F$846,(MATCH($B92,'-- PPL --'!#REF!,0))), INDEX('-- PPL --'!D$10:D$846,(MATCH($B92,'-- PPL --'!#REF!,0))))) ->  | B92: IT Change and Configuration Management Phase 2 | C92: =INDEX('-- PPL --'!#REF!,(MATCH($B92,'-- PPL --'!#REF!,0))) ->  | D92: =INDEX('-- PPL --'!#REF!,(MATCH($B92,'-- PPL --'!#REF!,0))) ->  | E92: =INDEX('-- PPL --'!I$10:I$845,(MATCH($B92,'-- PPL --'!#REF!,0))) ->  | F92: 2017-08-02 | G92: 2018-06-19 | H92: 2019-02-08 | I92: 2018-12-16 | J92: 2019-06-04 | L92: -1.09 | N92: 0.09 | O92: =INDEX('-- PPL --'!AG$10:AG$845,(MATCH($B92,'-- PPL --'!#REF!,0))) ->  | P92: =INDEX('-- PPL --'!#REF!,(MATCH($B92,'-- PPL --'!#REF!,0))) ->  | Q92: =INDEX('-- PPL --'!#REF!,(MATCH($B92,'-- PPL --'!#REF!,0))) ->  | R92: =INDEX('-- PPL --'!#REF!,(MATCH($B92,'-- PPL --'!#REF!,0))) -> 
A93: =IF(INDEX('-- PPL --'!D$10:D$846,(MATCH($B93,'-- PPL --'!#REF!,0)))=0, IF(INDEX('-- PPL --'!F$10:F$846,(MATCH($B93,'-- PPL --'!#REF!,0)))=0, "TBD", INDEX('-- PPL --'!F$10:F$846,(MATCH($B93,'-- PPL --'!#REF!,0)))), IF(INDEX('-- PPL --'!D$10:D$846,(MATCH($B93,'-- PPL --'!#REF!,0)))="ECAP", INDEX('-- PPL --'!F$10:F$846,(MATCH($B93,'-- PPL --'!#REF!,0))), INDEX('-- PPL --'!D$10:D$846,(MATCH($B93,'-- PPL --'!#REF!,0))))) ->  | B93: Identity and Access Management | C93: =INDEX('-- PPL --'!#REF!,(MATCH($B93,'-- PPL --'!#REF!,0))) ->  | D93: =INDEX('-- PPL --'!#REF!,(MATCH($B93,'-- PPL --'!#REF!,0))) ->  | E93: =INDEX('-- PPL --'!I$10:I$845,(MATCH($B93,'-- PPL --'!#REF!,0))) ->  | F93: 2018-05-09 | G93: 2018-12-15 | H93: 2019-06-19 | I93: 2019-05-20 | J93: 2019-07-30 | L93: -1.03 | N93: 0.07 | O93: =INDEX('-- PPL --'!AG$10:AG$845,(MATCH($B93,'-- PPL --'!#REF!,0))) ->  | P93: =INDEX('-- PPL --'!#REF!,(MATCH($B93,'-- PPL --'!#REF!,0))) ->  | Q93: =INDEX('-- PPL --'!#REF!,(MATCH($B93,'-- PPL --'!#REF!,0))) ->  | R93: =INDEX('-- PPL --'!#REF!,(MATCH($B93,'-- PPL --'!#REF!,0))) ->  | V93: =IF(Q93>0,TRUNC((Q93-R93)/Q93,2),TRUNC((P93-R93)/P93,2)) -> 
A94: =IF(INDEX('-- PPL --'!D$10:D$846,(MATCH($B94,'-- PPL --'!#REF!,0)))=0, IF(INDEX('-- PPL --'!F$10:F$846,(MATCH($B94,'-- PPL --'!#REF!,0)))=0, "TBD", INDEX('-- PPL --'!F$10:F$846,(MATCH($B94,'-- PPL --'!#REF!,0)))), IF(INDEX('-- PPL --'!D$10:D$846,(MATCH($B94,'-- PPL --'!#REF!,0)))="ECAP", INDEX('-- PPL --'!F$10:F$846,(MATCH($B94,'-- PPL --'!#REF!,0))), INDEX('-- PPL --'!D$10:D$846,(MATCH($B94,'-- PPL --'!#REF!,0))))) ->  | B94: Remote Email Access Enhancement | C94: =INDEX('-- PPL --'!#REF!,(MATCH($B94,'-- PPL --'!#REF!,0))) ->  | D94: =INDEX('-- PPL --'!#REF!,(MATCH($B94,'-- PPL --'!#REF!,0))) ->  | E94: =INDEX('-- PPL --'!I$10:I$845,(MATCH($B94,'-- PPL --'!#REF!,0))) ->  | F94: 2017-12-13 | G94: 2018-03-07 | H94: 2018-06-06 | I94: 2018-06-19 | J94: 2019-04-16 | L94: -4.82 | M94: 2 | N94: -0.07 | O94: =INDEX('-- PPL --'!AG$10:AG$845,(MATCH($B94,'-- PPL --'!#REF!,0))) ->  | P94: =INDEX('-- PPL --'!#REF!,(MATCH($B94,'-- PPL --'!#REF!,0))) ->  | Q94: =INDEX('-- PPL --'!#REF!,(MATCH($B94,'-- PPL --'!#REF!,0))) ->  | R94: =INDEX('-- PPL --'!#REF!,(MATCH($B94,'-- PPL --'!#REF!,0))) -> 
A96: Project Number | B96: ="Projects On Hold (Count = " & COUNTA(B97:B103) & ")" -> Projects On Hold (Count = 5) | C96: VP | D96: PM | E96: Phase | F96: Forecast Start Date | G96: Baseline Phase Finish | H96: Approved Go-Live Target | I96: Scheduled Go-Live Date | J96: Scheduled Phase Finish | K96: Forecast Variance | M96: Schedule Health | O96: 2019 Forecast Spend | P96: Baseline Budget | Q96: Approved Budget | R96: Total Forecast Spend | S96: Forecast Variance | U96: Budget Health
A98: =IF(INDEX('-- PPL --'!D$10:D$846,(MATCH($B98,'-- PPL --'!#REF!,0)))=0, IF(INDEX('-- PPL --'!F$10:F$846,(MATCH($B98,'-- PPL --'!#REF!,0)))=0, "TBD", INDEX('-- PPL --'!F$10:F$846,(MATCH($B98,'-- PPL --'!#REF!,0)))), IF(INDEX('-- PPL --'!D$10:D$846,(MATCH($B98,'-- PPL --'!#REF!,0)))="ECAP", INDEX('-- PPL --'!F$10:F$846,(MATCH($B98,'-- PPL --'!#REF!,0))), INDEX('-- PPL --'!D$10:D$846,(MATCH($B98,'-- PPL --'!#REF!,0))))) ->  | B98: Update NMMS Topology Processor to PSSE 34 Capability | C98: =INDEX('-- PPL --'!#REF!,(MATCH($B98,'-- PPL --'!#REF!,0))) ->  | D98: =INDEX('-- PPL --'!#REF!,(MATCH($B98,'-- PPL --'!#REF!,0))) ->  | E98: =INDEX('-- PPL --'!I$10:I$845,(MATCH($B98,'-- PPL --'!#REF!,0))) ->  | O98: =INDEX('-- PPL --'!AG$10:AG$845,(MATCH($B98,'-- PPL --'!#REF!,0))) ->  | P98: =INDEX('-- PPL --'!#REF!,(MATCH($B98,'-- PPL --'!#REF!,0))) ->  | Q98: =INDEX('-- PPL --'!#REF!,(MATCH($B98,'-- PPL --'!#REF!,0))) ->  | R98: =INDEX('-- PPL --'!#REF!,(MATCH($B98,'-- PPL --'!#REF!,0))) ->  | V98: 0
A99: =IF(INDEX('-- PPL --'!D$10:D$846,(MATCH($B99,'-- PPL --'!#REF!,0)))=0, IF(INDEX('-- PPL --'!F$10:F$846,(MATCH($B99,'-- PPL --'!#REF!,0)))=0, "TBD", INDEX('-- PPL --'!F$10:F$846,(MATCH($B99,'-- PPL --'!#REF!,0)))), IF(INDEX('-- PPL --'!D$10:D$846,(MATCH($B99,'-- PPL --'!#REF!,0)))="ECAP", INDEX('-- PPL --'!F$10:F$846,(MATCH($B99,'-- PPL --'!#REF!,0))), INDEX('-- PPL --'!D$10:D$846,(MATCH($B99,'-- PPL --'!#REF!,0))))) ->  | B99: iTest Data Refresh | C99: =INDEX('-- PPL --'!#REF!,(MATCH($B99,'-- PPL --'!#REF!,0))) ->  | D99: =INDEX('-- PPL --'!#REF!,(MATCH($B99,'-- PPL --'!#REF!,0))) ->  | E99: =INDEX('-- PPL --'!I$10:I$845,(MATCH($B99,'-- PPL --'!#REF!,0))) ->  | O99: =INDEX('-- PPL --'!AG$10:AG$845,(MATCH($B99,'-- PPL --'!#REF!,0))) ->  | P99: =INDEX('-- PPL --'!#REF!,(MATCH($B99,'-- PPL --'!#REF!,0))) ->  | Q99: =INDEX('-- PPL --'!#REF!,(MATCH($B99,'-- PPL --'!#REF!,0))) ->  | R99: =INDEX('-- PPL --'!#REF!,(MATCH($B99,'-- PPL --'!#REF!,0))) ->  | V99: 0
A100: =IF(INDEX('-- PPL --'!D$10:D$846,(MATCH($B100,'-- PPL --'!#REF!,0)))=0, IF(INDEX('-- PPL --'!F$10:F$846,(MATCH($B100,'-- PPL --'!#REF!,0)))=0, "TBD", INDEX('-- PPL --'!F$10:F$846,(MATCH($B100,'-- PPL --'!#REF!,0)))), IF(INDEX('-- PPL --'!D$10:D$846,(MATCH($B100,'-- PPL --'!#REF!,0)))="ECAP", INDEX('-- PPL --'!F$10:F$846,(MATCH($B100,'-- PPL --'!#REF!,0))), INDEX('-- PPL --'!D$10:D$846,(MATCH($B100,'-- PPL --'!#REF!,0))))) ->  | B100: Document Repository Redesign and Governance Implementation - Phase 1 | C100: =INDEX('-- PPL --'!#REF!,(MATCH($B100,'-- PPL --'!#REF!,0))) ->  | D100: =INDEX('-- PPL --'!#REF!,(MATCH($B100,'-- PPL --'!#REF!,0))) ->  | E100: =INDEX('-- PPL --'!I$10:I$845,(MATCH($B100,'-- PPL --'!#REF!,0))) ->  | O100: =INDEX('-- PPL --'!AG$10:AG$845,(MATCH($B100,'-- PPL --'!#REF!,0))) ->  | P100: =INDEX('-- PPL --'!#REF!,(MATCH($B100,'-- PPL --'!#REF!,0))) ->  | Q100: =INDEX('-- PPL --'!#REF!,(MATCH($B100,'-- PPL --'!#REF!,0))) ->  | R100: =INDEX('-- PPL --'!#REF!,(MATCH($B100,'-- PPL --'!#REF!,0))) ->  | V100: 0
A101: =IF(INDEX('-- PPL --'!D$10:D$846,(MATCH($B101,'-- PPL --'!#REF!,0)))=0, IF(INDEX('-- PPL --'!F$10:F$846,(MATCH($B101,'-- PPL --'!#REF!,0)))=0, "TBD", INDEX('-- PPL --'!F$10:F$846,(MATCH($B101,'-- PPL --'!#REF!,0)))), IF(INDEX('-- PPL --'!D$10:D$846,(MATCH($B101,'-- PPL --'!#REF!,0)))="ECAP", INDEX('-- PPL --'!F$10:F$846,(MATCH($B101,'-- PPL --'!#REF!,0))), INDEX('-- PPL --'!D$10:D$846,(MATCH($B101,'-- PPL --'!#REF!,0))))) ->  | B101: Security Constrained Unit Commitment (SCUC) | C101: =INDEX('-- PPL --'!#REF!,(MATCH($B101,'-- PPL --'!#REF!,0))) ->  | D101: =INDEX('-- PPL --'!#REF!,(MATCH($B101,'-- PPL --'!#REF!,0))) ->  | E101: =INDEX('-- PPL --'!I$10:I$845,(MATCH($B101,'-- PPL --'!#REF!,0))) ->  | L101: =IF(J101>1/1/2000,TRUNC(1-(J101-F101)/(G101-F101),2),"") ->  | N101: =IF(J101>1/1/2000,TRUNC((((H101-F101)-(J101-F101))/(H101-F101)),2),"") ->  | O101: =INDEX('-- PPL --'!AG$10:AG$845,(MATCH($B101,'-- PPL --'!#REF!,0))) ->  | P101: =INDEX('-- PPL --'!#REF!,(MATCH($B101,'-- PPL --'!#REF!,0))) ->  | Q101: =INDEX('-- PPL --'!#REF!,(MATCH($B101,'-- PPL --'!#REF!,0))) ->  | R101: =INDEX('-- PPL --'!#REF!,(MATCH($B101,'-- PPL --'!#REF!,0))) ->  | V101: 0
A102: =IF(INDEX('-- PPL --'!D$10:D$846,(MATCH($B102,'-- PPL --'!#REF!,0)))=0, IF(INDEX('-- PPL --'!F$10:F$846,(MATCH($B102,'-- PPL --'!#REF!,0)))=0, "TBD", INDEX('-- PPL --'!F$10:F$846,(MATCH($B102,'-- PPL --'!#REF!,0)))), IF(INDEX('-- PPL --'!D$10:D$846,(MATCH($B102,'-- PPL --'!#REF!,0)))="ECAP", INDEX('-- PPL --'!F$10:F$846,(MATCH($B102,'-- PPL --'!#REF!,0))), INDEX('-- PPL --'!D$10:D$846,(MATCH($B102,'-- PPL --'!#REF!,0))))) ->  | B102: IT Asset Recovery | C102: =INDEX('-- PPL --'!#REF!,(MATCH($B102,'-- PPL --'!#REF!,0))) ->  | D102: =INDEX('-- PPL --'!#REF!,(MATCH($B102,'-- PPL --'!#REF!,0))) ->  | E102: =INDEX('-- PPL --'!I$10:I$845,(MATCH($B102,'-- PPL --'!#REF!,0))) ->  | L102: =IF(J102>1/1/2000,TRUNC(1-(J102-F102)/(G102-F102),2),"") ->  | N102: =IF(J102>1/1/2000,TRUNC((((H102-F102)-(J102-F102))/(H102-F102)),2),"") ->  | O102: =INDEX('-- PPL --'!AG$10:AG$845,(MATCH($B102,'-- PPL --'!#REF!,0))) ->  | P102: =INDEX('-- PPL --'!#REF!,(MATCH($B102,'-- PPL --'!#REF!,0))) ->  | Q102: =INDEX('-- PPL --'!#REF!,(MATCH($B102,'-- PPL --'!#REF!,0))) ->  | R102: =INDEX('-- PPL --'!#REF!,(MATCH($B102,'-- PPL --'!#REF!,0))) ->  | V102: 0
A104: Project Number | B104: ="Projects Completed (Count = " & COUNTA(B105:B132) & ")" -> Projects Completed (Count = 26) | C104: VP | D104: PM | E104: Phase | F104: Baseline Execution Phase Start | G104: Baseline Go-Live Target | H104: Approved Go-Live Target | I104: Actual Go-Live Date | J104: Actual Execution Phase Finish | K104: Forecast Variance | M104: Schedule Health | O104: 2019 Forecast Spend | P104: Baseline Budget | Q104: Approved Budget | R104: Total Actual Spend | S104: Forecast Variance | U104: Budget Health
A106: =IF(INDEX('-- PPL --'!D$10:D$846,(MATCH($B106,'-- PPL --'!#REF!,0)))=0, IF(INDEX('-- PPL --'!F$10:F$846,(MATCH($B106,'-- PPL --'!#REF!,0)))=0, "TBD", INDEX('-- PPL --'!F$10:F$846,(MATCH($B106,'-- PPL --'!#REF!,0)))), IF(INDEX('-- PPL --'!D$10:D$846,(MATCH($B106,'-- PPL --'!#REF!,0)))="ECAP", INDEX('-- PPL --'!F$10:F$846,(MATCH($B106,'-- PPL --'!#REF!,0))), INDEX('-- PPL --'!D$10:D$846,(MATCH($B106,'-- PPL --'!#REF!,0))))) ->  | B106: DC4 Telecom - Control Room and Grid Ops | C106: =INDEX('-- PPL --'!#REF!,(MATCH($B106,'-- PPL --'!#REF!,0))) ->  | D106: =INDEX('-- PPL --'!#REF!,(MATCH($B106,'-- PPL --'!#REF!,0))) ->  | E106: =INDEX('-- PPL --'!I$10:I$845,(MATCH($B106,'-- PPL --'!#REF!,0))) ->  | F106: 2017-08-30 | G106: 2018-03-18 | H106: 2018-12-13 | I106: 2018-12-13 | J106: 2019-01-15 | L106: =IF(J106>1/1/2000,TRUNC(1-(J106-F106)/(G106-F106),2),"") -> -1.51 | N106: =IF(I106>1/1/2000,TRUNC((((H106-F106)-(I106-F106))/(H106-F106)),2),"") -> 0 | O106: =INDEX('-- PPL --'!AG$10:AG$845,(MATCH($B106,'-- PPL --'!#REF!,0))) ->  | P106: =INDEX('-- PPL --'!#REF!,(MATCH($B106,'-- PPL --'!#REF!,0))) ->  | Q106: =INDEX('-- PPL --'!#REF!,(MATCH($B106,'-- PPL --'!#REF!,0))) ->  | R106: =INDEX('-- PPL --'!#REF!,(MATCH($B106,'-- PPL --'!#REF!,0))) ->  | V106: =IF(Q106>0,TRUNC((Q106-R106)/Q106,2),TRUNC((P106-R106)/P106,2)) -> 
A107: =IF(INDEX('-- PPL --'!D$10:D$846,(MATCH($B107,'-- PPL --'!#REF!,0)))=0, IF(INDEX('-- PPL --'!F$10:F$846,(MATCH($B107,'-- PPL --'!#REF!,0)))=0, "TBD", INDEX('-- PPL --'!F$10:F$846,(MATCH($B107,'-- PPL --'!#REF!,0)))), IF(INDEX('-- PPL --'!D$10:D$846,(MATCH($B107,'-- PPL --'!#REF!,0)))="ECAP", INDEX('-- PPL --'!F$10:F$846,(MATCH($B107,'-- PPL --'!#REF!,0))), INDEX('-- PPL --'!D$10:D$846,(MATCH($B107,'-- PPL --'!#REF!,0))))) ->  | B107: DC4 Network - Command and Control Stage 1 | C107: =INDEX('-- PPL --'!#REF!,(MATCH($B107,'-- PPL --'!#REF!,0))) ->  | D107: =INDEX('-- PPL --'!#REF!,(MATCH($B107,'-- PPL --'!#REF!,0))) ->  | E107: =INDEX('-- PPL --'!I$10:I$845,(MATCH($B107,'-- PPL --'!#REF!,0))) ->  | F107: 2017-08-30 | G107: 2018-03-18 | H107: 2018-12-13 | I107: 2018-12-13 | J107: 2019-01-15 | L107: =IF(J107>1/1/2000,TRUNC(1-(J107-F107)/(G107-F107),2),"") -> -1.51 | N107: 0 | O107: =INDEX('-- PPL --'!AG$10:AG$845,(MATCH($B107,'-- PPL --'!#REF!,0))) ->  | P107: =INDEX('-- PPL --'!#REF!,(MATCH($B107,'-- PPL --'!#REF!,0))) ->  | Q107: =INDEX('-- PPL --'!#REF!,(MATCH($B107,'-- PPL --'!#REF!,0))) ->  | R107: =INDEX('-- PPL --'!#REF!,(MATCH($B107,'-- PPL --'!#REF!,0))) -> 
A108: =IF(INDEX('-- PPL --'!D$10:D$846,(MATCH($B108,'-- PPL --'!#REF!,0)))=0, IF(INDEX('-- PPL --'!F$10:F$846,(MATCH($B108,'-- PPL --'!#REF!,0)))=0, "TBD", INDEX('-- PPL --'!F$10:F$846,(MATCH($B108,'-- PPL --'!#REF!,0)))), IF(INDEX('-- PPL --'!D$10:D$846,(MATCH($B108,'-- PPL --'!#REF!,0)))="ECAP", INDEX('-- PPL --'!F$10:F$846,(MATCH($B108,'-- PPL --'!#REF!,0))), INDEX('-- PPL --'!D$10:D$846,(MATCH($B108,'-- PPL --'!#REF!,0))))) ->  | B108: DC4 Telecom - Data Center Connectivity | C108: =INDEX('-- PPL --'!#REF!,(MATCH($B108,'-- PPL --'!#REF!,0))) ->  | D108: =INDEX('-- PPL --'!#REF!,(MATCH($B108,'-- PPL --'!#REF!,0))) ->  | E108: =INDEX('-- PPL --'!I$10:I$845,(MATCH($B108,'-- PPL --'!#REF!,0))) ->  | F108: 2018-02-07 | G108: 2018-08-15 | H108: 2018-11-16 | I108: 2018-10-30 | J108: 2019-02-05 | L108: =IF(J108>1/1/2000,TRUNC(1-(J108-F108)/(G108-F108),2),"") -> -0.92 | N108: 0.06 | O108: =INDEX('-- PPL --'!AG$10:AG$845,(MATCH($B108,'-- PPL --'!#REF!,0))) ->  | P108: =INDEX('-- PPL --'!#REF!,(MATCH($B108,'-- PPL --'!#REF!,0))) ->  | Q108: =INDEX('-- PPL --'!#REF!,(MATCH($B108,'-- PPL --'!#REF!,0))) ->  | R108: =INDEX('-- PPL --'!#REF!,(MATCH($B108,'-- PPL --'!#REF!,0))) ->  | V108: =IF(Q108>0,TRUNC((Q108-R108)/Q108,2),TRUNC((P108-R108)/P108,2)) -> 
A109: =IF(INDEX('-- PPL --'!D$10:D$846,(MATCH($B109,'-- PPL --'!#REF!,0)))=0, IF(INDEX('-- PPL --'!F$10:F$846,(MATCH($B109,'-- PPL --'!#REF!,0)))=0, "TBD", INDEX('-- PPL --'!F$10:F$846,(MATCH($B109,'-- PPL --'!#REF!,0)))), IF(INDEX('-- PPL --'!D$10:D$846,(MATCH($B109,'-- PPL --'!#REF!,0)))="ECAP", INDEX('-- PPL --'!F$10:F$846,(MATCH($B109,'-- PPL --'!#REF!,0))), INDEX('-- PPL --'!D$10:D$846,(MATCH($B109,'-- PPL --'!#REF!,0))))) ->  | B109: DC4 Network - Command and Control | C109: =INDEX('-- PPL --'!#REF!,(MATCH($B109,'-- PPL --'!#REF!,0))) ->  | D109: =INDEX('-- PPL --'!#REF!,(MATCH($B109,'-- PPL --'!#REF!,0))) ->  | E109: =INDEX('-- PPL --'!I$10:I$845,(MATCH($B109,'-- PPL --'!#REF!,0))) ->  | L109: =IF(I109>1/1/2000,TRUNC(1-(I109-F109)/(G109-F109),2),"") ->  | O109: =INDEX('-- PPL --'!AG$10:AG$845,(MATCH($B109,'-- PPL --'!#REF!,0))) ->  | P109: =INDEX('-- PPL --'!#REF!,(MATCH($B109,'-- PPL --'!#REF!,0))) ->  | Q109: =INDEX('-- PPL --'!#REF!,(MATCH($B109,'-- PPL --'!#REF!,0))) ->  | R109: =INDEX('-- PPL --'!#REF!,(MATCH($B109,'-- PPL --'!#REF!,0))) ->  | T109: =IF(P109>0,TRUNC((P109-R109)/P109,2),"") ->  | V109: =IF(Q109>0,TRUNC((Q109-R109)/Q109,2),TRUNC((P109-R109)/P109,2)) -> 
A110: =IF(INDEX('-- PPL --'!D$10:D$846,(MATCH($B110,'-- PPL --'!#REF!,0)))=0, IF(INDEX('-- PPL --'!F$10:F$846,(MATCH($B110,'-- PPL --'!#REF!,0)))=0, "TBD", INDEX('-- PPL --'!F$10:F$846,(MATCH($B110,'-- PPL --'!#REF!,0)))), IF(INDEX('-- PPL --'!D$10:D$846,(MATCH($B110,'-- PPL --'!#REF!,0)))="ECAP", INDEX('-- PPL --'!F$10:F$846,(MATCH($B110,'-- PPL --'!#REF!,0))), INDEX('-- PPL --'!D$10:D$846,(MATCH($B110,'-- PPL --'!#REF!,0))))) ->  | B110: DC4 Network - Command and Control Stage 3 | C110: =INDEX('-- PPL --'!#REF!,(MATCH($B110,'-- PPL --'!#REF!,0))) ->  | D110: =INDEX('-- PPL --'!#REF!,(MATCH($B110,'-- PPL --'!#REF!,0))) ->  | E110: =INDEX('-- PPL --'!I$10:I$845,(MATCH($B110,'-- PPL --'!#REF!,0))) ->  | F110: 2017-11-29 | G110: 2018-11-28 | H110: 2019-02-28 | I110: 2019-02-28 | J110: 2019-03-19 | L110: =IF(I110>1/1/2000,TRUNC(1-(I110-F110)/(G110-F110),2),"") -> -0.25 | N110: 0 | T110: =IF(P110>0,TRUNC((P110-R110)/P110,2),"") ->  | V110: See DC4 Network Command and Control
A111: =IF(INDEX('-- PPL --'!D$10:D$846,(MATCH($B111,'-- PPL --'!#REF!,0)))=0, IF(INDEX('-- PPL --'!F$10:F$846,(MATCH($B111,'-- PPL --'!#REF!,0)))=0, "TBD", INDEX('-- PPL --'!F$10:F$846,(MATCH($B111,'-- PPL --'!#REF!,0)))), IF(INDEX('-- PPL --'!D$10:D$846,(MATCH($B111,'-- PPL --'!#REF!,0)))="ECAP", INDEX('-- PPL --'!F$10:F$846,(MATCH($B111,'-- PPL --'!#REF!,0))), INDEX('-- PPL --'!D$10:D$846,(MATCH($B111,'-- PPL --'!#REF!,0))))) ->  | B111: ECAP - ECMS Implementation Phase 1 | C111: =INDEX('-- PPL --'!#REF!,(MATCH($B111,'-- PPL --'!#REF!,0))) ->  | D111: =INDEX('-- PPL --'!#REF!,(MATCH($B111,'-- PPL --'!#REF!,0))) ->  | E111: =INDEX('-- PPL --'!I$10:I$845,(MATCH($B111,'-- PPL --'!#REF!,0))) ->  | F111: 2018-04-25 | G111: 2018-11-30 | H111: 2019-03-28 | I111: 2019-05-16 | J111: 2019-05-29 | L111: =IF(I111>1/1/2000,TRUNC(1-(I111-F111)/(G111-F111),2),"") -> -0.76 | N111: -0.14 | O111: =INDEX('-- PPL --'!AG$10:AG$845,(MATCH($B111,'-- PPL --'!#REF!,0))) ->  | P111: =INDEX('-- PPL --'!#REF!,(MATCH($B111,'-- PPL --'!#REF!,0))) ->  | Q111: =INDEX('-- PPL --'!#REF!,(MATCH($B111,'-- PPL --'!#REF!,0))) ->  | R111: =INDEX('-- PPL --'!#REF!,(MATCH($B111,'-- PPL --'!#REF!,0))) ->  | V111: =IF(Q111>0,TRUNC((Q111-R111)/Q111,2),TRUNC((P111-R111)/P111,2)) -> 
A112: =IF(INDEX('-- PPL --'!D$10:D$846,(MATCH($B112,'-- PPL --'!#REF!,0)))=0, IF(INDEX('-- PPL --'!F$10:F$846,(MATCH($B112,'-- PPL --'!#REF!,0)))=0, "TBD", INDEX('-- PPL --'!F$10:F$846,(MATCH($B112,'-- PPL --'!#REF!,0)))), IF(INDEX('-- PPL --'!D$10:D$846,(MATCH($B112,'-- PPL --'!#REF!,0)))="ECAP", INDEX('-- PPL --'!F$10:F$846,(MATCH($B112,'-- PPL --'!#REF!,0))), INDEX('-- PPL --'!D$10:D$846,(MATCH($B112,'-- PPL --'!#REF!,0))))) ->  | B112: CRR Framework Upgrade | C112: =INDEX('-- PPL --'!#REF!,(MATCH($B112,'-- PPL --'!#REF!,0))) ->  | D112: =INDEX('-- PPL --'!#REF!,(MATCH($B112,'-- PPL --'!#REF!,0))) ->  | E112: =INDEX('-- PPL --'!I$10:I$845,(MATCH($B112,'-- PPL --'!#REF!,0))) ->  | F112: 2016-10-26 | G112: 2017-10-02 | H112: 2018-11-19 | I112: 2018-11-19 | J112: 2019-02-26 | L112: =IF(J112>1/1/2000,TRUNC(1-(J112-F112)/(G112-F112),2),"") -> -1.5 | N112: =IF(I112>1/1/2000,TRUNC((((H112-F112)-(I112-F112))/(H112-F112)),2),"") -> 0 | O112: =INDEX('-- PPL --'!AG$10:AG$845,(MATCH($B112,'-- PPL --'!#REF!,0))) ->  | P112: =INDEX('-- PPL --'!#REF!,(MATCH($B112,'-- PPL --'!#REF!,0))) ->  | Q112: =INDEX('-- PPL --'!#REF!,(MATCH($B112,'-- PPL --'!#REF!,0))) ->  | R112: =INDEX('-- PPL --'!#REF!,(MATCH($B112,'-- PPL --'!#REF!,0))) ->  | T112: =IF(P112>0,TRUNC((P112-R112)/P112,2),"") -> 
A113: =IF(INDEX('-- PPL --'!D$10:D$846,(MATCH($B113,'-- PPL --'!#REF!,0)))=0, IF(INDEX('-- PPL --'!F$10:F$846,(MATCH($B113,'-- PPL --'!#REF!,0)))=0, "TBD", INDEX('-- PPL --'!F$10:F$846,(MATCH($B113,'-- PPL --'!#REF!,0)))), IF(INDEX('-- PPL --'!D$10:D$846,(MATCH($B113,'-- PPL --'!#REF!,0)))="ECAP", INDEX('-- PPL --'!F$10:F$846,(MATCH($B113,'-- PPL --'!#REF!,0))), INDEX('-- PPL --'!D$10:D$846,(MATCH($B113,'-- PPL --'!#REF!,0))))) ->  | B113: GINR Project Status Application Replacement | C113: =INDEX('-- PPL --'!#REF!,(MATCH($B113,'-- PPL --'!#REF!,0))) ->  | D113: =INDEX('-- PPL --'!#REF!,(MATCH($B113,'-- PPL --'!#REF!,0))) ->  | E113: =INDEX('-- PPL --'!I$10:I$845,(MATCH($B113,'-- PPL --'!#REF!,0))) ->  | F113: 2016-12-21 | G113: 2017-09-14 | H113: 2019-02-28 | I113: 2019-03-31 | J113: 2019-04-02 | L113: -2.11 | N113: =IF(I113>1/1/2000,TRUNC((((H113-F113)-(I113-F113))/(H113-F113)),2),"") -> -0.03 | O113: =INDEX('-- PPL --'!AG$10:AG$845,(MATCH($B113,'-- PPL --'!#REF!,0))) ->  | P113: =INDEX('-- PPL --'!#REF!,(MATCH($B113,'-- PPL --'!#REF!,0))) ->  | Q113: =INDEX('-- PPL --'!#REF!,(MATCH($B113,'-- PPL --'!#REF!,0))) ->  | R113: =INDEX('-- PPL --'!#REF!,(MATCH($B113,'-- PPL --'!#REF!,0))) ->  | T113: =IF(P113>0,TRUNC((P113-R113)/P113,2),"") -> 
A114: =IF(INDEX('-- PPL --'!D$10:D$846,(MATCH($B114,'-- PPL --'!#REF!,0)))=0, IF(INDEX('-- PPL --'!F$10:F$846,(MATCH($B114,'-- PPL --'!#REF!,0)))=0, "TBD", INDEX('-- PPL --'!F$10:F$846,(MATCH($B114,'-- PPL --'!#REF!,0)))), IF(INDEX('-- PPL --'!D$10:D$846,(MATCH($B114,'-- PPL --'!#REF!,0)))="ECAP", INDEX('-- PPL --'!F$10:F$846,(MATCH($B114,'-- PPL --'!#REF!,0))), INDEX('-- PPL --'!D$10:D$846,(MATCH($B114,'-- PPL --'!#REF!,0))))) ->  | B114: GridGeo MMAP Assessment | C114: =INDEX('-- PPL --'!#REF!,(MATCH($B114,'-- PPL --'!#REF!,0))) ->  | D114: =INDEX('-- PPL --'!#REF!,(MATCH($B114,'-- PPL --'!#REF!,0))) ->  | E114: =INDEX('-- PPL --'!I$10:I$845,(MATCH($B114,'-- PPL --'!#REF!,0))) ->  | F114: 2018-10-17 | G114: 2019-02-27 | H114: 2019-02-27 | I114: TBD | J114: 2019-03-05 | L114: -0.04 | N114: 0 | O114: =INDEX('-- PPL --'!AG$10:AG$845,(MATCH($B114,'-- PPL --'!#REF!,0))) ->  | P114: =INDEX('-- PPL --'!#REF!,(MATCH($B114,'-- PPL --'!#REF!,0))) ->  | Q114: =INDEX('-- PPL --'!#REF!,(MATCH($B114,'-- PPL --'!#REF!,0))) ->  | R114: =INDEX('-- PPL --'!#REF!,(MATCH($B114,'-- PPL --'!#REF!,0))) -> 
A115: =IF(INDEX('-- PPL --'!D$10:D$846,(MATCH($B115,'-- PPL --'!#REF!,0)))=0, IF(INDEX('-- PPL --'!F$10:F$846,(MATCH($B115,'-- PPL --'!#REF!,0)))=0, "TBD", INDEX('-- PPL --'!F$10:F$846,(MATCH($B115,'-- PPL --'!#REF!,0)))), IF(INDEX('-- PPL --'!D$10:D$846,(MATCH($B115,'-- PPL --'!#REF!,0)))="ECAP", INDEX('-- PPL --'!F$10:F$846,(MATCH($B115,'-- PPL --'!#REF!,0))), INDEX('-- PPL --'!D$10:D$846,(MATCH($B115,'-- PPL --'!#REF!,0))))) ->  | B115: Weather Imaging and Line Observation (WILO) | C115: =INDEX('-- PPL --'!#REF!,(MATCH($B115,'-- PPL --'!#REF!,0))) ->  | D115: =INDEX('-- PPL --'!#REF!,(MATCH($B115,'-- PPL --'!#REF!,0))) ->  | E115: =INDEX('-- PPL --'!I$10:I$845,(MATCH($B115,'-- PPL --'!#REF!,0))) ->  | F115: 2018-05-30 | G115: 2019-02-01 | H115: 2019-04-05 | I115: 2019-04-05 | J115: 2019-05-29 | L115: -0.47 | N115: =IF(I115>1/1/2000,TRUNC((((H115-F115)-(I115-F115))/(H115-F115)),2),"") -> 0 | O115: =INDEX('-- PPL --'!AG$10:AG$845,(MATCH($B115,'-- PPL --'!#REF!,0))) ->  | P115: =INDEX('-- PPL --'!#REF!,(MATCH($B115,'-- PPL --'!#REF!,0))) ->  | Q115: =INDEX('-- PPL --'!#REF!,(MATCH($B115,'-- PPL --'!#REF!,0))) ->  | R115: =INDEX('-- PPL --'!#REF!,(MATCH($B115,'-- PPL --'!#REF!,0))) -> 
A116: =IF(INDEX('-- PPL --'!D$10:D$846,(MATCH($B116,'-- PPL --'!#REF!,0)))=0, IF(INDEX('-- PPL --'!F$10:F$846,(MATCH($B116,'-- PPL --'!#REF!,0)))=0, "TBD", INDEX('-- PPL --'!F$10:F$846,(MATCH($B116,'-- PPL --'!#REF!,0)))), IF(INDEX('-- PPL --'!D$10:D$846,(MATCH($B116,'-- PPL --'!#REF!,0)))="ECAP", INDEX('-- PPL --'!F$10:F$846,(MATCH($B116,'-- PPL --'!#REF!,0))), INDEX('-- PPL --'!D$10:D$846,(MATCH($B116,'-- PPL --'!#REF!,0))))) ->  | B116: REC Technology Refresh | C116: =INDEX('-- PPL --'!#REF!,(MATCH($B116,'-- PPL --'!#REF!,0))) ->  | D116: =INDEX('-- PPL --'!#REF!,(MATCH($B116,'-- PPL --'!#REF!,0))) ->  | E116: =INDEX('-- PPL --'!I$10:I$845,(MATCH($B116,'-- PPL --'!#REF!,0))) ->  | F116: 2017-08-30 | G116: 2018-03-18 | H116: 2018-12-13 | I116: 2018-12-13 | J116: 2019-01-15 | L116: -1.51 | N116: =IF(I116>1/1/2000,TRUNC((((H116-F116)-(I116-F116))/(H116-F116)),2),"") -> 0 | O116: =INDEX('-- PPL --'!AG$10:AG$845,(MATCH($B116,'-- PPL --'!#REF!,0))) ->  | P116: =INDEX('-- PPL --'!#REF!,(MATCH($B116,'-- PPL --'!#REF!,0))) ->  | Q116: =INDEX('-- PPL --'!#REF!,(MATCH($B116,'-- PPL --'!#REF!,0))) ->  | R116: =INDEX('-- PPL --'!#REF!,(MATCH($B116,'-- PPL --'!#REF!,0))) -> 
A117: =IF(INDEX('-- PPL --'!D$10:D$846,(MATCH($B117,'-- PPL --'!#REF!,0)))=0, IF(INDEX('-- PPL --'!F$10:F$846,(MATCH($B117,'-- PPL --'!#REF!,0)))=0, "TBD", INDEX('-- PPL --'!F$10:F$846,(MATCH($B117,'-- PPL --'!#REF!,0)))), IF(INDEX('-- PPL --'!D$10:D$846,(MATCH($B117,'-- PPL --'!#REF!,0)))="ECAP", INDEX('-- PPL --'!F$10:F$846,(MATCH($B117,'-- PPL --'!#REF!,0))), INDEX('-- PPL --'!D$10:D$846,(MATCH($B117,'-- PPL --'!#REF!,0))))) ->  | B117: Training Facility | C117: =INDEX('-- PPL --'!#REF!,(MATCH($B117,'-- PPL --'!#REF!,0))) ->  | D117: =INDEX('-- PPL --'!#REF!,(MATCH($B117,'-- PPL --'!#REF!,0))) ->  | E117: =INDEX('-- PPL --'!I$10:I$845,(MATCH($B117,'-- PPL --'!#REF!,0))) ->  | F117: 2017-12-06 | G117: 2018-12-12 | H117: 2018-12-12 | I117: 2018-11-06 | J117: 2019-02-26 | L117: -0.2 | N117: =IF(I117>1/1/2000,TRUNC((((H117-F117)-(I117-F117))/(H117-F117)),2),"") -> 0.09 | O117: =INDEX('-- PPL --'!AG$10:AG$845,(MATCH($B117,'-- PPL --'!#REF!,0))) ->  | V117: 0
A118: =IF(INDEX('-- PPL --'!D$10:D$846,(MATCH($B118,'-- PPL --'!#REF!,0)))=0, IF(INDEX('-- PPL --'!F$10:F$846,(MATCH($B118,'-- PPL --'!#REF!,0)))=0, "TBD", INDEX('-- PPL --'!F$10:F$846,(MATCH($B118,'-- PPL --'!#REF!,0)))), IF(INDEX('-- PPL --'!D$10:D$846,(MATCH($B118,'-- PPL --'!#REF!,0)))="ECAP", INDEX('-- PPL --'!F$10:F$846,(MATCH($B118,'-- PPL --'!#REF!,0))), INDEX('-- PPL --'!D$10:D$846,(MATCH($B118,'-- PPL --'!#REF!,0))))) ->  | B118: Generic Transmission Constraint Calculation | C118: =INDEX('-- PPL --'!#REF!,(MATCH($B118,'-- PPL --'!#REF!,0))) ->  | D118: =INDEX('-- PPL --'!#REF!,(MATCH($B118,'-- PPL --'!#REF!,0))) ->  | E118: =INDEX('-- PPL --'!I$10:I$845,(MATCH($B118,'-- PPL --'!#REF!,0))) ->  | F118: 2018-03-07 | G118: 2018-12-13 | H118: 2018-12-13 | I118: 2018-12-13 | J118: 2019-01-23 | L118: -0.14 | N118: =IF(I118>1/1/2000,TRUNC((((H118-F118)-(I118-F118))/(H118-F118)),2),"") -> 0 | O118: =INDEX('-- PPL --'!AG$10:AG$845,(MATCH($B118,'-- PPL --'!#REF!,0))) ->  | P118: =INDEX('-- PPL --'!#REF!,(MATCH($B118,'-- PPL --'!#REF!,0))) ->  | Q118: =INDEX('-- PPL --'!#REF!,(MATCH($B118,'-- PPL --'!#REF!,0))) ->  | R118: =INDEX('-- PPL --'!#REF!,(MATCH($B118,'-- PPL --'!#REF!,0))) ->  | V118: =IF(Q118>0,TRUNC((Q118-R118)/Q118,2),TRUNC((P118-R118)/P118,2)) -> 
A119: =IF(INDEX('-- PPL --'!D$10:D$846,(MATCH($B119,'-- PPL --'!#REF!,0)))=0, IF(INDEX('-- PPL --'!F$10:F$846,(MATCH($B119,'-- PPL --'!#REF!,0)))=0, "TBD", INDEX('-- PPL --'!F$10:F$846,(MATCH($B119,'-- PPL --'!#REF!,0)))), IF(INDEX('-- PPL --'!D$10:D$846,(MATCH($B119,'-- PPL --'!#REF!,0)))="ECAP", INDEX('-- PPL --'!F$10:F$846,(MATCH($B119,'-- PPL --'!#REF!,0))), INDEX('-- PPL --'!D$10:D$846,(MATCH($B119,'-- PPL --'!#REF!,0))))) ->  | B119: Real-Time Assessment Continuity | C119: =INDEX('-- PPL --'!#REF!,(MATCH($B119,'-- PPL --'!#REF!,0))) ->  | D119: =INDEX('-- PPL --'!#REF!,(MATCH($B119,'-- PPL --'!#REF!,0))) ->  | E119: =INDEX('-- PPL --'!I$10:I$845,(MATCH($B119,'-- PPL --'!#REF!,0))) ->  | F119: 2018-01-31 | G119: 2018-12-13 | H119: 2019-02-08 | I119: 2019-02-08 | J119: 2019-03-19 | L119: =IF(J119>1/1/2000,TRUNC(1-(J119-F119)/(G119-F119),2),"") -> -0.3 | N119: =IF(I119>1/1/2000,TRUNC((((H119-F119)-(I119-F119))/(H119-F119)),2),"") -> 0 | O119: =INDEX('-- PPL --'!AG$10:AG$845,(MATCH($B119,'-- PPL --'!#REF!,0))) ->  | P119: =INDEX('-- PPL --'!#REF!,(MATCH($B119,'-- PPL --'!#REF!,0))) ->  | Q119: =INDEX('-- PPL --'!#REF!,(MATCH($B119,'-- PPL --'!#REF!,0))) ->  | R119: =INDEX('-- PPL --'!#REF!,(MATCH($B119,'-- PPL --'!#REF!,0))) ->  | U119: 2
A120: =IF(INDEX('-- PPL --'!D$10:D$846,(MATCH($B120,'-- PPL --'!#REF!,0)))=0, IF(INDEX('-- PPL --'!F$10:F$846,(MATCH($B120,'-- PPL --'!#REF!,0)))=0, "TBD", INDEX('-- PPL --'!F$10:F$846,(MATCH($B120,'-- PPL --'!#REF!,0)))), IF(INDEX('-- PPL --'!D$10:D$846,(MATCH($B120,'-- PPL --'!#REF!,0)))="ECAP", INDEX('-- PPL --'!F$10:F$846,(MATCH($B120,'-- PPL --'!#REF!,0))), INDEX('-- PPL --'!D$10:D$846,(MATCH($B120,'-- PPL --'!#REF!,0))))) ->  | B120: Cyber Security Project #24 | C120: =INDEX('-- PPL --'!#REF!,(MATCH($B120,'-- PPL --'!#REF!,0))) ->  | D120: =INDEX('-- PPL --'!#REF!,(MATCH($B120,'-- PPL --'!#REF!,0))) ->  | E120: =INDEX('-- PPL --'!I$10:I$845,(MATCH($B120,'-- PPL --'!#REF!,0))) ->  | F120: 2018-06-27 | G120: 2018-10-26 | H120: 2018-11-30 | I120: 2018-11-30 | J120: 2019-03-05 | L120: -1.07 | N120: 0 | O120: =INDEX('-- PPL --'!AG$10:AG$845,(MATCH($B120,'-- PPL --'!#REF!,0))) ->  | P120: =INDEX('-- PPL --'!#REF!,(MATCH($B120,'-- PPL --'!#REF!,0))) ->  | Q120: =INDEX('-- PPL --'!#REF!,(MATCH($B120,'-- PPL --'!#REF!,0))) ->  | R120: =INDEX('-- PPL --'!#REF!,(MATCH($B120,'-- PPL --'!#REF!,0))) -> 
A121: =IF(INDEX('-- PPL --'!D$10:D$846,(MATCH($B121,'-- PPL --'!#REF!,0)))=0, IF(INDEX('-- PPL --'!F$10:F$846,(MATCH($B121,'-- PPL --'!#REF!,0)))=0, "TBD", INDEX('-- PPL --'!F$10:F$846,(MATCH($B121,'-- PPL --'!#REF!,0)))), IF(INDEX('-- PPL --'!D$10:D$846,(MATCH($B121,'-- PPL --'!#REF!,0)))="ECAP", INDEX('-- PPL --'!F$10:F$846,(MATCH($B121,'-- PPL --'!#REF!,0))), INDEX('-- PPL --'!D$10:D$846,(MATCH($B121,'-- PPL --'!#REF!,0))))) ->  | B121: Quest Software Portfolio Transition | C121: =INDEX('-- PPL --'!#REF!,(MATCH($B121,'-- PPL --'!#REF!,0))) ->  | D121: =INDEX('-- PPL --'!#REF!,(MATCH($B121,'-- PPL --'!#REF!,0))) ->  | E121: =INDEX('-- PPL --'!I$10:I$845,(MATCH($B121,'-- PPL --'!#REF!,0))) ->  | F121: 2018-04-04 | G121: 2018-06-27 | H121: 2018-11-07 | I121: 2018-11-14 | J121: 2018-11-14 | L121: -1.66 | N121: -0.03 | O121: =INDEX('-- PPL --'!AG$10:AG$845,(MATCH($B121,'-- PPL --'!#REF!,0))) ->  | P121: =INDEX('-- PPL --'!#REF!,(MATCH($B121,'-- PPL --'!#REF!,0))) ->  | Q121: =INDEX('-- PPL --'!#REF!,(MATCH($B121,'-- PPL --'!#REF!,0))) ->  | R121: =INDEX('-- PPL --'!#REF!,(MATCH($B121,'-- PPL --'!#REF!,0))) -> 
A122: =IF(INDEX('-- PPL --'!D$10:D$846,(MATCH($B122,'-- PPL --'!#REF!,0)))=0, IF(INDEX('-- PPL --'!F$10:F$846,(MATCH($B122,'-- PPL --'!#REF!,0)))=0, "TBD", INDEX('-- PPL --'!F$10:F$846,(MATCH($B122,'-- PPL --'!#REF!,0)))), IF(INDEX('-- PPL --'!D$10:D$846,(MATCH($B122,'-- PPL --'!#REF!,0)))="ECAP", INDEX('-- PPL --'!F$10:F$846,(MATCH($B122,'-- PPL --'!#REF!,0))), INDEX('-- PPL --'!D$10:D$846,(MATCH($B122,'-- PPL --'!#REF!,0))))) ->  | B122: Synchronous Condenser Outage Modeling | C122: =INDEX('-- PPL --'!#REF!,(MATCH($B122,'-- PPL --'!#REF!,0))) ->  | D122: =INDEX('-- PPL --'!#REF!,(MATCH($B122,'-- PPL --'!#REF!,0))) ->  | E122: =INDEX('-- PPL --'!I$10:I$845,(MATCH($B122,'-- PPL --'!#REF!,0))) ->  | F122: 2018-06-06 | G122: 2018-10-25 | H122: 2018-10-25 | I122: 2018-10-25 | J122: 2019-03-05 | L122: -0.92 | N122: 0 | O122: =INDEX('-- PPL --'!AG$10:AG$845,(MATCH($B122,'-- PPL --'!#REF!,0))) ->  | P122: =INDEX('-- PPL --'!#REF!,(MATCH($B122,'-- PPL --'!#REF!,0))) ->  | Q122: =INDEX('-- PPL --'!#REF!,(MATCH($B122,'-- PPL --'!#REF!,0))) ->  | R122: =INDEX('-- PPL --'!#REF!,(MATCH($B122,'-- PPL --'!#REF!,0))) -> 
A123: =IF(INDEX('-- PPL --'!D$10:D$846,(MATCH($B123,'-- PPL --'!#REF!,0)))=0, IF(INDEX('-- PPL --'!F$10:F$846,(MATCH($B123,'-- PPL --'!#REF!,0)))=0, "TBD", INDEX('-- PPL --'!F$10:F$846,(MATCH($B123,'-- PPL --'!#REF!,0)))), IF(INDEX('-- PPL --'!D$10:D$846,(MATCH($B123,'-- PPL --'!#REF!,0)))="ECAP", INDEX('-- PPL --'!F$10:F$846,(MATCH($B123,'-- PPL --'!#REF!,0))), INDEX('-- PPL --'!D$10:D$846,(MATCH($B123,'-- PPL --'!#REF!,0))))) ->  | B123: Create a Panhandle Hub | C123: =INDEX('-- PPL --'!#REF!,(MATCH($B123,'-- PPL --'!#REF!,0))) ->  | D123: =INDEX('-- PPL --'!#REF!,(MATCH($B123,'-- PPL --'!#REF!,0))) ->  | E123: =INDEX('-- PPL --'!I$10:I$845,(MATCH($B123,'-- PPL --'!#REF!,0))) ->  | F123: 2019-01-15 | G123: 2019-04-04 | H123: 2019-04-04 | I123: 2019-04-04 | J123: 2019-05-15 | L123: -0.51 | N123: 0 | O123: =INDEX('-- PPL --'!AG$10:AG$845,(MATCH($B123,'-- PPL --'!#REF!,0))) ->  | P123: =INDEX('-- PPL --'!#REF!,(MATCH($B123,'-- PPL --'!#REF!,0))) ->  | Q123: =INDEX('-- PPL --'!#REF!,(MATCH($B123,'-- PPL --'!#REF!,0))) ->  | R123: =INDEX('-- PPL --'!#REF!,(MATCH($B123,'-- PPL --'!#REF!,0))) ->  | V123: =IF(Q123>0,TRUNC((Q123-R123)/Q123,2),TRUNC((P123-R123)/P123,2)) -> 
A124: =IF(INDEX('-- PPL --'!D$10:D$846,(MATCH($B124,'-- PPL --'!#REF!,0)))=0, IF(INDEX('-- PPL --'!F$10:F$846,(MATCH($B124,'-- PPL --'!#REF!,0)))=0, "TBD", INDEX('-- PPL --'!F$10:F$846,(MATCH($B124,'-- PPL --'!#REF!,0)))), IF(INDEX('-- PPL --'!D$10:D$846,(MATCH($B124,'-- PPL --'!#REF!,0)))="ECAP", INDEX('-- PPL --'!F$10:F$846,(MATCH($B124,'-- PPL --'!#REF!,0))), INDEX('-- PPL --'!D$10:D$846,(MATCH($B124,'-- PPL --'!#REF!,0))))) ->  | B124: Study Area Load Information | C124: =INDEX('-- PPL --'!#REF!,(MATCH($B124,'-- PPL --'!#REF!,0))) ->  | D124: =INDEX('-- PPL --'!#REF!,(MATCH($B124,'-- PPL --'!#REF!,0))) ->  | E124: =INDEX('-- PPL --'!I$10:I$845,(MATCH($B124,'-- PPL --'!#REF!,0))) ->  | F124: 2018-10-17 | G124: 2019-02-11 | H124: 2019-02-11 | I124: 2019-02-11 | J124: 2019-03-12 | L124: -0.24 | N124: 0 | O124: =INDEX('-- PPL --'!AG$10:AG$845,(MATCH($B124,'-- PPL --'!#REF!,0))) ->  | P124: =INDEX('-- PPL --'!#REF!,(MATCH($B124,'-- PPL --'!#REF!,0))) ->  | Q124: =INDEX('-- PPL --'!#REF!,(MATCH($B124,'-- PPL --'!#REF!,0))) ->  | R124: =INDEX('-- PPL --'!#REF!,(MATCH($B124,'-- PPL --'!#REF!,0))) ->  | U124: 2
A125: =IF(INDEX('-- PPL --'!D$10:D$846,(MATCH($B125,'-- PPL --'!#REF!,0)))=0, IF(INDEX('-- PPL --'!F$10:F$846,(MATCH($B125,'-- PPL --'!#REF!,0)))=0, "TBD", INDEX('-- PPL --'!F$10:F$846,(MATCH($B125,'-- PPL --'!#REF!,0)))), IF(INDEX('-- PPL --'!D$10:D$846,(MATCH($B125,'-- PPL --'!#REF!,0)))="ECAP", INDEX('-- PPL --'!F$10:F$846,(MATCH($B125,'-- PPL --'!#REF!,0))), INDEX('-- PPL --'!D$10:D$846,(MATCH($B125,'-- PPL --'!#REF!,0))))) ->  | B125: Short-Term System Adequacy and AS Offer Disclosure Reports Additions | C125: =INDEX('-- PPL --'!#REF!,(MATCH($B125,'-- PPL --'!#REF!,0))) ->  | D125: =INDEX('-- PPL --'!#REF!,(MATCH($B125,'-- PPL --'!#REF!,0))) ->  | E125: =INDEX('-- PPL --'!I$10:I$845,(MATCH($B125,'-- PPL --'!#REF!,0))) ->  | F125: 2018-07-18 | G125: 2018-10-25 | H125: 2018-12-13 | I125: 2018-12-13 | J125: 2019-01-15 | L125: =IF(J125>1/1/2000,TRUNC(1-(J125-F125)/(G125-F125),2),"") -> -0.82 | N125: =IF(I125>1/1/2000,TRUNC((((H125-F125)-(I125-F125))/(H125-F125)),2),"") -> 0 | O125: =INDEX('-- PPL --'!AG$10:AG$845,(MATCH($B125,'-- PPL --'!#REF!,0))) ->  | P125: =INDEX('-- PPL --'!#REF!,(MATCH($B125,'-- PPL --'!#REF!,0))) ->  | Q125: =INDEX('-- PPL --'!#REF!,(MATCH($B125,'-- PPL --'!#REF!,0))) ->  | R125: =INDEX('-- PPL --'!#REF!,(MATCH($B125,'-- PPL --'!#REF!,0))) ->  | V125: =IF(Q125>0,TRUNC((Q125-R125)/Q125,2),TRUNC((P125-R125)/P125,2)) -> 
A126: =IF(INDEX('-- PPL --'!D$10:D$846,(MATCH($B126,'-- PPL --'!#REF!,0)))=0, IF(INDEX('-- PPL --'!F$10:F$846,(MATCH($B126,'-- PPL --'!#REF!,0)))=0, "TBD", INDEX('-- PPL --'!F$10:F$846,(MATCH($B126,'-- PPL --'!#REF!,0)))), IF(INDEX('-- PPL --'!D$10:D$846,(MATCH($B126,'-- PPL --'!#REF!,0)))="ECAP", INDEX('-- PPL --'!F$10:F$846,(MATCH($B126,'-- PPL --'!#REF!,0))), INDEX('-- PPL --'!D$10:D$846,(MATCH($B126,'-- PPL --'!#REF!,0))))) ->  | B126: RMR Process and Agreement Revisions | C126: =INDEX('-- PPL --'!#REF!,(MATCH($B126,'-- PPL --'!#REF!,0))) ->  | D126: =INDEX('-- PPL --'!#REF!,(MATCH($B126,'-- PPL --'!#REF!,0))) ->  | E126: =INDEX('-- PPL --'!I$10:I$845,(MATCH($B126,'-- PPL --'!#REF!,0))) ->  | F126: 2018-12-19 | G126: 2019-04-04 | H126: 2019-04-04 | I126: 2019-04-04 | J126: 2019-05-08 | L126: -0.32 | N126: 0 | O126: =INDEX('-- PPL --'!AG$10:AG$845,(MATCH($B126,'-- PPL --'!#REF!,0))) ->  | P126: =INDEX('-- PPL --'!#REF!,(MATCH($B126,'-- PPL --'!#REF!,0))) ->  | Q126: =INDEX('-- PPL --'!#REF!,(MATCH($B126,'-- PPL --'!#REF!,0))) ->  | R126: =INDEX('-- PPL --'!#REF!,(MATCH($B126,'-- PPL --'!#REF!,0))) ->  | V126: =IF(Q126>0,TRUNC((Q126-R126)/Q126,2),TRUNC((P126-R126)/P126,2)) -> 
A127: =IF(INDEX('-- PPL --'!D$10:D$846,(MATCH($B127,'-- PPL --'!#REF!,0)))=0, IF(INDEX('-- PPL --'!F$10:F$846,(MATCH($B127,'-- PPL --'!#REF!,0)))=0, "TBD", INDEX('-- PPL --'!F$10:F$846,(MATCH($B127,'-- PPL --'!#REF!,0)))), IF(INDEX('-- PPL --'!D$10:D$846,(MATCH($B127,'-- PPL --'!#REF!,0)))="ECAP", INDEX('-- PPL --'!F$10:F$846,(MATCH($B127,'-- PPL --'!#REF!,0))), INDEX('-- PPL --'!D$10:D$846,(MATCH($B127,'-- PPL --'!#REF!,0))))) ->  | B127: Exceptional Fuel Cost Included in the Mitigated Offer Cap | C127: =INDEX('-- PPL --'!#REF!,(MATCH($B127,'-- PPL --'!#REF!,0))) ->  | D127: =INDEX('-- PPL --'!#REF!,(MATCH($B127,'-- PPL --'!#REF!,0))) ->  | E127: =INDEX('-- PPL --'!I$10:I$845,(MATCH($B127,'-- PPL --'!#REF!,0))) ->  | F127: 2019-01-15 | G127: 2019-04-04 | H127: 2019-04-04 | I127: 2019-04-04 | J127: 2019-05-15 | L127: -0.51 | N127: 0 | O127: =INDEX('-- PPL --'!AG$10:AG$845,(MATCH($B127,'-- PPL --'!#REF!,0))) ->  | P127: =INDEX('-- PPL --'!#REF!,(MATCH($B127,'-- PPL --'!#REF!,0))) ->  | Q127: =INDEX('-- PPL --'!#REF!,(MATCH($B127,'-- PPL --'!#REF!,0))) ->  | R127: =INDEX('-- PPL --'!#REF!,(MATCH($B127,'-- PPL --'!#REF!,0))) ->  | V127: See NPRR817
A128: =IF(INDEX('-- PPL --'!D$10:D$846,(MATCH($B128,'-- PPL --'!#REF!,0)))=0, IF(INDEX('-- PPL --'!F$10:F$846,(MATCH($B128,'-- PPL --'!#REF!,0)))=0, "TBD", INDEX('-- PPL --'!F$10:F$846,(MATCH($B128,'-- PPL --'!#REF!,0)))), IF(INDEX('-- PPL --'!D$10:D$846,(MATCH($B128,'-- PPL --'!#REF!,0)))="ECAP", INDEX('-- PPL --'!F$10:F$846,(MATCH($B128,'-- PPL --'!#REF!,0))), INDEX('-- PPL --'!D$10:D$846,(MATCH($B128,'-- PPL --'!#REF!,0))))) ->  | B128: Publish RTM Shift Factors for Hubs, Load Zones, and DC Ties | C128: =INDEX('-- PPL --'!#REF!,(MATCH($B128,'-- PPL --'!#REF!,0))) ->  | D128: =INDEX('-- PPL --'!#REF!,(MATCH($B128,'-- PPL --'!#REF!,0))) ->  | E128: =INDEX('-- PPL --'!I$10:I$845,(MATCH($B128,'-- PPL --'!#REF!,0))) ->  | F128: 2019-02-06 | G128: 2019-04-06 | H128: 2019-04-06 | I128: 2019-04-06 | J128: 2019-04-23 | L128: -0.28 | N128: 0 | O128: =INDEX('-- PPL --'!AG$10:AG$845,(MATCH($B128,'-- PPL --'!#REF!,0))) ->  | P128: =INDEX('-- PPL --'!#REF!,(MATCH($B128,'-- PPL --'!#REF!,0))) ->  | Q128: =INDEX('-- PPL --'!#REF!,(MATCH($B128,'-- PPL --'!#REF!,0))) ->  | R128: =INDEX('-- PPL --'!#REF!,(MATCH($B128,'-- PPL --'!#REF!,0))) ->  | V128: =IF(Q128>0,TRUNC((Q128-R128)/Q128,2),TRUNC((P128-R128)/P128,2)) -> 
A129: =IF(INDEX('-- PPL --'!D$10:D$846,(MATCH($B129,'-- PPL --'!#REF!,0)))=0, IF(INDEX('-- PPL --'!F$10:F$846,(MATCH($B129,'-- PPL --'!#REF!,0)))=0, "TBD", INDEX('-- PPL --'!F$10:F$846,(MATCH($B129,'-- PPL --'!#REF!,0)))), IF(INDEX('-- PPL --'!D$10:D$846,(MATCH($B129,'-- PPL --'!#REF!,0)))="ECAP", INDEX('-- PPL --'!F$10:F$846,(MATCH($B129,'-- PPL --'!#REF!,0))), INDEX('-- PPL --'!D$10:D$846,(MATCH($B129,'-- PPL --'!#REF!,0))))) ->  | B129: Publish Real-Time Market Shift Factors for Private Use Network Settlement Points | C129: =INDEX('-- PPL --'!#REF!,(MATCH($B129,'-- PPL --'!#REF!,0))) ->  | D129: =INDEX('-- PPL --'!#REF!,(MATCH($B129,'-- PPL --'!#REF!,0))) ->  | E129: =INDEX('-- PPL --'!I$10:I$845,(MATCH($B129,'-- PPL --'!#REF!,0))) ->  | F129: 2019-02-06 | G129: 2019-04-06 | H129: 2019-04-06 | I129: 2019-04-06 | J129: 2019-04-23 | L129: -0.28 | N129: 0 | O129: =INDEX('-- PPL --'!AG$10:AG$845,(MATCH($B129,'-- PPL --'!#REF!,0))) ->  | P129: =INDEX('-- PPL --'!#REF!,(MATCH($B129,'-- PPL --'!#REF!,0))) ->  | Q129: =INDEX('-- PPL --'!#REF!,(MATCH($B129,'-- PPL --'!#REF!,0))) ->  | R129: =INDEX('-- PPL --'!#REF!,(MATCH($B129,'-- PPL --'!#REF!,0))) ->  | V129: See NPRR865
A130: =IF(INDEX('-- PPL --'!D$10:D$846,(MATCH($B130,'-- PPL --'!#REF!,0)))=0, IF(INDEX('-- PPL --'!F$10:F$846,(MATCH($B130,'-- PPL --'!#REF!,0)))=0, "TBD", INDEX('-- PPL --'!F$10:F$846,(MATCH($B130,'-- PPL --'!#REF!,0)))), IF(INDEX('-- PPL --'!D$10:D$846,(MATCH($B130,'-- PPL --'!#REF!,0)))="ECAP", INDEX('-- PPL --'!F$10:F$846,(MATCH($B130,'-- PPL --'!#REF!,0))), INDEX('-- PPL --'!D$10:D$846,(MATCH($B130,'-- PPL --'!#REF!,0))))) ->  | B130: Bilateral CRR Interface Enhancement | C130: =INDEX('-- PPL --'!#REF!,(MATCH($B130,'-- PPL --'!#REF!,0))) ->  | D130: =INDEX('-- PPL --'!#REF!,(MATCH($B130,'-- PPL --'!#REF!,0))) ->  | E130: =INDEX('-- PPL --'!I$10:I$845,(MATCH($B130,'-- PPL --'!#REF!,0))) ->  | F130: 2016-10-26 | G130: 2017-10-02 | H130: 2018-11-19 | I130: 2018-11-19 | J130: 2019-02-26 | L130: -1.5 | N130: 0 | O130: =INDEX('-- PPL --'!AG$10:AG$845,(MATCH($B130,'-- PPL --'!#REF!,0))) ->  | P130: =INDEX('-- PPL --'!#REF!,(MATCH($B130,'-- PPL --'!#REF!,0))) ->  | Q130: =INDEX('-- PPL --'!#REF!,(MATCH($B130,'-- PPL --'!#REF!,0))) ->  | R130: =INDEX('-- PPL --'!#REF!,(MATCH($B130,'-- PPL --'!#REF!,0))) ->  | S130: NA | T130: See #181-01 | U130: NA | V130: See #181-01
A131: =IF(INDEX('-- PPL --'!D$10:D$846,(MATCH($B131,'-- PPL --'!#REF!,0)))=0, IF(INDEX('-- PPL --'!F$10:F$846,(MATCH($B131,'-- PPL --'!#REF!,0)))=0, "TBD", INDEX('-- PPL --'!F$10:F$846,(MATCH($B131,'-- PPL --'!#REF!,0)))), IF(INDEX('-- PPL --'!D$10:D$846,(MATCH($B131,'-- PPL --'!#REF!,0)))="ECAP", INDEX('-- PPL --'!F$10:F$846,(MATCH($B131,'-- PPL --'!#REF!,0))), INDEX('-- PPL --'!D$10:D$846,(MATCH($B131,'-- PPL --'!#REF!,0))))) ->  | B131: Addition of Intra-Hour Wind Forecast to GTBD Calculation | C131: =INDEX('-- PPL --'!#REF!,(MATCH($B131,'-- PPL --'!#REF!,0))) ->  | D131: =INDEX('-- PPL --'!#REF!,(MATCH($B131,'-- PPL --'!#REF!,0))) ->  | E131: =INDEX('-- PPL --'!I$10:I$845,(MATCH($B131,'-- PPL --'!#REF!,0))) ->  | F131: 2018-08-08 | G131: 2018-10-25 | H131: 2018-10-25 | I131: 2018-10-25 | J131: 2018-12-19 | L131: -0.7 | N131: 0 | O131: =INDEX('-- PPL --'!AG$10:AG$845,(MATCH($B131,'-- PPL --'!#REF!,0))) ->  | P131: =INDEX('-- PPL --'!#REF!,(MATCH($B131,'-- PPL --'!#REF!,0))) ->  | Q131: =INDEX('-- PPL --'!#REF!,(MATCH($B131,'-- PPL --'!#REF!,0))) ->  | R131: =INDEX('-- PPL --'!#REF!,(MATCH($B131,'-- PPL --'!#REF!,0))) ->  | U131: 2 | V131: =IF(Q131>0,TRUNC((Q131-R131)/Q131,2),TRUNC((P131-R131)/P131,2)) -> 
A133: Project Number | B133: ="Expedited Projects Completed (Count = " & COUNTA(B134:B143) & ")" -> Expedited Projects Completed (Count = 8) | C133: VP | D133: PM | E133: Phase
A135: =IF(INDEX('-- PPL --'!D$10:D$846,(MATCH($B135,'-- PPL --'!#REF!,0)))=0, IF(INDEX('-- PPL --'!F$10:F$846,(MATCH($B135,'-- PPL --'!#REF!,0)))=0, "TBD", INDEX('-- PPL --'!F$10:F$846,(MATCH($B135,'-- PPL --'!#REF!,0)))), IF(INDEX('-- PPL --'!D$10:D$846,(MATCH($B135,'-- PPL --'!#REF!,0)))="ECAP", INDEX('-- PPL --'!F$10:F$846,(MATCH($B135,'-- PPL --'!#REF!,0))), INDEX('-- PPL --'!D$10:D$846,(MATCH($B135,'-- PPL --'!#REF!,0))))) ->  | B135: Job Description Repository | C135: =INDEX('-- PPL --'!#REF!,(MATCH($B135,'-- PPL --'!#REF!,0))) ->  | D135: =INDEX('-- PPL --'!#REF!,(MATCH($B135,'-- PPL --'!#REF!,0))) ->  | E135: =INDEX('-- PPL --'!I$10:I$845,(MATCH($B135,'-- PPL --'!#REF!,0))) ->  | L135: =IF(I135>1/1/2000,TRUNC(1-(I135-F135)/(G135-F135),2),"") ->  | M135: 4 | N135: NA | O135: =INDEX('-- PPL --'!AG$10:AG$845,(MATCH($B135,'-- PPL --'!#REF!,0))) ->  | P135: =INDEX('-- PPL --'!#REF!,(MATCH($B135,'-- PPL --'!#REF!,0))) ->  | Q135: =INDEX('-- PPL --'!#REF!,(MATCH($B135,'-- PPL --'!#REF!,0))) ->  | R135: =INDEX('-- PPL --'!#REF!,(MATCH($B135,'-- PPL --'!#REF!,0))) ->  | T135: =IF(P135>0,TRUNC((P135-R135)/P135,2),"") ->  | V135: =IF(Q135>0,TRUNC((Q135-R135)/Q135,2),TRUNC((P135-R135)/P135,2)) -> 
A136: =IF(INDEX('-- PPL --'!D$10:D$846,(MATCH($B136,'-- PPL --'!#REF!,0)))=0, IF(INDEX('-- PPL --'!F$10:F$846,(MATCH($B136,'-- PPL --'!#REF!,0)))=0, "TBD", INDEX('-- PPL --'!F$10:F$846,(MATCH($B136,'-- PPL --'!#REF!,0)))), IF(INDEX('-- PPL --'!D$10:D$846,(MATCH($B136,'-- PPL --'!#REF!,0)))="ECAP", INDEX('-- PPL --'!F$10:F$846,(MATCH($B136,'-- PPL --'!#REF!,0))), INDEX('-- PPL --'!D$10:D$846,(MATCH($B136,'-- PPL --'!#REF!,0))))) ->  | B136: SSWG Case Tool 2018 | C136: =INDEX('-- PPL --'!#REF!,(MATCH($B136,'-- PPL --'!#REF!,0))) ->  | D136: =INDEX('-- PPL --'!#REF!,(MATCH($B136,'-- PPL --'!#REF!,0))) ->  | E136: =INDEX('-- PPL --'!I$10:I$845,(MATCH($B136,'-- PPL --'!#REF!,0))) ->  | L136: =IF(I136>1/1/2000,TRUNC(1-(I136-F136)/(G136-F136),2),"") ->  | M136: 4 | N136: NA | O136: =INDEX('-- PPL --'!AG$10:AG$845,(MATCH($B136,'-- PPL --'!#REF!,0))) ->  | P136: =INDEX('-- PPL --'!#REF!,(MATCH($B136,'-- PPL --'!#REF!,0))) ->  | Q136: =INDEX('-- PPL --'!#REF!,(MATCH($B136,'-- PPL --'!#REF!,0))) ->  | R136: =INDEX('-- PPL --'!#REF!,(MATCH($B136,'-- PPL --'!#REF!,0))) ->  | T136: =IF(P136>0,TRUNC((P136-R136)/P136,2),"") ->  | V136: =IF(Q136>0,TRUNC((Q136-R136)/Q136,2),TRUNC((P136-R136)/P136,2)) -> 
A137: =IF(INDEX('-- PPL --'!D$10:D$846,(MATCH($B137,'-- PPL --'!#REF!,0)))=0, IF(INDEX('-- PPL --'!F$10:F$846,(MATCH($B137,'-- PPL --'!#REF!,0)))=0, "TBD", INDEX('-- PPL --'!F$10:F$846,(MATCH($B137,'-- PPL --'!#REF!,0)))), IF(INDEX('-- PPL --'!D$10:D$846,(MATCH($B137,'-- PPL --'!#REF!,0)))="ECAP", INDEX('-- PPL --'!F$10:F$846,(MATCH($B137,'-- PPL --'!#REF!,0))), INDEX('-- PPL --'!D$10:D$846,(MATCH($B137,'-- PPL --'!#REF!,0))))) ->  | B137: Scheduling software/Pilot T2 conference rooms | C137: =INDEX('-- PPL --'!#REF!,(MATCH($B137,'-- PPL --'!#REF!,0))) ->  | D137: =INDEX('-- PPL --'!#REF!,(MATCH($B137,'-- PPL --'!#REF!,0))) ->  | E137: =INDEX('-- PPL --'!I$10:I$845,(MATCH($B137,'-- PPL --'!#REF!,0))) ->  | L137: =IF(I137>1/1/2000,TRUNC(1-(I137-F137)/(G137-F137),2),"") ->  | M137: 4 | N137: NA | O137: =INDEX('-- PPL --'!AG$10:AG$845,(MATCH($B137,'-- PPL --'!#REF!,0))) ->  | P137: =INDEX('-- PPL --'!#REF!,(MATCH($B137,'-- PPL --'!#REF!,0))) ->  | Q137: =INDEX('-- PPL --'!#REF!,(MATCH($B137,'-- PPL --'!#REF!,0))) ->  | R137: =INDEX('-- PPL --'!#REF!,(MATCH($B137,'-- PPL --'!#REF!,0))) ->  | T137: =IF(P137>0,TRUNC((P137-R137)/P137,2),"") -> 
A138: =IF(INDEX('-- PPL --'!D$10:D$846,(MATCH($B138,'-- PPL --'!#REF!,0)))=0, IF(INDEX('-- PPL --'!F$10:F$846,(MATCH($B138,'-- PPL --'!#REF!,0)))=0, "TBD", INDEX('-- PPL --'!F$10:F$846,(MATCH($B138,'-- PPL --'!#REF!,0)))), IF(INDEX('-- PPL --'!D$10:D$846,(MATCH($B138,'-- PPL --'!#REF!,0)))="ECAP", INDEX('-- PPL --'!F$10:F$846,(MATCH($B138,'-- PPL --'!#REF!,0))), INDEX('-- PPL --'!D$10:D$846,(MATCH($B138,'-- PPL --'!#REF!,0))))) ->  | B138: Automate ERS LRS 1 | C138: =INDEX('-- PPL --'!#REF!,(MATCH($B138,'-- PPL --'!#REF!,0))) ->  | D138: =INDEX('-- PPL --'!#REF!,(MATCH($B138,'-- PPL --'!#REF!,0))) ->  | E138: =INDEX('-- PPL --'!I$10:I$845,(MATCH($B138,'-- PPL --'!#REF!,0))) ->  | L138: =IF(I138>1/1/2000,TRUNC(1-(I138-F138)/(G138-F138),2),"") ->  | M138: 4 | N138: NA | O138: =INDEX('-- PPL --'!AG$10:AG$845,(MATCH($B138,'-- PPL --'!#REF!,0))) ->  | P138: =INDEX('-- PPL --'!#REF!,(MATCH($B138,'-- PPL --'!#REF!,0))) ->  | Q138: =INDEX('-- PPL --'!#REF!,(MATCH($B138,'-- PPL --'!#REF!,0))) ->  | R138: =INDEX('-- PPL --'!#REF!,(MATCH($B138,'-- PPL --'!#REF!,0))) ->  | T138: =IF(P138>0,TRUNC((P138-R138)/P138,2),"") -> 
A139: =IF(INDEX('-- PPL --'!D$10:D$846,(MATCH($B139,'-- PPL --'!#REF!,0)))=0, IF(INDEX('-- PPL --'!F$10:F$846,(MATCH($B139,'-- PPL --'!#REF!,0)))=0, "TBD", INDEX('-- PPL --'!F$10:F$846,(MATCH($B139,'-- PPL --'!#REF!,0)))), IF(INDEX('-- PPL --'!D$10:D$846,(MATCH($B139,'-- PPL --'!#REF!,0)))="ECAP", INDEX('-- PPL --'!F$10:F$846,(MATCH($B139,'-- PPL --'!#REF!,0))), INDEX('-- PPL --'!D$10:D$846,(MATCH($B139,'-- PPL --'!#REF!,0))))) ->  | B139: Provide Complete Current Operating Plan (COP) Data | C139: =INDEX('-- PPL --'!#REF!,(MATCH($B139,'-- PPL --'!#REF!,0))) ->  | D139: =INDEX('-- PPL --'!#REF!,(MATCH($B139,'-- PPL --'!#REF!,0))) ->  | E139: =INDEX('-- PPL --'!I$10:I$845,(MATCH($B139,'-- PPL --'!#REF!,0))) ->  | L139: =IF(J139>1/1/2000,TRUNC(1-(J139-F139)/(G139-F139),2),"") ->  | M139: 4 | N139: NA | O139: =INDEX('-- PPL --'!AG$10:AG$845,(MATCH($B139,'-- PPL --'!#REF!,0))) ->  | P139: =INDEX('-- PPL --'!#REF!,(MATCH($B139,'-- PPL --'!#REF!,0))) ->  | Q139: =INDEX('-- PPL --'!#REF!,(MATCH($B139,'-- PPL --'!#REF!,0))) ->  | R139: =INDEX('-- PPL --'!#REF!,(MATCH($B139,'-- PPL --'!#REF!,0))) ->  | T139: =IF(P139>0,TRUNC((P139-R139)/P139,2),"") -> 
A140: =IF(INDEX('-- PPL --'!D$10:D$846,(MATCH($B140,'-- PPL --'!#REF!,0)))=0, IF(INDEX('-- PPL --'!F$10:F$846,(MATCH($B140,'-- PPL --'!#REF!,0)))=0, "TBD", INDEX('-- PPL --'!F$10:F$846,(MATCH($B140,'-- PPL --'!#REF!,0)))), IF(INDEX('-- PPL --'!D$10:D$846,(MATCH($B140,'-- PPL --'!#REF!,0)))="ECAP", INDEX('-- PPL --'!F$10:F$846,(MATCH($B140,'-- PPL --'!#REF!,0))), INDEX('-- PPL --'!D$10:D$846,(MATCH($B140,'-- PPL --'!#REF!,0))))) ->  | B140: Additional Guidance for Transformer and Station Data | C140: =INDEX('-- PPL --'!#REF!,(MATCH($B140,'-- PPL --'!#REF!,0))) ->  | D140: =INDEX('-- PPL --'!#REF!,(MATCH($B140,'-- PPL --'!#REF!,0))) ->  | E140: =INDEX('-- PPL --'!I$10:I$845,(MATCH($B140,'-- PPL --'!#REF!,0))) ->  | L140: =IF(J140>1/1/2000,TRUNC(1-(J140-F140)/(G140-F140),2),"") ->  | M140: 4 | N140: NA | O140: =INDEX('-- PPL --'!AG$10:AG$845,(MATCH($B140,'-- PPL --'!#REF!,0))) ->  | P140: =INDEX('-- PPL --'!#REF!,(MATCH($B140,'-- PPL --'!#REF!,0))) ->  | Q140: 0 | R140: =INDEX('-- PPL --'!#REF!,(MATCH($B140,'-- PPL --'!#REF!,0))) -> 
A141: =IF(INDEX('-- PPL --'!D$10:D$846,(MATCH($B141,'-- PPL --'!#REF!,0)))=0, IF(INDEX('-- PPL --'!F$10:F$846,(MATCH($B141,'-- PPL --'!#REF!,0)))=0, "TBD", INDEX('-- PPL --'!F$10:F$846,(MATCH($B141,'-- PPL --'!#REF!,0)))), IF(INDEX('-- PPL --'!D$10:D$846,(MATCH($B141,'-- PPL --'!#REF!,0)))="ECAP", INDEX('-- PPL --'!F$10:F$846,(MATCH($B141,'-- PPL --'!#REF!,0))), INDEX('-- PPL --'!D$10:D$846,(MATCH($B141,'-- PPL --'!#REF!,0))))) ->  | B141: Update SCED Limit Calculation | C141: Rickerson | D141: =INDEX('-- PPL --'!#REF!,(MATCH($B141,'-- PPL --'!#REF!,0))) ->  | E141: =INDEX('-- PPL --'!I$10:I$845,(MATCH($B141,'-- PPL --'!#REF!,0))) ->  | L141: =IF(J141>1/1/2000,TRUNC(1-(J141-F141)/(G141-F141),2),"") ->  | M141: 4 | N141: NA | O141: =INDEX('-- PPL --'!AG$10:AG$845,(MATCH($B141,'-- PPL --'!#REF!,0))) ->  | P141: =INDEX('-- PPL --'!#REF!,(MATCH($B141,'-- PPL --'!#REF!,0))) ->  | Q141: 0 | R141: =INDEX('-- PPL --'!#REF!,(MATCH($B141,'-- PPL --'!#REF!,0))) -> 
A142: =IF(INDEX('-- PPL --'!D$10:D$846,(MATCH($B142,'-- PPL --'!#REF!,0)))=0, IF(INDEX('-- PPL --'!F$10:F$846,(MATCH($B142,'-- PPL --'!#REF!,0)))=0, "TBD", INDEX('-- PPL --'!F$10:F$846,(MATCH($B142,'-- PPL --'!#REF!,0)))), IF(INDEX('-- PPL --'!D$10:D$846,(MATCH($B142,'-- PPL --'!#REF!,0)))="ECAP", INDEX('-- PPL --'!F$10:F$846,(MATCH($B142,'-- PPL --'!#REF!,0))), INDEX('-- PPL --'!D$10:D$846,(MATCH($B142,'-- PPL --'!#REF!,0))))) ->  | B142: Determination of Fuel Adder Price for Coal and Lignite Resources | C142: Rickerson | D142: =INDEX('-- PPL --'!#REF!,(MATCH($B142,'-- PPL --'!#REF!,0))) ->  | E142: =INDEX('-- PPL --'!I$10:I$845,(MATCH($B142,'-- PPL --'!#REF!,0))) ->  | L142: =IF(J142>1/1/2000,TRUNC(1-(J142-F142)/(G142-F142),2),"") ->  | M142: 4 | N142: NA | O142: =INDEX('-- PPL --'!AG$10:AG$845,(MATCH($B142,'-- PPL --'!#REF!,0))) ->  | P142: =INDEX('-- PPL --'!#REF!,(MATCH($B142,'-- PPL --'!#REF!,0))) ->  | Q142: 0 | R142: =INDEX('-- PPL --'!#REF!,(MATCH($B142,'-- PPL --'!#REF!,0))) -> 
G145: Footnotes
G146: 1 - One or more phases took longer than expected, resulting in additional time required
G147: 2 - One or more phases required more labor than expected, resulting in additional funding and/or time required
G148: 3 - Project placed on hold
G149: 4 - Small project being managed in an expedited manner
G150: NA - Metric not calculated because: - it is reported at the parent project level, or - it is an administrative project
A154: Project Number | B154: ="2019 Projects Not Yet Started (Count = " & COUNTIF(F155:F174,"<1/1/2020") & ")" -> 2019 Projects Not Yet Started (Count = 0) | C154: VP | D154: PM | E154: Phase | F154: Forecast Start Date | O154: 2019 Forecast Spend | P154: Baseline Budget | Q154: Approved Budget | R154: Total Forecast Spend
A156: =IF(INDEX('-- PPL --'!D$10:D$846,(MATCH($B156,'-- PPL --'!#REF!,0)))=0, IF(INDEX('-- PPL --'!F$10:F$846,(MATCH($B156,'-- PPL --'!#REF!,0)))=0, "TBD", INDEX('-- PPL --'!F$10:F$846,(MATCH($B156,'-- PPL --'!#REF!,0)))), IF(INDEX('-- PPL --'!D$10:D$846,(MATCH($B156,'-- PPL --'!#REF!,0)))="ECAP", INDEX('-- PPL --'!F$10:F$846,(MATCH($B156,'-- PPL --'!#REF!,0))), INDEX('-- PPL --'!D$10:D$846,(MATCH($B156,'-- PPL --'!#REF!,0))))) ->  | B156: Creation of ERCOT Contingency Reserve Service and Revisions to Responsive Reserve | C156: =INDEX('-- PPL --'!#REF!,(MATCH($B156,'-- PPL --'!#REF!,0))) ->  | D156: =INDEX('-- PPL --'!#REF!,(MATCH($B156,'-- PPL --'!#REF!,0))) ->  | E156: =INDEX('-- PPL --'!I$10:I$845,(MATCH($B156,'-- PPL --'!#REF!,0))) ->  | F156: =INDEX('-- PPL --'!AW$10:AW$845,(MATCH($B156,'-- PPL --'!#REF!,0))) ->  | L156: =IF(J156>1/1/2000,TRUNC(1-(J156-F156)/(G156-F156),2),"") ->  | O156: =INDEX('-- PPL --'!AG$10:AG$845,(MATCH($B156,'-- PPL --'!#REF!,0))) ->  | P156: =INDEX('-- PPL --'!#REF!,(MATCH($B156,'-- PPL --'!#REF!,0))) ->  | Q156: 0 | R156: =INDEX('-- PPL --'!#REF!,(MATCH($B156,'-- PPL --'!#REF!,0))) ->  | V156: =IF(Q156>0,TRUNC((Q156-R156)/Q156,2),TRUNC((P156-R156)/P156,2)) -> 
A157: =IF(INDEX('-- PPL --'!D$10:D$846,(MATCH($B157,'-- PPL --'!#REF!,0)))=0, IF(INDEX('-- PPL --'!F$10:F$846,(MATCH($B157,'-- PPL --'!#REF!,0)))=0, "TBD", INDEX('-- PPL --'!F$10:F$846,(MATCH($B157,'-- PPL --'!#REF!,0)))), IF(INDEX('-- PPL --'!D$10:D$846,(MATCH($B157,'-- PPL --'!#REF!,0)))="ECAP", INDEX('-- PPL --'!F$10:F$846,(MATCH($B157,'-- PPL --'!#REF!,0))), INDEX('-- PPL --'!D$10:D$846,(MATCH($B157,'-- PPL --'!#REF!,0))))) ->  | B157: 2019 NMMS Defects | C157: =INDEX('-- PPL --'!#REF!,(MATCH($B157,'-- PPL --'!#REF!,0))) ->  | D157: =INDEX('-- PPL --'!#REF!,(MATCH($B157,'-- PPL --'!#REF!,0))) ->  | E157: =INDEX('-- PPL --'!I$10:I$845,(MATCH($B157,'-- PPL --'!#REF!,0))) ->  | F157: =INDEX('-- PPL --'!AW$10:AW$845,(MATCH($B157,'-- PPL --'!#REF!,0))) ->  | O157: =INDEX('-- PPL --'!AG$10:AG$845,(MATCH($B157,'-- PPL --'!#REF!,0))) ->  | P157: =INDEX('-- PPL --'!#REF!,(MATCH($B157,'-- PPL --'!#REF!,0))) ->  | Q157: 0 | R157: =INDEX('-- PPL --'!#REF!,(MATCH($B157,'-- PPL --'!#REF!,0))) -> 
A158: =IF(INDEX('-- PPL --'!D$10:D$846,(MATCH($B158,'-- PPL --'!#REF!,0)))=0, IF(INDEX('-- PPL --'!F$10:F$846,(MATCH($B158,'-- PPL --'!#REF!,0)))=0, "TBD", INDEX('-- PPL --'!F$10:F$846,(MATCH($B158,'-- PPL --'!#REF!,0)))), IF(INDEX('-- PPL --'!D$10:D$846,(MATCH($B158,'-- PPL --'!#REF!,0)))="ECAP", INDEX('-- PPL --'!F$10:F$846,(MATCH($B158,'-- PPL --'!#REF!,0))), INDEX('-- PPL --'!D$10:D$846,(MATCH($B158,'-- PPL --'!#REF!,0))))) ->  | B158: Office 365 | C158: =INDEX('-- PPL --'!#REF!,(MATCH($B158,'-- PPL --'!#REF!,0))) ->  | D158: =INDEX('-- PPL --'!#REF!,(MATCH($B158,'-- PPL --'!#REF!,0))) ->  | E158: =INDEX('-- PPL --'!I$10:I$845,(MATCH($B158,'-- PPL --'!#REF!,0))) ->  | F158: =INDEX('-- PPL --'!AW$10:AW$845,(MATCH($B158,'-- PPL --'!#REF!,0))) ->  | O158: =INDEX('-- PPL --'!AG$10:AG$845,(MATCH($B158,'-- PPL --'!#REF!,0))) ->  | P158: =INDEX('-- PPL --'!#REF!,(MATCH($B158,'-- PPL --'!#REF!,0))) ->  | Q158: 0 | R158: =INDEX('-- PPL --'!#REF!,(MATCH($B158,'-- PPL --'!#REF!,0))) -> 
A159: =IF(INDEX('-- PPL --'!D$10:D$846,(MATCH($B159,'-- PPL --'!#REF!,0)))=0, IF(INDEX('-- PPL --'!F$10:F$846,(MATCH($B159,'-- PPL --'!#REF!,0)))=0, "TBD", INDEX('-- PPL --'!F$10:F$846,(MATCH($B159,'-- PPL --'!#REF!,0)))), IF(INDEX('-- PPL --'!D$10:D$846,(MATCH($B159,'-- PPL --'!#REF!,0)))="ECAP", INDEX('-- PPL --'!F$10:F$846,(MATCH($B159,'-- PPL --'!#REF!,0))), INDEX('-- PPL --'!D$10:D$846,(MATCH($B159,'-- PPL --'!#REF!,0))))) ->  | B159: Inclusion of Photo-Voltaic Generation Resources (PVGRs) in Real-Time Ancillary Service Imbalance Payment or Charge | C159: =INDEX('-- PPL --'!#REF!,(MATCH($B159,'-- PPL --'!#REF!,0))) ->  | D159: =INDEX('-- PPL --'!#REF!,(MATCH($B159,'-- PPL --'!#REF!,0))) ->  | E159: =INDEX('-- PPL --'!I$10:I$845,(MATCH($B159,'-- PPL --'!#REF!,0))) ->  | F159: =INDEX('-- PPL --'!AW$10:AW$845,(MATCH($B159,'-- PPL --'!#REF!,0))) ->  | O159: =INDEX('-- PPL --'!AG$10:AG$845,(MATCH($B159,'-- PPL --'!#REF!,0))) ->  | P159: =INDEX('-- PPL --'!#REF!,(MATCH($B159,'-- PPL --'!#REF!,0))) ->  | Q159: 0 | R159: =INDEX('-- PPL --'!#REF!,(MATCH($B159,'-- PPL --'!#REF!,0))) -> 
A160: =IF(INDEX('-- PPL --'!D$10:D$846,(MATCH($B160,'-- PPL --'!#REF!,0)))=0, IF(INDEX('-- PPL --'!F$10:F$846,(MATCH($B160,'-- PPL --'!#REF!,0)))=0, "TBD", INDEX('-- PPL --'!F$10:F$846,(MATCH($B160,'-- PPL --'!#REF!,0)))), IF(INDEX('-- PPL --'!D$10:D$846,(MATCH($B160,'-- PPL --'!#REF!,0)))="ECAP", INDEX('-- PPL --'!F$10:F$846,(MATCH($B160,'-- PPL --'!#REF!,0))), INDEX('-- PPL --'!D$10:D$846,(MATCH($B160,'-- PPL --'!#REF!,0))))) ->  | B160: Revisions to the ORDC Methodology to Include Photo-Voltaic Generation Resources (PVGRs) | C160: =INDEX('-- PPL --'!#REF!,(MATCH($B160,'-- PPL --'!#REF!,0))) ->  | D160: =INDEX('-- PPL --'!#REF!,(MATCH($B160,'-- PPL --'!#REF!,0))) ->  | E160: =INDEX('-- PPL --'!I$10:I$845,(MATCH($B160,'-- PPL --'!#REF!,0))) ->  | F160: =INDEX('-- PPL --'!AW$10:AW$845,(MATCH($B160,'-- PPL --'!#REF!,0))) ->  | O160: =INDEX('-- PPL --'!AG$10:AG$845,(MATCH($B160,'-- PPL --'!#REF!,0))) ->  | P160: =INDEX('-- PPL --'!#REF!,(MATCH($B160,'-- PPL --'!#REF!,0))) ->  | Q160: 0 | R160: =INDEX('-- PPL --'!#REF!,(MATCH($B160,'-- PPL --'!#REF!,0))) -> 
A161: =IF(INDEX('-- PPL --'!D$10:D$846,(MATCH($B161,'-- PPL --'!#REF!,0)))=0, IF(INDEX('-- PPL --'!F$10:F$846,(MATCH($B161,'-- PPL --'!#REF!,0)))=0, "TBD", INDEX('-- PPL --'!F$10:F$846,(MATCH($B161,'-- PPL --'!#REF!,0)))), IF(INDEX('-- PPL --'!D$10:D$846,(MATCH($B161,'-- PPL --'!#REF!,0)))="ECAP", INDEX('-- PPL --'!F$10:F$846,(MATCH($B161,'-- PPL --'!#REF!,0))), INDEX('-- PPL --'!D$10:D$846,(MATCH($B161,'-- PPL --'!#REF!,0))))) ->  | B161: Improved Calculation of Real-Time LMPs at Logical Resource Nodes for On-Line Combined Cycle Generation Resources | C161: =INDEX('-- PPL --'!#REF!,(MATCH($B161,'-- PPL --'!#REF!,0))) ->  | D161: =INDEX('-- PPL --'!#REF!,(MATCH($B161,'-- PPL --'!#REF!,0))) ->  | E161: =INDEX('-- PPL --'!I$10:I$845,(MATCH($B161,'-- PPL --'!#REF!,0))) ->  | F161: =INDEX('-- PPL --'!AW$10:AW$845,(MATCH($B161,'-- PPL --'!#REF!,0))) ->  | O161: =INDEX('-- PPL --'!AG$10:AG$845,(MATCH($B161,'-- PPL --'!#REF!,0))) ->  | P161: =INDEX('-- PPL --'!#REF!,(MATCH($B161,'-- PPL --'!#REF!,0))) ->  | Q161: 0 | R161: =INDEX('-- PPL --'!#REF!,(MATCH($B161,'-- PPL --'!#REF!,0))) -> 
A162: =IF(INDEX('-- PPL --'!D$10:D$846,(MATCH($B162,'-- PPL --'!#REF!,0)))=0, IF(INDEX('-- PPL --'!F$10:F$846,(MATCH($B162,'-- PPL --'!#REF!,0)))=0, "TBD", INDEX('-- PPL --'!F$10:F$846,(MATCH($B162,'-- PPL --'!#REF!,0)))), IF(INDEX('-- PPL --'!D$10:D$846,(MATCH($B162,'-- PPL --'!#REF!,0)))="ECAP", INDEX('-- PPL --'!F$10:F$846,(MATCH($B162,'-- PPL --'!#REF!,0))), INDEX('-- PPL --'!D$10:D$846,(MATCH($B162,'-- PPL --'!#REF!,0))))) ->  | B162: Change to Ramp Rate Calculation in Resource Limit Calculator | C162: =INDEX('-- PPL --'!#REF!,(MATCH($B162,'-- PPL --'!#REF!,0))) ->  | D162: =INDEX('-- PPL --'!#REF!,(MATCH($B162,'-- PPL --'!#REF!,0))) ->  | E162: =INDEX('-- PPL --'!I$10:I$845,(MATCH($B162,'-- PPL --'!#REF!,0))) ->  | F162: =INDEX('-- PPL --'!AW$10:AW$845,(MATCH($B162,'-- PPL --'!#REF!,0))) ->  | O162: =INDEX('-- PPL --'!AG$10:AG$845,(MATCH($B162,'-- PPL --'!#REF!,0))) ->  | P162: =INDEX('-- PPL --'!#REF!,(MATCH($B162,'-- PPL --'!#REF!,0))) ->  | Q162: 0 | R162: =INDEX('-- PPL --'!#REF!,(MATCH($B162,'-- PPL --'!#REF!,0))) -> 
A163: =IF(INDEX('-- PPL --'!D$10:D$846,(MATCH($B163,'-- PPL --'!#REF!,0)))=0, IF(INDEX('-- PPL --'!F$10:F$846,(MATCH($B163,'-- PPL --'!#REF!,0)))=0, "TBD", INDEX('-- PPL --'!F$10:F$846,(MATCH($B163,'-- PPL --'!#REF!,0)))), IF(INDEX('-- PPL --'!D$10:D$846,(MATCH($B163,'-- PPL --'!#REF!,0)))="ECAP", INDEX('-- PPL --'!F$10:F$846,(MATCH($B163,'-- PPL --'!#REF!,0))), INDEX('-- PPL --'!D$10:D$846,(MATCH($B163,'-- PPL --'!#REF!,0))))) ->  | B163: NAESB Application Tech Refresh | C163: =INDEX('-- PPL --'!#REF!,(MATCH($B163,'-- PPL --'!#REF!,0))) ->  | D163: =INDEX('-- PPL --'!#REF!,(MATCH($B163,'-- PPL --'!#REF!,0))) ->  | E163: =INDEX('-- PPL --'!I$10:I$845,(MATCH($B163,'-- PPL --'!#REF!,0))) ->  | F163: =INDEX('-- PPL --'!AW$10:AW$845,(MATCH($B163,'-- PPL --'!#REF!,0))) ->  | O163: =INDEX('-- PPL --'!AG$10:AG$845,(MATCH($B163,'-- PPL --'!#REF!,0))) ->  | P163: =INDEX('-- PPL --'!#REF!,(MATCH($B163,'-- PPL --'!#REF!,0))) ->  | Q163: 0 | R163: =INDEX('-- PPL --'!#REF!,(MATCH($B163,'-- PPL --'!#REF!,0))) -> 
A164: =IF(INDEX('-- PPL --'!D$10:D$846,(MATCH($B164,'-- PPL --'!#REF!,0)))=0, IF(INDEX('-- PPL --'!F$10:F$846,(MATCH($B164,'-- PPL --'!#REF!,0)))=0, "TBD", INDEX('-- PPL --'!F$10:F$846,(MATCH($B164,'-- PPL --'!#REF!,0)))), IF(INDEX('-- PPL --'!D$10:D$846,(MATCH($B164,'-- PPL --'!#REF!,0)))="ECAP", INDEX('-- PPL --'!F$10:F$846,(MATCH($B164,'-- PPL --'!#REF!,0))), INDEX('-- PPL --'!D$10:D$846,(MATCH($B164,'-- PPL --'!#REF!,0))))) ->  | B164: Incorporate Real-Time Non-Modeled Telemetered Net Generation by Load Zone into the Estimate of RTL | C164: =INDEX('-- PPL --'!#REF!,(MATCH($B164,'-- PPL --'!#REF!,0))) ->  | D164: =INDEX('-- PPL --'!#REF!,(MATCH($B164,'-- PPL --'!#REF!,0))) ->  | E164: =INDEX('-- PPL --'!I$10:I$845,(MATCH($B164,'-- PPL --'!#REF!,0))) ->  | F164: =INDEX('-- PPL --'!AW$10:AW$845,(MATCH($B164,'-- PPL --'!#REF!,0))) ->  | O164: =INDEX('-- PPL --'!AG$10:AG$845,(MATCH($B164,'-- PPL --'!#REF!,0))) ->  | P164: =INDEX('-- PPL --'!#REF!,(MATCH($B164,'-- PPL --'!#REF!,0))) ->  | Q164: 0 | R164: =INDEX('-- PPL --'!#REF!,(MATCH($B164,'-- PPL --'!#REF!,0))) -> 
A165: =IF(INDEX('-- PPL --'!D$10:D$846,(MATCH($B165,'-- PPL --'!#REF!,0)))=0, IF(INDEX('-- PPL --'!F$10:F$846,(MATCH($B165,'-- PPL --'!#REF!,0)))=0, "TBD", INDEX('-- PPL --'!F$10:F$846,(MATCH($B165,'-- PPL --'!#REF!,0)))), IF(INDEX('-- PPL --'!D$10:D$846,(MATCH($B165,'-- PPL --'!#REF!,0)))="ECAP", INDEX('-- PPL --'!F$10:F$846,(MATCH($B165,'-- PPL --'!#REF!,0))), INDEX('-- PPL --'!D$10:D$846,(MATCH($B165,'-- PPL --'!#REF!,0))))) ->  | B165: Use of Actual Interval Data for IDR ESI IDs for Initial Settlement - Phase 2 | C165: =INDEX('-- PPL --'!#REF!,(MATCH($B165,'-- PPL --'!#REF!,0))) ->  | D165: =INDEX('-- PPL --'!#REF!,(MATCH($B165,'-- PPL --'!#REF!,0))) ->  | E165: =INDEX('-- PPL --'!I$10:I$845,(MATCH($B165,'-- PPL --'!#REF!,0))) ->  | F165: =INDEX('-- PPL --'!AW$10:AW$845,(MATCH($B165,'-- PPL --'!#REF!,0))) ->  | O165: =INDEX('-- PPL --'!AG$10:AG$845,(MATCH($B165,'-- PPL --'!#REF!,0))) ->  | P165: =INDEX('-- PPL --'!#REF!,(MATCH($B165,'-- PPL --'!#REF!,0))) ->  | Q165: 0 | R165: =INDEX('-- PPL --'!#REF!,(MATCH($B165,'-- PPL --'!#REF!,0))) -> 
A166: =IF(INDEX('-- PPL --'!D$10:D$846,(MATCH($B166,'-- PPL --'!#REF!,0)))=0, IF(INDEX('-- PPL --'!F$10:F$846,(MATCH($B166,'-- PPL --'!#REF!,0)))=0, "TBD", INDEX('-- PPL --'!F$10:F$846,(MATCH($B166,'-- PPL --'!#REF!,0)))), IF(INDEX('-- PPL --'!D$10:D$846,(MATCH($B166,'-- PPL --'!#REF!,0)))="ECAP", INDEX('-- PPL --'!F$10:F$846,(MATCH($B166,'-- PPL --'!#REF!,0))), INDEX('-- PPL --'!D$10:D$846,(MATCH($B166,'-- PPL --'!#REF!,0))))) ->  | B166: Tech Refresh - Business Intelligence | C166: =INDEX('-- PPL --'!#REF!,(MATCH($B166,'-- PPL --'!#REF!,0))) ->  | D166: =INDEX('-- PPL --'!#REF!,(MATCH($B166,'-- PPL --'!#REF!,0))) ->  | E166: =INDEX('-- PPL --'!I$10:I$845,(MATCH($B166,'-- PPL --'!#REF!,0))) ->  | F166: =INDEX('-- PPL --'!AW$10:AW$845,(MATCH($B166,'-- PPL --'!#REF!,0))) ->  | O166: =INDEX('-- PPL --'!AG$10:AG$845,(MATCH($B166,'-- PPL --'!#REF!,0))) ->  | P166: =INDEX('-- PPL --'!#REF!,(MATCH($B166,'-- PPL --'!#REF!,0))) ->  | Q166: 0 | R166: =INDEX('-- PPL --'!#REF!,(MATCH($B166,'-- PPL --'!#REF!,0))) -> 
A167: =IF(INDEX('-- PPL --'!D$10:D$846,(MATCH($B167,'-- PPL --'!#REF!,0)))=0, IF(INDEX('-- PPL --'!F$10:F$846,(MATCH($B167,'-- PPL --'!#REF!,0)))=0, "TBD", INDEX('-- PPL --'!F$10:F$846,(MATCH($B167,'-- PPL --'!#REF!,0)))), IF(INDEX('-- PPL --'!D$10:D$846,(MATCH($B167,'-- PPL --'!#REF!,0)))="ECAP", INDEX('-- PPL --'!F$10:F$846,(MATCH($B167,'-- PPL --'!#REF!,0))), INDEX('-- PPL --'!D$10:D$846,(MATCH($B167,'-- PPL --'!#REF!,0))))) ->  | B167: Integrate Enhanced Solar Forecasting into ERCOTs EMS | C167: =INDEX('-- PPL --'!#REF!,(MATCH($B167,'-- PPL --'!#REF!,0))) ->  | D167: =INDEX('-- PPL --'!#REF!,(MATCH($B167,'-- PPL --'!#REF!,0))) ->  | E167: =INDEX('-- PPL --'!I$10:I$845,(MATCH($B167,'-- PPL --'!#REF!,0))) ->  | F167: =INDEX('-- PPL --'!AW$10:AW$845,(MATCH($B167,'-- PPL --'!#REF!,0))) ->  | O167: =INDEX('-- PPL --'!AG$10:AG$845,(MATCH($B167,'-- PPL --'!#REF!,0))) ->  | P167: =INDEX('-- PPL --'!#REF!,(MATCH($B167,'-- PPL --'!#REF!,0))) ->  | Q167: 0 | R167: =INDEX('-- PPL --'!#REF!,(MATCH($B167,'-- PPL --'!#REF!,0))) -> 
A168: =IF(INDEX('-- PPL --'!D$10:D$846,(MATCH($B168,'-- PPL --'!#REF!,0)))=0, IF(INDEX('-- PPL --'!F$10:F$846,(MATCH($B168,'-- PPL --'!#REF!,0)))=0, "TBD", INDEX('-- PPL --'!F$10:F$846,(MATCH($B168,'-- PPL --'!#REF!,0)))), IF(INDEX('-- PPL --'!D$10:D$846,(MATCH($B168,'-- PPL --'!#REF!,0)))="ECAP", INDEX('-- PPL --'!F$10:F$846,(MATCH($B168,'-- PPL --'!#REF!,0))), INDEX('-- PPL --'!D$10:D$846,(MATCH($B168,'-- PPL --'!#REF!,0))))) ->  | B168: Automation of MP Partnership Deletions, Mothballed Status & Seasonal Operation Period, and other Siebel fields | C168: =INDEX('-- PPL --'!#REF!,(MATCH($B168,'-- PPL --'!#REF!,0))) ->  | D168: =INDEX('-- PPL --'!#REF!,(MATCH($B168,'-- PPL --'!#REF!,0))) ->  | E168: =INDEX('-- PPL --'!I$10:I$845,(MATCH($B168,'-- PPL --'!#REF!,0))) ->  | F168: =INDEX('-- PPL --'!AW$10:AW$845,(MATCH($B168,'-- PPL --'!#REF!,0))) ->  | O168: =INDEX('-- PPL --'!AG$10:AG$845,(MATCH($B168,'-- PPL --'!#REF!,0))) ->  | P168: =INDEX('-- PPL --'!#REF!,(MATCH($B168,'-- PPL --'!#REF!,0))) ->  | Q168: 0 | R168: =INDEX('-- PPL --'!#REF!,(MATCH($B168,'-- PPL --'!#REF!,0))) -> 
A169: =IF(INDEX('-- PPL --'!D$10:D$846,(MATCH($B169,'-- PPL --'!#REF!,0)))=0, IF(INDEX('-- PPL --'!F$10:F$846,(MATCH($B169,'-- PPL --'!#REF!,0)))=0, "TBD", INDEX('-- PPL --'!F$10:F$846,(MATCH($B169,'-- PPL --'!#REF!,0)))), IF(INDEX('-- PPL --'!D$10:D$846,(MATCH($B169,'-- PPL --'!#REF!,0)))="ECAP", INDEX('-- PPL --'!F$10:F$846,(MATCH($B169,'-- PPL --'!#REF!,0))), INDEX('-- PPL --'!D$10:D$846,(MATCH($B169,'-- PPL --'!#REF!,0))))) ->  | B169: Implement ILM in ISM for Nodal TIBCO Instance | C169: =INDEX('-- PPL --'!#REF!,(MATCH($B169,'-- PPL --'!#REF!,0))) ->  | D169: =INDEX('-- PPL --'!#REF!,(MATCH($B169,'-- PPL --'!#REF!,0))) ->  | E169: =INDEX('-- PPL --'!I$10:I$845,(MATCH($B169,'-- PPL --'!#REF!,0))) ->  | F169: =INDEX('-- PPL --'!AW$10:AW$845,(MATCH($B169,'-- PPL --'!#REF!,0))) ->  | O169: =INDEX('-- PPL --'!AG$10:AG$845,(MATCH($B169,'-- PPL --'!#REF!,0))) ->  | P169: =INDEX('-- PPL --'!#REF!,(MATCH($B169,'-- PPL --'!#REF!,0))) ->  | Q169: 0 | R169: =INDEX('-- PPL --'!#REF!,(MATCH($B169,'-- PPL --'!#REF!,0))) -> 
A170: =IF(INDEX('-- PPL --'!D$10:D$846,(MATCH($B170,'-- PPL --'!#REF!,0)))=0, IF(INDEX('-- PPL --'!F$10:F$846,(MATCH($B170,'-- PPL --'!#REF!,0)))=0, "TBD", INDEX('-- PPL --'!F$10:F$846,(MATCH($B170,'-- PPL --'!#REF!,0)))), IF(INDEX('-- PPL --'!D$10:D$846,(MATCH($B170,'-- PPL --'!#REF!,0)))="ECAP", INDEX('-- PPL --'!F$10:F$846,(MATCH($B170,'-- PPL --'!#REF!,0))), INDEX('-- PPL --'!D$10:D$846,(MATCH($B170,'-- PPL --'!#REF!,0))))) ->  | B170: Treatment of OFFQS Status in Day-Ahead Make Whole and RUC Settlements | C170: =INDEX('-- PPL --'!#REF!,(MATCH($B170,'-- PPL --'!#REF!,0))) ->  | D170: =INDEX('-- PPL --'!#REF!,(MATCH($B170,'-- PPL --'!#REF!,0))) ->  | E170: =INDEX('-- PPL --'!I$10:I$845,(MATCH($B170,'-- PPL --'!#REF!,0))) ->  | F170: =INDEX('-- PPL --'!AW$10:AW$845,(MATCH($B170,'-- PPL --'!#REF!,0))) ->  | O170: =INDEX('-- PPL --'!AG$10:AG$845,(MATCH($B170,'-- PPL --'!#REF!,0))) ->  | P170: =INDEX('-- PPL --'!#REF!,(MATCH($B170,'-- PPL --'!#REF!,0))) ->  | Q170: 0 | R170: =INDEX('-- PPL --'!#REF!,(MATCH($B170,'-- PPL --'!#REF!,0))) -> 
A171: =IF(INDEX('-- PPL --'!D$10:D$846,(MATCH($B171,'-- PPL --'!#REF!,0)))=0, IF(INDEX('-- PPL --'!F$10:F$846,(MATCH($B171,'-- PPL --'!#REF!,0)))=0, "TBD", INDEX('-- PPL --'!F$10:F$846,(MATCH($B171,'-- PPL --'!#REF!,0)))), IF(INDEX('-- PPL --'!D$10:D$846,(MATCH($B171,'-- PPL --'!#REF!,0)))="ECAP", INDEX('-- PPL --'!F$10:F$846,(MATCH($B171,'-- PPL --'!#REF!,0))), INDEX('-- PPL --'!D$10:D$846,(MATCH($B171,'-- PPL --'!#REF!,0))))) ->  | B171: Adjustments to Pricing and Settlement for Reliability Unit Commitments (RUCs) of On-Line Combined Cycle Generation Resources | C171: =INDEX('-- PPL --'!#REF!,(MATCH($B171,'-- PPL --'!#REF!,0))) ->  | D171: =INDEX('-- PPL --'!#REF!,(MATCH($B171,'-- PPL --'!#REF!,0))) ->  | E171: =INDEX('-- PPL --'!I$10:I$845,(MATCH($B171,'-- PPL --'!#REF!,0))) ->  | F171: =INDEX('-- PPL --'!AW$10:AW$845,(MATCH($B171,'-- PPL --'!#REF!,0))) ->  | O171: =INDEX('-- PPL --'!AG$10:AG$845,(MATCH($B171,'-- PPL --'!#REF!,0))) ->  | P171: =INDEX('-- PPL --'!#REF!,(MATCH($B171,'-- PPL --'!#REF!,0))) ->  | Q171: 0 | R171: =INDEX('-- PPL --'!#REF!,(MATCH($B171,'-- PPL --'!#REF!,0))) -> 
A172: =IF(INDEX('-- PPL --'!D$10:D$846,(MATCH($B172,'-- PPL --'!#REF!,0)))=0, IF(INDEX('-- PPL --'!F$10:F$846,(MATCH($B172,'-- PPL --'!#REF!,0)))=0, "TBD", INDEX('-- PPL --'!F$10:F$846,(MATCH($B172,'-- PPL --'!#REF!,0)))), IF(INDEX('-- PPL --'!D$10:D$846,(MATCH($B172,'-- PPL --'!#REF!,0)))="ECAP", INDEX('-- PPL --'!F$10:F$846,(MATCH($B172,'-- PPL --'!#REF!,0))), INDEX('-- PPL --'!D$10:D$846,(MATCH($B172,'-- PPL --'!#REF!,0))))) ->  | B172: Tech Refresh - REC Rewrite | C172: =INDEX('-- PPL --'!#REF!,(MATCH($B172,'-- PPL --'!#REF!,0))) ->  | D172: =INDEX('-- PPL --'!#REF!,(MATCH($B172,'-- PPL --'!#REF!,0))) ->  | E172: =INDEX('-- PPL --'!I$10:I$845,(MATCH($B172,'-- PPL --'!#REF!,0))) ->  | F172: =INDEX('-- PPL --'!AW$10:AW$845,(MATCH($B172,'-- PPL --'!#REF!,0))) ->  | O172: =INDEX('-- PPL --'!AG$10:AG$845,(MATCH($B172,'-- PPL --'!#REF!,0))) ->  | P172: =INDEX('-- PPL --'!#REF!,(MATCH($B172,'-- PPL --'!#REF!,0))) ->  | Q172: 0 | R172: =INDEX('-- PPL --'!#REF!,(MATCH($B172,'-- PPL --'!#REF!,0))) -> 
A173: =IF(INDEX('-- PPL --'!D$10:D$846,(MATCH($B173,'-- PPL --'!#REF!,0)))=0, IF(INDEX('-- PPL --'!F$10:F$846,(MATCH($B173,'-- PPL --'!#REF!,0)))=0, "TBD", INDEX('-- PPL --'!F$10:F$846,(MATCH($B173,'-- PPL --'!#REF!,0)))), IF(INDEX('-- PPL --'!D$10:D$846,(MATCH($B173,'-- PPL --'!#REF!,0)))="ECAP", INDEX('-- PPL --'!F$10:F$846,(MATCH($B173,'-- PPL --'!#REF!,0))), INDEX('-- PPL --'!D$10:D$846,(MATCH($B173,'-- PPL --'!#REF!,0))))) ->  | B173: Siebel Upgrade | C173: =INDEX('-- PPL --'!#REF!,(MATCH($B173,'-- PPL --'!#REF!,0))) ->  | D173: =INDEX('-- PPL --'!#REF!,(MATCH($B173,'-- PPL --'!#REF!,0))) ->  | E173: =INDEX('-- PPL --'!I$10:I$845,(MATCH($B173,'-- PPL --'!#REF!,0))) ->  | F173: =INDEX('-- PPL --'!AW$10:AW$845,(MATCH($B173,'-- PPL --'!#REF!,0))) ->  | O173: =INDEX('-- PPL --'!AG$10:AG$845,(MATCH($B173,'-- PPL --'!#REF!,0))) ->  | P173: =INDEX('-- PPL --'!#REF!,(MATCH($B173,'-- PPL --'!#REF!,0))) ->  | Q173: 0 | R173: =INDEX('-- PPL --'!#REF!,(MATCH($B173,'-- PPL --'!#REF!,0))) -> 

Sheet -- PPL --
B1: Macro Running... | C1: Multiyear PPL - 2012-2024 | J1: 2012 | M1: 2013 | P1: 2014 | S1: 2015 | V1: 2016 | Y1: 2017 | AB1: 2018 | AE1: 2019 | AH1: 2020 | AK1: 2021 | AN1: 2022 | AQ1: 2023 | AT1: 2024
C2: View/Print Options | F2: Years to Display | G2: 2021 Release Calendar | H2: Project Categories | J2: Funding Request | K2: Budget | L2: Actual Spend | M2: Funding Request | N2: Budget | O2: Actual Spend | P2: Funding Request | Q2: Budget | R2: Actual Spend | S2: Funding Request | T2: Budget | U2: Actual Spend | V2: Funding Request | W2: Budget | X2: Actual Spend | Y2: Funding Request | Z2: Budget | AA2: Actual Spend | AB2: Funding Request | AC2: Tentative Funding | AD2: Actual Spend | AE2: Funding Request | AF2: Tentative Funding | AG2: Actual Spend | AH2: Funding Request | AI2: Tentative Funding | AJ2: Actual Spend | AK2: Funding Request | AL2: Tentative Funding | AM2: Spend Forecast | AN2: Funding Request | AO2: Tentative Funding | AP2: Spend Forecast | AQ2: Funding Request | AR2: Tentative Funding | AS2: Spend Forecast | AT2: Funding Request | AU2: Tentative Funding | AV2: Spend Forecast
D3: Show Long Description | F3: Prior | G3: R1 -- 2/2 - 2/4
F4: 2018 | G4: R2 -- 3/30 - 4/1 | H4: Capital Enhancements | J4: 9789704.5 | L4: 9554732 | M4: 7309938 | O4: 6563804.55 | P4: 9555660 | R4: 10226890.27 | S4: 8069737 | T4: 5000000 | U4: 7398641.88 | V4: 9081567 | W4: 12500000 | X4: 8769401.6 | Y4: 17480157 | Z4: 11500000 | AA4: 16253800.26 | AB4: 28376134 | AC4: 13500000 | AD4: 26456837.25 | AE4: 13820128 | AF4: 13500000 | AG4: 12224710.91 | AH4: 21570796 | AI4: 12000000 | AJ4: 14997247.28 | AK4: 31869156.25 | AL4: 13000000 | AM4: 17699054.3 | AN4: 16896036.25 | AO4: 14000000 | AP4: 5049567.281 | AQ4: 12635383.25 | AR4: 14000000 | AS4: 4940787.038 | AT4: 12635382.25 | AU4: 0 | AV4: 2229052.087 | BA4: Filter on Impacted System
F5: 2019 | G5: R3 -- 5/25 - 5/27 | H5: Technical Foundation | J5: 6043396 | L5: 6518310 | M5: 10329852.71 | O5: 9815423.98 | P5: 15855120.29 | R5: 16053507.65 | S5: 16194272 | U5: 15845065.05 | V5: 8020111 | W5: 10000000 | X5: 7129567.145 | Y5: 6593033 | Z5: 10000000 | AA5: 5931972.58 | AB5: 6732743 | AC5: 11000000 | AD5: 6676055.19 | AE5: 6992439 | AF5: 11000000 | AG5: 6029073.56 | AH5: 19967578 | AI5: 15000000 | AJ5: 15680634.48 | AK5: 17152949 | AL5: 12000000 | AM5: 14926721.61 | AN5: 5612652 | AO5: 11000000 | AP5: 6553952.14 | AQ5: 432325 | AR5: 11000000 | AS5: 1725125.8 | AT5: 0 | AU5: 0 | AV5: 647826.2
F6: 2020 | G6: R4 -- 7/27 - 7/29 | H6: DC4 / DC5 | J6: 0 | L6: 0 | M6: 0 | O6: 0 | P6: 0 | R6: 0 | S6: 3762420 | T6: 16650000 | U6: 3704231.56 | V6: 15935792 | W6: 20000000 | X6: 15935793.13 | Y6: 16953441 | Z6: 20000000 | AA6: 15930626.48 | AB6: 7453183 | AC6: 4000000 | AD6: 7073847.77 | AE6: 3007808 | AF6: 4000000 | AG6: 2589684.77 | AH6: 68744 | AI6: 0 | AJ6: 30204.21 | AK6: 249390 | AL6: 4000000 | AM6: 249390 | AN6: 122027 | AO6: 20000000 | AP6: 122027.5 | AQ6: 90720 | AR6: 20000000 | AS6: 90720 | AT6: 181440 | AU6: 0 | AV6: 90720
D7: Unhide All Columns | F7: 2021 | G7: R5 -- 10/5 - 10/7 | H7: Incubator | J7: 0 | L7: 0 | M7: 0 | O7: 0 | P7: 0 | R7: 0 | S7: 0 | U7: 0 | V7: 0 | W7: 0 | X7: 0 | Y7: 0 | Z7: 0 | AA7: 0 | AB7: 0 | AC7: 0 | AD7: 0 | AE7: 0 | AF7: 0 | AG7: 0 | AH7: 0 | AI7: 0 | AJ7: 0 | AK7: 0 | AL7: 0 | AM7: 0 | AN7: 0 | AO7: 0 | AP7: 0 | AQ7: 0 | AR7: 0 | AS7: 0 | AT7: 0 | AU7: 0 | AV7: 0
C8: Note: Print is very small if all above columns are displayed | F8: Future | G8: R6 -- 12/7 - 12/9 | H8: PPL Totals | J8: =SUM(J4:J7) -> 15833100.5 | K8: 15000000 | L8: =SUM(L4:L7) -> 16073042 | M8: =SUM(M4:M7) -> 17639790.71 | N8: 16000000 | O8: =SUM(O4:O7) -> 16379228.53 | P8: =SUM(P4:P7) -> 25410780.29 | Q8: 26000000 | R8: =SUM(R4:R7) -> 26280397.92 | S8: 28026429 | T8: 21650000 | U8: 26947938.49 | V8: 33037470 | W8: 42500000 | X8: 31834761.88 | Y8: 41026631 | Z8: 41500000 | AA8: 38116399.32 | AB8: 42562060 | AC8: 28500000 | AD8: 40206740.21 | AE8: =SUM(AE4:AE7) -> 23820375 | AF8: 28500000 | AG8: 20843469.24 | AH8: 41607118 | AI8: 27000000 | AJ8: 30708085.97 | AK8: 49271495.25 | AL8: 29000000 | AM8: 32875165.91 | AN8: =SUM(AN4:AN7) -> 22630715.25 | AO8: 45000000 | AP8: 11725546.92 | AQ8: 13158428.25 | AR8: 45000000 | AS8: 6756632.838 | AT8: =SUM(AT4:AT7) -> 12816822.25 | AU8: =SUM(AU4:AU7) -> 0 | AV8: =SUM(AV4:AV7) -> 2967598.287
A9: Project Category | B9: Priority | C9: Rank | D9: Source Doc | E9: Approval Status | F9: Project Number | G9: Project Name | H9: Release | I9: Project Status | J9: Budget | K9: Budget Range | L9: Spend Forecast | M9: Budget | N9: Budget Range | O9: Spend Forecast | P9: Budget | Q9: Budget Range | R9: Spend Forecast | S9: Budget | T9: Budget Range | U9: Spend Forecast | V9: Budget | W9: Budget Range | X9: Spend Forecast | Y9: Budget | Z9: Budget Range | AA9: Spend Forecast | AB9: Budget | AC9: Budget Range | AD9: Spend Forecast | AE9: Budget | AF9: Budget Range | AG9: Spend Forecast | AH9: Budget | AI9: Budget Range | AJ9: Spend Forecast | AK9: Budget | AL9: Budget Range | AM9: Spend Forecast | AN9: Budget | AO9: Budget Range | AP9: Spend Forecast | AQ9: Budget | AR9: Budget Range | AS9: Spend Forecast | AT9: Budget | AU9: Budget Range | AV9: Spend Forecast | AW9: Projected Start Date | AX9: Projected End Date | AY9: Source | AZ9: Description | BA9: Impacted Systems | BB9: Year of Go-Live | BC9: Portfolio | BD9: Business Capability | BE9: Project Roadmap Name | BF9: Roadmap Impact | BG9: Major Project | BH9: Upload Project Category | BI9: Upload Finance Tag
A10: Business Strategy | B10: 2011 | C10: 2 | E10: PPL | F10: 025-47 | G10: RARF Upgrade for Wind, Solar, and Storage Resources | H10: 2012-R3 | I10: Complete | K10: $150k-$175k | AW10: 2011-07-01 | AX10: 2012-06-01 | AY10: ERCOT | AZ10: Update the RARF and RARF Hub database to increase the data collected for Wind and add necessary data section for Solar PV and Duration Limited Resources - 2012 PPL-funded portion | BA10: Reg | BB10: =LEFT(H10,4) -> 2012
A11: Business Strategy | B11: 2012 | C11: 10 | D11: NPRR294 NPRR403 RMGR100 | E11: PPL | F11: 11002_01 | G11: Texas SET 4.0 | H11: 2012-R3 Off-cycle | I11: Complete | K11: $600k-$700k | AW11: 2011-02-01 | AX11: 2012-09-01 | AY11: PUCT / Market | AZ11: TX SET project to include reconnect / disconnect, AMS, Acquisitions, Meter Tampering | BA11: Retail | BB11: =LEFT(H11,4) -> 2012
A12: Business Strategy | B12: 2012 | C12: 20 | D12: SCR760 | E12: PPL | F12: 025-26 | G12: Recommended Changes Needed for Information Model Mgr and Topology Processor for Planning Models | H12: 2013-R3 Off-cycle | I12: Complete | K12: $250k-$350k | N12: $500k-$600k | AW12: 2011-04-01 | AX12: 2013-08-01 | AY12: Market | AZ12: Proposes changes to the Information Model Manager and Topology Processor to fix a number of deficiencies with the proposed Annual Planning Model creation process. | BA12: EMS, MMS, NMMS, CRR, S&B, Data Access & Transparency, DAIP | BB12: =LEFT(H12,4) -> 2013
A13: Business Strategy | B13: 2012 | C13: 30 | E13: PPL | F13: 006-01 | G13: Cyber Security Project #1 | H13: 2012-R6 Off-cycle | I13: Complete | K13: $750k-$900k | N13: $10k-$20k | AW13: 2011-05-01 | AX13: 2013-01-01 | AY13: ERCOT | AZ13: Enhance a specific area of ERCOT's cyber security capability | BA13: Security | BB13: =LEFT(H13,4) -> 2012
A14: Business Strategy | B14: 2012 | C14: 40 | E14: PPL | F14: 005-01 | G14: Cyber Security Project #2 | H14: 2012-R2 | I14: Complete | K14: $160k-$180k | AW14: 2011-05-01 | AX14: 2012-04-01 | AY14: ERCOT | AZ14: Enhance a specific area of ERCOT's cyber security capability | BA14: Security | BB14: =LEFT(H14,4) -> 2012
A15: Business Strategy | B15: 2012 | C15: 50 | D15: NPRR365 | E15: PPL | F15: 018-01 | G15: Change in Resource Outage Approvals from Eight to 45 Days | H15: 2012-R5 Off-cycle | I15: Complete | K15: $140k-$160k | AW15: 2012-01-01 | AX15: 2012-11-01 | AY15: ERCOT | AZ15: Revises the deadline for ERCOT approval of Resource Outages from an 8-day notice to a 90-day notice while aligning the new Resource Outage timelines to match those of Transmission Outages | BA15: OS, Data Access & Transparency | BB15: =LEFT(H15,4) -> 2012
A16: Business Strategy | B16: 2012 | C16: 60 | D16: NPRR348 | E16: PPL | F16: 027-01 | G16: Generation Resource Start-Up and Shut-Down Process | H16: 2012-R4 | I16: Complete | K16: $110k-$125k | AW16: 2012-02-01 | AX16: 2012-09-01 | AY16: ERCOT | AZ16: Removes Protocol language concerning the use of the “ONTEST” Resource Status during start-up and shut-down. Language has been added to address the start-up and shut-down processes. | BA16: MMS, S&B, EMS, Integration, Data Management, DAIP, Data Access & Transparency | BB16: =LEFT(H16,4) -> 2012
A17: Business Strategy | B17: 2012 | C17: 70 | D17: NPRR322 | E17: PPL | F17: 051-01 | G17: Real-Time PTP Option Modeling | H17: 2013-R1 | I17: Complete | K17: $230k-$260k | N17: $10k-$20k | AW17: 2012-05-01 | AX17: 2013-03-01 | AY17: Market | AZ17: Modifies PTP Options in the DAM that have been declared by a NOIE before the DAM execution to be settled in Real-Time and are still held by that NOIE in Real-Time such that they are considered as PTP Obligations for purposes of the DAM model | BA17: Data Access & Transparency, MMS, Integration, S&B, DAIP | BB17: =LEFT(H17,4) -> 2013
A18: Business Strategy | B18: 2012 | C18: 80 | E18: PPL | F18: 048-01 | G18: TSAT Wind Model | H18: 2013-R2 | I18: Complete | K18: $100k-$200k | N18: $100k-$120k | AW18: 2012-06-01 | AX18: 2013-06-01 | AY18: ERCOT | AZ18: Implementation of wind models in TSAT application | BA18: EMS | BB18: =LEFT(H18,4) -> 2013
A19: Business Strategy | B19: 2012 | C19: 95 | D19: NPRR434 | E19: PPL | F19: 034-01 | G19: Increase the Capacity Limitation of a Generation Resource Providing RRS | H19: 2012-R2 | I19: Complete | K19: $70k-$80k | AW19: 2012-02-01 | AX19: 2012-04-01 | AY19: Market | AZ19: Increases the amount of Responsive Reserve (RRS) that can be supplied by a Generation Resource to 24% | BA19: EMS, MMS | BB19: =LEFT(H19,4) -> 2012
A20: Business Strategy | B20: 2012 | C20: 100 | D20: NPRR351 | E20: PPL | F20: 012-01 | G20: SCED Look-Ahead Step 1: Pricing | H20: 2012-R3 | I20: Complete | K20: $500k-$750k | AW20: 2011-09-01 | AX20: 2012-06-01 | AY20: Market | AZ20: Calculate Non-Binding Prices and Basepoints for Initial Research into SCED Look-Ahead and allow Consumers to have a Forward Price Projection | BA20: MMS, EMS, Data Access & Transparency, DAIP, Data Management | BB20: =LEFT(H20,4) -> 2012
A21: Business Strategy | B21: 2012 | C21: 110 | E21: PPL | F21: 043-01 | G21: Met Center Lease Reconfiguration | H21: 2012-Various | I21: Complete | K21: $300k-$350k | N21: <$10k | AW21: 2012-06-01 | AX21: 2012-12-01 | AY21: ERCOT | AZ21: Potential project relating to resolve any facilities issues relating to the Met Center | BA21: Facilities | BB21: =LEFT(H21,4) -> 2012
A22: Business Strategy | B22: 2012 | C22: 124 | E22: PPL | F22: 074-01 | G22: Cyber Security Project #8 | H22: 2013-R4 Off-cycle | I22: Complete | K22: <$10k | N22: $45k-$55k | AW22: 2012-12-01 | AX22: 2013-10-01 | AY22: ERCOT | AZ22: Enhance a specific area of ERCOT's cyber security capability | BA22: Security | BB22: =LEFT(H22,4) -> 2013
A23: Business Strategy | B23: 2013 | C23: 125 | E23: PPL | F23: 074-02 | G23: Cyber Security Project #9 | H23: 2014-R6 | I23: Complete | N23: <$10k | Q23: $150k-$500k | T23: $25k-$75k | AW23: 2013-10-01 | AX23: 2015-02-01 | AY23: ERCOT | AZ23: Enhance a specific area of ERCOT's cyber security capability | BA23: Security | BB23: =LEFT(H23,4) -> 2014
A24: Business Strategy | B24: 2012 | C24: 140 | D24: NPRR260 | E24: PPL | F24: 058-01 | G24: Providing Access to MIS Secure Area to MIS Registered Users | H24: 2013-R1 | I24: Complete | K24: $90k-$100k | N24: $10k-$20k | AW24: 2012-07-01 | AX24: 2013-06-01 | AY24: Market | AZ24: Adds "Independent Market Information System Registered Entity (IMRE)" to Section 2.1 and Section 22, Attachment A | BA24: External Public, Data Access & Transparency, Reg, Integration, DAIP | BB24: =LEFT(H24,4) -> 2013
A25: Business Strategy | B25: 2012 | C25: 150 | D25: SCR756 | E25: PPL | F25: 010-01 | G25: MarkeTrak Enhancements for 4.0 | H25: 2012-R3 Off-cycle | I25: Complete | K25: $275k-$325k | AW25: 2011-07-01 | AX25: 2012-09-01 | AY25: PUCT / Market | AZ25: Enhance MarkeTrak application for new PUCT requirements and other enhancements requested by market participants. Examples: new subtypes for Expedited Switch Rescission and Meter Tampering, improved data validation, and AMS usage parameters | BA25: Retail | BB25: =LEFT(H25,4) -> 2012
A26: Business Strategy | B26: 2012 | C26: 155 | E26: PPL | F26: 010-02 | G26: MarkeTrak Upgrade | H26: 2013-R3 | I26: Complete | K26: $100k-$150k | N26: $300k-$400k | AW26: 2012-07-01 | AX26: 2013-08-01 | AY26: ERCOT | AZ26: MarkeTrak software upgrade | BA26: Retail | BB26: =LEFT(H26,4) -> 2013
A27: Business Strategy | B27: 2012 | C27: 160 | E27: PPL | F27: 066-01 | G27: Planning Site Transition to MIS | H27: 2014-R5 Off-cycle | I27: Complete | K27: $5k-$10k | N27: $60k-$75k | Q27: $150k-$200k | AW27: 2012-09-01 | AX27: 2015-01-01 | AY27: ERCOT | AZ27: Increase efficiency by consolidating to a single portal and prevent the need to maintain two systems | BA27: Data Access & Transparency | BB27: =LEFT(H27,4) -> 2014
A28: Business Strategy | B28: 2012 | C28: 190 | D28: NPRR326 | E28: PPL | F28: 013-01 | G28: Adjust the Calculation of the Real-Time Settlement Point Price for a Resource Node | H28: 2012-R1 | I28: Complete | K28: See Parent Project | AW28: 2012-01-01 | AX28: 2012-02-01 | AY28: ERCOT | AZ28: Adjusts the calculation of the Real-Time Settlement Point Price for a Resource Node. The adjustment is to remove the Base Point weighting of the Real-Time Locational Marginal Prices (LMPs). | BA28: MMS | BB28: =LEFT(H28,4) -> 2012
A29: Business Strategy | B29: 2012 | C29: 190 | D29: NPRR326 NPRR321 NPRR355 | E29: PPL | F29: 013-01 | G29: MMS 2012 Release 1: NPRR321/NPRR326/NPRR355 | H29: 2012-R1 | I29: Complete | K29: $65k-$85k | AW29: 2011-11-01 | AX29: 2012-02-01 | AY29: Various | AZ29: 1st MMS release in 2012 | BA29: MMS, DAIP, Data Access & Transparency | BB29: =LEFT(H29,4) -> 2012
A30: Business Strategy | B30: 2012 | C30: 200 | D30: NPRR272 | E30: PPL | F30: 194-01 | G30: Definition and Participation of Quick Start Generation Resources | H30: 2017-R1 | I30: Complete | K30: <$10k | N30: $0k | T30: $0k | W30: $100k-$200k | Z30: $100k-$200k | AW30: 2016-04-01 | AX30: 2017-04-01 | AY30: ERCOT | AZ30: Gray-box portion of this NPRR that enhances participation of Quick Start Generation Resources (QSGRs) in SCED | BA30: EMS, MMS, Integration, S&B, DAIP | BB30: =LEFT(H30,4) -> 2017
A31: Business Strategy | B31: 2013 | C31: 205 | D31: NPRR520 | E31: PPL | F31: 091-01 | G31: Real-Time Mitigation Rules and Creation of a Real-Time Constraint Competitiveness Test | H31: 2013-R4 | I31: Complete | N31: $150k-$175k | AW31: 2013-03-01 | AX31: 2013-08-01 | AY31: ERCOT | AZ31: Changes several requirements regarding CCTs and SCED logic | BA31: MMS, Data Access & Transparency, EMS, NMMS, DAIP, Integration | BB31: =LEFT(H31,4) -> 2013
A32: Business Strategy | B32: 2012 | C32: 210 | D32: NPRR207 | E32: PPL | F32: 102-01 | G32: Unit Deselection | H32: 2013-R5 | I32: Complete | K32: $0k | N32: $10k-$20k | AW32: 2013-04-01 | AX32: 2013-10-01 | AY32: Market | AZ32: Provides that ERCOT may deselect units from Reliability Unit Commitment (RUC) processes | BA32: MMS | BB32: =LEFT(H32,4) -> 2013
A33: Business Strategy | B33: 2012 | C33: 220 | D33: SCR761 | E33: PPL | F33: 025-48 | G33: Provide Price Republication Notifications via API and Provide Price Corrections via XML | H33: 2012-R1 | I33: Complete | K33: $10k-$15k | AW33: 2011-08-01 | AX33: 2012-02-01 | AY33: Market | AZ33: Requires ERCOT to: • Provide API notification of all republished corrected prices; and • Publish price corrections in XML format using the same XML Schema Definition (XSD) that it is using for regular price publication | BA33: DAIP, Data Access & Transparency, External Public, MMS | BB33: =LEFT(H33,4) -> 2012
A34: Business Strategy | B34: 2012 | C34: 230 | D34: NPRR321 | E34: PPL | F34: 013-01 | G34: Allow Change to Energy Offer Curve MW Amounts in the Adjustment Period for Qualifying Facilities | H34: 2012-R1 | I34: Complete | K34: See Parent Project | AW34: 2011-11-01 | AX34: 2011-12-01 | AY34: Market | AZ34: Provides the ability for Resources to change the amounts of power in their Energy Offer Curves in the Adjustment Period | BA34: MMS, DAIP, Data Access & Transparency | BB34: =LEFT(H34,4) -> 2012
A35: Business Strategy | B35: 2012 | C35: 240 | D35: NPRR379 | E35: PPL | F35: 035-01 | G35: EILS Dispatch Sequence and Performance Criteria Upgrades | H35: 2012-R3 | I35: Complete | K35: $70k-$80k | AW35: 2012-02-01 | AX35: 2012-09-01 | AY35: ERCOT | AZ35: Improves the operational value of EILS and strengthens and clarifies a number of performance criteria for EILS | BA35: MMS, Integration, Data Access & Transparency, Integration | BB35: =LEFT(H35,4) -> 2012
A36: Business Strategy | B36: 2012 | C36: 250 | D36: NPRR314 | E36: PPL | F36: 036-01 | G36: Requirement to Post Generation Resources Temporal Constraints | H36: 2012-R2 | I36: Complete | K36: $32k-$39k | AW36: 2012-02-01 | AX36: 2012-04-01 | AY36: Market | AZ36: Specifies the need for ERCOT to post to the MIS Certified Area the current time since a Generation Resource last went Off-Line (in hours) and the corresponding startup time ERCOT is using for of all Off-Line Generation Resources which may be considered in any RUC process | BA36: MMS, DAIP, Data Access & Transparency | BB36: =LEFT(H36,4) -> 2012
A37: Business Strategy | B37: 2012 | C37: 260 | D37: NPRR395 | E37: PPL | F37: 022-01 | G37: CRR Auction Offer Award Disclosure | H37: 2012-R2 | I37: Complete | K37: $20k-$30k | AW37: 2011-12-01 | AX37: 2012-04-01 | AY37: Market | AZ37: Adds a requirement for ERCOT to post CRR Auction offer awards following each CRR Auction in the exact fashion CRR Auction bid awards are currently posted on the MIS Public Area | BA37: CRR | BB37: =LEFT(H37,4) -> 2012
A38: Business Strategy | B38: 2012 | C38: 270 | D38: NPRR357 | E38: PPL | F38: 031-01 | G38: Revisions to Collateral Requirements Concerning CRR Auctions | H38: 2012-R5 Off-cycle | I38: Complete | K38: $60k-$70k | AW38: 2012-02-01 | AX38: 2012-10-01 | AY38: Market | AZ38: Proposes revisions to collateral requirements for CRR Auctions including a pre-CRR Auction screening process to determine the maximum potential exposure of each CRR Account Holder | BA38: CRR, Data Management, Data Access & Transparency | BB38: =LEFT(H38,4) -> 2012
A39: Business Strategy | B39: 2012 | C39: 280 | D39: NPRR313 | E39: PPL | F39: 050-01 | G39: Updating the Term Resource Plan to Current Operating Plan / Availability Plan | H39: 2013-R1 | I39: Complete | K39: $80k-$100k | N39: $20k-$40k | AW39: 2012-05-01 | AX39: 2013-03-01 | AY39: Market | AZ39: Replaces the term “Resource Plan” with the term “Current Operating Plan” or “Availability Plan”. Also adds a Black Start capable status indicator to the Availability Plan. | BA39: MMS, S&B, DAIP, Data Access & Transparency | BB39: =LEFT(H39,4) -> 2013
A40: Business Strategy | B40: 2012 | C40: 290 | D40: NPRR354 | E40: PPL | F40: 028-01 | G40: Revisions to Non-Spin Performance Criteria Language and Provision for ICCP Telemetry of Non-Spin Deployment | H40: 2012-R3 / 2012-R4 | I40: Complete | K40: $100k-$110k | AW40: 2012-02-01 | AX40: 2012-09-01 | AY40: Market | AZ40: Clarifies the performance criteria for Non-Spinning Reserve (Non-Spin) Service deployments, adds language for provision of a Non-Spin deployment flag to QSEs via ICCP, and adds a requirement for XML notification to all QSEs when Non-Spin is deployed | BA40: EMS, DAIP, Data Access & Transparency, Integration | BB40: =LEFT(H40,4) -> 2012
A41: Business Strategy | B41: 2012 | C41: 300 | D41: NPRR355 | E41: PPL | F41: 013-01 | G41: Adjust the Calculation of the Real-Time Settlement Point Price for a Load Zone | H41: 2012-R1 | I41: Complete | K41: See Parent Project | AW41: 2011-12-01 | AX41: 2012-02-01 | AY41: ERCOT | AZ41: Removes the energy-weighting in the current calculation for the Real-Time Settlement Point Price (RTSPP) for a Load Zone | BA41: MMS, S&B, Integration, DAIP | BB41: =LEFT(H41,4) -> 2012
A42: Business Strategy | B42: 2012 | C42: 310 | D42: NPRR360 | E42: PPL | F42: 039-01 | G42: Summary Report of HDL and LDL | H42: 2012-R3 | I42: Complete | K42: $32k-$36k | AW42: 2012-03-01 | AX42: 2012-06-01 | AY42: Market | AZ42: Creates a new posting for the sum of HDL and the sum of LDL and any Generation Resource instances of manual overrides of HDL or LDL to the MIS Public Area after every SCED run | BA42: DAIP, Data Access & Transparency, Data Management | BB42: =LEFT(H42,4) -> 2012
A43: Business Strategy | B43: 2012 | C43: 320 | D43: NPRR382 | E43: PPL | F43: 041-01 | G43: Verbal RUC Committed or Decommitted Resources Report | H43: 2012-R4 | I43: Complete | K43: $40k-$50k | AW43: 2012-03-01 | AX43: 2012-10-01 | AY43: Market | AZ43: Creates two new reports on the MIS Secure Area for verbal Reliability Unit Commitment (RUC) commitments/decommitments | BA43: MMS, DAIP, Data Access & Transparency | BB43: =LEFT(H43,4) -> 2012
A44: Business Strategy | B44: 2012 | C44: 330 | D44: NPRR383 | E44: PPL | F44: 044-01 | G44: Unconfirmed Trades Reports | H44: 2012-R4 | I44: Complete | K44: $25k-$30k | AW44: 2012-05-01 | AX44: 2012-08-01 | AY44: Market | AZ44: Creates a new report for unconfirmed trades on the MIS Certified Area | BA44: MMS, DAIP, Data Access & Transparency | BB44: =LEFT(H44,4) -> 2012
A45: Business Strategy | B45: 2012 | C45: 340 | D45: NPRR359 | E45: PPL | F45: 032-01 | G45: Monthly TDSP Load Report | H45: 2012-R2 | I45: Complete | K45: $15k-$20k | AW45: 2012-02-01 | AX45: 2012-04-01 | AY45: Market | AZ45: Creates a new secure report to provide aggregate Load data for TSPs and DSPs in a monthly posting | BA45: DAIP, Data Access & Transparency | BB45: =LEFT(H45,4) -> 2012
A46: Business Strategy | B46: 2012 | C46: 350 | D46: NPRR361 | E46: PPL | F46: 024-01 | G46: Real-Time Wind Power Production Data Transparency | H46: 2012-R2 | I46: Complete | K46: $10k-$15k | AW46: 2012-01-01 | AX46: 2012-04-01 | AY46: Market | AZ46: Adds a new public report that provides, on both a system-wide and regional basis (West and North, South and Houston), the five-minute actual wind power production for a rolling historical 60-minute period | BA46: DAIP, Data Access & Transparency | BB46: =LEFT(H46,4) -> 2012
A47: Business Strategy | B47: 2012 | C47: 355 | D47: NPRR437 | E47: PPL | F47: 033-01 | G47: Allow Aggregation of Multiple Generators Into A Single Resource For Mkt & Eng Modeling | H47: 2012-R3 | I47: Complete | K47: $80k-$100k | AW47: 2012-02-01 | AX47: 2012-06-01 | AY47: ERCOT | AZ47: Allow aggregation of similar qualified non-wind-powered generators into an Aggregate Generation Resource (AGR) for market and engineering modeling purposes | BA47: Reg, EMS, NMMS, S&B, Integration | BB47: =LEFT(H47,4) -> 2012
A48: Business Strategy | B48: 2012 | C48: 360 | D48: NPRR377 | E48: PPL | F48: 056-01 | G48: Alternate Inputs to Base Point Deviation Charge | H48: 2013-R1 | I48: Complete | K48: $100k-$120k | N48: <$10k | AW48: 2012-06-01 | AX48: 2013-05-01 | AY48: ERCOT | AZ48: Aligns the Adjusted Aggregated Base Points (AABP) formula with the inputs to the GREDP measure | BA48: EMS, S&B, Integration, DAIP | BB48: =LEFT(H48,4) -> 2013
A49: Business Strategy | B49: 2012 | C49: 365 | D49: NPRR416 | E49: PPL | F49: 078-01 | G49: Removal of the RUC Clawback Charge for Resources Other than RMR Units | H49: 2013-R5 | I49: Complete | K49: <$10k | N49: $275k-$325k | AW49: 2012-12-01 | AX49: 2014-01-01 | AY49: Market | AZ49: Adds a buyback provision for Resources committed by ERCOT’s RUC process that allows all RUC Clawback Charges associated with the RUC commitment to be waived and RUC Make-Whole Payments to be forfeited | BA49: MMS, EMS, S&B, Integration, Data Access & Transparency, DAIP | BB49: =LEFT(H49,4) -> 2013
A50: Business Strategy | B50: 2013 | C50: 365 | D50: NPRR575 | E50: PPL | F50: 078-01 | G50: Clarification of the RUC Resource Buy-Back Provision for Ancillary Services | H50: 2014-R1 Off-cycle | I50: Complete | N50: See parent project PR078-01 | Q50: See parent project PR078-01 | AW50: 2013-11-01 | AX50: 2014-01-01 | AY50: Market | AZ50: Clarifies the use of Regulation Service by Generation Resources electing to use the Reliability Unit Commitment (RUC) Resource buy-back provision | BA50: EMS, DAIP, Integration | BB50: =LEFT(H50,4) -> 2014
A51: Business Strategy | B51: 2013 | C51: 367 | D51: NPRR385 | E51: PPL | F51: 082-01 | G51: Negative Price Floor | H51: 2013-R5 | I51: Complete | N51: $35k-$45k | AW51: 2013-02-01 | AX51: 2013-11-01 | AY51: Market | AZ51: Adds an administrative Settlement Point Price floor of negative $251/MWh | BA51: MMS, BI & Data Analytics, EMS | BB51: =LEFT(H51,4) -> 2013
A52: Business Strategy | B52: 2013 | C52: 380 | E52: PPL | F52: 057-01 | G52: EPS Metering DB Redesign | H52: 2014-R5 Off-cycle | I52: Complete | K52: $25k-$50k | N52: $225k-$275k | Q52: $0k | AW52: 2012-06-01 | AX52: 2015-02-01 | AY52: ERCOT | AZ52: Redesign of in-house developed application to allow for more robust functions and reporting | BA52: EPS | BB52: =LEFT(H52,4) -> 2014
A53: Business Strategy | B53: 2013 | C53: 395 | D53: NPRR514 | E53: PPL | F53: 105-01 | G53: Seasonal Generation Resource | H53: 2013-R5 | I53: Complete | N53: $30k-$50k | AW53: 2013-06-01 | AX53: 2013-10-01 | AY53: Market | AZ53: Creates a new type of Generation Resource, a Seasonal Generation Resource, to allow Resource Entities to operate their Facilities during summer peak Load periods only without having to go through the existing mothballing process | BA53: Reg, OS, MMS, Integration | BB53: =LEFT(H53,4) -> 2013
A54: Business Strategy | B54: 2013 | C54: 430 | D54: NPRR240 | E54: PPL | F54: 117-01 | G54: Proxy Energy Offer Curve | H54: 2014-R1 | I54: Complete | N54: See parent project PR117-01 | Q54: See parent project PR117-01 | AW54: 2013-10-01 | AX54: 2014-07-01 | AY54: Market | AZ54: Marks Energy Offer Curves that were constructed in whole or in part with proxy Energy Offer Curves in all ERCOT postings or references to the energy offer | BA54: MMS, DAIP | BB54: =LEFT(H54,4) -> 2014
A55: Business Strategy | B55: 2013 | C55: 440 | D55: SCR781 | E55: PPL | F55: 106-01 | G55: RARF Replacement | H55: 2020-R5 off-cycle | I55: Execution | K55: $0k | N55: $75k-$125k | Q55: $150k-$200k | T55: $25k-$50k | W55: <$10k | Z55: $100k-$200k | AC55: $250k-$500k | AF55: $1M-$3M | AI55: $3M-$5M | AL55: $3M-$5M | AW55: 2013-06-01 | AX55: 2021-12-01 | AY55: ERCOT | AZ55: Project Charter: https://wiki.ercot.com/display/CII/RARF+Replacement ERCOT Resource Entities register their Resource assets by submitting a large, complex spreadsheet known as Resource Asset Registration Forms (RARF) as a Service Request through ERCOT MIS. After a basic initial screening, the RARF is loaded into a staging database to run data validation rules and to test for data errors. Once the data passes validation, it is loaded to the RARF Hub database for use by various ERCOT systems (Data Aggregation, Planning, Settlement, Operations Analysis, and Network Modeling). Some of the data in the RARF Hub is also made available to entities external to ERCOT such as the Independent Market Monitor (IMM) and the Public Utilities Commission of Texas (PUCT). | BA55: NMMS, REG | BB55: =LEFT(H55,4) -> 2020 | BC55: GRID Modeling | BD55: Model Administration | BE55: SCR781 - RARF Replacement | BF55: Pre-Passport Tier 2 | BG55: Yes | BH55: Revision Request | BI55: Strategic
A56: Business Strategy | B56: 2012 | C56: 480 | D56: NPRR327 | E56: PPL | F56: 068-01 | G56: State Estimator Data Redaction Methodology | H56: N/A | I56: Canceled | K56: $10k-$25k | N56: $60k-$80k | Q56: $60k-$70k | AW56: 2012-10-01 | AX56: 2016-03-01 | AY56: Market | AZ56: Defines a redaction methodology for the posting of State Estimator data | BA56: EMS, DAIP, Data Access & Transparency, Data Management, NMMS | BB56: =LEFT(H56,4) -> N/A
A57: Business Strategy | B57: 2013 | C57: 580 | D57: NPRR484 | E57: PPL | F57: 094-01 | G57: Revisions to Congestion Revenue Rights Credit Calculations and Payments | H57: 2013-R6 | I57: Complete | N57: $590k-$600k | Q57: $0k | AW57: 2013-03-01 | AX57: 2014-05-01 | AY57: Market | AZ57: Replaces the CRR Auction credit calculations with path-specific exposure calculations based on DAM clearing prices over a rolling period and revises the FCE calculations for CRR Account Holders; which results in a modification to the payment schedule for CRRs | BA57: CRR, CMM, Integration, DAIP | BB57: =LEFT(H57,4) -> 2013
A58: Business Strategy | B58: 2013 | C58: 580 | D58: NPRR484 | E58: PPL | F58: 183-02 | G58: Revisions to Congestion Revenue Rights Credit Calculations and Payments - Phase 1b / 2 | H58: TBD | I58: Planning | Q58: $0k | T58: $0k | W58: $0k | AW58: 2019-09-01 | AX58: 2021-09-01 | AY58: Market | AZ58: This is part of CMM Phase II. This project gates to execution 12/8. This is a parent to INC824 and is using the capital dollars from this project. This Nodal Protocol Revision Request (NPRR) replaces the Congestion Revenue Right (CRR) Auction credit calculations with path-specific exposure calculations based on Day-Ahead Market (DAM) clearing prices over a rolling period and revises the Future Credit Exposure (FCE) calculations for CRR Account Holders; which results in a modification to the payment schedule for CRRs. | BA58: CRR, CMM, Integration, DAIP | BB58: =LEFT(H58,4) -> TBD | BC58: Commercial Operations | BD58: Settlements & Billing | BE58: NPRR484-Phase 1b / 2 | BG58: No
A59: Business Strategy | B59: 2015 | C59: 580 | D59: Various | E59: PPL | F59: 183-01 | G59: 2015 CMM NPRRs | H59: Various | I59: Complete | T59: $10k-$30k | W59: $500k-$750k | Z59: $1M-$2M | AC59: $1.5M-$3M | AF59: $100k-$300k | AW59: 2015-10-01 | AX59: 2019-11-01 | AY59: ERCOT | AZ59: Bundle of CMM revision requests | BA59: CRR, CMM, Integration, DAIP, MMS, Data Management, Reg, Data Access & Transparency | BB59: 2019
A60: Business Strategy | B60: 2016 | C60: 580 | D60: NPRR648 | E60: PPL | F60: 183-01 | G60: Remove References to Flowgate Rights | H60: 2018-R1 | I60: Complete | W60: $0k | AW60: 2016-08-01 | AX60: 2019-11-01 | AY60: ERCOT | AZ60: Deletes references to Flowgate Rights (FGRs) for consistency with NPRR599 and aligns Protocol language with ERCOT systems for CRRs, Settlements and Credit, which do not have the capabilities of valuing or settling FGRs | BA60: S&B | BB60: =LEFT(H60,4) -> 2018
A61: Business Strategy | B61: 2016 | C61: 580 | D61: NPRR660 | E61: PPL | F61: 183-01 | G61: Remove CRR State Change Adder | H61: 2019-TBD | I61: Complete | W61: $0k | AW61: 2016-08-01 | AX61: 2019-11-01 | AY61: ERCOT | AZ61: Deletes references to the State Change Adder component of the Congestion Revenue Right (CRR) Obligation credit calculation | BA61: CRR, Integration, Data Access & Transparency, DAIP | BB61: =LEFT(H61,4) -> 2019
A62: Business Strategy | B62: 2018 | C62: 580 | D62: NPRR867 | E62: PPL | F62: 183-02 | G62: Revisions to CRR Auction Credit Lock Amount to Reduce Excess Collateral | H62: TBD | I62: Planning | AW62: 2019-09-01 | AX62: 2021-09-01 | AY62: Market | AZ62: This Nodal Protocol Revision Request (NPRR) changes the amount of each Counter Party’s Available Credit Limit (ACL) locked for Congestion Revenue Rights (CRR) Auctions during the duration of the auction process so that it is capped at the pre-auction screening credit exposure amount. | BA62: CRR | BB62: =LEFT(H62,4) -> TBD | BC62: Commercial Operations | BD62: Market Operations | BE62: NPRR867-CRR Collateral | BG62: No
A63: Business Strategy | B63: 2012 | C63: 590 | D63: NPRR407 | E63: PPL | F63: 062-01 | G63: Credit Monitoring Posting Requirements - MMS/CDR Portion | H63: 2013-R1 | I63: Complete | K63: $25k-$30k | N63: <$10k | AW63: 2012-08-01 | AX63: 2013-03-01 | AY63: Market | AZ63: Adds requirements for ERCOT to post to the MIS Certified Area, the parameters used to calculate Market Participants’ Available Credit Limits (ACLs) used in multiple market processes | BA63: MMS, DAIP | BB63: =LEFT(H63,4) -> 2013
A64: Business Strategy | B64: 2013 | C64: 590 | D64: NPRR407 | E64: CEER | F64: 088-06 | G64: Credit Monitoring Posting Requirements - CRR Portion | H64: 2013-R6 | I64: Complete | N64: See parent project PR088 | AW64: 2013-11-01 | AX64: 2013-12-01 | AY64: Market | AZ64: Adds requirements for ERCOT to post to the MIS Certified Area, the parameters used to calculate Market Participants’ Available Credit Limits (ACLs) used in multiple market processes | BA64: CRR | BB64: =LEFT(H64,4) -> 2013
A65: Business Strategy | B65: 2013 | C65: 595 | D65: SCR773 | E65: PPL | F65: 100-01 | G65: Addition of Regulation Feedback to Generation to be Dispatched Calculation | H65: 2013-R3 Off-cycle | I65: Complete | N65: $40k-$60k | AW65: 2013-05-01 | AX65: 2013-06-01 | AY65: Market | AZ65: Updates the formula used by the system to calculate the amount of generation to be dispatched that takes into account a configurable quantity for Regulation Service that has been deployed | BA65: EMS, NMMS | BB65: =LEFT(H65,4) -> 2013
A66: Business Strategy | B66: 2012 | C66: 600 | D66: NPRR422 | E66: PPL | F66: 053-01 | G66: Public DAM Shift Factors | H66: 2012-R4 | I66: Complete | K66: $15k-$20k | AW66: 2012-06-01 | AX66: 2012-08-01 | AY66: Market | AZ66: Creates a new report to provide Day-Ahead Shift Factors on the MIS Public Area | BA66: DAIP, Data Access & Transparency | BB66: =LEFT(H66,4) -> 2012
A67: Business Strategy | B67: 2013 | C67: 605 | E67: PPL | F67: 095-01 | G67: Mobile Application Enhancement | H67: 2013-R4 | I67: Complete | N67: $275k-$325k | AW67: 2013-03-01 | AX67: 2014-01-01 | AY67: ERCOT | AZ67: Upgrade to existing ERCOT mobile application available for IOS and Android | BA67: External Public, Integration, Data Access & Transparency | BB67: =LEFT(H67,4) -> 2013
A68: Business Strategy | B68: 2012 | C68: 610 | E68: PPL | F68: 020-01 | G68: CIM Upgrade for NMMS | H68: 2013-R1 | I68: Complete | K68: $30k-$50k | N68: <$10k | AW68: 2011-12-01 | AX68: 2013-03-01 | AY68: ERCOT | AZ68: Update ERCOT NMMS model schema from CIM 10 to CIM 14 to be consistent with industry standards | BA68: NMMS | BB68: =LEFT(H68,4) -> 2013
A69: Business Strategy | B69: 2012 | C69: 620 | D69: SCR764 | E69: PPL | F69: 025-45 | G69: Public Access to Select MIS Dashboards | H69: 2012-R1 | I69: Complete | K69: $15k-$20k | AW69: 2011-06-01 | AX69: 2012-02-01 | AY69: Market | AZ69: System changes to allow public access to a graphical view of non-confidential system conditions and pricing information for a specific set of Market Information System (MIS) Dashboards | BA69: DAIP, Data Access & Transparency, External Public | BB69: =LEFT(H69,4) -> 2012
A70: Business Strategy | B70: 2012 | C70: 630 | E70: PPL | F70: 026-01 | G70: Support for New Resource Types in ERCOT Systems | H70: N/A | I70: Canceled | K70: $20k-$30k | AW70: 2012-01-01 | AX70: 2012-05-01 | AY70: ERCOT | AZ70: Analysis of ERCOT systems to support new resource types | BA70: RARF | BB70: =LEFT(H70,4) -> N/A
A71: Business Strategy | B71: 2012 | C71: 640 | D71: NPRR397 | E71: PPL | F71: 063-01 | G71: Balance of the Day Ancillary Service Market | H71: 2013-R1 | I71: Complete | K71: $40k-$60k | N71: <$10k | AW71: 2012-07-01 | AX71: 2013-03-01 | AY71: Market | AZ71: Allows the Supplemental Ancillary Services Market (SASM) to be operated as a balance of the day market for Ancillary Services | BA71: MMS | BB71: =LEFT(H71,4) -> 2013
A72: Business Strategy | B72: 2012 | C72: 650 | D72: NPRR419 | E72: PPL | F72: 182-01 | G72: Revise Real Time Energy Imbalance and RMR Adjustment Charge | H72: 2016-R2 | I72: Complete | K72: $0k | N72: $0k | T72: $10k-$20k | W72: $25k-$75k | AW72: 2015-11-01 | AX72: 2016-07-01 | AY72: ERCOT | AZ72: Provide market volumetric imbalance calculations and will achieve revenue neutrality for QSEs with RMR Units | BA72: S&B | BB72: =LEFT(H72,4) -> 2016
A73: Business Strategy | B73: 2012 | C73: 660 | D73: NPRR393 | E73: PPL | F73: 069-01 | G73: SCED Constraint Management Transparency | H73: 2013-R4 | I73: Complete | K73: <$10k | N73: $55k-$65k | AW73: 2012-12-01 | AX73: 2013-10-01 | AY73: Market | AZ73: Creates a reporting requirement to provide transparency into Security-Constrained Economic Dispatch (SCED) constraint management decisions | BA73: EMS, Data Management, Data Access & Transparency | BB73: =LEFT(H73,4) -> 2013
A74: Business Strategy | B74: 2013 | C74: 670 | D74: RRs | E74: PPL | G74: Revision Request Funding - 2013 | H74: 2013-Various | I74: Funding | N74: <$1M | AW74: 2013-01-01 | AX74: 2013-12-01 | AY74: ERCOT | AZ74: Funding held for future NPRRs, SCRs, and Operating Guide Revision Requests | BA74: n/a | BB74: =LEFT(H74,4) -> 2013
A75: Business Strategy | B75: 2013 | C75: 675 | E75: PPL | F75: 108-01 | G75: Alstom Load Forecasting Upgrade | H75: 2014-R1 | I75: Complete | N75: $40k-$60k | Q75: $75k-$100k | AW75: 2013-07-01 | AX75: 2014-06-01 | AY75: ERCOT | AZ75: Enable the ERCOT system to receive additional internally developed load forecasts | BA75: EMS | BB75: =LEFT(H75,4) -> 2014
A76: Business Strategy | B76: 2012 | C76: 679 | D76: SCR771 | E76: CEER | F76: 165-06 | G76: ERCOT System Change Allowing Independent Master QSE to Represent Split Generation Resources | H76: 2015-R4 Off-cycle | I76: Complete | K76: $0k | N76: $0k | AW76: 2015-02-01 | AX76: 2015-09-01 | AY76: Market | AZ76: Modifies ERCOT systems to allow owners of Split Generation Resources to contract for service with an independent Master Qualified Scheduling Entity | BA76: EMS, NMMS, Reg | BB76: =LEFT(H76,4) -> 2015
A77: Business Strategy | B77: 2012 | C77: 680 | D77: SCR768 | E77: PPL | F77: 064-01 | G77: Automatic Non-Spin Redeployment and Deployment Based on Resource Availability | H77: 2013-R1 | I77: Complete | K77: $30k-$40k | N77: <$10k | AW77: 2012-06-01 | AX77: 2013-03-01 | AY77: ERCOT | AZ77: Modifies the MMS Automatic Redeployment function such that it accounts for the delay involved in deployment of Off-Line Non-Spinning Reserve (Non-Spin) Resources | BA77: MMS, DAIP, Data Management | BB77: =LEFT(H77,4) -> 2013
A78: Business Strategy | B78: 2012 | C78: 685 | D78: NPRR463 | E78: PPL | F78: 060-01 | G78: CRR Auction Structure Enhancements | H78: 2013-R2 Off-cycle | I78: Complete | K78: $15k-$20k | N78: $200k-$225k | AW78: 2012-08-01 | AX78: 2013-06-01 | AY78: Market | AZ78: Replaces the annual Congestion Revenue Right (CRR) Auction with a semi-annual sequence of four consecutive six-month CRR Auctions selling CRRs up to two years in the future | BA78: CRR, S&B | BB78: =LEFT(H78,4) -> 2013
A79: Business Strategy | B79: 2012 | C79: 690 | D79: SCR769 | E79: PPL | F79: 124-01 | G79: CRRAH Digital Certificate New Role for Read Only Access | H79: 2014-R4 | I79: Complete | N79: <$5k | Q79: $100k-$125k | AW79: 2013-12-01 | AX79: 2014-11-01 | AY79: Market | AZ79: Provides the capability to a read only role in addition to the read and write role for Congestion Revenue Right (CRR) Account Holders | BA79: CRR, Data Access & Transparency | BB79: =LEFT(H79,4) -> 2014
A80: Business Strategy | B80: 2013 | C80: 700 | D80: SCR770 | E80: PPL | F80: 076-01 | G80: Revision to Outage Scheduling Entry for Resource Maintenance Outage Level Designation | H80: 2013-R5 | I80: Complete | K80: <$10k | N80: $100k-$130k | AW80: 2012-12-01 | AX80: 2013-10-01 | AY80: Market | AZ80: Changes the Outage Scheduler system so that the QSE is able to schedule Level I, II and III Maintenance Outages | BA80: OS | BB80: =LEFT(H80,4) -> 2013
A81: Business Strategy | B81: 2012 | C81: 710 | E81: PPL | F81: 2012 PC | G81: Program Control - 2012 | H81: 2012-Various | I81: Complete | K81: $300k-$500k | AW81: 2012-02-01 | AX81: 2012-12-01 | AY81: ERCOT | AZ81: Project to account for time spend providing project portfolio oversight within Business Integration | BA81: n/a | BB81: =LEFT(H81,4) -> 2012
A82: Business Strategy | B82: 2012 | C82: 720 | D82: NPRR442 | E82: PPL | F82: 054-01 | G82: Energy Offer Curve Requirement for Generation Resources Providing Reliability Must-Run Service | H82: 2012-R4 | I82: Complete | K82: $20k-$25k | AW82: 2012-06-01 | AX82: 2012-08-01 | AY82: Market | AZ82: Addresses concerns raised at the October 27, 2011 PUCT Open Meeting regarding Project No. 37897, PUC Proceeding Relating to Resource and Reserve Adequacy and Shortage Pricing | BA82: MMS | BB82: =LEFT(H82,4) -> 2012
A83: Business Strategy | B83: 2013 | C83: 730 | D83: NPRR457 | E83: PPL | F83: 092-01 | G83: Daily Update of New ESI IDs and AMS Meter and Switch Hold Indicators Changes | H83: 2013-R5 | I83: Complete | K83: $0k | N83: $40k-$60k | AW83: 2013-03-01 | AX83: 2013-10-01 | AY83: Market | AZ83: Provides for the addition of ESI ID attribute information for conditions in which the transaction type of 814_20, ESI ID Maintenance Request, is submitted that creates an ESI ID or makes changes to an existing ESI ID’s AMS or switch hold indicator flags utilizing the create or maintain option when submitting the 814_20 transaction | BA83: Data Access & Transparency, Data Management, Retail | BB83: =LEFT(H83,4) -> 2013
A84: Business Strategy | B84: 2013 | C84: 735 | D84: SCR756 | E84: PPL | F84: 010-03 | G84: MarkeTrak Enhancements - Remaining SCR756 Items | H84: 2014-R4 | I84: Complete | N84: $50k-$100k | Q84: $450k-$550k | AW84: 2013-09-01 | AX84: 2014-11-01 | AY84: Market | AZ84: MarkeTrak enhancements: Remaining deliverables from SCR756 | BA84: Retail | BB84: =LEFT(H84,4) -> 2014
A85: Business Strategy | B85: 2012 | C85: 740 | D85: NPRR456 | E85: PPL | F85: 080-01 | G85: Clarification of Definition of Electrically Similar Settlement Points and Heuristic Pricing Posting | H85: 2013-R2 | I85: Complete | K85: <$10k | N85: $30k-$35k | AW85: 2012-12-01 | AX85: 2013-06-01 | AY85: ERCOT | AZ85: Removes the rating requirement in the current definition for Electrically Similar Settlement Points and introduces a daily public report to post the heuristic pricing associations for DAM and RTM price calculations | BA85: MMS, Data Access & Transparency, External Public | BB85: =LEFT(H85,4) -> 2013
A86: Business Strategy | B86: 2013 | C86: 750 | D86: NOGRR093 | E86: PPL | F86: 086-01 | G86: Synchronization with NPRR365 | H86: 2013-R3 | I86: Complete | N86: $20k-$25k | AW86: 2013-02-01 | AX86: 2013-07-01 | AY86: Market | AZ86: Synchronizes the Nodal Operating Guides with NPRR365, Change in Resource Outage Approvals from Eight to 45 Days | BA86: DAIP | BB86: =LEFT(H86,4) -> 2013
A87: Business Strategy | B87: 2012 | C87: 760 | D87: NPRR469 | E87: PPL | F87: 061-01 | G87: Modifications to CCTs | H87: 2013-R1 | I87: Complete | K87: $100k-$150k | N87: $10k-$20k | AW87: 2012-08-01 | AX87: 2013-03-01 | AY87: Market | AZ87: Proposes changes to the Constraint Competitiveness Tests (CCTs) to resolve issues with the current design | BA87: MMS, Data Access & Transparency | BB87: =LEFT(H87,4) -> 2013
A88: Business Strategy | B88: 2013 | C88: 770 | D88: NPRR425 | E88: PPL | F88: 087-01 | G88: Creation of a WGR Group for GREDP and Base Point Deviation Evaluation | H88: 2014-R1 | I88: Complete | K88: $0k | N88: $200k-$250k | Q88: $20k-$40k | AW88: 2013-03-01 | AX88: 2014-03-01 | AY88: ERCOT | AZ88: Provides that WGRs meeting registration requirements will be evaluated for GREDP and Base Point Deviation as groups of WGRs rather than individual WGRs | BA88: Reg, NMMS, S&B, MMS, EMS, DAIP, Data Management | BB88: =LEFT(H88,4) -> 2014
A89: Business Strategy | B89: 2012 | C89: 780 | D89: NPRR464 | E89: PPL | F89: 063-01 | G89: SASM Procurement Reporting | H89: 2013-R1 | I89: Complete | K89: See Parent Project | AW89: 2012-09-01 | AX89: 2013-03-01 | AY89: Market | AZ89: Requires ERCOT to notify QSEs whose Ancillary Service capacity was deemed undeliverable, or who failed to provide their required A/S capacity, details of the A/S procured on their behalf during a SASM | BA89: MMS, DAIP, Integration | BB89: =LEFT(H89,4) -> 2013
A90: Business Strategy | B90: 2013 | C90: 795 | D90: NPRR479 | E90: PPL | F90: 084-01 | G90: Daily Net Outage MW | H90: 2013-R5 Off-cycle | I90: Complete | N90: $25k-$35k | AW90: 2013-02-01 | AX90: 2013-10-01 | AY90: Market | AZ90: Modifies the information provided by ERCOT to Market Participants regarding net daily Outage MWs. | BA90: OS, DAIP, Data Access & Transparency | BB90: =LEFT(H90,4) -> 2013
A91: Business Strategy | B91: 2013 | C91: 800 | D91: NPRR476 | E91: PPL | F91: 093-01 | G91: Market Submitted Energy Offer Curves Disclosures | H91: 2013-R6 | I91: Complete | N91: $50k-$55k | Q91: <$10k | AW91: 2013-04-01 | AX91: 2014-01-01 | AY91: Market | AZ91: Provides for the addition of as submitted and extended Energy Offer Curves to the existing 60-Day SCED Disclosure Report; and extended Energy Offer Curves to the 7-Day Event Trigger Posting when the LMP exceeds 50 times FIP. | BA91: Data Management, Data Access & Transparency | BB91: =LEFT(H91,4) -> 2013
A92: Business Strategy | B92: 2013 | C92: 810 | D92: NPRR481 | E92: PPL | F92: 085-01 | G92: Report of Hourly Actual System Load by Weather Zone | H92: 2013-R3 | I92: Complete | N92: $15k-$25k | AW92: 2013-02-01 | AX92: 2013-07-01 | AY92: Market | AZ92: Provides for a report of the hourly actual system Load for each Weather Zone for the previous Operating Day. | BA92: DAIP, Data Access & Transparency | BB92: =LEFT(H92,4) -> 2013
A93: Business Strategy | B93: 2013 | C93: 815 | D93: NOGRR101 | E93: CEER | F93: 088-05 | G93: Market Notice for DC-TIE Outage Information | H93: 2013-R5 | I93: Complete | N93: See parent project PR088 | AW93: 2013-07-01 | AX93: 2013-10-01 | AY93: Market | AZ93: Provides that ERCOT shall produce a detailed report regarding any outage of a Direct Current Tie (DC Tie) in a timely manner | BA93: Data Access & Transparency | BB93: =LEFT(H93,4) -> 2013
A94: Business Strategy | B94: 2013 | C94: 820 | D94: NPRR492 | E94: CEER | F94: 088-06 | G94: Addition of System Lambda Information | H94: 2013-R6 | I94: Complete | N94: See parent project PR088 | AW94: 2013-07-01 | AX94: 2013-12-01 | AY94: Market | AZ94: Accounts for the addition of the System Lambda to the LMP by Resource Node, Load Zone and Trading Hub report and display. | BA94: MMS, Data Access & Transparency, DAIP | BB94: =LEFT(H94,4) -> 2013
A95: Business Strategy | B95: 2013 | C95: 840 | D95: NOGRR105 | E95: PPL | F95: 112-01 | G95: Generation Resource Frequency Response Test Procedure | H95: 2014-R1 | I95: Complete | N95: $25k-$35k | Q95: $15k-$25k | AW95: 2013-08-01 | AX95: 2014-03-01 | AY95: Market | AZ95: Adds a Governor test form for Controllable Load Resources and proposes minor corrections to calculations | BA95: NDCRC, Data Management | BB95: =LEFT(H95,4) -> 2014
A96: Business Strategy | B96: 2013 | C96: 850 | E96: PPL | F96: 2013 PC | G96: Program Control - 2013 | H96: 2013-Various | I96: Complete | N96: $300k-$400k | AW96: 2013-01-01 | AX96: 2013-12-01 | AY96: ERCOT | AZ96: Project to account for time spend providing project portfolio oversight within Business Integration | BA96: n/a | BB96: =LEFT(H96,4) -> 2013
A97: Business Strategy | B97: 2013 | C97: 865 | D97: NPRR532 | E97: PPL | F97: 117-01 | G97: Performance Measurement and Verification and Telemetry Requirements for Load Resources Providing Non-Spin | H97: 2014-R2 Off-cycle | I97: Complete | N97: See parent project PR117-01 | Q97: See parent project PR117-01 | AW97: 2013-10-01 | AX97: 2014-07-01 | AY97: Market | AZ97: Enables participation in the Non-Spinning Reserve (Non-Spin) Service market for Load Resources whose provision of Demand response is most accurately measured and verified using a baseline performance evaluation methodology. | BA97: MMS, EMS, NMMS, Integration, Data Management, Data Access & Transparency | BB97: =LEFT(H97,4) -> 2014
A98: Business Strategy | B98: 2013 | C98: 865 | D98: NPRR555 | E98: PPL | F98: 117-01 | G98: Load Resource Participation in Security-Constrained Economic Dispatch | H98: 2014-R2 Off-cycle | I98: Complete | N98: See parent project PR117-01 | Q98: See parent project PR117-01 | AW98: 2013-10-01 | AX98: 2014-07-01 | AY98: ERCOT | AZ98: Enables Demand response from Controllable Load Resources, as re-defined, to be Dispatched by Security-Constrained Economic Dispatch (SCED) based on a Real-Time Market (RTM) Energy Bid | BA98: MMS, EMS, NMMS, Integration, S&B, Data Management, Data Access & Transparency | BB98: =LEFT(H98,4) -> 2014
A99: Business Strategy | B99: 2013 | C99: 870 | D99: NPRR495 | E99: PPL | F99: 195-01 | G99: Changes to Ancillary Services Capacity Monitor | H99: 2016-R4 | I99: Complete | N99: $0k | Q99: $0k | AW99: 2016-04-01 | AX99: 2016-11-01 | AY99: Market | AZ99: Modifies the Ancillary Service Capacity Monitor information provided by ERCOT both through ICCP telemetry and the MIS Public Area | BA99: MMS, EMS, Data Access & Transparency, Data Management, DAIP, Integration | BB99: =LEFT(H99,4) -> 2016
A100: Business Strategy | B100: 2016 | C100: 870 | D100: NPRR736 | E100: PPL | F100: 195-01 | G100: Updates to the Ancillary Service Capacity Monitor Display | H100: 2016-R4 | I100: Complete | AW100: 2016-04-01 | AX100: 2016-11-01 | AY100: ERCOT | AZ100: Updates the Ancillary Service Capacity Monitor display on the ERCOT website with additional information by adding the On-Line and Off-Line Reserves used for the ORDC, HDL, and LDL as new items to the display | BA100: EMS, DAIP, Integration, Data Access & Transparency | BB100: =LEFT(H100,4) -> 2016
A101: Business Strategy | B101: 2016 | C101: 870 | D101: Various | E101: PPL | F101: 195-01 | G101: NPRR495 and NPRR736 Changes to Ancillary Services Capacity Monitor | H101: 2016-R4 | I101: Complete | W101: $100k-$200k | AW101: 2016-04-01 | AX101: 2016-11-01 | AY101: ERCOT | AZ101: Combined project to deliver NPRR495 and NPRR736 | BA101: MMS, EMS, Data Access & Transparency, Data Management, DAIP, Integration | BB101: =LEFT(H101,4) -> 2016
A102: Business Strategy | B102: 2016 | C102: 872 | D102: NPRR770 | E102: PPL | F102: 195-01 | G102: Addition of Outaged Resource Capacity to Short-Term System Adequacy Report | H102: 2016-R4 | I102: Complete | AW102: 2016-08-01 | AX102: 2016-11-01 | AY102: Market | AZ102: Adds visibility and situational awareness to the market by posting the aggregate quantity of Resources that are telemetered as OUT, OUTL or EMR to the Ancillary Service Capacity Monitor | BA102: MMS, DAIP, Data Access & Transparency | BB102: =LEFT(H102,4) -> 2016
A103: Business Strategy | B103: 2013 | C103: 875 | D103: NPRR491 | E103: CEER | F103: 128-04 | G103: Updated Distribution Generation and Demand Response Information for ERCOT | H103: 2014-R4 | I103: Complete | N103: $0k | Q103: See parent project PR128 | AW103: 2014-02-01 | AX103: 2014-08-01 | AY103: Market | AZ103: Proposes to provide ERCOT and the market with needed information on Distributed Generation (DG) and demand response | BA103: Data Management, Data Access & Transparency | BB103: =LEFT(H103,4) -> 2014
A104: Business Strategy | B104: 2013 | C104: 880 | D104: NPRR568 | E104: PPL | G104: Real-Time Reserve Price Adder Based on Operating Reserve Demand Curve - Phase 2 | H104: N/A | I104: Canceled | AY104: Market | AZ104: Remaining gray box functionality for NPRR568 | BA104: EMS, MMS, NMMS, BI & Data Analytics, S&B, DAIP, Data Management | BB104: =LEFT(H104,4) -> N/A
A105: Business Strategy | B105: 2014 | C105: 880 | D105: NPRR598 | E105: PPL | F105: 117-01 | G105: Clarify Inputs to PRC and ORDC | H105: 2014-R3 | I105: Complete | N105: See parent project PR117-01 | AW105: 2013-10-01 | AX105: 2014-07-01 | AY105: Market | AZ105: Various language changes to clarify inputs to PRC and ORDC | BA105: EMS, MMS, NMMS, BI & Data Analytics, S&B, DAIP, Data Management | BB105: =LEFT(H105,4) -> 2014
A106: Business Strategy | B106: 2014 | C106: 880 | D106: NPRR626 | E106: PPL | F106: 149-01 | G106: Reliability Deployment Price Adder | H106: 2015-R3 | I106: Complete | AW106: 2014-09-01 | AX106: 2015-09-01 | AY106: Market | AZ106: Intends to mitigate the price reversal/suppression associated with the deployment of Load Resources and/or other out-of-market reliability deployments that may inappropriately reduce the total Real-Time price in times of scarcity | BA106: MMS, S&B, EMS, Data Access & Transparency, NMMS, Data Management, DAIP, External Public, Integration, CMM | BB106: =LEFT(H106,4) -> 2015
A107: Business Strategy | B107: 2014 | C107: 880 | D107: NPRR644 | E107: PPL | G107: Operating Reserve Demand Curve Phase 2 Revisions | H107: N/A | I107: Canceled | AY107: Market | AZ107: Revise ORDC Phase 2 to streamline the validation process of the telemetered OFF10 and OFF30 values. Correspondingly, the qualification and testing procedures are bolstered in the interest of a more efficient process. | BA107: EMS, MMS, NMMS, BI & Data Analytics, S&B, DAIP, Data Management | BB107: =LEFT(H107,4) -> N/A
A108: Business Strategy | B108: 2014 | C108: 880 | D108: NPRR665 | E108: PPL | F108: 149-01 | G108: As-Built Clarification of Reliability Deployment Price Adder | H108: 2015-R3 | I108: Complete | AW108: 2014-09-01 | AX108: 2015-09-01 | AY108: Market | AZ108: Details how the Energy Offer Curves for RUC-committed resources will be extended or created for SCED and the pricing run to determine the Reliability Deployment Price Adder; clarifies language for related data that will be sent and/or posted during the Operating Hour. | BA108: EMS, MMS, NMMS, BI & Data Analytics, S&B, DAIP, Data Management | BB108: =LEFT(H108,4) -> 2015
A109: Business Strategy | B109: 2014 | C109: 880 | D109: Various | E109: PPL | F109: 149-01 | G109: Market System Enhancements 2015 | H109: 2015-R3 | I109: Complete | Q109: $35k-$70k | T109: $750k-$1.5M | AW109: 2014-09-01 | AX109: 2015-09-01 | AY109: Market | AZ109: Parent project of NPRR626 Other revision requests being considered for inclusion | BA109: MMS, S&B, EMS, Data Access & Transparency, NMMS, Data Management, DAIP, External Public, Integration, CMM | BB109: =LEFT(H109,4) -> 2015
A110: Business Strategy | B110: 2013 | C110: 885 | D110: OBD | E110: PPL | F110: 149-01 | G110: Setting the Shadow Price Caps and Power Balance Penalties in Security-Constrained Economic Dispatch | H110: 2015-R3 | I110: Complete | N110: See parent project PR117-01 | Q110: $0k | AW110: 2015-01-01 | AX110: 2015-08-01 | AY110: Market | AZ110: ERCOT Board approved methodology that the ERCOT staff will use for determining the maximum system-wide Shadow Prices for transmission network constraints and for the power balance constraint | BA110: MMS, Data Management | BB110: =LEFT(H110,4) -> 2015
A111: Business Strategy | B111: 2014 | C111: 885 | D111: NPRR595 | E111: PPL | F111: 149-02 | G111: RRS Load Resource Treatment in ORDC | H111: 2015-R5 Off-cycle | I111: Complete | AW111: 2014-09-01 | AX111: 2016-02-01 | AY111: Market | AZ111: Provides that Load Resources providing RRS should be credited / charged based on their telemetered Load Consumption as opposed to the currently prescribed methodology of using the telemetered RRS A/S schedule | BA111: EMS, NMMS, DAIP, Integration, MMS | BB111: =LEFT(H111,4) -> 2015
A112: Business Strategy | B112: 2015 | C112: 885 | D112: NPRR698 | E112: PPL | F112: 149-02 | G112: Clarifications to NPRR595, RRS Load Resource Treatment In ORDC | H112: 2015-R5 Off-cycle | I112: Complete | T112: $75k-$150k | AW112: 2015-06-01 | AX112: 2016-02-01 | AY112: ERCOT | AZ112: Clarifies ERCOT’s intended implementation of NPRR595, RRS Load Resource Treatment In ORDC, and allows the use of currently telemetered values to provide the intent of NPRR595 at a lower project cost | BA112: MMS, EMS, DAIP, S&B, Integration | BB112: =LEFT(H112,4) -> 2015
A113: Business Strategy | B113: 2015 | C113: 886 | D113: NPRR645 | E113: PPL | F113: 149-01 | G113: Real-Time On-Line Capacity Revisions | H113: 2015-R3 | I113: Complete | AW113: 2015-02-01 | AX113: 2015-08-01 | AY113: ERCOT | AZ113: Modifies NPRR568, Real-Time Reserve Price Adder Based on ORDC, Phase 1 inputs to the calculation of Real-Time On-Line Capacity | BA113: S&B | BB113: =LEFT(H113,4) -> 2015
A114: Business Strategy | B114: 2013 | C114: 892 | D114: NPRR564 | E114: PPL | F114: 117-01 | G114: Thirty-Minute Emergency Response Service (ERS) and Other ERS Services | H114: 2014-R2 | I114: Complete | N114: See parent project PR117-01 | Q114: See parent project PR117-01 | AW114: 2013-10-01 | AX114: 2014-07-01 | AY114: Market | AZ114: Proposes a 30-minute Emergency Response Service (ERS) product and recommends other changes | BA114: MMS, Data Management, Integration | BB114: =LEFT(H114,4) -> 2014
A115: Business Strategy | B115: 2013 | C115: 895 | E115: PPL | F115: 119-01 | G115: CREZ Voltage Control and Coordination | H115: 2014-R2 | I115: Complete | N115: $8k-$10k | Q115: $100k-$150k | AW115: 2013-10-01 | AX115: 2014-11-01 | AY115: ERCOT | AZ115: Provide a mechanisim to coordinate reactive controls on the CREZ transmission lines and substations in the areas in which there is not a single geographically determined transmission provider with full visiability and control of the reactive devices that can control voltages in the area. | BA115: EMS, BI & Data Analytics | BB115: =LEFT(H115,4) -> 2014
A116: Business Strategy | B116: 2014 | C116: 895 | D116: NPRR586 | E116: PPL | F116: 136-01 | G116: Align Credit Lock for CRR Auctions with Transaction Submission Deadline | H116: 2014-R5 | I116: Complete | Q116: $40k-$60k | AW116: 2014-04-01 | AX116: 2015-02-01 | AY116: Market | AZ116: Aligns the deadline to allocate credit for a Congestion Revenue Right (CRR) Auction with the transaction submission deadline for that CRR Auction | BA116: CRR | BB116: =LEFT(H116,4) -> 2014
A117: Business Strategy | B117: 2014 | C117: 898 | D117: SCR779 | E117: PPL | F117: 138-01 | G117: Increase to the CRR Auction Transaction Limit | H117: 2015-R3 | I117: Complete | Q117: $25k-$50k | T117: $100k-$150k | AW117: 2014-05-01 | AX117: 2015-07-01 | AY117: Market | AZ117: During CRR auctions, a system limitation results in an aggregate limitation of 200,000 market transactions for CRR Account Holders. This SCR increases the limit by 50% to 300,000 market transactions. | BA117: CRR, CMM, Integration, DAIP | BB117: =LEFT(H117,4) -> 2015
A118: Business Strategy | B118: 2014 | C118: 910 | D118: NPRR467 | E118: PPL | F118: 10052_01 | G118: Balancing Account Resettlement Due to DAM Resettlement | H118: 2014-R6 | I118: Complete | Q118: $0k | T118: $0k | AW118: 2014-06-01 | AX118: 2015-07-01 | AY118: ERCOT | AZ118: Provides a resettlement of the CRR Balancing Account due to any changes in a DAM resettlement that impacts the CRR Balancing Account amount. | BA118: S&B, DAIP | BB118: =LEFT(H118,4) -> 2014
A119: Business Strategy | B119: 2014 | C119: 920 | D119: NPRR485 | E119: CEER | F119: 128-05 | G119: Clarification for Fuel Adder Provisions | H119: 2014-R5 | I119: Complete | N119: See parent project PR088 | Q119: See parent project PR088 | AW119: 2013-10-01 | AX119: 2014-09-01 | AY119: Market | AZ119: Clarifies the Nodal Protocol language to allow for consistent application of fuel adders as provided to ERCOT through the verifiable cost process. | BA119: S&B | BB119: =LEFT(H119,4) -> 2014
A120: Business Strategy | B120: 2014 | C120: 930 | D120: NPRR509 | E120: CEER | F120: 128-01 | G120: Shortened RTM Settlement Timeline | H120: 2014-R1 Retail | I120: Complete | N120: See parent project PR088 | Q120: See parent project PR088 | AW120: 2013-11-01 | AX120: 2014-03-01 | AY120: Market | AZ120: Proposes a phased approach to reduce the posting date for the Initial Settlement Statement from 9 days after the Operating Day to 7 days and reduces the posting date of the Final Settlement Statement from the 59th day to the 57th day | BA120: Reg | BB120: =LEFT(H120,4) -> 2014
A121: Business Strategy | B121: 2014 | C121: 940 | D121: SCR772 | E121: PPL | F121: 126-01 | G121: New Extract for Five Minute Interval Settlement Data | H121: 2015-R1 | I121: Complete | Q121: $20k-$60k | T121: $25k-$50k | AW121: 2013-12-01 | AX121: 2015-05-01 | AY121: Market | AZ121: Proposes that ERCOT provide a new Real-Time code extract that will have five minute interval data only | BA121: Data Access & Transparency, Data Management | BB121: =LEFT(H121,4) -> 2015
A122: Business Strategy | B122: 2014 | C122: 950 | D122: NPRR500 | E122: PPL | F122: 151-01 | G122: Posting of Generation that is Off but Available | H122: 2015-R1 | I122: Complete | N122: $0k | Q122: <$20k | T122: $20k-$40k | AW122: 2014-09-01 | AX122: 2015-04-01 | AY122: Market | AZ122: Adds to the Short-Term System Adequacy Report a field showing the aggregate Generation Resource capacity that is schedule in the COP as “Off” and can be started in time to be available each Operating Hour | BA122: MMS, DAIP | BB122: =LEFT(H122,4) -> 2015
A123: Business Strategy | B123: 2014 | C123: 960 | E123: PPL | G123: Automation of NPRR487 - QSGR Dispatch Adjustment | H123: 2018-R2 | I123: Canceled | Q123: $0k | T123: $0k | W123: $0k | Z123: $0k | AC123: $0k | AY123: Market | AZ123: Modifies the emergency energy Settlement treatment of a Quick Start Generation Resource (QSGR) that is brought On-Line with a Base Point less than or equal to its Resource registration applicable Seasonal net minimum sustainable rating | BA123: S&B, Integration, EMS | BB123: =LEFT(H123,4) -> 2018
A124: Business Strategy | B124: 2014 | C124: 970 | D124: NPRR519 | E124: PPL | F124: 183-01 | G124: Exemption of ERS-Only QSEs from Collateral and Capitalization Requirements | H124: 2019-R3 Off-cycle | I124: Complete | Q124: $0k | T124: $0k | W124: $0k | AW124: 2015-10-01 | AX124: 2019-11-01 | AY124: ERCOT | AZ124: Exempts QSEs that represent only ERS Resources and do not participate in the DAM, RTM and CRR markets (“ERS-only QSEs”) from the collateral and financial statement reporting requirements | BA124: Reg, Integration, Data Access & Transparency, CMM, DAIP | BB124: =LEFT(H124,4) -> 2019
A125: Business Strategy | B125: 2014 | C125: 980 | D125: NPRR543 | E125: PPL | F125: 152-01 | G125: Message for Confirmed E-Tags | H125: 2015-R3 | I125: Complete | Q125: <$10k | T125: $20k-$30k | AW125: 2014-09-01 | AX125: 2015-07-01 | AY125: Market | AZ125: Provides for notification when a confirmed Electronic Tag (e-Tag) is downloaded, cancelled, or curtailed by ERCOT’s systems | BA125: MMS, Data Access & Transparency, Integration | BB125: =LEFT(H125,4) -> 2015
A126: Business Strategy | B126: 2016 | C126: 980 | E126: PPL | F126: 196-01 | G126: GINR Project Status Application Replacement | H126: 2018-R4 off-cycle | I126: Complete | W126: $125k-$175k | Z126: $200k-$400k | AC126: $500k-$1M | AF126: $150k-$300k | AW126: 2016-03-01 | AX126: 2019-05-01 | AY126: ERCOT | AZ126: Replacement of existing GINR system and process | BA126: REG, Integration, Data Access & Transparency | BB126: =LEFT(H126,4) -> 2018
A127: Business Strategy | B127: 2014 | C127: 990 | D127: NPRR527 | E127: PPL | F127: 139-01 | G127: Required Combined Cycle Telemetry for Operational Awareness and PDCWG Analysis | H127: 2014-R5 Off-cycle | I127: Complete | Q127: $0k | T127: $0k | AW127: 2014-06-01 | AX127: 2014-11-01 | AY127: ERCOT | AZ127: Requires Combined Cycle Generation Resources to telemeter individual HSLs for gas and steam turbines | BA127: NMMS | BB127: =LEFT(H127,4) -> 2014
A128: Business Strategy | B128: 2014 | C128: 1000 | E128: CEER | F128: 187-03 | G128: Monthly BLT Payment and Charge for Presidio Exception | H128: 2016-R3 | I128: Complete | T128: $0k | AW128: 2015-05-01 | AX128: 2016-06-01 | AY128: Market | AZ128: Introduces a new monthly charge type allocated through monthly Load Ration Share (LRS) - Automation of NPRR553 | BA128: S&B | BB128: =LEFT(H128,4) -> 2016
A129: Business Strategy | B129: 2014 | C129: 1020 | D129: NPRR559 | E129: PPL | F129: 154-01 | G129: Revisions to MCE Calculation | H129: 2015-R3 Off-cycle | I129: Complete | AW129: 2014-09-01 | AX129: 2015-07-01 | AY129: ERCOT | AZ129: Revises the definition of the MCE component of TPE to allow adjustment for the revised Settlement cycle that will be effective with implementation of NPRR509, Shortened RTM Settlement Cycle | BA129: CMM | BB129: =LEFT(H129,4) -> 2015
A130: Business Strategy | B130: 2014 | C130: 1020 | D130: Various | E130: PPL | F130: 154-01 | G130: 2014 CMM NPRRs and SCRs | H130: 2015-R3 | I130: Complete | Q130: $20k-$40k | T130: $75k-$150k | AW130: 2014-09-01 | AX130: 2015-07-01 | AY130: ERCOT | AZ130: Parent project of NPRR559, NPRR597, NPRR601 and SCR778 | BA130: CMM, Integration | BB130: =LEFT(H130,4) -> 2015
A131: Business Strategy | B131: 2014 | C131: 1030 | D131: NPRR570 | E131: CEER | F131: 128-02 | G131: Reduce RTM Settlement Timeline to Operating Day Plus Five | H131: 2014-R2 | I131: Complete | Q131: See parent project PR088 | AW131: 2013-11-01 | AX131: 2014-05-01 | AY131: Market | AZ131: Proposes a phased approach to change the posting date for the RTM Initial Settlement Statement from 7 days after the OD to 5 days after the OD and changes the posting date of the Final Settlement Statement from the 57th day after the OD to the 55th day after the OD | BA131: Integration | BB131: =LEFT(H131,4) -> 2014
A132: Business Strategy | B132: 2014 | C132: 1040 | D132: NPRR571 | E132: CEER | F132: 128-05 | G132: ERS Weather-Sensitive Loads Requirements | H132: 2014-R5 | I132: Complete | Q132: See parent project PR088 | AW132: 2014-04-01 | AX132: 2014-10-01 | AY132: Market | AZ132: Establishes rules for participation in Emergency Response Service (ERS) by Loads with Demand response capability that is highly sensitive to weather conditions | BA132: MMS, DAIP, Integration | BB132: =LEFT(H132,4) -> 2014
A133: Business Strategy | B133: 2014 | C133: 1050 | D133: NPRR573 | E133: PPL | F133: 159-01 | G133: Alignment of PRC Calculation | H133: 2017-R3 | I133: Complete | AW133: 2014-11-01 | AX133: 2017-09-01 | AY133: ERCOT | AZ133: Aligns the Protocols with the current calculation used in the Energy Management System (EMS) to calculate Physical Responsive Capability (PRC), and adds capacity from Primary Frequency Response-capable Wind-powered Generation Resources (WGRs) to PRC | BA133: EMS | BB133: =LEFT(H133,4) -> 2017
A134: Business Strategy | B134: 2014 | C134: 1050 | E134: PPL | F134: 158-01 | G134: Load Forecast Enhancements | H134: 2017-R3 | I134: Complete | Q134: <$10k | T134: $10k-$30k | W134: $200k-$400k | Z134: $125k-$250k | AW134: 2014-09-01 | AX134: 2017-12-01 | AY134: ERCOT | AZ134: Improve the accuracy of the Mid-Term Load Forecast (MTLF) by providing it with more recent load values | BA134: EMS, Integration | BB134: =LEFT(H134,4) -> 2017
A135: Business Strategy | B135: 2017 | C135: 1050 | D135: Various | E135: PPL | F135: 159-01 | G135: Implementation of NPRR573 & NPRR801 | H135: 2017-R3 | I135: Complete | T135: <$10k | Z135: $50k-$150k | AW135: 2017-01-01 | AX135: 2017-09-01 | AY135: ERCOT | BA135: EMS, Integration, S&B | BB135: =LEFT(H135,4) -> 2017
A136: Business Strategy | B136: 2014 | C136: 1060 | D136: NPRR580 | E136: PPL | F136: 10052_01 | G136: Establishment of a Rolling CRR Balancing Account Fund | H136: 2014-R6 | I136: Complete | Q136: $0k | T136: $0k | AW136: 2014-06-01 | AX136: 2015-07-01 | AY136: ERCOT | AZ136: Establishes a rolling Balancing Account Fund | BA136: S&B, DAIP | BB136: =LEFT(H136,4) -> 2014
A137: Business Strategy | B137: 2014 | C137: 1070 | D137: SCR774 | E137: CEER | F137: 128-04 | G137: Enhancement to Outage Scheduler and Reports | H137: 2014-R5 | I137: Complete | Q137: See parent project PR128 | AW137: 2014-02-01 | AX137: 2014-09-01 | AY137: Market | AZ137: Adds fields to the Outage Scheduler in order to provide information on changes to approved Outages, and adds a report on cancelled Outages | BA137: OS, DAIP, Data Access & Transparency | BB137: =LEFT(H137,4) -> 2014
A138: Business Strategy | B138: 2014 | C138: 1080 | D138: NPRR556 | E138: PPL | F138: 176-01 | G138: Resource Adequacy During Transmission Equipment Outage | H138: 2015-R5 | I138: Complete | Q138: $0k | T138: $65k-$95k | W138: <$10k | AW138: 2015-08-01 | AX138: 2015-12-01 | AY138: Market | AZ138: Adds a requirement for the Network Operations Model so that Resources that are being served by temporary equipment can participate in the ERCOT market as in normal operations. | BA138: MMS | BB138: =LEFT(H138,4) -> 2015
A139: Business Strategy | B139: 2014 | C139: 1090 | D139: NPRR581 | E139: PPL | G139: Add Fast Responding Regulation Service as a Subset of Regulation Service | H139: 2014-R6 | I139: Complete | AW139: 2014-10-01 | AX139: 2014-12-01 | AY139: ERCOT | AZ139: Defines “Fast Responding Regulation Service (FRRS)” and specifies that FRRS is a subset of Regulation Service. Includes the necessary clarifications for the qualification, operation and performance monitoring of Resources providing FRRS, and specifies a maximum amount of Regulation Service for each hour that can be provided by Resources providing FRRS. | BA139: EMS, DAIP | BB139: =LEFT(H139,4) -> 2014
A140: Business Strategy | B140: 2014 | C140: 1100 | D140: SCR775 | E140: PPL | F140: 160-01 | G140: Posting Results of Real-Time Data in a Display Format | H140: 2015-R3 | I140: Complete | Q140: <$10k | T140: $50k-$75k | AW140: 2014-09-01 | AX140: 2015-07-01 | AY140: Market | AZ140: Adds two new displays to the Day-Ahead and Real-Time data displays section under the Market Information tab on the MIS: - RTD Load Zone Forecasted Prices - RTD Hub Forecasted Prices | BA140: MMS, Data Access & Transparency, DAIP, External Public | BB140: =LEFT(H140,4) -> 2015
A141: Business Strategy | B141: 2014 | C141: 1105 | D141: NPRR617 | E141: PPL | F141: 184-01 | G141: Energy Offer Flexibility | H141: 2016-R3 | I141: Complete | AW141: 2015-11-01 | AX141: 2016-09-01 | AY141: Market | AZ141: Seeks to correct inconsistencies regarding the restrictions on energy offers in the Day-Ahead Market (DAM) | BA141: S&B, MMS | BB141: =LEFT(H141,4) -> 2016
A142: Business Strategy | B142: 2015 | C142: 1105 | D142: Various | E142: PPL | F142: 184-01 | G142: NPRR617 and 700 Implementation | H142: 2016-R3 | I142: Complete | T142: <$10k | W142: $100k-$150k | AW142: 2015-11-01 | AX142: 2016-09-01 | AY142: ERCOT | AZ142: Project to deliver NPRR617 and NPRR700 | BA142: S&B, MMS, Integration | BB142: =LEFT(H142,4) -> 2016
A143: Business Strategy | B143: 2014 | C143: 1110 | D143: SCR777 | E143: PPL | F143: 181-01 | G143: Bilateral CRR Interface Enhancement | H143: 2018-R5 Off-cycle | I143: Complete | Q143: $0k | Z143: $0k | AW143: 2015-10-01 | AX143: 2019-04-01 | AY143: Market | AZ143: Implements a file upload/download feature for bilateral CRR transactions via the CRR interface | BA143: CRR | BB143: =LEFT(H143,4) -> 2018
A144: Business Strategy | B144: 2014 | C144: 1120 | D144: SCR778 | E144: PPL | F144: 154-01 | G144: Credit Exposure Calculations for NOIE Options Linked to RTM PTP Obligations | H144: 2015-R2 | I144: Complete | AW144: 2014-09-01 | AX144: 2015-07-01 | AY144: ERCOT | AZ144: 1. Modifies the Real-Time Liability (RTL) calc to reduce credit exposure to an estimated amount based on paragraph (1) of Section 7.9.2.1 2. Modifies the Outstanding Unpaid Transactions (OUT) calc to include credit exposure to an estimated amount based on paragraphs (3) and (4) of Section 4.6.3 | BA144: CMM, Integration | BB144: =LEFT(H144,4) -> 2015
A145: Business Strategy | B145: 2014 | C145: 1130 | D145: NPRR588 | E145: PPL | F145: 161-01 | G145: Clarifications for PV Generation Resources | H145: 2016-R1 | I145: Complete | AW145: 2014-10-01 | AX145: 2016-05-01 | AY145: Market | AZ145: Creates a definition of PhotoVoltaic Generation Resource (PVGR), and clarifies the treatment of such Resources within these Protocols | BA145: REG, Integration, MMS, S&B, DAIP, EMS, CIM, Data Access & Transparency | BB145: =LEFT(H145,4) -> 2016
A146: Business Strategy | B146: 2014 | C146: 1130 | D146: NPRR615 | E146: PPL | F146: 161-01 | G146: PVGR Forecasting | H146: 2016-R1 | I146: Complete | AW146: 2014-10-01 | AX146: 2016-05-01 | AY146: Market | AZ146: Establishes a definition for Short-Term PhotoVoltaic Power Forecast (STPPF) and clarifies the use of the resulting forecast within the Protocols | BA146: MMS, S&B, DAIP, EMS, Data Access & Transparency, NMMS | BB146: =LEFT(H146,4) -> 2016
A147: Business Strategy | B147: 2014 | C147: 1130 | D147: Various | E147: PPL | F147: 161-01 | G147: NPRRs 588 and 615 | H147: 2016-R1 | I147: Complete | T147: $300k-$400k | W147: $25k-$50k | AW147: 2014-10-01 | AX147: 2016-05-01 | AY147: Market | AZ147: Parent project of NPRR588 and NPRR615 | BA147: REG, Integration, MMS, S&B, DAIP, EMS, CIM, Data Access & Transparency, EWS | BB147: =LEFT(H147,4) -> 2016
A148: Business Strategy | B148: 2015 | C148: 1130 | D148: NPRR686 | E148: O&M | G148: Changing the IRR Forecast from Next 48 Hours to Next 168 Hours | H148: 2016-R1 | I148: Complete | AW148: 2015-10-01 | AX148: 2016-02-01 | AY148: ERCOT | AZ148: ERCOT has concluded that requiring QSEs to limit their HSLs to the STWPF and STPFF values for each of the next 168 hours could improve ERCOT’s operational visibility and help inform the Reliability Unit Commitment (RUC) process and the coordination of outages, while imposing little additional cost on QSEs | BA148: DAIP, EMS, DAIP, Data Access & Transparency, Integration | BB148: =LEFT(H148,4) -> 2016
A149: Business Strategy | B149: 2014 | C149: 1140 | D149: NPRR597 | E149: PPL | F149: 154-01 | G149: Utilize Initial Estimated Liability (IEL) Only During Initial Market Activity | H149: 2015-R3 Off-cycle | I149: Complete | AW149: 2014-09-01 | AX149: 2015-07-01 | AY149: ERCOT | AZ149: Clarifies that the Initial Estimated Liability (IEL) component of the Estimated Aggregate Liability (EAL) calculation is to be used only during the first 40 days of a Counter-Party’s activity in ERCOT markets | BA149: CMM | BB149: =LEFT(H149,4) -> 2015
A150: Business Strategy | B150: 2014 | C150: 1150 | D150: NPRR601 | E150: PPL | F150: 154-01 | G150: Inclusion of Incremental Exposure in Mass Transitions to Counter-Parties that are Registered as QSEs and LSEs and Provide POLR Service | H150: 2015-R3 Off-cycle | I150: Complete | AW150: 2014-09-01 | AX150: 2015-07-01 | AY150: ERCOT | AZ150: Revises the calculation of credit exposure for Counter-Parties that are registered as Qualified Scheduling Entities (QSEs) and Load Serving Entities (LSEs) and provide Provider of Last Resport (POLR) service as a result of Mass Transition of a defaulting Counrt-Party with Load | BA150: CMM | BB150: =LEFT(H150,4) -> 2015
A151: Business Strategy | B151: 2014 | C151: 1160 | D151: NPRR620 | E151: PPL | F151: 183-01 | G151: Collateral Requirements for Counter-Parties with No Load or Generation | H151: 2019-R3 Off-cycle | I151: Complete | T151: $0k | W151: $0k | AW151: 2016-03-01 | AX151: 2019-11-01 | AY151: ERCOT | AZ151: Revises the calculation of credit exposure for Counter-Parties that represent neither Load nor generation | BA151: CMM, DAIP | BB151: =LEFT(H151,4) -> 2019
A152: Business Strategy | B152: 2014 | C152: 1190 | E152: PPL | F152: 2014 PC | G152: Program Control - 2014 | H152: 2014-Various | I152: Complete | Q152: $250k-$500k | AW152: 2014-01-01 | AX152: 2014-12-01 | AY152: ERCOT | AZ152: Project to account for time spend providing project portfolio oversight within Business Planning & Integration | BA152: n/a | BB152: =LEFT(H152,4) -> 2014
A153: Business Strategy | B153: 2015 | C153: 1195 | D153: NPRR639 | E153: PPL | F153: 154-01 | G153: Correction to Minimum Current Exposure | H153: 2015-R3 Off-cycle | I153: Complete | AW153: 2015-02-01 | AX153: 2015-07-01 | AY153: Market | AZ153: The Minimum Current Exposure (MCE) calculation, which is part of the Total Potential Exposure (TPE) credit evaluation, fails to recognize net purchases of firm physical power, which is a crucial and widely utilized means to fulfill Load serving obligations | BA153: Integration, CMM | BB153: =LEFT(H153,4) -> 2015
A154: Business Strategy | B154: 2015 | C154: 1200 | D154: NPRR515 | E154: PPL | F154: 175-01 | G154: Day-Ahead Market Self-Commitment of Generation Resources | H154: 2016-R3 | I154: Complete | T154: $100k-$200k | W154: $75k-$150k | AW154: 2015-07-01 | AX154: 2016-08-01 | AY154: ERCOT | AZ154: Adds a DAM mechanism for self-committing Generation Resources on an hourly basis; and makes a minor clarification to the description of the timing of the Simultaneous Feasibility Test (SFT) process. | BA154: MMS | BB154: =LEFT(H154,4) -> 2016
A155: Business Strategy | B155: 2014 | C155: 1220 | D155: NPRR589 | E155: O&M | G155: Ancillary Service Offers in the Supplemental Ancillary Services Market | H155: 2015-R5 | I155: Complete | Q155: $0k | T155: $0k | AW155: 2015-03-01 | AX155: 2015-10-01 | AY155: Market | AZ155: Adds language to the Supplemental Ancillary Services Market (SASM) timeline to allow Qualified Scheduling Entities (QSEs) to submit Ancillary Service Offers after notification of the need to run a SASM | BA155: S&B, Integration | BB155: =LEFT(H155,4) -> 2015
A156: Business Strategy | B156: 2015 | C156: 1230 | D156: RRGRR003 | E156: PPL | F156: 200-01 | G156: Modifications to Improve Wind Forecasting | H156: 2017-R2 off-cycle | I156: Complete | T156: $0k | AW156: 2016-07-01 | AX156: 2017-06-01 | AY156: ERCOT | AZ156: Proposes modifications to the Resource Registration Glossary to improve ERCOT wind forecasting during weather related shutdown events | BA156: RARF | BB156: =LEFT(H156,4) -> 2017
A157: Business Strategy | B157: 2015 | C157: 1230 | D157: RRGRR006 | E157: PPL | F157: 200-01 | G157: Clarification of Descriptions and Alignment with Resource Asset Registration Forms | H157: 2017-R2 off-cycle | I157: Complete | T157: $0k | AW157: 2016-07-01 | AX157: 2017-06-01 | AY157: Market | AZ157: Clarifies descriptions for various data elements in the RARF | BA157: RARF | BB157: =LEFT(H157,4) -> 2017
A158: Business Strategy | B158: 2016 | C158: 1230 | D158: Various | E158: PPL | F158: 200-01 | G158: 2016 RARF Enhancements | H158: 2017-R2 off-cycle | I158: Complete | W158: $25k-$50k | Z158: $100k-$150k | AW158: 2016-07-01 | AX158: 2017-06-01 | AY158: ERCOT | AZ158: Parent project for multiple RRGRRs | BA158: RARF | BB158: =LEFT(H158,4) -> 2017
A159: Business Strategy | B159: 2015 | C159: 1240 | D159: NPRR219 | E159: PPL | F159: 174-01 | G159: Resolution of Alignment Items A33, A92, A106, and A150 - TSPs Must Submit Outages for Resource Owned Equipment and Clarification of Changes in Status of Transmission Element Postings | H159: 2016-R5 | I159: Complete | AW159: 2015-07-01 | AX159: 2016-12-01 | AY159: ERCOT | AZ159: Requires the Resource Entity to designate a TSP as the responsible Entity that will manage Outage Scheduler entries for the Resource Entity for Transmission Elements owned by the Resource | BA159: Integration, MMS, OS, DAIP, EMS, Data Access & Transparency | BB159: =LEFT(H159,4) -> 2016
A160: Business Strategy | B160: 2015 | C160: 1240 | D160: SCR783 | E160: PPL | F160: 174-01 | G160: Outage Scheduler Enhancements – Group 2, Usability and Filtering Enhancements | H160: 2016-R5 | I160: Complete | AW160: 2015-07-01 | AX160: 2016-12-01 | AY160: ERCOT | AZ160: Provides group outage, usability and filtering enhancements in the Outage Scheduler | BA160: OS, DAIP | BB160: =LEFT(H160,4) -> 2016
A161: Business Strategy | B161: 2015 | C161: 1240 | D161: Various | E161: PPL | F161: 174-01 | G161: 2015 Outage Scheduler Enhancements | H161: 2016-R5 | I161: Complete | T161: $350k-$500k | W161: $500k-$1M | AW161: 2015-07-01 | AX161: 2016-12-01 | AY161: ERCOT | AZ161: Project to deliver SCR783 and NPRR219 | BA161: Integration, MMS, OS, DAIP, EMS, Data Access & Transparency | BB161: =LEFT(H161,4) -> 2016
A162: Business Strategy | B162: 2016 | C162: 1240 | D162: NOGRR050 | E162: PPL | F162: 174-01 | G162: Resolution of Reporting Issues Related to NPRR219 | H162: 2016-R5 | I162: Complete | AW162: 2016-06-01 | AX162: 2016-12-01 | AY162: Market | AZ162: Proposes revisions to remove the requirement for ERCOT to produce several reports related to Outage Scheduling from the current Nodal Operating Guide and proposes inserting those requirements as grey-box language until such time ERCOT Systems can be changed to include only the TSP's Outages in the reports | BA162: MMS, Data Access & Transparency, DAIP, EMS | BB162: =LEFT(H162,4) -> 2016
A163: Business Strategy | B163: 2015 | C163: 1250 | E163: PPL | F163: 169-01 | G163: Short Circuit Ratio Functionality | H163: 2016-R4 | I163: Complete | T163: $50k-$100k | W163: $500k-$1M | AW163: 2015-03-01 | AX163: 2016-11-01 | AY163: ERCOT | AZ163: Implement a set of tools, processes and procedures that will be used in studies to ensure the WSCR limit is calculated correctly. In addition, calculate WSCR for specific regions in real time to identify maximum regional power export limit and display this value in EMS and DSA. | BA163: EMS | BB163: =LEFT(H163,4) -> 2016
A164: Business Strategy | B164: 2016 | C164: 1255 | E164: PPL | F164: 173-01 | G164: Serena Software (MarkeTrak) Upgrade | H164: 2017-R1 | I164: Complete | T164: $50k-$100k | W164: $200k-$300k | Z164: $25k-$75k | AW164: 2016-04-01 | AX164: 2017-06-01 | AY164: ERCOT | BA164: Retail | BB164: =LEFT(H164,4) -> 2017
A165: Business Strategy | B165: 2015 | C165: 1260 | E165: PPL | F165: 173-02 | G165: ERCOT Flight Certification Website | H165: 2019-R3 | I165: Complete | W165: <$10k | Z165: $200k-$300k | AC165: $250k-$750k | AF165: $150k-$300k | AW165: 2015-04-01 | AX165: 2019-11-01 | AY165: ERCOT | AZ165: Replace the external web interface utilized by ERCOT and market participants for the purpose of retail market testing. | BA165: Data Access & Transparency, REG, Retail, Integration | BB165: =LEFT(H165,4) -> 2019
A166: Business Strategy | B166: 2016 | C166: 1265 | E166: PPL | F166: 191-01 | G166: CRR Auction Improvements | H166: 2016-R4 | I166: Complete | W166: $50k-$100k | AW166: 2016-03-01 | AX166: 2016-12-01 | AY166: ERCOT | BA166: CRR | BB166: =LEFT(H166,4) -> 2016
A167: Business Strategy | B167: 2016 | C167: 1265 | E167: PPL | F167: 191-01 | G167: Improved CRR Credit Limit Display and Calculation Triggers | H167: 2016-R4 | I167: Complete | AW167: 2016-03-01 | AX167: 2016-12-01 | AY167: ERCOT | BA167: N/A | BB167: =LEFT(H167,4) -> 2016
A168: Business Strategy | B168: 2015 | C168: 1270 | E168: PPL | F168: 181-01 | G168: CRR Framework Upgrade | H168: 2018-R5 Off-cycle | I168: Complete | T168: $10k-$20k | W168: $250k-$750k | Z168: $1M-$2M | AC168: $500k-$1M | AF168: <$50k | AW168: 2015-10-01 | AX168: 2019-04-01 | AY168: ERCOT | AZ168: Improve the ability to support and maintain the CRR system by upgrading the User Interface framework and its related components to current versions. Also, allow for newer browsers to be used by Market Participants when participating in auctions. | BA168: CRR | BB168: =LEFT(H168,4) -> 2018
A169: Business Strategy | B169: 2015 | C169: 1280 | D169: ECAP | E169: PPL | F169: 170-01 | G169: Enterprise Content Alignment Program | H169: 2018-R4 off-cycle | I169: Canceled | T169: $100k-$200k | W169: <$10k | Z169: $100k-$200k | AC169: $50k-$100k | AY169: ERCOT | AZ169: Program to enhance ERCOT's overall content management capability | BA169: External Public | BB169: =LEFT(H169,4) -> 2018
A170: Business Strategy | B170: 2015 | C170: 1280 | D170: ECAP | E170: PPL | F170: 170-02 | G170: ECAP - Identity | H170: 2016-R6 | I170: Complete | AW170: 2015-04-01 | AX170: 2016-12-01 | AY170: ERCOT | AZ170: Sub-project of the ECAP program. It is an O&M effort to review ERCOT's branding and public identity. | BA170: External Public | BB170: =LEFT(H170,4) -> 2016
A171: Business Strategy | B171: 2016 | C171: 1280 | D171: ECAP | E171: PPL | F171: 170-03 | G171: ECAP - Enterprise Content Management System (Proof of Concept) | H171: 2017-R1 | I171: Complete | T171: <$10k | W171: $50k-$150k | Z171: $100k-$200k | AW171: 2015-11-01 | AX171: 2017-04-01 | AY171: ERCOT | AZ171: Sub-project of the ECAP program. | BA171: External Public | BB171: =LEFT(H171,4) -> 2017
A172: Business Strategy | B172: 2016 | C172: 1280 | D172: ECAP | E172: PPL | F172: 170-04 | G172: ECAP - ERCOT Information Governance and Taxonomy | H172: 2017-R1 off-cycle | I172: Complete | T172: <$10k | W172: $200k-$300k | Z172: $100k-$200k | AW172: 2015-11-01 | AX172: 2017-04-01 | AY172: ERCOT | AZ172: Sub-project of the ECAP program. | BA172: External Public | BB172: =LEFT(H172,4) -> 2017
A173: Business Strategy | B173: 2016 | C173: 1280 | D173: ECAP | E173: PPL | F173: 170-05 | G173: ECAP - ERCOT Identity Alignment | H173: 2016-R3 | I173: Complete | T173: <$10k | W173: $150k-$250k | AW173: 2015-12-01 | AX173: 2016-11-01 | AY173: ERCOT | AZ173: Sub-project of the ECAP program. | BA173: External Public | BB173: =LEFT(H173,4) -> 2016
A174: Business Strategy | B174: 2017 | C174: 1280 | D174: ECAP | E174: PPL | F174: 170-06 | G174: ECAP - ECMS Implementation Phase 1 | H174: 2019-R1 Off-cycle | I174: Complete | Z174: $10k-$20k | AC174: $500k-$1.5M | AF174: $150k-$300k | AW174: 2017-08-01 | AX174: 2019-07-01 | AY174: ERCOT | BA174: Corp | BB174: =LEFT(H174,4) -> 2019
A175: Business Strategy | B175: 2018 | C175: 1280 | D175: ECAP | E175: PPL | F175: 170-07 | G175: ECAP - ECMS Implementation Phase 2 | H175: 2020-R5 off-cycle | I175: Execution | AC175: $0k | AF175: $500k-$1.0M | AI175: $1.5k-$3M | AL175: $2M-$5M | AO175: $150k-$300k | AW175: 2019-02-01 | AX175: 2022-03-01 | AY175: ERCOT | AZ175: The ECMS Phase 2 project will implement a solution to manage content in alignment with Information Governance and RIM policies, Other ERCOT systems integration, Managed metadata as defined by the ERCOT taxonomy. Furthermore, this solution establishes the foundation for an improved user experience on ERCOT.com and MIS by including Improved search, Mobile friendly displays, Accurate information due to a single source of truth. ECMS, through the selection of industry leading products, may provide the foundation for Business Process automation across ERCOT. Future phases will bring efficiencies to development, infrastructure, and operations as we move to a single platform. ECMS supports the promotion of a service based design pattern in alignment with the design system for ERCOT web applications. This project will align the people, processes, and technologies used to create and publish ERCOT content. This simplifies the business process for change, reduces cost and redundancy of content which is spread across a number of systems. | BA175: DAIP, External Public, Data Access & Transparency, NoticeBuilder, Corp, Integration | BB175: =LEFT(H175,4) -> 2020 | BC175: Corporate Communications | BD175: Content Management | BE175: ECMS Phase 2 | BF175: Collaboration | BG175: Yes | BH175: Enterprise Improvements | BI175: Strategic
A176: Business Strategy | B176: 2015 | C176: 1290 | D176: RMGRR126 | E176: PPL | F176: 188-01 | G176: Additional ERCOT Validations for Customer Billing Contact Information File | H176: 2016-R4 | I176: Complete | T176: $0k | W176: $0k | AW176: 2016-01-01 | AX176: 2016-07-01 | AY176: Market | AZ176: Requires ERCOT to validate that the submitting Competitive Retailer's (CR's) DUNS Number (DUNS #) and the Electric Service Identifiers (ESI IDs) provided in the Customer Billing Contact Information file are valid in the ERCOT registration system | BA176: DAIP, Retail, Integration | BB176: =LEFT(H176,4) -> 2016
A177: Business Strategy | B177: 2016 | C177: 1290 | D177: Various | E177: PPL | F177: 188-01 | G177: Mass Transition/Acquisition Enhancements (MTAQ) | H177: 2017-R3 | I177: Complete | W177: $100k-$200k | Z177: $25k-$75k | AW177: 2016-01-01 | AX177: 2017-10-01 | AY177: ERCOT | AZ177: Parent project of various Retail system changes | BA177: Retail, DAIP | BB177: =LEFT(H177,4) -> 2017
A178: Business Strategy | B178: 2015 | C178: 1300 | D178: NPRR683 | E178: PPL | F178: 183-01 | G178: Revision to Available Credit Limit Calculation | H178: 2018-R1 | I178: Complete | T178: $0k | W178: $0k | AW178: 2015-10-01 | AX178: 2019-11-01 | AY178: Market | AZ178: Revises the calculation of ACLC and ACLD by replacing the existing 10% discount to the ACL based on the Counter-Party’s unused letter of credit amount with a 10% gross up of the sum of the TPEA and the TPES | BA178: CMM | BB178: =LEFT(H178,4) -> 2018
A179: Business Strategy | B179: 2015 | C179: 1310 | D179: NPRR662 | E179: PPL | F179: 186-01 | G179: Proxy Energy Offer Curves | H179: 2016-R4 | I179: Complete | T179: <$5k | W179: $100k-$125k | AW179: 2015-12-01 | AX179: 2016-10-01 | AY179: Market | AZ179: Addresses proxy Energy Offer Curves generated by ERCOT for a Resource that does not submit an Energy Offer Curve or submits an incomplete Energy Offer Curve | BA179: S&B, MMS | BB179: =LEFT(H179,4) -> 2016
A180: Business Strategy | B180: 2015 | C180: 1330 | D180: NPRR680 | E180: PPL | F180: 178-01 | G180: Allow QSEs to Self-Arrange AS Quantities Greater Than Their AS Obligation | H180: 2015-R6 | I180: Complete | T180: $20k-$30k | W180: <$10k | AW180: 2015-09-01 | AX180: 2016-02-01 | AY180: ERCOT | AZ180: Allows a QSE to submit Self-Arranged Ancillary Service Quantities in excess of its Ancillary Service Obligations by up to 100 MW and to receive appropriate compensation for those self-arranged quantities | BA180: MMS | BB180: =LEFT(H180,4) -> 2015
A181: Business Strategy | B181: 2015 | C181: 1340 | D181: NPRR700 | E181: PPL | F181: 184-01 | G181: Utilizing Actual Fuel Costs in Startup Offer Caps | H181: 2016-R3 | I181: Complete | AW181: 2015-11-01 | AX181: 2016-09-01 | AY181: Market | AZ181: Incorporates the actual fuel costs into the DAM and RUC procurement process and DAM Make-Whole Payment calculation | BA181: S&B, Integration | BB181: =LEFT(H181,4) -> 2016
A182: Business Strategy | B182: 2015 | C182: 1350 | D182: NPRR706 | E182: PPL | F182: 149-02 | G182: Restore the Ability to Use Physical Responsive Reserve Capability as an Indicator of Available Frequency-Responsive Capacity | H182: 2015-R5 Off-cycle | I182: Complete | AW182: 2015-08-01 | AX182: 2016-02-01 | AY182: ERCOT | AZ182: Revises the calculation of Physical Responsive Capability (PRC) to more accurately indicate the amount of capacity that is available to respond to a frequency disturbance | BA182: EMS | BB182: =LEFT(H182,4) -> 2015
A183: Business Strategy | B183: 2015 | C183: 1360 | D183: NPRR710 | E183: PPL | F183: 149-02 | G183: Removal of ORDC Phase 2 Language and Modification to HASL Calculation | H183: 2015-R5 Off-cycle | I183: Complete | AW183: 2015-08-01 | AX183: 2016-02-01 | AY183: ERCOT | AZ183: Changes the High Ancillary Service Limit (HASL) calculation to remove Non-Frequency Responsive Capacity (NFRC) included in a Generation Resource’s High Sustained Limit (HSL) | BA183: EMS, DAIP | BB183: =LEFT(H183,4) -> 2015
A184: Business Strategy | B184: 2016 | C184: 1365 | D184: NPRR764 | E184: PPL | F184: 201-01 | G184: QSE Capacity Short Calculations Based on an 80% Probability of Exceedance (P80) | H184: 2017-R1 | I184: Complete | W184: $15k-$30k | Z184: $25k-$75k | AW184: 2016-08-01 | AX184: 2017-06-01 | AY184: ERCOT | AZ184: Bases RUC capacity short calculations on the Wind-Powered Generation Resource Production Potential (WGRPP) for a Wind-powered Generation Resource (WGR) and the PhotoVoltaic Generation Resource Production Potential (PVGRPP) for a PhotoVoltaic Generation Resource (PVGR)–i.e., an 80% probability of exceedance (P80) | BA184: S&B, EMS, Integration | BB184: =LEFT(H184,4) -> 2017
A185: Business Strategy | B185: 2015 | C185: 1370 | D185: NPRR714 | E185: PPL | G185: Real-Time Make-Whole Payment for Exceptional Fuel Cost | H185: N/A | I185: Canceled | W185: $0k | Z185: $0k | AY185: Market | AZ185: Implements a Real-Time Make-Whole Payment provision to address exceptional fuel cost events that are not resolved by a change to the Fuel Index Price for Resource (FIPRr) | BA185: S&B | BB185: =LEFT(H185,4) -> N/A
A186: Business Strategy | B186: 2015 | C186: 1400 | D186: NPRR664 | E186: PPL | G186: Index Fuel Price | H186: N/A | I186: Canceled | AY186: Market | AZ186: Introduces a Fuel Index Price for Resource (FIPRr) | BA186: MMS, S&B, Integration, DAIP, REG | BB186: =LEFT(H186,4) -> N/A
A187: Business Strategy | B187: 2015 | C187: 1410 | E187: PPL | F187: 177-01 | G187: Cyber Security Project #19 | H187: 2017-R3 off-cycle | I187: Complete | T187: $10k-$20k | W187: $200k-$400k | Z187: $50k-$150k | AW187: 2015-09-01 | AX187: 2017-09-01 | AY187: ERCOT | AZ187: Enhance a specific area of ERCOT's cyber security capability | BA187: Security | BB187: =LEFT(H187,4) -> 2017
A188: Business Strategy | B188: 2015 | C188: 1420 | E188: PPL | F188: 180-01 | G188: Upgrade of MDM - GEMS | H188: 2016-R5 off-cycle | I188: Complete | T188: <$10k | W188: $100k-$200k | AW188: 2015-10-01 | AX188: 2016-11-01 | AY188: ERCOT | BA188: Security | BB188: =LEFT(H188,4) -> 2016
A189: Business Strategy | B189: 2016 | C189: 1450 | E189: PPL | F189: 193-01 | G189: PMU Tool Evaluation and Implementation | H189: 2019-R2 | I189: Complete | W189: $10k-$20k | Z189: $500k-$1M | AC189: $250k-$500k | AF189: $150k-$300k | AI189: <$20k | AW189: 2016-03-01 | AX189: 2020-04-01 | AY189: ERCOT | BA189: EMS | BB189: =LEFT(H189,4) -> 2019
A190: Business Strategy | B190: 2016 | C190: 1500 | D190: RRGRR007 | E190: PPL | F190: 200-01 | G190: Adding Solar Resource Registration Inputs | H190: 2017-R2 off-cycle | I190: Complete | AW190: 2016-07-01 | AX190: 2017-06-01 | AY190: ERCOT | BA190: RARF | BB190: =LEFT(H190,4) -> 2017
A191: Business Strategy | B191: 2016 | C191: 1505 | D191: RRGRR009 | E191: PPL | F191: 200-01 | G191: Adding Voltage Limit Sets, Relay Loadability, MLSE, and GMD Data | H191: 2017-R2 off-cycle | I191: Complete | AW191: 2016-07-01 | AX191: 2017-06-01 | AY191: ERCOT | BA191: RARF, NMMS | BB191: =LEFT(H191,4) -> 2017
A192: Business Strategy | B192: 2016 | C192: 1510 | D192: SCR786 | E192: PPL | F192: 192-01 | G192: Retail Market Test Environment | H192: 2016-R6 | I192: Complete | W192: $100k-$150k | Z192: <$10k | AW192: 2016-03-01 | AX192: 2017-03-01 | AY192: Market | BA192: Data Access & Transparency | BB192: =LEFT(H192,4) -> 2016
A193: Business Strategy | B193: 2016 | C193: 1520 | D193: NPRR649 | E193: PPL | F193: 213-01 | G193: Addressing Issues Surrounding High Dispatch Limit (HDL) Overrides | H193: 2017-R1 | I193: Complete | W193: $25k-$50k | Z193: $15k-$30k | AW193: 2016-09-01 | AX193: 2017-02-01 | AY193: ERCOT | BA193: S&B, Integration, EMS, DAIP, REG | BB193: =LEFT(H193,4) -> 2017
A194: Business Strategy | B194: 2016 | C194: 1530 | D194: NOGRR147 | E194: PPL | F194: 199-01 | G194: Reactive Power Testing Requirements | H194: 2016-R6 | I194: Complete | AW194: 2016-06-01 | AX194: 2017-02-01 | AY194: Market | BA194: Data Access & Transparency, DAIP, NDCRC | BB194: =LEFT(H194,4) -> 2016
A195: Business Strategy | B195: 2016 | C195: 1530 | D195: Various | E195: PPL | F195: 199-01 | G195: NOGRR147 and SCR787 NDCRC Enhancement | H195: 2016-R6 | I195: Complete | W195: $75k-$150k | Z195: <$10k | AW195: 2016-06-01 | AX195: 2017-02-01 | AY195: ERCOT | BA195: NDCRC, Data Access & Transparency, DAIP | BB195: =LEFT(H195,4) -> 2016
A196: Business Strategy | B196: 2016 | C196: 1550 | D196: NPRR702 | E196: PPL | G196: Flexible Accounts, Payment of Invoices, and Disposition of Interest on Cash Collateral | H196: N/A | I196: Deleted | W196: $0k | AF196: $0k | AI196: $0k | AL196: $0k | AO196: $0k | AY196: ERCOT | AZ196: This Nodal Protocol Revision Request (NPRR) provides rules and procedures for Flexible Accounts, which may be used by a Counter-Party to make payments to and/or receive payments from ERCOT. This NPRR also addresses payment of Invoices and provides for annual disposition of interest on Cash Collateral. | BA196: FT, CMM, DAIP, External Public | BB196: =LEFT(H196,4) -> N/A | BC196: Corporate Services | BD196: Administration | BE196: NPRR702 - Cash Collateral | BG196: No
A197: Business Strategy | B197: 2016 | C197: 1555 | D197: NPRR741 | E197: PPL | F197: 183-01 | G197: Clarifications to TPE and EAL Credit Exposure Calculations | H197: 2019-R3 Off-cycle | I197: Complete | W197: $0k | AW197: 2016-07-01 | AX197: 2019-11-01 | AY197: ERCOT | AZ197: Provides additional clarity to Market Participants by removing discrepancies in Protocol language, correcting formulas to agree to as-implemented form, simplifies formulas by eliminating unused terms, and provides more detailed explanations of credit calculation components | BA197: CMM | BB197: =LEFT(H197,4) -> 2019
A198: Business Strategy | B198: 2016 | C198: 1558 | D198: NPRR760 | E198: PPL | F198: 183-01 | G198: Calculation of Exposure Variables For Days With No Activity | H198: 2018-R1 | I198: Complete | AW198: 2017-03-01 | AX198: 2019-11-01 | AY198: Market | BA198: CMM, DAIP | BB198: =LEFT(H198,4) -> 2018
A199: Business Strategy | B199: 2016 | C199: 1559 | D199: NPRR755 | E199: PPL | F199: 183-01 | G199: Data Agent-Only QSE Registration | H199: 2019-R3 | I199: Complete | AW199: 2017-03-01 | AX199: 2019-11-01 | AY199: ERCOT | BA199: CMM, REG, Integration, MMS, DAIP | BB199: =LEFT(H199,4) -> 2019
A200: Business Strategy | B200: 2016 | C200: 1560 | D200: NPRR743 | E200: PPL | F200: 183-01 | G200: Revision to MCE to Have a Floor For Load Exposure | H200: 2018-R1 | I200: Complete | W200: $0k | AW200: 2016-07-01 | AX200: 2019-11-01 | AY200: ERCOT | AZ200: Revises the Minimum Current Exposure (MCE) calculation to maintain a floor for Load exposure | BA200: CMM, Integration, DAIP | BB200: =LEFT(H200,4) -> 2018
... 540 more rows

Sheet PPL Update Log
A1: Summary of PPL Changes to Key Fields
A2: Approval Date | B2: Project Category | C2: Rank | D2: Source Doc | E2: Project Number | F2: Project | G2: Field Changed | H2: New Value | I2: Comments
A3: 2011-08-24 | B3: Business Strategy | C3: 20 | D3: SCR760 | E3: 025-26 | F3: Recommended Changes Needed for Information Model Mgr and Topology Processor for Planning Models | G3: 2012 Budget Range | H3: $500k-$600k | I3: ER Approval
A4: 2011-08-24 | B4: Business Strategy | C4: 20 | D4: SCR760 | E4: 025-26 | F4: Recommended Changes Needed for Information Model Mgr and Topology Processor for Planning Models | G4: Project Status | H4: Execution | I4: ER Approval
A5: 2011-08-24 | B5: Stabilization | C5: 310 | E5: n/a | F5: Decommissioning Efforts | G5: Projected End Date | H5: 2011-12-01 | I5: ER Approval
A6: 2011-08-24 | B6: Stabilization | C6: 190 | D6: SCR762 | E6: n/a | F6: Enable a Single Step Cancel/Resubmit of Trades | G6: Project Status | H6: Execution | I6: ER Approval
A7: 2011-08-24 | B7: Stabilization | C7: 190 | D7: SCR762 | E7: n/a | F7: Enable a Single Step Cancel/Resubmit of Trades | G7: Projected End Date | H7: 2011-10-01 | I7: ER Approval
A8: 2011-08-24 | B8: Stabilization | C8: 180 | D8: NPRR310 | E8: n/a | F8: Expand Output Schedule Acceptable Range to Include HSL and LSL | G8: Project Status | H8: Execution | I8: ER Approval
A9: 2011-08-24 | B9: Stabilization | C9: 180 | D9: NPRR310 | E9: n/a | F9: Expand Output Schedule Acceptable Range to Include HSL and LSL | G9: Projected End Date | H9: 2011-12-01 | I9: ER Approval
A10: 2011-08-24 | B10: Stabilization | C10: 210 | D10: SCR763 | E10: n/a | F10: Modify COP Validation Rule for RRS | G10: Project Status | H10: Execution | I10: ER Approval
A11: 2011-08-24 | B11: Stabilization | C11: 210 | D11: SCR763 | E11: n/a | F11: Modify COP Validation Rule for RRS | G11: Projected End Date | H11: 2011-12-01 | I11: ER Approval
A12: 2011-08-24 | B12: Stabilization | C12: 300 | D12: NPRR316 | E12: n/a | F12: Negative Self-Arranged Ancillary Services Quantity | G12: Project Status | H12: Execution | I12: ER Approval
A13: 2011-08-24 | B13: Stabilization | C13: 300 | D13: NPRR316 | E13: n/a | F13: Negative Self-Arranged Ancillary Services Quantity | G13: Projected End Date | H13: 2011-12-01 | I13: ER Approval
A14: 2011-08-24 | B14: Stabilization | C14: 40 | D14: SCR760 | E14: 025-26 | F14: Recommended Changes Needed for Information Model Mgr and Topology Processor for Planning Models | G14: 2011 Budget Range | H14: $500k-$600k | I14: ER Approval
A15: 2011-08-24 | B15: Stabilization | C15: 40 | D15: SCR760 | E15: 025-26 | F15: Recommended Changes Needed for Information Model Mgr and Topology Processor for Planning Models | G15: Project Status | H15: Execution | I15: ER Approval
A16: 2011-08-31 | B16: Stabilization | C16: 390 | E16: 001-51 | F16: TML Transition to MIS | G16: 2011 Budget Range | H16: $50k-$75k | I16: ER Approval
A17: 2011-08-31 | B17: Stabilization | C17: 390 | E17: 001-51 | F17: TML Transition to MIS | G17: Project Status | H17: Execution | I17: ER Approval
A18: 2011-08-31 | B18: Stabilization | C18: 390 | E18: 001-51 | F18: TML Transition to MIS | G18: Projected End Date | H18: 2011-12-01 | I18: ER Approval
A19: 2011-09-01 | B19: Business Strategy | C19: 50 | D19: NPRR365 | E19: 018-01 | F19: Change in Resource Outage Approvals from Eight to 45 Days | G19: Approval Status | H19: Pending Board Approval | I19: TAC Approval
A20: 2011-09-07 | B20: Business Strategy | C20: 2 | E20: 001-47 | F20: RARF Upgrade for Wind, Solar, and Storage Resources | G20: 2012 Budget Range | H20: $10k-$15k | I20: ER Approval
A21: 2011-09-07 | B21: Business Strategy | C21: 2 | E21: 001-47 | F21: RARF Upgrade for Wind, Solar, and Storage Resources | G21: Project Status | H21: Execution | I21: ER Approval
A22: 2011-09-07 | B22: Business Strategy | C22: 2 | E22: 001-47 | F22: RARF Upgrade for Wind, Solar, and Storage Resources | G22: Projected End Date | H22: 2012-02-01 | I22: ER Approval
A23: 2011-09-07 | B23: Stabilization | C23: 3 | E23: 001-47 | F23: RARF Upgrade for Wind, Solar, and Storage Resources | G23: 2011 Budget Range | H23: $100k-$125k | I23: ER Approval
A24: 2011-09-07 | B24: Stabilization | C24: 3 | E24: 001-47 | F24: RARF Upgrade for Wind, Solar, and Storage Resources | G24: Project Status | H24: Execution | I24: ER Approval
A25: 2011-09-14 | B25: Efficiencies / Enhancements | C25: 2 | E25: 007-01 | F25: Cyber Security Facilities Remodeling | G25: Project Status | H25: Execution | I25: ER Approval
A26: 2011-09-14 | B26: Efficiencies / Enhancements | C26: 2 | E26: 007-01 | F26: Cyber Security Facilities Remodeling | G26: Projected End Date | H26: 2011-12-01 | I26: ER Approval
A27: 2011-09-14 | B27: Efficiencies / Enhancements | C27: 3 | E27: 007-01 | F27: Human Resources Facilities Remodeling | G27: 2011 Budget Range | H27: $200k-$250k | I27: ER Approval
A28: 2011-09-14 | B28: Efficiencies / Enhancements | C28: 3 | E28: 007-01 | F28: Human Resources Facilities Remodeling | G28: Project Status | H28: Execution | I28: ER Approval
A29: 2011-09-14 | B29: Efficiencies / Enhancements | C29: 3 | E29: 007-01 | F29: Human Resources Facilities Remodeling | G29: Projected End Date | H29: 2011-12-01 | I29: ER Approval
A30: 2011-09-14 | B30: Efficiencies / Enhancements | C30: 4 | E30: 007-01 | F30: Shipping/Receiving Remodeling | G30: Project Status | H30: Execution | I30: ER Approval
A31: 2011-09-14 | B31: Efficiencies / Enhancements | C31: 4 | E31: 007-01 | F31: Shipping/Receiving Remodeling | G31: Projected End Date | H31: 2011-12-01 | I31: ER Approval
A32: 2011-09-14 | B32: Stabilization | C32: 240 | D32: NPRR343 | E32: n/a | F32: CRR Bid and PTP Obligation Bid Criteria Change | G32: 2011 Budget Range | H32: $300k-$350k | I32: ER Approval
A33: 2011-09-14 | B33: Stabilization | C33: 240 | D33: NPRR343 | E33: n/a | F33: CRR Bid and PTP Obligation Bid Criteria Change | G33: Project Status | H33: Execution | I33: ER Approval
A34: 2011-09-20 | B34: Business Strategy | C34: 410 | D34: NPRR241 | E34: TBD | F34: AIL Calculation & Credit Reports Publish Corrections | G34: Approval Status | H34: PPL | I34: Board Approval
A35: 2011-09-20 | B35: Business Strategy | C35: 230 | D35: NPRR321 | E35: 013-01 | F35: Allow Change to Energy Offer Curve MW Amounts in the Adjustment Period for Qualifying Facilities | G35: Approval Status | H35: PPL | I35: Board Approval
A36: 2011-09-20 | B36: Business Strategy | C36: 50 | D36: NPRR365 | E36: 018-01 | F36: Change in Resource Outage Approvals from Eight to 45 Days | G36: Approval Status | H36: PPL | I36: Board Approval
A37: 2011-09-20 | B37: Business Strategy | C37: 200 | D37: NPRR272 | E37: 079-01 | F37: Definition and Participation of Quick Start Generation Resources | G37: Approval Status | H37: PPL | I37: Board Approval
A38: 2011-09-20 | B38: Business Strategy | C38: 240 | D38: NPRR379 | E38: 035-01 | F38: EILS Dispatch Sequence and Performance Criteria Upgrades | G38: Approval Status | H38: PPL | I38: Board Approval
A39: 2011-09-20 | B39: Business Strategy | C39: 60 | D39: NPRR348 | E39: 027-01 | F39: Generation Resource Start-Up and Shut-Down Process | G39: Approval Status | H39: PPL | I39: Board Approval
A40: 2011-09-20 | B40: Business Strategy | C40: 170 | D40: NPRR222 | E40: TBD | F40: Half Hour Start Unit RUC Clawback | G40: Approval Status | H40: PPL | I40: Board Approval
A41: 2011-09-20 | B41: Business Strategy | C41: 430 | D41: NPRR240 | E41: 117-01 | F41: Proxy Energy Offer Curve | G41: 2013 Budget Range | H41: $50k-$60k | I41: Board Approval
A42: 2011-09-20 | B42: Business Strategy | C42: 430 | D42: NPRR240 | E42: 117-01 | F42: Proxy Energy Offer Curve | G42: Approval Status | H42: PPL | I42: Board Approval
A43: 2011-09-20 | B43: Business Strategy | C43: 290 | D43: NPRR354 | E43: 028-01 | F43: Revisions to Non-Spin Performance Criteria Language and Provision for ICCP Telemetry of Non-Spin Deployment | G43: Approval Status | H43: PPL | I43: Board Approval
A44: 2011-09-20 | B44: Business Strategy | C44: 310 | D44: NPRR360 | E44: 039-01 | F44: Summary Report of HDL and LDL | G44: Approval Status | H44: PPL | I44: Board Approval
A45: 2011-09-20 | B45: Business Strategy | C45: 420 | D45: NPRR256 | E45: TBD | F45: Sync with PRR787, Add Non-Compliance Language to QSE Performance Standards | G45: Approval Status | H45: PPL | I45: Board Approval
A46: 2011-09-20 | B46: Business Strategy | C46: 210 | D46: NPRR207 | E46: TBD | F46: Unit Deselection | G46: Approval Status | H46: PPL | I46: Board Approval
A47: 2011-09-20 | B47: Business Strategy | C47: 400 | D47: NPRR210 | E47: TBD | F47: Wind Forecasting Change to P50, Sync with PRR841 | G47: 2013 Budget Range | H47: $45k-$55k | I47: Board Approval
A48: 2011-09-20 | B48: Business Strategy | C48: 400 | D48: NPRR210 | E48: TBD | F48: Wind Forecasting Change to P50, Sync with PRR841 | G48: Approval Status | H48: PPL | I48: Board Approval
A49: 2011-09-22 | B49: Business Strategy | C49: 390 | D49: NPRR181 | E49: TBD | F49: FIP Definition Revision | G49: Approval Status | H49: Pending TAC Approval | I49: PRS Approval
A50: 2011-09-28 | B50: Stabilization | C50: 290 | D50: NPRR251 | E50: n/a | F50: Sync PRR845, Definition for IDR Meters and Optional Removal of IDR Meters at a Premise Where an Advanced Meter Can be Provisioned | G50: 2011 Budget Range | H50: $10k-$15k | I50: ER Approval
A51: 2011-09-28 | B51: Stabilization | C51: 290 | D51: NPRR251 | E51: n/a | F51: Sync PRR845, Definition for IDR Meters and Optional Removal of IDR Meters at a Premise Where an Advanced Meter Can be Provisioned | G51: Project Status | H51: Execution | I51: ER Approval
A52: 2011-09-28 | B52: Stabilization | C52: 290 | D52: NPRR251 | E52: n/a | F52: Sync PRR845, Definition for IDR Meters and Optional Removal of IDR Meters at a Premise Where an Advanced Meter Can be Provisioned | G52: Projected End Date | H52: 2011-12-01 | I52: ER Approval
A53: 2011-10-05 | B53: Business Strategy | C53: 220 | D53: SCR761 | E53: 025-48 | F53: Provide Price Republication Notifications via API and Provide Price Corrections via XML | G53: 2012 Budget Range | H53: $10k-$15k | I53: ER Approval
A54: 2011-10-05 | B54: Business Strategy | C54: 220 | D54: SCR761 | E54: 025-48 | F54: Provide Price Republication Notifications via API and Provide Price Corrections via XML | G54: Project Status | H54: Execution | I54: ER Approval
A55: 2011-10-05 | B55: Business Strategy | C55: 220 | D55: SCR761 | E55: 025-48 | F55: Provide Price Republication Notifications via API and Provide Price Corrections via XML | G55: Projected End Date | H55: 2012-02-01 | I55: ER Approval
A56: 2011-10-05 | B56: Stabilization | C56: 200 | D56: SCR761 | E56: 025-48 | F56: Provide Price Republication Notifications via API and Provide Price Corrections via XML | G56: 2011 Budget Range | H56: $40k-$48k | I56: ER Approval
A57: 2011-10-05 | B57: Stabilization | C57: 200 | D57: SCR761 | E57: 025-48 | F57: Provide Price Republication Notifications via API and Provide Price Corrections via XML | G57: Project Status | H57: Execution | I57: ER Approval
A58: 2011-10-05 | B58: Stabilization | C58: 200 | D58: SCR761 | E58: 025-48 | F58: Provide Price Republication Notifications via API and Provide Price Corrections via XML | G58: Projected End Date | H58: 2012-02-01 | I58: ER Approval
A59: 2011-10-06 | B59: Business Strategy | C59: 260 | D59: NPRR395 | E59: 022-01 | F59: CRR Auction Offer Award Disclosure | G59: Approval Status | H59: Pending Board Approval | I59: TAC Approval
A60: 2011-10-06 | B60: Regulatory | C60: 10 | D60: NPRR400 | E60: 014-01 | F60: Eliminate Unsecured Credit for CRR Auctions and for Future Credit Exposure and Eliminate Netting of FCE and CCE | G60: Approval Status | H60: Pending Board Approval | I60: TAC Approval
A61: 2011-10-18 | B61: Regulatory | C61: 10 | D61: NPRR400 | E61: 014-01 | F61: Eliminate Unsecured Credit for CRR Auctions and for Future Credit Exposure and Eliminate Netting of FCE and CCE | G61: Approval Status | H61: PPL | I61: Board Approval
A62: 2011-10-20 | B62: Business Strategy | C62: 360 | D62: NPRR377 | E62: 056-01 | F62: Alternate Inputs to Base Point Deviation Charge | G62: Approval Status | H62: Pending TAC Approval | I62: PRS Approval
A63: 2011-10-20 | B63: Business Strategy | C63: 520 | D63: NPRR381 | E63: n/a | F63: Registration Requirements for Interconnecting Entities | G63: Approval Status | H63: Withdrawn | I63: Info Only
A64: 2011-10-21 | B64: Business Strategy | C64: 100 | D64: NPRR351 | E64: 012-01 | F64: SCED Look-Ahead Step 1: Pricing | G64: 2011 Budget Range | H64: <$50k | I64: ER Approval
A65: 2011-10-21 | B65: Business Strategy | C65: 100 | D65: NPRR351 | E65: 012-01 | F65: SCED Look-Ahead Step 1: Pricing | G65: Project Status | H65: Initiation | I65: ER Approval
A66: 2011-10-26 | B66: Business Strategy | C66: 4 | E66: 002-01 | F66: Impact Assessment Labor Funds | G66: 2011 Budget Range | H66: $98k-$100k | I66: Info Only
A67: 2011-10-26 | B67: Business Strategy | C67: 4 | E67: 002-01 | F67: Impact Assessment Labor Funds | G67: Project Status | H67: Closing | I67: Info Only
A68: 2011-10-26 | B68: Business Strategy | C68: 4 | E68: 002-01 | F68: Impact Assessment Labor Funds | G68: Projected End Date | H68: 2011-10-01 | I68: Info Only
A69: 2011-10-26 | B69: Business Strategy | C69: 150 | D69: SCR756 | E69: 010-01 | F69: MarkeTrak Enhancements for 4.0 | G69: 2011 Budget Range | H69: $400k-$425k | I69: ER Approval
A70: 2011-10-26 | B70: Business Strategy | C70: 150 | D70: SCR756 | E70: 010-01 | F70: MarkeTrak Enhancements for 4.0 | G70: 2012 Budget Range | H70: $275k-$325k | I70: ER Approval
A71: 2011-10-26 | B71: Business Strategy | C71: 150 | D71: SCR756 | E71: 010-01 | F71: MarkeTrak Enhancements for 4.0 | G71: Project Status | H71: Execution | I71: ER Approval
A72: 2011-10-26 | B72: Technical Foundation | C72: 3 | E72: 003-01 | F72: IT Security Infrastructure Upgrade | G72: Project Status | H72: Closing | I72: Info Only
A73: 2011-11-02 | B73: Efficiencies / Enhancements | C73: 100 | E73: 011-01 | F73: MyGrid | G73: 2011 Budget Range | H73: <$5k | I73: ER Approval
A74: 2011-11-02 | B74: Efficiencies / Enhancements | C74: 100 | E74: 011-01 | F74: MyGrid | G74: Project Name | H74: MyGrid | I74: ER Approval
A75: 2011-11-02 | B75: Efficiencies / Enhancements | C75: 100 | E75: 011-01 | F75: MyGrid | G75: Project Status | H75: Initiation | I75: ER Approval
A76: 2011-11-02 | B76: Efficiencies / Enhancements | C76: 100 | E76: 011-01 | F76: MyGrid | G76: Projected Start Date | H76: 2011-11-01 | I76: ER Approval
A77: 2011-11-03 | B77: Business Strategy | C77: 360 | D77: NPRR377 | E77: 056-01 | F77: Alternate Inputs to Base Point Deviation Charge | G77: Approval Status | H77: Pending Board Approval | I77: TAC Approval
A78: 2011-11-09 | B78: Business Strategy | C78: 300 | D78: NPRR355 | E78: 013-01 | F78: Adjust the Calculation of the Real-Time Settlement Point Price for a Load Zone | G78: 2011 Budget Range | H78: $5k-$6k | I78: ER Approval
A79: 2011-11-09 | B79: Business Strategy | C79: 300 | D79: NPRR355 | E79: 013-01 | F79: Adjust the Calculation of the Real-Time Settlement Point Price for a Load Zone | G79: 2012 Budget Range | H79: $50k-$60k | I79: ER Approval
A80: 2011-11-09 | B80: Business Strategy | C80: 300 | D80: NPRR355 | E80: 013-01 | F80: Adjust the Calculation of the Real-Time Settlement Point Price for a Load Zone | G80: Project Status | H80: Planning | I80: ER Approval
A81: 2011-11-09 | B81: Business Strategy | C81: 300 | D81: NPRR355 | E81: 013-01 | F81: Adjust the Calculation of the Real-Time Settlement Point Price for a Load Zone | G81: Projected End Date | H81: 2012-02-01 | I81: ER Approval
A82: 2011-11-09 | B82: Business Strategy | C82: 190 | D82: NPRR326 | E82: 013-01 | F82: Adjust the Calculation of the Real-Time Settlement Point Price for a Resource Node | G82: 2011 Budget Range | H82: $4k-$6k | I82: ER Approval
A83: 2011-11-09 | B83: Business Strategy | C83: 190 | D83: NPRR326 | E83: 013-01 | F83: Adjust the Calculation of the Real-Time Settlement Point Price for a Resource Node | G83: 2012 Budget Range | H83: $13k-$16k | I83: ER Approval
A84: 2011-11-09 | B84: Business Strategy | C84: 190 | D84: NPRR326 | E84: 013-01 | F84: Adjust the Calculation of the Real-Time Settlement Point Price for a Resource Node | G84: Project Status | H84: Planning | I84: ER Approval
A85: 2011-11-09 | B85: Business Strategy | C85: 190 | D85: NPRR326 | E85: 013-01 | F85: Adjust the Calculation of the Real-Time Settlement Point Price for a Resource Node | G85: Projected End Date | H85: 2012-02-01 | I85: ER Approval
A86: 2011-11-09 | B86: Business Strategy | C86: 230 | D86: NPRR321 | E86: 013-01 | F86: Allow Change to Energy Offer Curve MW Amounts in the Adjustment Period for Qualifying Facilities | G86: 2011 Budget Range | H86: $10k-$12k | I86: ER Approval
A87: 2011-11-09 | B87: Business Strategy | C87: 230 | D87: NPRR321 | E87: 013-01 | F87: Allow Change to Energy Offer Curve MW Amounts in the Adjustment Period for Qualifying Facilities | G87: 2012 Budget Range | H87: $40k-$48k | I87: ER Approval
A88: 2011-11-09 | B88: Business Strategy | C88: 230 | D88: NPRR321 | E88: 013-01 | F88: Allow Change to Energy Offer Curve MW Amounts in the Adjustment Period for Qualifying Facilities | G88: Project Status | H88: Planning | I88: ER Approval
A89: 2011-11-09 | B89: Business Strategy | C89: 230 | D89: NPRR321 | E89: 013-01 | F89: Allow Change to Energy Offer Curve MW Amounts in the Adjustment Period for Qualifying Facilities | G89: Projected End Date | H89: 2012-02-01 | I89: ER Approval
A90: 2011-11-09 | B90: Business Strategy | C90: 2 | E90: 001-47 | F90: RARF Upgrade for Wind, Solar, and Storage Resources | G90: 2012 Budget Range | H90: $60k-$75k | I90: ER Approval
A91: 2011-11-09 | B91: Business Strategy | C91: 2 | E91: 001-47 | F91: RARF Upgrade for Wind, Solar, and Storage Resources | G91: Projected End Date | H91: 2012-04-01 | I91: ER Approval
A92: 2011-11-09 | B92: Business Strategy | C92: 100 | D92: NPRR351 | E92: 012-01 | F92: SCED Look-Ahead Step 1: Pricing | G92: 2011 Budget Range | H92: $60k-$75k | I92: ER Approval
A93: 2011-11-09 | B93: Business Strategy | C93: 100 | D93: NPRR351 | E93: 012-01 | F93: SCED Look-Ahead Step 1: Pricing | G93: Project Status | H93: Planning | I93: ER Approval
A94: 2011-11-09 | B94: Business Strategy | C94: 100 | D94: NPRR351 | E94: 012-01 | F94: SCED Look-Ahead Step 1: Pricing | G94: Projected End Date | H94: 2012-06-01 | I94: ER Approval
A95: 2011-11-09 | B95: Business Strategy | C95: 100 | D95: NPRR351 | E95: 012-01 | F95: SCED Look-Ahead Step 1: Pricing | G95: Projected Start Date | H95: 2011-09-01 | I95: ER Approval
A96: 2011-11-09 | B96: Stabilization | C96: 400 | E96: 001-52 | F96: IT Infrastructure Upgrade | G96: 2011 Budget Range | H96: $350k-$400k | I96: ER Approval
A97: 2011-11-09 | B97: Stabilization | C97: 400 | E97: 001-52 | F97: IT Infrastructure Upgrade | G97: Project Name | H97: IT Infrastructure Upgrade | I97: ER Approval
A98: 2011-11-09 | B98: Stabilization | C98: 400 | E98: 001-52 | F98: IT Infrastructure Upgrade | G98: Project Status | H98: Execution | I98: ER Approval
A99: 2011-11-09 | B99: Stabilization | C99: 400 | E99: 001-52 | F99: IT Infrastructure Upgrade | G99: Projected End Date | H99: 2011-12-01 | I99: ER Approval
A100: 2011-11-09 | B100: Stabilization | C100: 3 | E100: 001-47 | F100: RARF Upgrade for Wind, Solar, and Storage Resources | G100: 2011 Budget Range | H100: $80k-$100k | I100: ER Approval
A101: 2011-11-09 | B101: Stabilization | C101: 3 | E101: 001-47 | F101: RARF Upgrade for Wind, Solar, and Storage Resources | G101: Projected End Date | H101: 2012-04-01 | I101: ER Approval
A102: 2011-11-09 | B102: Technical Foundation | C102: 3 | E102: 003-01 | F102: IT Security Infrastructure Upgrade | G102: Project Status | H102: Complete | I102: Info Only
A103: 2011-11-16 | B103: Business Strategy | C103: 230 | D103: NPRR321 | E103: 013-01 | F103: Allow Change to Energy Offer Curve MW Amounts in the Adjustment Period for Qualifying Facilities | G103: Projected End Date | H103: 2011-12-01 | I103: Reforecast
A104: 2011-11-16 | B104: Business Strategy | C104: 70 | D104: NPRR322 | E104: 051-01 | F104: Real-Time PTP Option Modeling | G104: Projected End Date | H104: TBD | I104: Reforecast
A105: 2011-11-16 | B105: Business Strategy | C105: 70 | D105: NPRR322 | E105: 051-01 | F105: Real-Time PTP Option Modeling | G105: Projected Start Date | H105: TBD | I105: Reforecast
A106: 2011-11-16 | B106: Efficiencies / Enhancements | C106: 155 | E106: 016-01 | F106: ADP-IDM Interface | G106: n/a | H106: NEW PROJECT | I106: ER Approval
A107: 2011-11-16 | B107: Efficiencies / Enhancements | C107: 155 | E107: 016-01 | F107: ADP-IDM Interface | G107: 2011 Budget Range | H107: $20k-$30k | I107: ER Approval
A108: 2011-11-16 | B108: Efficiencies / Enhancements | C108: 155 | E108: 016-01 | F108: ADP-IDM Interface | G108: 2012 Budget Range | H108: $100k-$120k | I108: ER Approval
A109: 2011-11-16 | B109: Efficiencies / Enhancements | C109: 155 | E109: 016-01 | F109: ADP-IDM Interface | G109: Approval Status | H109: PPL | I109: ER Approval
A110: 2011-11-16 | B110: Efficiencies / Enhancements | C110: 155 | E110: 016-01 | F110: ADP-IDM Interface | G110: Priority | H110: 2012 | I110: ER Approval
A111: 2011-11-16 | B111: Efficiencies / Enhancements | C111: 155 | E111: 016-01 | F111: ADP-IDM Interface | G111: Project Status | H111: Planning | I111: ER Approval
A112: 2011-11-16 | B112: Efficiencies / Enhancements | C112: 155 | E112: 016-01 | F112: ADP-IDM Interface | G112: Projected Start Date | H112: 2011-11-01 | I112: ER Approval
A113: 2011-11-16 | B113: Efficiencies / Enhancements | C113: 155 | E113: 016-01 | F113: ADP-IDM Interface | G113: Rank | H113: 155 | I113: ER Approval
A114: 2011-11-16 | B114: Efficiencies / Enhancements | C114: 100 | E114: 011-01 | F114: ERCOT Mobile | G114: 2011 Budget Range | H114: $15k-$20k | I114: ER Approval
A115: 2011-11-16 | B115: Efficiencies / Enhancements | C115: 100 | E115: 011-01 | F115: ERCOT Mobile | G115: 2012 Budget Range | H115: $120k-$140k | I115: ER Approval
A116: 2011-11-16 | B116: Efficiencies / Enhancements | C116: 100 | E116: 011-01 | F116: ERCOT Mobile | G116: Project Name | H116: ERCOT Mobile | I116: ER Approval
A117: 2011-11-16 | B117: Efficiencies / Enhancements | C117: 100 | E117: 011-01 | F117: ERCOT Mobile | G117: Project Status | H117: Planning | I117: ER Approval
A118: 2011-11-16 | B118: Efficiencies / Enhancements | C118: 5 | E118: 015-01 | F118: Outage Capacity Calculation Tool | G118: n/a | H118: NEW PROJECT | I118: ER Approval
A119: 2011-11-16 | B119: Efficiencies / Enhancements | C119: 5 | E119: 015-01 | F119: Outage Capacity Calculation Tool | G119: 2011 Budget Range | H119: $15k-$25k | I119: ER Approval
A120: 2011-11-16 | B120: Efficiencies / Enhancements | C120: 5 | E120: 015-01 | F120: Outage Capacity Calculation Tool | G120: 2012 Budget Range | H120: $30k-$50k | I120: ER Approval
A121: 2011-11-16 | B121: Efficiencies / Enhancements | C121: 5 | E121: 015-01 | F121: Outage Capacity Calculation Tool | G121: Approval Status | H121: PPL | I121: ER Approval
A122: 2011-11-16 | B122: Efficiencies / Enhancements | C122: 5 | E122: 015-01 | F122: Outage Capacity Calculation Tool | G122: Priority | H122: 2011 | I122: ER Approval
A123: 2011-11-16 | B123: Efficiencies / Enhancements | C123: 5 | E123: 015-01 | F123: Outage Capacity Calculation Tool | G123: Project Status | H123: Planning | I123: ER Approval
A124: 2011-11-16 | B124: Efficiencies / Enhancements | C124: 5 | E124: 015-01 | F124: Outage Capacity Calculation Tool | G124: Projected Start Date | H124: 2011-11-01 | I124: ER Approval
A125: 2011-11-16 | B125: Efficiencies / Enhancements | C125: 5 | E125: 015-01 | F125: Outage Capacity Calculation Tool | G125: Rank | H125: 5 | I125: ER Approval
A126: 2011-11-16 | B126: Regulatory | C126: 10 | D126: NPRR347 | E126: 014-01 | F126: Implementation of NPRR347 and NPRR400 | G126: 2011 Budget Range | H126: <$50k | I126: ER Approval
A127: 2011-11-16 | B127: Regulatory | C127: 10 | D127: NPRR347 | E127: 014-01 | F127: Implementation of NPRR347 and NPRR400 | G127: 2012 Budget Range | H127: $660k-$715k | I127: ER Approval
A128: 2011-11-16 | B128: Regulatory | C128: 10 | D128: NPRR347 | E128: 014-01 | F128: Implementation of NPRR347 and NPRR400 | G128: Project Name | H128: Impl. NPRR347/NPRR400 | I128: ER Approval
A129: 2011-11-16 | B129: Regulatory | C129: 10 | D129: NPRR347 | E129: 014-01 | F129: Implementation of NPRR347 and NPRR400 | G129: Project Status | H129: Initiation | I129: ER Approval
A130: 2011-11-16 | B130: Regulatory | C130: 10 | D130: NPRR347 | E130: 014-01 | F130: Implementation of NPRR347 and NPRR400 | G130: Projected Start Date | H130: 2011-11-01 | I130: ER Approval
A131: 2011-11-16 | B131: Regulatory | C131: 40 | E131: 023-01 | F131: Quality Training Database | G131: n/a | H131: NEW PROJECT | I131: ER Approval
A132: 2011-11-16 | B132: Regulatory | C132: 40 | E132: 023-01 | F132: Quality Training Database | G132: 2012 Budget Range | H132: $50k-$55k | I132: ER Approval
A133: 2011-11-16 | B133: Regulatory | C133: 40 | E133: 023-01 | F133: Quality Training Database | G133: Priority | H133: 2012 | I133: ER Approval
A134: 2011-11-16 | B134: Regulatory | C134: 40 | E134: 023-01 | F134: Quality Training Database | G134: Project Status | H134: Initiation | I134: ER Approval
A135: 2011-11-16 | B135: Regulatory | C135: 40 | E135: 023-01 | F135: Quality Training Database | G135: Projected Start Date | H135: 2011-12-01 | I135: ER Approval
A136: 2011-11-16 | B136: Regulatory | C136: 40 | E136: 023-01 | F136: Quality Training Database | G136: Rank | H136: 40 | I136: ER Approval
A137: 2011-11-16 | B137: Stabilization | C137: 370 | E137: 001-43 | F137: EDW Platform Evaluation | G137: 2011 Budget Range | H137: $125k-$150k | I137: ER Approval
A138: 2011-11-16 | B138: Stabilization | C138: 370 | E138: 001-43 | F138: EDW Platform Evaluation | G138: Projected End Date | H138: 2012-02-01 | I138: ER Approval
A139: 2011-11-16 | B139: Technical Foundation | C139: 70 | E139: 001-43 | F139: EDW Platform Evaluation | G139: 2012 Budget Range | H139: $50k-$100k | I139: ER Approval
A140: 2011-11-16 | B140: Technical Foundation | C140: 70 | E140: 001-43 | F140: EDW Platform Evaluation | G140: 2013 Budget Range | H140: $0M | I140: ER Approval
A141: 2011-11-16 | B141: Technical Foundation | C141: 70 | E141: 001-43 | F141: EDW Platform Evaluation | G141: 2014 Budget Range | H141: $500k-$750k | I141: ER Approval
A142: 2011-11-16 | B142: Technical Foundation | C142: 70 | E142: 001-43 | F142: EDW Platform Evaluation | G142: 2015 Budget Range | H142: $3M-$5M | I142: ER Approval
A143: 2011-11-16 | B143: Technical Foundation | C143: 70 | E143: 001-43 | F143: EDW Platform Evaluation | G143: Projected End Date | H143: 2012-02-01 | I143: ER Approval
A144: 2011-11-16 | B144: Technical Foundation | C144: 50 | E144: 017-01 | F144: Oracle 11g Upgrade | G144: Project Status | H144: Initiation | I144: ER Approval
A145: 2011-11-16 | B145: Technical Foundation | C145: 50 | E145: 017-01 | F145: Oracle 11g Upgrade | G145: Projected Start Date | H145: 2011-11-01 | I145: ER Approval
A146: 2011-11-29 | B146: Business Strategy | C146: 100 | D146: NPRR351 | E146: 012-01 | F146: SCED Look-Ahead Step 1: Pricing | G146: Rank | H146: 100 | I146: PRS Approval
A147: 2011-11-29 | B147: Business Strategy | C147: 510 | D147: NPRR351 | E147: 012-01 | F147: SCED Look-Ahead Step 1: Pricing | G147: Priority | H147: 2012 | I147: PRS Approval
A148: 2011-11-29 | B148: Business Strategy | C148: 480 | D148: NPRR327 | E148: 068-01 | F148: State Estimator Data Redaction Methodology | G148: Priority | H148: 2012 | I148: PRS Approval
A149: 2011-11-29 | B149: Business Strategy | C149: 480 | D149: NPRR327 | E149: 068-01 | F149: State Estimator Data Redaction Methodology | G149: Rank | H149: 480 | I149: PRS Approval
A150: 2011-11-30 | B150: Regulatory | C150: 20 | E150: 009-01 | F150: Compliance Software Tool | G150: 2012 Budget Range | H150: $110k-$140k | I150: ER Approval
A151: 2011-11-30 | B151: Regulatory | C151: 20 | E151: 009-01 | F151: Compliance Software Tool | G151: Project Status | H151: Execution | I151: ER Approval
A152: 2011-11-30 | B152: Technical Foundation | C152: 40 | E152: 10052_01 | F152: Settlement System Upgrade | G152: 2011 Budget Range | H152: $800k-$1M | I152: ER Approval
A153: 2011-11-30 | B153: Technical Foundation | C153: 160 | E153: n/a | F153: Upgrade Siteminder | G153: 2013 Budget Range | H153: $0k | I153: ER Approval
A154: 2011-11-30 | B154: Technical Foundation | C154: 160 | E154: n/a | F154: Upgrade Siteminder | G154: Project Status | H154: Deleted | I154: ER Approval
A155: 2011-12-01 | B155: Business Strategy | C155: 470 | D155: NPRR315 | E155: n/a | F155: Revision of Responsive Reserve Measure to High Emergency Limit | G155: Approval Status | H155: Rejected | I155: TAC Approval
A156: 2011-12-01 | B156: Business Strategy | C156: 100 | D156: NPRR351 | E156: 012-01 | F156: SCED Look-Ahead Step 1: Pricing | G156: Approval Status | H156: Pending Board Approval | I156: TAC Approval
A157: 2011-12-07 | B157: Business Strategy | C157: 1 | E157: 50088-01 | F157: Data Research and Reporting | G157: Project Status | H157: Complete | I157: Info Only
A158: 2011-12-07 | B158: Regulatory | C158: 10 | D158: NPRR347 | E158: 014-01 | F158: Implementation of NPRR347 and NPRR400 | G158: Project Status | H158: Planning | I158: ER Approval
A159: 2011-12-08 | B159: Business Strategy | C159: 180 | E159: TBD | F159: Cyber Security Project #6 | G159: 2012 Budget Range | H159: $150k-$200k | I159: ER Approval
A160: 2011-12-08 | B160: Business Strategy | C160: 180 | E160: TBD | F160: Cyber Security Project #6 | G160: 2013 Budget Range | H160: $50k-$100k | I160: ER Approval
A161: 2011-12-08 | B161: Efficiencies / Enhancements | C161: 1 | E161: 004-01 | F161: Cyber Security Project #3 | G161: 2012 Budget Range | H161: $75k-$100k | I161: ER Approval
A162: 2011-12-08 | B162: Efficiencies / Enhancements | C162: 1 | E162: 004-01 | F162: Cyber Security Project #3 | G162: Project Status | H162: Execution | I162: ER Approval
A163: 2011-12-08 | B163: Efficiencies / Enhancements | C163: 1 | E163: 004-01 | F163: Cyber Security Project #3 | G163: Projected End Date | H163: 2012-03-01 | I163: ER Approval
A164: 2011-12-09 | B164: Business Strategy | C164: 60 | D164: NPRR348 | E164: 027-01 | F164: Generation Resource Start-Up and Shut-Down Process | G164: Projected End Date | H164: 2012-12-01 | I164: Reforecast
A165: 2011-12-09 | B165: Business Strategy | C165: 60 | D165: NPRR348 | E165: 027-01 | F165: Generation Resource Start-Up and Shut-Down Process | G165: Projected Start Date | H165: 2012-06-01 | I165: Reforecast
A166: 2011-12-09 | B166: Business Strategy | C166: 290 | D166: NPRR354 | E166: 028-01 | F166: Revisions to Non-Spin Performance Criteria Language and Provision for ICCP Telemetry of Non-Spin Deployment | G166: Projected End Date | H166: 2012-12-01 | I166: Reforecast
A167: 2011-12-09 | B167: Business Strategy | C167: 290 | D167: NPRR354 | E167: 028-01 | F167: Revisions to Non-Spin Performance Criteria Language and Provision for ICCP Telemetry of Non-Spin Deployment | G167: Projected Start Date | H167: 2012-06-01 | I167: Reforecast
A168: 2011-12-12 | B168: Business Strategy | C168: 360 | D168: NPRR377 | E168: 056-01 | F168: Alternate Inputs to Base Point Deviation Charge | G168: 2012 Budget Range | H168: $150k-$165k | I168: Board Approval
A169: 2011-12-12 | B169: Business Strategy | C169: 360 | D169: NPRR377 | E169: 056-01 | F169: Alternate Inputs to Base Point Deviation Charge | G169: Approval Status | H169: PPL | I169: Board Approval
A170: 2011-12-12 | B170: Business Strategy | C170: 50 | D170: NPRR365 | E170: 018-01 | F170: Change in Resource Outage Approvals from Eight to 45 Days | G170: 2012 Budget Range | H170: $110k-$120k | I170: Correction
A171: 2011-12-12 | B171: Business Strategy | C171: 260 | D171: NPRR395 | E171: 022-01 | F171: CRR Auction Offer Award Disclosure | G171: Approval Status | H171: PPL | I171: Board Approval
A172: 2011-12-12 | B172: Business Strategy | C172: 60 | D172: NPRR348 | E172: 027-01 | F172: Generation Resource Start-Up and Shut-Down Process | G172: 2012 Budget Range | H172: $115k-$130k | I172: Correction
A173: 2011-12-12 | B173: Business Strategy | C173: 100 | D173: NPRR351 | E173: 012-01 | F173: SCED Look-Ahead Step 1: Pricing | G173: Approval Status | H173: PPL | I173: Board Approval
A174: 2011-12-12 | B174: Business Strategy | C174: 100 | D174: NPRR351 | E174: 012-01 | F174: SCED Look-Ahead Step 1: Pricing | G174: Project Name | H174: SCED Look-Ahead Step 1: Pricing | I174: Board Approval
A175: 2011-12-14 | B175: Business Strategy | C175: 300 | D175: NPRR355 | E175: 013-01 | F175: Adjust the Calculation of the Real-Time Settlement Point Price for a Load Zone | G175: Project Status | H175: Execution | I175: ER Approval
A176: 2011-12-14 | B176: Business Strategy | C176: 190 | D176: NPRR326 | E176: 013-01 | F176: Adjust the Calculation of the Real-Time Settlement Point Price for a Resource Node | G176: Project Status | H176: Execution | I176: ER Approval
A177: 2011-12-14 | B177: Business Strategy | C177: 230 | E177: 013-01 | F177: Allow Change to Energy Offer Curve MW Amounts in the Adjustment Period for Qualifying Facilities | G177: Project Status | H177: Execution | I177: ER Approval
A178: 2011-12-14 | B178: Business Strategy | C178: 50 | D178: NPRR365 | E178: 018-01 | F178: Change in Resource Outage Approvals from Eight to 45 Days | G178: 2011 Budget Range | H178: <$5k | I178: ER Approval
A179: 2011-12-14 | B179: Business Strategy | C179: 50 | D179: NPRR365 | E179: 018-01 | F179: Change in Resource Outage Approvals from Eight to 45 Days | G179: Project Status | H179: Initiation | I179: ER Approval
A180: 2011-12-14 | B180: Business Strategy | C180: 190 | E180: 013-01 | F180: MMS 2012 Release 1: NPRR321/NPRR326/NPRR355 | G180: n/a | H180: NEW PROJECT | I180: ER Approval
A181: 2011-12-14 | B181: Business Strategy | C181: 190 | E181: 013-01 | F181: MMS 2012 Release 1: NPRR321/NPRR326/NPRR355 | G181: 2011 Budget Range | H181: $10k-$12k | I181: ER Approval
A182: 2011-12-14 | B182: Business Strategy | C182: 190 | E182: 013-01 | F182: MMS 2012 Release 1: NPRR321/NPRR326/NPRR355 | G182: 2012 Budget Range | H182: $65k-$85k | I182: ER Approval
A183: 2011-12-14 | B183: Business Strategy | C183: 190 | E183: 013-01 | F183: MMS 2012 Release 1: NPRR321/NPRR326/NPRR355 | G183: Project Status | H183: Execution | I183: ER Approval
A184: 2011-12-14 | B184: Business Strategy | C184: 190 | E184: 013-01 | F184: MMS 2012 Release 1: NPRR321/NPRR326/NPRR355 | G184: Projected End Date | H184: 2012-02-01 | I184: ER Approval
A185: 2011-12-14 | B185: Business Strategy | C185: 190 | E185: 013-01 | F185: MMS 2012 Release 1: NPRR321/NPRR326/NPRR355 | G185: Projected Start Date | H185: 2011-11-01 | I185: ER Approval
A186: 2011-12-14 | B186: Stabilization | C186: 90 | D186: SCR765 | E186: n/a | F186: Public Aggregated Wind Dashboard | G186: Project Status | H186: Closing | I186: Info Only
A187: 2011-12-14 | B187: Stabilization | C187: 390 | E187: 001-51 | F187: TML Transition to MIS | G187: Project Status | H187: Closing | I187: Info Only
A188: 2011-12-15 | B188: Business Strategy | C188: 590 | D188: NPRR407 | E188: 062-01 | F188: Credit Monitoring Posting Requirements - MMS/CDR Portion | G188: Approval Status | H188: Pending TAC Approval | I188: PRS Approval
A189: 2011-12-15 | B189: Business Strategy | C189: 590 | D189: NPRR407 | E189: 062-01 | F189: Credit Monitoring Posting Requirements - MMS/CDR Portion | G189: Priority | H189: 2012 | I189: PRS Approval
A190: 2011-12-15 | B190: Business Strategy | C190: 590 | D190: NPRR407 | E190: 062-01 | F190: Credit Monitoring Posting Requirements - MMS/CDR Portion | G190: Rank | H190: 590 | I190: PRS Approval
A191: 2011-12-15 | B191: Business Strategy | C191: 600 | D191: NPRR422 | E191: 053-01 | F191: Public DAM Shift Factors | G191: Approval Status | H191: Pending TAC Approval | I191: PRS Approval
A192: 2011-12-15 | B192: Business Strategy | C192: 600 | D192: NPRR422 | E192: 053-01 | F192: Public DAM Shift Factors | G192: Priority | H192: 2012 | I192: PRS Approval
A193: 2011-12-15 | B193: Business Strategy | C193: 600 | D193: NPRR422 | E193: 053-01 | F193: Public DAM Shift Factors | G193: Rank | H193: 600 | I193: PRS Approval
A194: 2011-12-15 | B194: Business Strategy | C194: 480 | D194: NPRR327 | E194: 068-01 | F194: State Estimator Data Redaction Methodology | G194: Approval Status | H194: Pending TAC Approval | I194: PRS Approval
A195: 2011-12-16 | B195: Business Strategy | C195: 30 | E195: 006-01 | F195: Cyber Security Project #1 | G195: 2011 Budget Range | H195: $400k-$500k | I195: Correction
A196: 2011-12-19 | B196: Technical Foundation | C196: 10 | E196: 11000-01 10015 10016 | F196: Data Center Buildout | G196: 2012 Budget Range | H196: $500k-$600k | I196: ER Approval
A197: 2011-12-21 | B197: Business Strategy | C197: 610 | E197: 020-01 | F197: CIM Upgrade for NMMS | G197: n/a | H197: NEW PROJECT | I197: ER Approval
A198: 2011-12-21 | B198: Business Strategy | C198: 610 | E198: 020-01 | F198: CIM Upgrade for NMMS | G198: 2011 Budget Range | H198: <$5k | I198: ER Approval
A199: 2011-12-21 | B199: Business Strategy | C199: 610 | E199: 020-01 | F199: CIM Upgrade for NMMS | G199: 2012 Budget Range | H199: $30k-$50k | I199: ER Approval
A200: 2011-12-21 | B200: Business Strategy | C200: 610 | E200: 020-01 | F200: CIM Upgrade for NMMS | G200: Priority | H200: 2012 | I200: ER Approval
... 4296 more rows

Sheet Stacked Rank (hidden)
A1: ="Last Forecast Update Date" -> Last Forecast Update Date | B1: Report Filter Options (click on cell below) | D1: 2019 | F1: PPL Total | G1: =SUM('-- PPL --'!AG4:AG6) -> 20843469.24 | J1: Total (column N) | L1: =SUM(L5:L1055) ->  | O1: Total Labor | P1: Discounted Total
A2: =TEXT(CF_Data_Date,"m/d/yyyy") ->  | B2: All Projects | F2: Report Total | G2: =SUMIF(A5:A1024,"<>"&"9 - Portfolio Adjustments",L5:L1024) ->  | H2: (less Port. adj) | J2: DC4 Total | L2: =SUMIF(C5:C1041,"DC4",L5:L1041) -> 0 | O2: =SUM(O5:O1055) ->  | P2: =SUM(P5:P1055) -> 
F3: Variance | G3: =G1-G2 ->  | J3: Forecast <20% below budget | L3: Forecast >20% over budget | O3: Discount Rate: | P3: 0.25
A4: Category | B4: Project Name | C4: Source Doc | D4: Proj # | E4: Phase | F4: Business Owner | G4: Project Manager | H4: Start Date | I4: End Date | J4: LTD Actuals | K4: 2019 Budget | L4: 2019 Forecast | M4: 2019 Forecast to Budget Var % | N4: Cumulative 2019 Forecast | O4: 2019 Remaining Internal Labor | P4: Discounted 2019 Forecast | Q4: Cumulative Discounted 2019 Forecast | R4: Cumulative Discounted 2019 Forecast | S4: Cumulative Discounted 2019 Forecast | T4: Total EAC | U4: Cost to Complete | V4: Total Internal Labor | W4: Prioritization Notes | X4: Not Started and Approved?
A5: =INDEX('-- PPL --'!#REF!,(MATCH($B5,'-- PPL --'!$G$10:$G$10112,0))) ->  | B5: RARF Replacement | C5: =IF(ISBLANK(INDEX('-- PPL --'!D$10:D$10112,(MATCH($B5,'-- PPL --'!$G$10:$G$10112,0)))),"",INDEX('-- PPL --'!D$10:D$10112,(MATCH($B5,'-- PPL --'!$G$10:$G$10112,0)))) -> SCR781 | D5: =IF(ISBLANK(INDEX('-- PPL --'!F$10:F$10112,(MATCH($B5,'-- PPL --'!$G$10:$G$10112,0)))),"",INDEX('-- PPL --'!F$10:F$10112,(MATCH($B5,'-- PPL --'!$G$10:$G$10112,0)))) -> 106-01 | E5: =INDEX('-- PPL --'!I$10:I$10112,(MATCH($B5,'-- PPL --'!$G$10:$G$10112,0))) -> Execution | F5: =INDEX('-- PPL --'!#REF!,(MATCH($B5,'-- PPL --'!$G$10:$G$10112,0))) ->  | G5: =INDEX('-- PPL --'!#REF!,(MATCH($B5,'-- PPL --'!$G$10:$G$10112,0))) ->  | H5: =INDEX('-- PPL --'!AW$10:AW$10112,(MATCH($B5,'-- PPL --'!$G$10:$G$10112,0))) -> 2013-06-01 | I5: =INDEX('-- PPL --'!AX$10:AX$10112,(MATCH($B5,'-- PPL --'!$G$10:$G$10112,0))) -> 2021-12-01 | J5: =INDEX('-- PPL --'!#REF!,(MATCH($B5,'-- PPL --'!$G$10:$G$10112,0))) ->  | K5: =INDEX('-- PPL --'!AE$10:AE$10112,(MATCH($B5,'-- PPL --'!$G$10:$G$10112,0))) -> 0 | L5: =INDEX('-- PPL --'!AG$10:AG$10112,(MATCH($B5,'-- PPL --'!$G$10:$G$10112,0))) -> 0 | M5: =IF(K5=0,0,(K5-L5)/K5) -> 0 | N5: =L5 -> 0 | O5: =SUMIFS(#REF!,#REF!,$B5,#REF!,"Internal Labor ") ->  | P5: =L5-(O5*Stacked_Rate) ->  | Q5: =P5 ->  | R5: 2 | S5: =K5-L5 -> 0 | T5: =IF(L5>0,INDEX('-- PPL --'!#REF!,(MATCH($B5,'-- PPL --'!$G$10:$G$10112,0))),0) -> 0 | U5: =IF(T5>0,T5-J5,0) -> 0 | V5: =SUMIFS(#REF!,#REF!,$B5,#REF!,"Internal Labor ") ->  | W5: =IF(ISBLANK(INDEX('-- PPL --'!#REF!,(MATCH($B5,'-- PPL --'!$G$10:$G$10112,0)))),"",INDEX('-- PPL --'!#REF!,(MATCH($B5,'-- PPL --'!$G$10:$G$10112,0)))) ->  | X5: =IF(RIGHT(W5,8)="Approved","Y","N") -> 
A6: =INDEX('-- PPL --'!#REF!,(MATCH($B6,'-- PPL --'!$G$10:$G$10112,0))) ->  | B6: 2015 CMM NPRRs | C6: =IF(ISBLANK(INDEX('-- PPL --'!D$10:D$10112,(MATCH($B6,'-- PPL --'!$G$10:$G$10112,0)))),"",INDEX('-- PPL --'!D$10:D$10112,(MATCH($B6,'-- PPL --'!$G$10:$G$10112,0)))) -> Various | D6: =IF(ISBLANK(INDEX('-- PPL --'!F$10:F$10112,(MATCH($B6,'-- PPL --'!$G$10:$G$10112,0)))),"",INDEX('-- PPL --'!F$10:F$10112,(MATCH($B6,'-- PPL --'!$G$10:$G$10112,0)))) -> 183-01 | E6: =INDEX('-- PPL --'!I$10:I$10112,(MATCH($B6,'-- PPL --'!$G$10:$G$10112,0))) -> Complete | F6: =INDEX('-- PPL --'!#REF!,(MATCH($B6,'-- PPL --'!$G$10:$G$10112,0))) ->  | G6: =INDEX('-- PPL --'!#REF!,(MATCH($B6,'-- PPL --'!$G$10:$G$10112,0))) ->  | H6: =INDEX('-- PPL --'!AW$10:AW$10112,(MATCH($B6,'-- PPL --'!$G$10:$G$10112,0))) -> 2015-10-01 | I6: =INDEX('-- PPL --'!AX$10:AX$10112,(MATCH($B6,'-- PPL --'!$G$10:$G$10112,0))) -> 2019-11-01 | J6: =INDEX('-- PPL --'!#REF!,(MATCH($B6,'-- PPL --'!$G$10:$G$10112,0))) ->  | K6: =INDEX('-- PPL --'!AE$10:AE$10112,(MATCH($B6,'-- PPL --'!$G$10:$G$10112,0))) -> 0 | L6: =INDEX('-- PPL --'!AG$10:AG$10112,(MATCH($B6,'-- PPL --'!$G$10:$G$10112,0))) -> 0 | M6: 0 | N6: =N5+L6 -> 0 | O6: =SUMIFS(#REF!,#REF!,$B6,#REF!,"Internal Labor ") ->  | Q6: =Q5+P6 ->  | R6: 2 | S6: 0 | T6: =IF(L6>0,INDEX('-- PPL --'!#REF!,(MATCH($B6,'-- PPL --'!$G$10:$G$10112,0))),0) -> 0 | U6: 0 | V6: =SUMIFS(#REF!,#REF!,$B6,#REF!,"Internal Labor ") ->  | W6: =IF(ISBLANK(INDEX('-- PPL --'!#REF!,(MATCH($B6,'-- PPL --'!$G$10:$G$10112,0)))),"",INDEX('-- PPL --'!#REF!,(MATCH($B6,'-- PPL --'!$G$10:$G$10112,0)))) -> 
A7: =INDEX('-- PPL --'!#REF!,(MATCH($B7,'-- PPL --'!$G$10:$G$10112,0))) ->  | B7: Exemption of ERS-Only QSEs from Collateral and Capitalization Requirements | C7: =IF(ISBLANK(INDEX('-- PPL --'!D$10:D$10112,(MATCH($B7,'-- PPL --'!$G$10:$G$10112,0)))),"",INDEX('-- PPL --'!D$10:D$10112,(MATCH($B7,'-- PPL --'!$G$10:$G$10112,0)))) -> NPRR519 | D7: =IF(ISBLANK(INDEX('-- PPL --'!F$10:F$10112,(MATCH($B7,'-- PPL --'!$G$10:$G$10112,0)))),"",INDEX('-- PPL --'!F$10:F$10112,(MATCH($B7,'-- PPL --'!$G$10:$G$10112,0)))) -> 183-01 | E7: =INDEX('-- PPL --'!I$10:I$10112,(MATCH($B7,'-- PPL --'!$G$10:$G$10112,0))) -> Complete | F7: =INDEX('-- PPL --'!#REF!,(MATCH($B7,'-- PPL --'!$G$10:$G$10112,0))) ->  | G7: =INDEX('-- PPL --'!#REF!,(MATCH($B7,'-- PPL --'!$G$10:$G$10112,0))) ->  | H7: =INDEX('-- PPL --'!AW$10:AW$10112,(MATCH($B7,'-- PPL --'!$G$10:$G$10112,0))) -> 2015-10-01 | I7: =INDEX('-- PPL --'!AX$10:AX$10112,(MATCH($B7,'-- PPL --'!$G$10:$G$10112,0))) -> 2019-11-01 | J7: =INDEX('-- PPL --'!#REF!,(MATCH($B7,'-- PPL --'!$G$10:$G$10112,0))) ->  | K7: =INDEX('-- PPL --'!AE$10:AE$10112,(MATCH($B7,'-- PPL --'!$G$10:$G$10112,0))) -> 0 | L7: =INDEX('-- PPL --'!AG$10:AG$10112,(MATCH($B7,'-- PPL --'!$G$10:$G$10112,0))) -> 0 | M7: 0 | N7: =N6+L7 -> 0 | O7: =SUMIFS(#REF!,#REF!,$B7,#REF!,"Internal Labor ") ->  | Q7: =Q6+P7 ->  | R7: 2 | S7: 0 | T7: =IF(L7>0,INDEX('-- PPL --'!#REF!,(MATCH($B7,'-- PPL --'!$G$10:$G$10112,0))),0) -> 0 | U7: 0 | V7: =SUMIFS(#REF!,#REF!,$B7,#REF!,"Internal Labor ") ->  | W7: =IF(ISBLANK(INDEX('-- PPL --'!#REF!,(MATCH($B7,'-- PPL --'!$G$10:$G$10112,0)))),"",INDEX('-- PPL --'!#REF!,(MATCH($B7,'-- PPL --'!$G$10:$G$10112,0)))) -> 
A8: =INDEX('-- PPL --'!#REF!,(MATCH($B8,'-- PPL --'!$G$10:$G$10112,0))) ->  | B8: Revision to Available Credit Limit Calculation | C8: =IF(ISBLANK(INDEX('-- PPL --'!D$10:D$10112,(MATCH($B8,'-- PPL --'!$G$10:$G$10112,0)))),"",INDEX('-- PPL --'!D$10:D$10112,(MATCH($B8,'-- PPL --'!$G$10:$G$10112,0)))) -> NPRR683 | D8: =IF(ISBLANK(INDEX('-- PPL --'!F$10:F$10112,(MATCH($B8,'-- PPL --'!$G$10:$G$10112,0)))),"",INDEX('-- PPL --'!F$10:F$10112,(MATCH($B8,'-- PPL --'!$G$10:$G$10112,0)))) -> 183-01 | E8: =INDEX('-- PPL --'!I$10:I$10112,(MATCH($B8,'-- PPL --'!$G$10:$G$10112,0))) -> Complete | F8: =INDEX('-- PPL --'!#REF!,(MATCH($B8,'-- PPL --'!$G$10:$G$10112,0))) ->  | G8: =INDEX('-- PPL --'!#REF!,(MATCH($B8,'-- PPL --'!$G$10:$G$10112,0))) ->  | H8: =INDEX('-- PPL --'!AW$10:AW$10112,(MATCH($B8,'-- PPL --'!$G$10:$G$10112,0))) -> 2015-10-01 | I8: =INDEX('-- PPL --'!AX$10:AX$10112,(MATCH($B8,'-- PPL --'!$G$10:$G$10112,0))) -> 2019-11-01 | J8: =INDEX('-- PPL --'!#REF!,(MATCH($B8,'-- PPL --'!$G$10:$G$10112,0))) ->  | K8: =INDEX('-- PPL --'!AE$10:AE$10112,(MATCH($B8,'-- PPL --'!$G$10:$G$10112,0))) -> 0 | L8: =INDEX('-- PPL --'!AG$10:AG$10112,(MATCH($B8,'-- PPL --'!$G$10:$G$10112,0))) -> 0 | M8: 0 | N8: 0 | O8: =SUMIFS(#REF!,#REF!,$B8,#REF!,"Internal Labor ") ->  | R8: 2 | S8: 0 | T8: =IF(L8>0,INDEX('-- PPL --'!#REF!,(MATCH($B8,'-- PPL --'!$G$10:$G$10112,0))),0) -> 0 | U8: 0 | V8: =SUMIFS(#REF!,#REF!,$B8,#REF!,"Internal Labor ") ->  | W8: =IF(ISBLANK(INDEX('-- PPL --'!#REF!,(MATCH($B8,'-- PPL --'!$G$10:$G$10112,0)))),"",INDEX('-- PPL --'!#REF!,(MATCH($B8,'-- PPL --'!$G$10:$G$10112,0)))) -> 
A9: =INDEX('-- PPL --'!#REF!,(MATCH($B9,'-- PPL --'!$G$10:$G$10112,0))) ->  | B9: CMM Tech Refresh | C9: =IF(ISBLANK(INDEX('-- PPL --'!D$10:D$10112,(MATCH($B9,'-- PPL --'!$G$10:$G$10112,0)))),"",INDEX('-- PPL --'!D$10:D$10112,(MATCH($B9,'-- PPL --'!$G$10:$G$10112,0)))) ->  | D9: =IF(ISBLANK(INDEX('-- PPL --'!F$10:F$10112,(MATCH($B9,'-- PPL --'!$G$10:$G$10112,0)))),"",INDEX('-- PPL --'!F$10:F$10112,(MATCH($B9,'-- PPL --'!$G$10:$G$10112,0)))) -> 183-01 | E9: =INDEX('-- PPL --'!I$10:I$10112,(MATCH($B9,'-- PPL --'!$G$10:$G$10112,0))) -> Complete | F9: =INDEX('-- PPL --'!#REF!,(MATCH($B9,'-- PPL --'!$G$10:$G$10112,0))) ->  | G9: =INDEX('-- PPL --'!#REF!,(MATCH($B9,'-- PPL --'!$G$10:$G$10112,0))) ->  | H9: =INDEX('-- PPL --'!AW$10:AW$10112,(MATCH($B9,'-- PPL --'!$G$10:$G$10112,0))) -> 2015-10-01 | I9: =INDEX('-- PPL --'!AX$10:AX$10112,(MATCH($B9,'-- PPL --'!$G$10:$G$10112,0))) -> 2019-11-01 | J9: =INDEX('-- PPL --'!#REF!,(MATCH($B9,'-- PPL --'!$G$10:$G$10112,0))) ->  | K9: =INDEX('-- PPL --'!AE$10:AE$10112,(MATCH($B9,'-- PPL --'!$G$10:$G$10112,0))) -> 0 | L9: =INDEX('-- PPL --'!AG$10:AG$10112,(MATCH($B9,'-- PPL --'!$G$10:$G$10112,0))) -> 0 | M9: 0 | N9: 0 | O9: =SUMIFS(#REF!,#REF!,$B9,#REF!,"Internal Labor ") ->  | R9: 2 | S9: 0 | T9: =IF(L9>0,INDEX('-- PPL --'!#REF!,(MATCH($B9,'-- PPL --'!$G$10:$G$10112,0))),0) -> 0 | U9: 0 | V9: =SUMIFS(#REF!,#REF!,$B9,#REF!,"Internal Labor ") ->  | W9: =IF(ISBLANK(INDEX('-- PPL --'!#REF!,(MATCH($B9,'-- PPL --'!$G$10:$G$10112,0)))),"",INDEX('-- PPL --'!#REF!,(MATCH($B9,'-- PPL --'!$G$10:$G$10112,0)))) -> 
A10: =INDEX('-- PPL --'!#REF!,(MATCH($B10,'-- PPL --'!$G$10:$G$10112,0))) ->  | B10: Collateral Requirements for Counter-Parties with No Load or Generation | C10: =IF(ISBLANK(INDEX('-- PPL --'!D$10:D$10112,(MATCH($B10,'-- PPL --'!$G$10:$G$10112,0)))),"",INDEX('-- PPL --'!D$10:D$10112,(MATCH($B10,'-- PPL --'!$G$10:$G$10112,0)))) -> NPRR620 | D10: =IF(ISBLANK(INDEX('-- PPL --'!F$10:F$10112,(MATCH($B10,'-- PPL --'!$G$10:$G$10112,0)))),"",INDEX('-- PPL --'!F$10:F$10112,(MATCH($B10,'-- PPL --'!$G$10:$G$10112,0)))) -> 183-01 | E10: =INDEX('-- PPL --'!I$10:I$10112,(MATCH($B10,'-- PPL --'!$G$10:$G$10112,0))) -> Complete | F10: =INDEX('-- PPL --'!#REF!,(MATCH($B10,'-- PPL --'!$G$10:$G$10112,0))) ->  | G10: =INDEX('-- PPL --'!#REF!,(MATCH($B10,'-- PPL --'!$G$10:$G$10112,0))) ->  | H10: =INDEX('-- PPL --'!AW$10:AW$10112,(MATCH($B10,'-- PPL --'!$G$10:$G$10112,0))) -> 2016-03-01 | I10: =INDEX('-- PPL --'!AX$10:AX$10112,(MATCH($B10,'-- PPL --'!$G$10:$G$10112,0))) -> 2019-11-01 | J10: =INDEX('-- PPL --'!#REF!,(MATCH($B10,'-- PPL --'!$G$10:$G$10112,0))) ->  | K10: =INDEX('-- PPL --'!AE$10:AE$10112,(MATCH($B10,'-- PPL --'!$G$10:$G$10112,0))) -> 0 | L10: =INDEX('-- PPL --'!AG$10:AG$10112,(MATCH($B10,'-- PPL --'!$G$10:$G$10112,0))) -> 0 | M10: 0 | N10: 0 | O10: =SUMIFS(#REF!,#REF!,$B10,#REF!,"Internal Labor ") ->  | R10: 2 | S10: 0 | T10: =IF(L10>0,INDEX('-- PPL --'!#REF!,(MATCH($B10,'-- PPL --'!$G$10:$G$10112,0))),0) -> 0 | U10: 0 | V10: =SUMIFS(#REF!,#REF!,$B10,#REF!,"Internal Labor ") ->  | W10: =IF(ISBLANK(INDEX('-- PPL --'!#REF!,(MATCH($B10,'-- PPL --'!$G$10:$G$10112,0)))),"",INDEX('-- PPL --'!#REF!,(MATCH($B10,'-- PPL --'!$G$10:$G$10112,0)))) -> 
A11: =INDEX('-- PPL --'!#REF!,(MATCH($B11,'-- PPL --'!$G$10:$G$10112,0))) ->  | B11: GINR Project Status Application Replacement | C11: =IF(ISBLANK(INDEX('-- PPL --'!D$10:D$10112,(MATCH($B11,'-- PPL --'!$G$10:$G$10112,0)))),"",INDEX('-- PPL --'!D$10:D$10112,(MATCH($B11,'-- PPL --'!$G$10:$G$10112,0)))) ->  | D11: =IF(ISBLANK(INDEX('-- PPL --'!F$10:F$10112,(MATCH($B11,'-- PPL --'!$G$10:$G$10112,0)))),"",INDEX('-- PPL --'!F$10:F$10112,(MATCH($B11,'-- PPL --'!$G$10:$G$10112,0)))) -> 196-01 | E11: =INDEX('-- PPL --'!I$10:I$10112,(MATCH($B11,'-- PPL --'!$G$10:$G$10112,0))) -> Complete | F11: =INDEX('-- PPL --'!#REF!,(MATCH($B11,'-- PPL --'!$G$10:$G$10112,0))) ->  | G11: =INDEX('-- PPL --'!#REF!,(MATCH($B11,'-- PPL --'!$G$10:$G$10112,0))) ->  | H11: =INDEX('-- PPL --'!AW$10:AW$10112,(MATCH($B11,'-- PPL --'!$G$10:$G$10112,0))) -> 2016-03-01 | I11: =INDEX('-- PPL --'!AX$10:AX$10112,(MATCH($B11,'-- PPL --'!$G$10:$G$10112,0))) -> 2019-05-01 | J11: =INDEX('-- PPL --'!#REF!,(MATCH($B11,'-- PPL --'!$G$10:$G$10112,0))) ->  | K11: =INDEX('-- PPL --'!AE$10:AE$10112,(MATCH($B11,'-- PPL --'!$G$10:$G$10112,0))) -> 0 | L11: =INDEX('-- PPL --'!AG$10:AG$10112,(MATCH($B11,'-- PPL --'!$G$10:$G$10112,0))) -> 0 | M11: 0 | N11: 0 | O11: =SUMIFS(#REF!,#REF!,$B11,#REF!,"Internal Labor ") ->  | R11: 2 | S11: 0 | T11: =IF(L11>0,INDEX('-- PPL --'!#REF!,(MATCH($B11,'-- PPL --'!$G$10:$G$10112,0))),0) -> 0 | U11: 0 | V11: =SUMIFS(#REF!,#REF!,$B11,#REF!,"Internal Labor ") ->  | W11: =IF(ISBLANK(INDEX('-- PPL --'!#REF!,(MATCH($B11,'-- PPL --'!$G$10:$G$10112,0)))),"",INDEX('-- PPL --'!#REF!,(MATCH($B11,'-- PPL --'!$G$10:$G$10112,0)))) -> 
A12: =INDEX('-- PPL --'!#REF!,(MATCH($B12,'-- PPL --'!$G$10:$G$10112,0))) ->  | B12: Clarifications to TPE and EAL Credit Exposure Calculations | C12: =IF(ISBLANK(INDEX('-- PPL --'!D$10:D$10112,(MATCH($B12,'-- PPL --'!$G$10:$G$10112,0)))),"",INDEX('-- PPL --'!D$10:D$10112,(MATCH($B12,'-- PPL --'!$G$10:$G$10112,0)))) -> NPRR741 | D12: =IF(ISBLANK(INDEX('-- PPL --'!F$10:F$10112,(MATCH($B12,'-- PPL --'!$G$10:$G$10112,0)))),"",INDEX('-- PPL --'!F$10:F$10112,(MATCH($B12,'-- PPL --'!$G$10:$G$10112,0)))) -> 183-01 | E12: =INDEX('-- PPL --'!I$10:I$10112,(MATCH($B12,'-- PPL --'!$G$10:$G$10112,0))) -> Complete | F12: =INDEX('-- PPL --'!#REF!,(MATCH($B12,'-- PPL --'!$G$10:$G$10112,0))) ->  | G12: =INDEX('-- PPL --'!#REF!,(MATCH($B12,'-- PPL --'!$G$10:$G$10112,0))) ->  | H12: =INDEX('-- PPL --'!AW$10:AW$10112,(MATCH($B12,'-- PPL --'!$G$10:$G$10112,0))) -> 2016-07-01 | I12: =INDEX('-- PPL --'!AX$10:AX$10112,(MATCH($B12,'-- PPL --'!$G$10:$G$10112,0))) -> 2019-11-01 | J12: =INDEX('-- PPL --'!#REF!,(MATCH($B12,'-- PPL --'!$G$10:$G$10112,0))) ->  | K12: =INDEX('-- PPL --'!AE$10:AE$10112,(MATCH($B12,'-- PPL --'!$G$10:$G$10112,0))) -> 0 | L12: =INDEX('-- PPL --'!AG$10:AG$10112,(MATCH($B12,'-- PPL --'!$G$10:$G$10112,0))) -> 0 | M12: 0 | N12: 0 | O12: =SUMIFS(#REF!,#REF!,$B12,#REF!,"Internal Labor ") ->  | R12: 2 | S12: 0 | T12: =IF(L12>0,INDEX('-- PPL --'!#REF!,(MATCH($B12,'-- PPL --'!$G$10:$G$10112,0))),0) -> 0 | U12: 0 | V12: =SUMIFS(#REF!,#REF!,$B12,#REF!,"Internal Labor ") ->  | W12: =IF(ISBLANK(INDEX('-- PPL --'!#REF!,(MATCH($B12,'-- PPL --'!$G$10:$G$10112,0)))),"",INDEX('-- PPL --'!#REF!,(MATCH($B12,'-- PPL --'!$G$10:$G$10112,0)))) -> 
A13: =INDEX('-- PPL --'!#REF!,(MATCH($B13,'-- PPL --'!$G$10:$G$10112,0))) ->  | B13: Revision to MCE to Have a Floor For Load Exposure | C13: =IF(ISBLANK(INDEX('-- PPL --'!D$10:D$10112,(MATCH($B13,'-- PPL --'!$G$10:$G$10112,0)))),"",INDEX('-- PPL --'!D$10:D$10112,(MATCH($B13,'-- PPL --'!$G$10:$G$10112,0)))) -> NPRR743 | D13: =IF(ISBLANK(INDEX('-- PPL --'!F$10:F$10112,(MATCH($B13,'-- PPL --'!$G$10:$G$10112,0)))),"",INDEX('-- PPL --'!F$10:F$10112,(MATCH($B13,'-- PPL --'!$G$10:$G$10112,0)))) -> 183-01 | E13: =INDEX('-- PPL --'!I$10:I$10112,(MATCH($B13,'-- PPL --'!$G$10:$G$10112,0))) -> Complete | F13: =INDEX('-- PPL --'!#REF!,(MATCH($B13,'-- PPL --'!$G$10:$G$10112,0))) ->  | G13: =INDEX('-- PPL --'!#REF!,(MATCH($B13,'-- PPL --'!$G$10:$G$10112,0))) ->  | H13: =INDEX('-- PPL --'!AW$10:AW$10112,(MATCH($B13,'-- PPL --'!$G$10:$G$10112,0))) -> 2016-07-01 | I13: =INDEX('-- PPL --'!AX$10:AX$10112,(MATCH($B13,'-- PPL --'!$G$10:$G$10112,0))) -> 2019-11-01 | J13: =INDEX('-- PPL --'!#REF!,(MATCH($B13,'-- PPL --'!$G$10:$G$10112,0))) ->  | K13: =INDEX('-- PPL --'!AE$10:AE$10112,(MATCH($B13,'-- PPL --'!$G$10:$G$10112,0))) -> 0 | L13: =INDEX('-- PPL --'!AG$10:AG$10112,(MATCH($B13,'-- PPL --'!$G$10:$G$10112,0))) -> 0 | M13: 0 | N13: 0 | O13: =SUMIFS(#REF!,#REF!,$B13,#REF!,"Internal Labor ") ->  | R13: 2 | S13: 0 | T13: =IF(L13>0,INDEX('-- PPL --'!#REF!,(MATCH($B13,'-- PPL --'!$G$10:$G$10112,0))),0) -> 0 | U13: 0 | V13: =SUMIFS(#REF!,#REF!,$B13,#REF!,"Internal Labor ") ->  | W13: =IF(ISBLANK(INDEX('-- PPL --'!#REF!,(MATCH($B13,'-- PPL --'!$G$10:$G$10112,0)))),"",INDEX('-- PPL --'!#REF!,(MATCH($B13,'-- PPL --'!$G$10:$G$10112,0)))) -> 
